Workbook

Sheet 1 フローチャート
B62: （※別シート【2-1 設備条件シート】【2-2 運転条件シート】へ入力） | J62: （※CO2削減対策の効果算定ガイドライン等）

Sheet 2-1 設備条件シート
E3: 給湯年間活動量算定ツール（EHP版） | M3: Ver. 1.1.2
C5: ヒートポンプ給湯装置の年間電力使用量の算定
E8: 給湯ヒートポンプを設置する都道府県を選択 | K8: 選択
E10: 選択した都道府県庁所在地 | K10: 自動表示 | L10: =IF($L$8="","",VLOOKUP($L$8,γ一覧表!$C$3:$F$50,2,FALSE)) -> 
D12: 1 | E12: 給湯ヒートポンプを導入する建物用途を選択 | K12: 選択
D14: 2 | E14: 導入予定の給湯ヒートポンプの給湯方式を選択 | K14: 選択
D16: 3 | E16: 導入予定の給湯ヒートポンプの冷媒種を選択 | K16: 選択 | N16: =ROUNDUP($L$16,1) -> 0
D19: 注意事項 | E19: ● 本ツールは、設備更新の効果を簡易的に把握するために開発されたものであり、他の目的に利用することは想定されていません。
E20: ● あらゆる入力に対して正しい計算結果が得られることを保証するものではありません。
E21: 計算結果の取り扱いについては、自己責任でお願いします。
O25: =IF($L$8="","","") -> 

Sheet 2-2 運転条件シート
C2: 給湯HPの設置場所
C3: =IF('2-1 設備条件シート'!L8="","",'2-1 設備条件シート'!L8) ->  | F3: 手順1：給湯ヒートポンプを使用する月、時間を下記の指定の色で塗る(指定の色以外で塗ると計算できません。) | AG3: 自動表示
C4: =VLOOKUP($C$3,γ一覧表!$C$3:$E$50,2,FALSE) ->  | G4: オレンジ | H4: 【左から6番目、一番薄い色(アクセント2,白＋基本色80％)】 | AG4: 選択
C5: 使用するγ値 | F5: 手順2：各月の運転日数を入力する | AG5: 入力
C6: =IFERROR(VLOOKUP($C$3,γ一覧表!$C$3:$D$50,2,FALSE),"") ->  | F6: 手順3：Ctrl + Alt + F9を同時に押す | AH6: Ver. 1.1.2
F7: 手順4：黄色のセルに値を入力する(青は自動計算) | AE7: 用途 | AF7: ='2-1 設備条件シート'!L14 -> 0
C8: (1) 時刻別平均気温 T1[℃] | AE8: 冷媒 | AF8: ='2-1 設備条件シート'!L16 -> 0
D9: 時刻 | AE9: 月別入水温度θ | AG9: 月別能力 | AH9: 焚上温度
C10: 月 | D10: 0 | E10: 1 | F10: 2 | G10: 3 | H10: 4 | I10: 5 | J10: 6 | K10: 7 | L10: 8 | M10: 9 | N10: 10 | O10: 11 | P10: 12 | Q10: 13 | R10: 14 | S10: 15 | T10: 16 | U10: 17 | V10: 18 | W10: 19 | X10: 20 | Y10: 21 | Z10: 22 | AA10: 23 | AB10: 運転日数 | AC10: 月 | AD10: 季節 | AE10: T3 [℃] | AG10: Qm［kW］ | AH10: T2 [℃]
C11: 4 | D11: =IFERROR(INDIRECT($C$4&"!B5"),"") ->  | E11: =IFERROR(INDIRECT($C$4&"!C5"),"") ->  | F11: =IFERROR(INDIRECT($C$4&"!D5"),"") ->  | G11: =IFERROR(INDIRECT($C$4&"!E5"),"") ->  | H11: =IFERROR(INDIRECT($C$4&"!F5"),"") ->  | I11: =IFERROR(INDIRECT($C$4&"!G5"),"") ->  | J11: =IFERROR(INDIRECT($C$4&"!H5"),"") ->  | K11: =IFERROR(INDIRECT($C$4&"!I5"),"") ->  | L11: =IFERROR(INDIRECT($C$4&"!J5"),"") ->  | M11: =IFERROR(INDIRECT($C$4&"!K5"),"") ->  | N11: =IFERROR(INDIRECT($C$4&"!L5"),"") ->  | O11: =IFERROR(INDIRECT($C$4&"!M5"),"") ->  | P11: =IFERROR(INDIRECT($C$4&"!N5"),"") ->  | Q11: =IFERROR(INDIRECT($C$4&"!O5"),"") ->  | R11: =IFERROR(INDIRECT($C$4&"!P5"),"") ->  | S11: =IFERROR(INDIRECT($C$4&"!Q5"),"") ->  | T11: =IFERROR(INDIRECT($C$4&"!R5"),"") ->  | U11: =IFERROR(INDIRECT($C$4&"!S5"),"") ->  | V11: =IFERROR(INDIRECT($C$4&"!T5"),"") ->  | W11: =IFERROR(INDIRECT($C$4&"!U5"),"") ->  | X11: =IFERROR(INDIRECT($C$4&"!V5"),"") ->  | Y11: =IFERROR(INDIRECT($C$4&"!W5"),"") ->  | Z11: =IFERROR(INDIRECT($C$4&"!X5"),"") ->  | AA11: =IFERROR(INDIRECT($C$4&"!Y5"),"") ->  | AC11: 4 | AD11: =データ集②!D6 ->  | AE11: =IFERROR(計算シート!E13,"") -> 
C12: 5 | D12: =IFERROR(INDIRECT($C$4&"!B6"),"") ->  | E12: =IFERROR(INDIRECT($C$4&"!C6"),"") ->  | F12: =IFERROR(INDIRECT($C$4&"!D6"),"") ->  | G12: =IFERROR(INDIRECT($C$4&"!E6"),"") ->  | H12: =IFERROR(INDIRECT($C$4&"!F6"),"") ->  | I12: =IFERROR(INDIRECT($C$4&"!G6"),"") ->  | J12: =IFERROR(INDIRECT($C$4&"!H6"),"") ->  | K12: =IFERROR(INDIRECT($C$4&"!I6"),"") ->  | L12: =IFERROR(INDIRECT($C$4&"!J6"),"") ->  | M12: =IFERROR(INDIRECT($C$4&"!K6"),"") ->  | N12: =IFERROR(INDIRECT($C$4&"!L6"),"") ->  | O12: =IFERROR(INDIRECT($C$4&"!M6"),"") ->  | P12: =IFERROR(INDIRECT($C$4&"!N6"),"") ->  | Q12: =IFERROR(INDIRECT($C$4&"!O6"),"") ->  | R12: =IFERROR(INDIRECT($C$4&"!P6"),"") ->  | S12: =IFERROR(INDIRECT($C$4&"!Q6"),"") ->  | T12: =IFERROR(INDIRECT($C$4&"!R6"),"") ->  | U12: =IFERROR(INDIRECT($C$4&"!S6"),"") ->  | V12: =IFERROR(INDIRECT($C$4&"!T6"),"") ->  | W12: =IFERROR(INDIRECT($C$4&"!U6"),"") ->  | X12: =IFERROR(INDIRECT($C$4&"!V6"),"") ->  | Y12: =IFERROR(INDIRECT($C$4&"!W6"),"") ->  | Z12: =IFERROR(INDIRECT($C$4&"!X6"),"") ->  | AA12: =IFERROR(INDIRECT($C$4&"!Y6"),"") ->  | AC12: 5 | AD12: =データ集②!E6 ->  | AE12: =IFERROR(計算シート!M13,"") -> 
C13: 6 | D13: =IFERROR(INDIRECT($C$4&"!B7"),"") ->  | E13: =IFERROR(INDIRECT($C$4&"!C7"),"") ->  | F13: =IFERROR(INDIRECT($C$4&"!D7"),"") ->  | G13: =IFERROR(INDIRECT($C$4&"!E7"),"") ->  | H13: =IFERROR(INDIRECT($C$4&"!F7"),"") ->  | I13: =IFERROR(INDIRECT($C$4&"!G7"),"") ->  | J13: =IFERROR(INDIRECT($C$4&"!H7"),"") ->  | K13: =IFERROR(INDIRECT($C$4&"!I7"),"") ->  | L13: =IFERROR(INDIRECT($C$4&"!J7"),"") ->  | M13: =IFERROR(INDIRECT($C$4&"!K7"),"") ->  | N13: =IFERROR(INDIRECT($C$4&"!L7"),"") ->  | O13: =IFERROR(INDIRECT($C$4&"!M7"),"") ->  | P13: =IFERROR(INDIRECT($C$4&"!N7"),"") ->  | Q13: =IFERROR(INDIRECT($C$4&"!O7"),"") ->  | R13: =IFERROR(INDIRECT($C$4&"!P7"),"") ->  | S13: =IFERROR(INDIRECT($C$4&"!Q7"),"") ->  | T13: =IFERROR(INDIRECT($C$4&"!R7"),"") ->  | U13: =IFERROR(INDIRECT($C$4&"!S7"),"") ->  | V13: =IFERROR(INDIRECT($C$4&"!T7"),"") ->  | W13: =IFERROR(INDIRECT($C$4&"!U7"),"") ->  | X13: =IFERROR(INDIRECT($C$4&"!V7"),"") ->  | Y13: =IFERROR(INDIRECT($C$4&"!W7"),"") ->  | Z13: =IFERROR(INDIRECT($C$4&"!X7"),"") ->  | AA13: =IFERROR(INDIRECT($C$4&"!Y7"),"") ->  | AC13: 6 | AD13: =データ集②!F6 ->  | AE13: =IFERROR(計算シート!T13,"") -> 
C14: 7 | D14: =IFERROR(INDIRECT($C$4&"!B8"),"") ->  | E14: =IFERROR(INDIRECT($C$4&"!C8"),"") ->  | F14: =IFERROR(INDIRECT($C$4&"!D8"),"") ->  | G14: =IFERROR(INDIRECT($C$4&"!E8"),"") ->  | H14: =IFERROR(INDIRECT($C$4&"!F8"),"") ->  | I14: =IFERROR(INDIRECT($C$4&"!G8"),"") ->  | J14: =IFERROR(INDIRECT($C$4&"!H8"),"") ->  | K14: =IFERROR(INDIRECT($C$4&"!I8"),"") ->  | L14: =IFERROR(INDIRECT($C$4&"!J8"),"") ->  | M14: =IFERROR(INDIRECT($C$4&"!K8"),"") ->  | N14: =IFERROR(INDIRECT($C$4&"!L8"),"") ->  | O14: =IFERROR(INDIRECT($C$4&"!M8"),"") ->  | P14: =IFERROR(INDIRECT($C$4&"!N8"),"") ->  | Q14: =IFERROR(INDIRECT($C$4&"!O8"),"") ->  | R14: =IFERROR(INDIRECT($C$4&"!P8"),"") ->  | S14: =IFERROR(INDIRECT($C$4&"!Q8"),"") ->  | T14: =IFERROR(INDIRECT($C$4&"!R8"),"") ->  | U14: =IFERROR(INDIRECT($C$4&"!S8"),"") ->  | V14: =IFERROR(INDIRECT($C$4&"!T8"),"") ->  | W14: =IFERROR(INDIRECT($C$4&"!U8"),"") ->  | X14: =IFERROR(INDIRECT($C$4&"!V8"),"") ->  | Y14: =IFERROR(INDIRECT($C$4&"!W8"),"") ->  | Z14: =IFERROR(INDIRECT($C$4&"!X8"),"") ->  | AA14: =IFERROR(INDIRECT($C$4&"!Y8"),"") ->  | AC14: 7 | AD14: =データ集②!G6 ->  | AE14: =IFERROR(計算シート!AA13,"") -> 
C15: 8 | D15: =IFERROR(INDIRECT($C$4&"!B9"),"") ->  | E15: =IFERROR(INDIRECT($C$4&"!C9"),"") ->  | F15: =IFERROR(INDIRECT($C$4&"!D9"),"") ->  | G15: =IFERROR(INDIRECT($C$4&"!E9"),"") ->  | H15: =IFERROR(INDIRECT($C$4&"!F9"),"") ->  | I15: =IFERROR(INDIRECT($C$4&"!G9"),"") ->  | J15: =IFERROR(INDIRECT($C$4&"!H9"),"") ->  | K15: =IFERROR(INDIRECT($C$4&"!I9"),"") ->  | L15: =IFERROR(INDIRECT($C$4&"!J9"),"") ->  | M15: =IFERROR(INDIRECT($C$4&"!K9"),"") ->  | N15: =IFERROR(INDIRECT($C$4&"!L9"),"") ->  | O15: =IFERROR(INDIRECT($C$4&"!M9"),"") ->  | P15: =IFERROR(INDIRECT($C$4&"!N9"),"") ->  | Q15: =IFERROR(INDIRECT($C$4&"!O9"),"") ->  | R15: =IFERROR(INDIRECT($C$4&"!P9"),"") ->  | S15: =IFERROR(INDIRECT($C$4&"!Q9"),"") ->  | T15: =IFERROR(INDIRECT($C$4&"!R9"),"") ->  | U15: =IFERROR(INDIRECT($C$4&"!S9"),"") ->  | V15: =IFERROR(INDIRECT($C$4&"!T9"),"") ->  | W15: =IFERROR(INDIRECT($C$4&"!U9"),"") ->  | X15: =IFERROR(INDIRECT($C$4&"!V9"),"") ->  | Y15: =IFERROR(INDIRECT($C$4&"!W9"),"") ->  | Z15: =IFERROR(INDIRECT($C$4&"!X9"),"") ->  | AA15: =IFERROR(INDIRECT($C$4&"!Y9"),"") ->  | AC15: 8 | AD15: =データ集②!H6 ->  | AE15: =IFERROR(計算シート!AH13,"") -> 
C16: 9 | D16: =IFERROR(INDIRECT($C$4&"!B10"),"") ->  | E16: =IFERROR(INDIRECT($C$4&"!C10"),"") ->  | F16: =IFERROR(INDIRECT($C$4&"!D10"),"") ->  | G16: =IFERROR(INDIRECT($C$4&"!E10"),"") ->  | H16: =IFERROR(INDIRECT($C$4&"!F10"),"") ->  | I16: =IFERROR(INDIRECT($C$4&"!G10"),"") ->  | J16: =IFERROR(INDIRECT($C$4&"!H10"),"") ->  | K16: =IFERROR(INDIRECT($C$4&"!I10"),"") ->  | L16: =IFERROR(INDIRECT($C$4&"!J10"),"") ->  | M16: =IFERROR(INDIRECT($C$4&"!K10"),"") ->  | N16: =IFERROR(INDIRECT($C$4&"!L10"),"") ->  | O16: =IFERROR(INDIRECT($C$4&"!M10"),"") ->  | P16: =IFERROR(INDIRECT($C$4&"!N10"),"") ->  | Q16: =IFERROR(INDIRECT($C$4&"!O10"),"") ->  | R16: =IFERROR(INDIRECT($C$4&"!P10"),"") ->  | S16: =IFERROR(INDIRECT($C$4&"!Q10"),"") ->  | T16: =IFERROR(INDIRECT($C$4&"!R10"),"") ->  | U16: =IFERROR(INDIRECT($C$4&"!S10"),"") ->  | V16: =IFERROR(INDIRECT($C$4&"!T10"),"") ->  | W16: =IFERROR(INDIRECT($C$4&"!U10"),"") ->  | X16: =IFERROR(INDIRECT($C$4&"!V10"),"") ->  | Y16: =IFERROR(INDIRECT($C$4&"!W10"),"") ->  | Z16: =IFERROR(INDIRECT($C$4&"!X10"),"") ->  | AA16: =IFERROR(INDIRECT($C$4&"!Y10"),"") ->  | AC16: 9 | AD16: =データ集②!I6 ->  | AE16: =IFERROR(計算シート!AO13,"") -> 
C17: 10 | D17: =IFERROR(INDIRECT($C$4&"!B11"),"") ->  | E17: =IFERROR(INDIRECT($C$4&"!C11"),"") ->  | F17: =IFERROR(INDIRECT($C$4&"!D11"),"") ->  | G17: =IFERROR(INDIRECT($C$4&"!E11"),"") ->  | H17: =IFERROR(INDIRECT($C$4&"!F11"),"") ->  | I17: =IFERROR(INDIRECT($C$4&"!G11"),"") ->  | J17: =IFERROR(INDIRECT($C$4&"!H11"),"") ->  | K17: =IFERROR(INDIRECT($C$4&"!I11"),"") ->  | L17: =IFERROR(INDIRECT($C$4&"!J11"),"") ->  | M17: =IFERROR(INDIRECT($C$4&"!K11"),"") ->  | N17: =IFERROR(INDIRECT($C$4&"!L11"),"") ->  | O17: =IFERROR(INDIRECT($C$4&"!M11"),"") ->  | P17: =IFERROR(INDIRECT($C$4&"!N11"),"") ->  | Q17: =IFERROR(INDIRECT($C$4&"!O11"),"") ->  | R17: =IFERROR(INDIRECT($C$4&"!P11"),"") ->  | S17: =IFERROR(INDIRECT($C$4&"!Q11"),"") ->  | T17: =IFERROR(INDIRECT($C$4&"!R11"),"") ->  | U17: =IFERROR(INDIRECT($C$4&"!S11"),"") ->  | V17: =IFERROR(INDIRECT($C$4&"!T11"),"") ->  | W17: =IFERROR(INDIRECT($C$4&"!U11"),"") ->  | X17: =IFERROR(INDIRECT($C$4&"!V11"),"") ->  | Y17: =IFERROR(INDIRECT($C$4&"!W11"),"") ->  | Z17: =IFERROR(INDIRECT($C$4&"!X11"),"") ->  | AA17: =IFERROR(INDIRECT($C$4&"!Y11"),"") ->  | AC17: 10 | AD17: =データ集②!J6 ->  | AE17: =IFERROR(計算シート!AV13,"") -> 
C18: 11 | D18: =IFERROR(INDIRECT($C$4&"!B12"),"") ->  | E18: =IFERROR(INDIRECT($C$4&"!C12"),"") ->  | F18: =IFERROR(INDIRECT($C$4&"!D12"),"") ->  | G18: =IFERROR(INDIRECT($C$4&"!E12"),"") ->  | H18: =IFERROR(INDIRECT($C$4&"!F12"),"") ->  | I18: =IFERROR(INDIRECT($C$4&"!G12"),"") ->  | J18: =IFERROR(INDIRECT($C$4&"!H12"),"") ->  | K18: =IFERROR(INDIRECT($C$4&"!I12"),"") ->  | L18: =IFERROR(INDIRECT($C$4&"!J12"),"") ->  | M18: =IFERROR(INDIRECT($C$4&"!K12"),"") ->  | N18: =IFERROR(INDIRECT($C$4&"!L12"),"") ->  | O18: =IFERROR(INDIRECT($C$4&"!M12"),"") ->  | P18: =IFERROR(INDIRECT($C$4&"!N12"),"") ->  | Q18: =IFERROR(INDIRECT($C$4&"!O12"),"") ->  | R18: =IFERROR(INDIRECT($C$4&"!P12"),"") ->  | S18: =IFERROR(INDIRECT($C$4&"!Q12"),"") ->  | T18: =IFERROR(INDIRECT($C$4&"!R12"),"") ->  | U18: =IFERROR(INDIRECT($C$4&"!S12"),"") ->  | V18: =IFERROR(INDIRECT($C$4&"!T12"),"") ->  | W18: =IFERROR(INDIRECT($C$4&"!U12"),"") ->  | X18: =IFERROR(INDIRECT($C$4&"!V12"),"") ->  | Y18: =IFERROR(INDIRECT($C$4&"!W12"),"") ->  | Z18: =IFERROR(INDIRECT($C$4&"!X12"),"") ->  | AA18: =IFERROR(INDIRECT($C$4&"!Y12"),"") ->  | AC18: 11 | AD18: =データ集②!K6 ->  | AE18: =IFERROR(計算シート!BC13,"") -> 
C19: 12 | D19: =IFERROR(INDIRECT($C$4&"!B13"),"") ->  | E19: =IFERROR(INDIRECT($C$4&"!C13"),"") ->  | F19: =IFERROR(INDIRECT($C$4&"!D13"),"") ->  | G19: =IFERROR(INDIRECT($C$4&"!E13"),"") ->  | H19: =IFERROR(INDIRECT($C$4&"!F13"),"") ->  | I19: =IFERROR(INDIRECT($C$4&"!G13"),"") ->  | J19: =IFERROR(INDIRECT($C$4&"!H13"),"") ->  | K19: =IFERROR(INDIRECT($C$4&"!I13"),"") ->  | L19: =IFERROR(INDIRECT($C$4&"!J13"),"") ->  | M19: =IFERROR(INDIRECT($C$4&"!K13"),"") ->  | N19: =IFERROR(INDIRECT($C$4&"!L13"),"") ->  | O19: =IFERROR(INDIRECT($C$4&"!M13"),"") ->  | P19: =IFERROR(INDIRECT($C$4&"!N13"),"") ->  | Q19: =IFERROR(INDIRECT($C$4&"!O13"),"") ->  | R19: =IFERROR(INDIRECT($C$4&"!P13"),"") ->  | S19: =IFERROR(INDIRECT($C$4&"!Q13"),"") ->  | T19: =IFERROR(INDIRECT($C$4&"!R13"),"") ->  | U19: =IFERROR(INDIRECT($C$4&"!S13"),"") ->  | V19: =IFERROR(INDIRECT($C$4&"!T13"),"") ->  | W19: =IFERROR(INDIRECT($C$4&"!U13"),"") ->  | X19: =IFERROR(INDIRECT($C$4&"!V13"),"") ->  | Y19: =IFERROR(INDIRECT($C$4&"!W13"),"") ->  | Z19: =IFERROR(INDIRECT($C$4&"!X13"),"") ->  | AA19: =IFERROR(INDIRECT($C$4&"!Y13"),"") ->  | AC19: 12 | AD19: =データ集②!L6 ->  | AE19: =IFERROR(計算シート!BJ13,"") -> 
C20: 1 | D20: =IFERROR(INDIRECT($C$4&"!B14"),"") ->  | E20: =IFERROR(INDIRECT($C$4&"!C14"),"") ->  | F20: =IFERROR(INDIRECT($C$4&"!D14"),"") ->  | G20: =IFERROR(INDIRECT($C$4&"!E14"),"") ->  | H20: =IFERROR(INDIRECT($C$4&"!F14"),"") ->  | I20: =IFERROR(INDIRECT($C$4&"!G14"),"") ->  | J20: =IFERROR(INDIRECT($C$4&"!H14"),"") ->  | K20: =IFERROR(INDIRECT($C$4&"!I14"),"") ->  | L20: =IFERROR(INDIRECT($C$4&"!J14"),"") ->  | M20: =IFERROR(INDIRECT($C$4&"!K14"),"") ->  | N20: =IFERROR(INDIRECT($C$4&"!L14"),"") ->  | O20: =IFERROR(INDIRECT($C$4&"!M14"),"") ->  | P20: =IFERROR(INDIRECT($C$4&"!N14"),"") ->  | Q20: =IFERROR(INDIRECT($C$4&"!O14"),"") ->  | R20: =IFERROR(INDIRECT($C$4&"!P14"),"") ->  | S20: =IFERROR(INDIRECT($C$4&"!Q14"),"") ->  | T20: =IFERROR(INDIRECT($C$4&"!R14"),"") ->  | U20: =IFERROR(INDIRECT($C$4&"!S14"),"") ->  | V20: =IFERROR(INDIRECT($C$4&"!T14"),"") ->  | W20: =IFERROR(INDIRECT($C$4&"!U14"),"") ->  | X20: =IFERROR(INDIRECT($C$4&"!V14"),"") ->  | Y20: =IFERROR(INDIRECT($C$4&"!W14"),"") ->  | Z20: =IFERROR(INDIRECT($C$4&"!X14"),"") ->  | AA20: =IFERROR(INDIRECT($C$4&"!Y14"),"") ->  | AC20: 1 | AD20: =データ集②!M6 ->  | AE20: =IFERROR(計算シート!BQ13,"") -> 
C21: 2 | D21: =IFERROR(INDIRECT($C$4&"!B15"),"") ->  | E21: =IFERROR(INDIRECT($C$4&"!C15"),"") ->  | F21: =IFERROR(INDIRECT($C$4&"!D15"),"") ->  | G21: =IFERROR(INDIRECT($C$4&"!E15"),"") ->  | H21: =IFERROR(INDIRECT($C$4&"!F15"),"") ->  | I21: =IFERROR(INDIRECT($C$4&"!G15"),"") ->  | J21: =IFERROR(INDIRECT($C$4&"!H15"),"") ->  | K21: =IFERROR(INDIRECT($C$4&"!I15"),"") ->  | L21: =IFERROR(INDIRECT($C$4&"!J15"),"") ->  | M21: =IFERROR(INDIRECT($C$4&"!K15"),"") ->  | N21: =IFERROR(INDIRECT($C$4&"!L15"),"") ->  | O21: =IFERROR(INDIRECT($C$4&"!M15"),"") ->  | P21: =IFERROR(INDIRECT($C$4&"!N15"),"") ->  | Q21: =IFERROR(INDIRECT($C$4&"!O15"),"") ->  | R21: =IFERROR(INDIRECT($C$4&"!P15"),"") ->  | S21: =IFERROR(INDIRECT($C$4&"!Q15"),"") ->  | T21: =IFERROR(INDIRECT($C$4&"!R15"),"") ->  | U21: =IFERROR(INDIRECT($C$4&"!S15"),"") ->  | V21: =IFERROR(INDIRECT($C$4&"!T15"),"") ->  | W21: =IFERROR(INDIRECT($C$4&"!U15"),"") ->  | X21: =IFERROR(INDIRECT($C$4&"!V15"),"") ->  | Y21: =IFERROR(INDIRECT($C$4&"!W15"),"") ->  | Z21: =IFERROR(INDIRECT($C$4&"!X15"),"") ->  | AA21: =IFERROR(INDIRECT($C$4&"!Y15"),"") ->  | AC21: 2 | AD21: =データ集②!N6 ->  | AE21: =IFERROR(計算シート!BX13,"") -> 
C22: 3 | D22: =IFERROR(INDIRECT($C$4&"!B16"),"") ->  | E22: =IFERROR(INDIRECT($C$4&"!C16"),"") ->  | F22: =IFERROR(INDIRECT($C$4&"!D16"),"") ->  | G22: =IFERROR(INDIRECT($C$4&"!E16"),"") ->  | H22: =IFERROR(INDIRECT($C$4&"!F16"),"") ->  | I22: =IFERROR(INDIRECT($C$4&"!G16"),"") ->  | J22: =IFERROR(INDIRECT($C$4&"!H16"),"") ->  | K22: =IFERROR(INDIRECT($C$4&"!I16"),"") ->  | L22: =IFERROR(INDIRECT($C$4&"!J16"),"") ->  | M22: =IFERROR(INDIRECT($C$4&"!K16"),"") ->  | N22: =IFERROR(INDIRECT($C$4&"!L16"),"") ->  | O22: =IFERROR(INDIRECT($C$4&"!M16"),"") ->  | P22: =IFERROR(INDIRECT($C$4&"!N16"),"") ->  | Q22: =IFERROR(INDIRECT($C$4&"!O16"),"") ->  | R22: =IFERROR(INDIRECT($C$4&"!P16"),"") ->  | S22: =IFERROR(INDIRECT($C$4&"!Q16"),"") ->  | T22: =IFERROR(INDIRECT($C$4&"!R16"),"") ->  | U22: =IFERROR(INDIRECT($C$4&"!S16"),"") ->  | V22: =IFERROR(INDIRECT($C$4&"!T16"),"") ->  | W22: =IFERROR(INDIRECT($C$4&"!U16"),"") ->  | X22: =IFERROR(INDIRECT($C$4&"!V16"),"") ->  | Y22: =IFERROR(INDIRECT($C$4&"!W16"),"") ->  | Z22: =IFERROR(INDIRECT($C$4&"!X16"),"") ->  | AA22: =IFERROR(INDIRECT($C$4&"!Y16"),"") ->  | AC22: 3 | AD22: =データ集②!O6 ->  | AE22: =IFERROR(計算シート!CE13,"") -> 
T23: ●時刻別平均気温表記載の数値は、選択された都道府県の県庁所在地の月別、時刻別平均気温 | AH23: ●焚上温度選択の際、(2)参照
T24: ●本データは気象庁発表の1992年4月1日から2022年3月31日までの30年の1時間データを整理したもの
T25: ●2月はうるう日を含みます
C26: (2) | V26: (3) | AI26: (4)
I27: 方式、冷媒および焚上温度 一覧表 | V27: 導入予定の給湯ヒートポンプの台数を入力 | AG27: 台 | AI27: 工程の必要給湯量[ℓ/日] | AK27: =IF(データ集!Q17>2,データ集!S18,"") -> 
C28: 給湯ヒートポンプ | G28: 方式 | I28: 一過式 | M28: 循環式 | T28: 保温加熱 | V28: ='2-1 設備条件シート'!L12 -> 0 | Y28: =IFERROR(VLOOKUP(V28,データ集!D51:V55,2,FALSE),"") ->  | AE28: 人数 | AG28: =IFERROR(VLOOKUP(V28,データ集!D51:V55,18,FALSE),"") -> 
G29: 冷媒 | I29: R744 | J29: 2元(R410A,R134a) | M29: R410A | N29: 2元(R410A,R134a) | Q29: 2段(R454C) | S29: R407C | T29: R744 | AE29: =IFERROR(VLOOKUP(V28,データ集!D51:W55,20,FALSE),"") ->  | AG29: =IFERROR(VLOOKUP(V28,データ集!D51:V55,19,FALSE),"") -> 
G30: 焚上温度 | I30: 65 | J30: 65 | M30: 60 | N30: 60 | Q30: 65 | S30: 60 | T30: 90 | V30: 土・日の繫忙度と日数を入力/（日） | AC30: 繁忙度 | AE30: 日数 | AG30: 日
I31: 90 | J31: 90 | V31: 祝祭日の繫忙度と日数を入力/（日） | AG31: 日
G32: 入水温度 | I32: 各地域の月別θ | M32: 55 | N32: 55 | Q32: 60 | S32: 55 | T32: 60 | AB32: ●繁忙度は、毎日くり返し作業の場合、1.0を入力
C35: (5) | V35: (6)給湯EHPの最大値と最小能力月の値 | AB35: (7)必要給湯量を設定した時の計算結果 | AG35: (8)用途別の計算結果
C36: ='2-1 設備条件シート'!L10 ->  | E36: ='2-1 設備条件シート'!L12 -> 0 | G36: 4月 | H36: 5月 | I36: 6月 | J36: 7月 | K36: 8月 | L36: 9月 | M36: 10月 | N36: 11月 | O36: 12月 | P36: 1月 | Q36: 2月 | R36: 3月 | S36: 合計 | V36: 項目 | X36: 該当月 | Y36: [kWh/台・月] | Z36: [kWh/月] | AB36: 合計消費電力ΣΦn | AD36: =IFERROR(計算シート!$BO91,"") ->  | AG36: 合計消費電力ΣΦ | AI36: =IF(計算シート!CE81=0,"",計算シート!CE81) -> 
C37: 月別消費電力(1台) | E37: ［kWｈ］ | G37: =IFERROR((計算シート!I60),"") -> 0 | H37: =IFERROR((計算シート!P60),"") -> 0 | I37: =IFERROR((計算シート!W60),"") -> 0 | J37: =IFERROR((計算シート!AD60),"") -> 0 | K37: =IFERROR((計算シート!AK60),"") -> 0 | L37: =IFERROR((計算シート!AR60),"") -> 0 | M37: =IFERROR((計算シート!AY60),"") -> 0 | N37: =IFERROR((計算シート!BF60),"") -> 0 | O37: =IFERROR((計算シート!BM60),"") -> 0 | P37: =IFERROR((計算シート!BT60),"") -> 0 | Q37: =IFERROR((計算シート!CA60),"") -> 0 | R37: =IFERROR((計算シート!CH60),"") -> 0 | S37: =IF(SUM(G37:R37)=0,"",SUM(G37:R37)) ->  | AB37: ［kWh/年・台］ | AG37: ［kWh/年・台］
C38: 給湯能力Q／効率COPe×稼動対象時間×給湯使用時間×負荷率 | V38: 給湯能力最小 | X38: =IFERROR(計算シート!BF83,"") ->  | Y38: =IFERROR(計算シート!BG83,"") ->  | Z38: =IFERROR(計算シート!BH83,"") ->  | AB38: 台数 | AC38: =AF27&"" ->  | AD38: =IFERROR(計算シート!BO92,"") ->  | AG38: 台数 | AH38: =AF27&"" ->  | AI38: =IF(計算シート!CE82=0,"",計算シート!CE82) -> 
C39: ='2-1 設備条件シート'!L10 ->  | E39: ='2-1 設備条件シート'!L12 -> 0 | G39: 4月 | H39: 5月 | I39: 6月 | J39: 7月 | K39: 8月 | L39: 9月 | M39: 10月 | N39: 11月 | O39: 12月 | P39: 1月 | Q39: 2月 | R39: 3月 | S39: 合計 | AB39: 合計給湯能力ΣQn | AD39: =IFERROR(計算シート!BO93,"") ->  | AG39: 合計給湯能力ΣQ | AI39: =IF(計算シート!CE83=0,"",計算シート!CE83) -> 
C40: 月別消費電力(合計) | E40: ［kWｈ］ | G40: =IFERROR((G$37*$AF$27),"") -> 0 | H40: 0 | I40: 0 | J40: 0 | K40: 0 | L40: 0 | M40: 0 | N40: 0 | O40: 0 | P40: 0 | Q40: 0 | R40: 0 | S40: =IF(SUM(G40:R40)=0,"",SUM(G40:R40)) ->  | V40: 給湯能力最大 | X40: =IFERROR(計算シート!BF85,"") ->  | Y40: =IFERROR(計算シート!BG85,"") ->  | Z40: =IFERROR(計算シート!BH85,"") ->  | AB40: ［kWh/年・台］ | AG40: ［kWh/年・台］
AB41: 台数 | AC41: =AF27&"" ->  | AD41: =IFERROR(計算シート!BO94,"") ->  | AG41: 台数 | AH41: =AF27&"" ->  | AI41: =IF(計算シート!CE84=0,"",計算シート!CE84) -> 
AF44: 季節（JRAIA） | AH44: 外気温度と季節
AF45: 夏期 | AH45: 21℃＜T1d
AF46: 中間期 | AH46: 11℃＜T1d≦21℃
AF47: 冬季標準 | AH47: 6℃＜T1d≦11℃
AF48: 着霜期 | AH48: 0℃＜T1d≦6℃
C49: 作業表1(青色のセルを「24」、オレンジ色のセルを「19」として抽出） | AF49: 厳冬期 | AH49: T1d≦0℃
C50: 月 | D50: 時刻 | AB50: 月
D51: 0 | E51: 1 | F51: 2 | G51: 3 | H51: 4 | I51: 5 | J51: 6 | K51: 7 | L51: 8 | M51: 9 | N51: 10 | O51: 11 | P51: 12 | Q51: 13 | R51: 14 | S51: 15 | T51: 16 | U51: 17 | V51: 18 | W51: 19 | X51: 20 | Y51: 21 | Z51: 22 | AA51: 23
C52: 4 | D52: =CELLCOLOR($D$11) -> -4142 | E52: =CELLCOLOR($E$11) -> -4142 | F52: =CELLCOLOR($F$11) -> -4142 | G52: =CELLCOLOR($G$11) -> -4142 | H52: =CELLCOLOR($H$11) -> -4142 | I52: =CELLCOLOR($I$11) -> -4142 | J52: =CELLCOLOR($J$11) -> -4142 | K52: =CELLCOLOR($K$11) -> -4142 | L52: =CELLCOLOR($L$11) -> -4142 | M52: =CELLCOLOR($M$11) -> -4142 | N52: =CELLCOLOR($N$11) -> -4142 | O52: =CELLCOLOR($O$11) -> -4142 | P52: =CELLCOLOR($P$11) -> -4142 | Q52: =CELLCOLOR($Q$11) -> -4142 | R52: =CELLCOLOR($R$11) -> -4142 | S52: =CELLCOLOR($S$11) -> -4142 | T52: =CELLCOLOR($T$11) -> -4142 | U52: =CELLCOLOR($U$11) -> -4142 | V52: =CELLCOLOR($V$11) -> -4142 | W52: =CELLCOLOR($W$11) -> -4142 | X52: =CELLCOLOR($X$11) -> -4142 | Y52: =CELLCOLOR($Y$11) -> -4142 | Z52: =CELLCOLOR($Z$11) -> -4142 | AA52: =CELLCOLOR($AA$11) -> -4142 | AB52: 4
C53: 5 | D53: =CELLCOLOR($D$12) -> -4142 | E53: =CELLCOLOR($E$12) -> -4142 | F53: =CELLCOLOR($F$12) -> -4142 | G53: =CELLCOLOR($G$12) -> -4142 | H53: =CELLCOLOR($H$12) -> -4142 | I53: =CELLCOLOR($I$12) -> -4142 | J53: =CELLCOLOR($J$12) -> -4142 | K53: =CELLCOLOR($K$12) -> -4142 | L53: =CELLCOLOR($L$12) -> -4142 | M53: =CELLCOLOR($M$12) -> -4142 | N53: =CELLCOLOR($N$12) -> -4142 | O53: =CELLCOLOR($O$12) -> -4142 | P53: =CELLCOLOR($P$12) -> -4142 | Q53: =CELLCOLOR($Q$12) -> -4142 | R53: =CELLCOLOR($R$12) -> -4142 | S53: =CELLCOLOR($S$12) -> -4142 | T53: =CELLCOLOR($T$12) -> -4142 | U53: =CELLCOLOR($U$12) -> -4142 | V53: =CELLCOLOR($V$12) -> -4142 | W53: =CELLCOLOR($W$12) -> -4142 | X53: =CELLCOLOR($X$12) -> -4142 | Y53: =CELLCOLOR($Y$12) -> -4142 | Z53: =CELLCOLOR($Z$12) -> -4142 | AA53: =CELLCOLOR($AA$12) -> -4142 | AB53: 5
C54: 6 | D54: =CELLCOLOR($D$13) -> -4142 | E54: =CELLCOLOR($E$13) -> -4142 | F54: =CELLCOLOR($F$13) -> -4142 | G54: =CELLCOLOR($G$13) -> -4142 | H54: =CELLCOLOR($H$13) -> -4142 | I54: =CELLCOLOR($I$13) -> -4142 | J54: =CELLCOLOR($J$13) -> -4142 | K54: =CELLCOLOR($K$13) -> -4142 | L54: =CELLCOLOR($L$13) -> -4142 | M54: =CELLCOLOR($M$13) -> -4142 | N54: =CELLCOLOR($N$13) -> -4142 | O54: =CELLCOLOR($O$13) -> -4142 | P54: =CELLCOLOR($P$13) -> -4142 | Q54: =CELLCOLOR($Q$13) -> -4142 | R54: =CELLCOLOR($R$13) -> -4142 | S54: =CELLCOLOR($S$13) -> -4142 | T54: =CELLCOLOR($T$13) -> -4142 | U54: =CELLCOLOR($U$13) -> -4142 | V54: =CELLCOLOR($V$13) -> -4142 | W54: =CELLCOLOR($W$13) -> -4142 | X54: =CELLCOLOR($X$13) -> -4142 | Y54: =CELLCOLOR($Y$13) -> -4142 | Z54: =CELLCOLOR($Z$13) -> -4142 | AA54: =CELLCOLOR($AA$13) -> -4142 | AB54: 6
C55: 7 | D55: =CELLCOLOR($D$14) -> -4142 | E55: =CELLCOLOR($E$14) -> -4142 | F55: =CELLCOLOR($F$14) -> -4142 | G55: =CELLCOLOR($G$14) -> -4142 | H55: =CELLCOLOR($H$14) -> -4142 | I55: =CELLCOLOR($I$14) -> -4142 | J55: =CELLCOLOR($J$14) -> -4142 | K55: =CELLCOLOR($K$14) -> -4142 | L55: =CELLCOLOR($L$14) -> -4142 | M55: =CELLCOLOR($M$14) -> -4142 | N55: =CELLCOLOR($N$14) -> -4142 | O55: =CELLCOLOR($O$14) -> -4142 | P55: =CELLCOLOR($P$14) -> -4142 | Q55: =CELLCOLOR($Q$14) -> -4142 | R55: =CELLCOLOR($R$14) -> -4142 | S55: =CELLCOLOR($S$14) -> -4142 | T55: =CELLCOLOR($T$14) -> -4142 | U55: =CELLCOLOR($U$14) -> -4142 | V55: =CELLCOLOR($V$14) -> -4142 | W55: =CELLCOLOR($W$14) -> -4142 | X55: =CELLCOLOR($X$14) -> -4142 | Y55: =CELLCOLOR($Y$14) -> -4142 | Z55: =CELLCOLOR($Z$14) -> -4142 | AA55: =CELLCOLOR($AA$14) -> -4142 | AB55: 7
C56: 8 | D56: =CELLCOLOR($D$15) -> -4142 | E56: =CELLCOLOR($E$15) -> -4142 | F56: =CELLCOLOR($F$15) -> -4142 | G56: =CELLCOLOR($G$15) -> -4142 | H56: =CELLCOLOR($H$15) -> -4142 | I56: =CELLCOLOR($I$15) -> -4142 | J56: =CELLCOLOR($J$15) -> -4142 | K56: =CELLCOLOR($K$15) -> -4142 | L56: =CELLCOLOR($L$15) -> -4142 | M56: =CELLCOLOR($M$15) -> -4142 | N56: =CELLCOLOR($N$15) -> -4142 | O56: =CELLCOLOR($O$15) -> -4142 | P56: =CELLCOLOR($P$15) -> -4142 | Q56: =CELLCOLOR($Q$15) -> -4142 | R56: =CELLCOLOR($R$15) -> -4142 | S56: =CELLCOLOR($S$15) -> -4142 | T56: =CELLCOLOR($T$15) -> -4142 | U56: =CELLCOLOR($U$15) -> -4142 | V56: =CELLCOLOR($V$15) -> -4142 | W56: =CELLCOLOR($W$15) -> -4142 | X56: =CELLCOLOR($X$15) -> -4142 | Y56: =CELLCOLOR($Y$15) -> -4142 | Z56: =CELLCOLOR($Z$15) -> -4142 | AA56: =CELLCOLOR($AA$15) -> -4142 | AB56: 8
C57: 9 | D57: =CELLCOLOR($D$16) -> -4142 | E57: =CELLCOLOR($E$16) -> -4142 | F57: =CELLCOLOR($F$16) -> -4142 | G57: =CELLCOLOR($G$16) -> -4142 | H57: =CELLCOLOR($H$16) -> -4142 | I57: =CELLCOLOR($I$16) -> -4142 | J57: =CELLCOLOR($J$16) -> -4142 | K57: =CELLCOLOR($K$16) -> -4142 | L57: =CELLCOLOR($L$16) -> -4142 | M57: =CELLCOLOR($M$16) -> -4142 | N57: =CELLCOLOR($N$16) -> -4142 | O57: =CELLCOLOR($O$16) -> -4142 | P57: =CELLCOLOR($P$16) -> -4142 | Q57: =CELLCOLOR($Q$16) -> -4142 | R57: =CELLCOLOR($R$16) -> -4142 | S57: =CELLCOLOR($S$16) -> -4142 | T57: =CELLCOLOR($T$16) -> -4142 | U57: =CELLCOLOR($U$16) -> -4142 | V57: =CELLCOLOR($V$16) -> -4142 | W57: =CELLCOLOR($W$16) -> -4142 | X57: =CELLCOLOR($X$16) -> -4142 | Y57: =CELLCOLOR($Y$16) -> -4142 | Z57: =CELLCOLOR($Z$16) -> -4142 | AA57: =CELLCOLOR($AA$16) -> -4142 | AB57: 9
C58: 10 | D58: =CELLCOLOR($D$17) -> -4142 | E58: =CELLCOLOR($E$17) -> -4142 | F58: =CELLCOLOR($F$17) -> -4142 | G58: =CELLCOLOR($G$17) -> -4142 | H58: =CELLCOLOR($H$17) -> -4142 | I58: =CELLCOLOR($I$17) -> -4142 | J58: =CELLCOLOR($J$17) -> -4142 | K58: =CELLCOLOR($K$17) -> -4142 | L58: =CELLCOLOR($L$17) -> -4142 | M58: =CELLCOLOR($M$17) -> -4142 | N58: =CELLCOLOR($N$17) -> -4142 | O58: =CELLCOLOR($O$17) -> -4142 | P58: =CELLCOLOR($P$17) -> -4142 | Q58: =CELLCOLOR($Q$17) -> -4142 | R58: =CELLCOLOR($R$17) -> -4142 | S58: =CELLCOLOR($S$17) -> -4142 | T58: =CELLCOLOR($T$17) -> -4142 | U58: =CELLCOLOR($U$17) -> -4142 | V58: =CELLCOLOR($V$17) -> -4142 | W58: =CELLCOLOR($W$17) -> -4142 | X58: =CELLCOLOR($X$17) -> -4142 | Y58: =CELLCOLOR($Y$17) -> -4142 | Z58: =CELLCOLOR($Z$17) -> -4142 | AA58: =CELLCOLOR($AA$17) -> -4142 | AB58: 10
C59: 11 | D59: =CELLCOLOR($D$18) -> -4142 | E59: =CELLCOLOR($E$18) -> -4142 | F59: =CELLCOLOR($F$18) -> -4142 | G59: =CELLCOLOR($G$18) -> -4142 | H59: =CELLCOLOR($H$18) -> -4142 | I59: =CELLCOLOR($I$18) -> -4142 | J59: =CELLCOLOR($J$18) -> -4142 | K59: =CELLCOLOR($K$18) -> -4142 | L59: =CELLCOLOR($L$18) -> -4142 | M59: =CELLCOLOR($M$18) -> -4142 | N59: =CELLCOLOR($N$18) -> -4142 | O59: =CELLCOLOR($O$18) -> -4142 | P59: =CELLCOLOR($P$18) -> -4142 | Q59: =CELLCOLOR($Q$18) -> -4142 | R59: =CELLCOLOR($R$18) -> -4142 | S59: =CELLCOLOR($S$18) -> -4142 | T59: =CELLCOLOR($T$18) -> -4142 | U59: =CELLCOLOR($U$18) -> -4142 | V59: =CELLCOLOR($V$18) -> -4142 | W59: =CELLCOLOR($W$18) -> -4142 | X59: =CELLCOLOR($X$18) -> -4142 | Y59: =CELLCOLOR($Y$18) -> -4142 | Z59: =CELLCOLOR($Z$18) -> -4142 | AA59: =CELLCOLOR($AA$18) -> -4142 | AB59: 11
C60: 12 | D60: =CELLCOLOR($D$19) -> -4142 | E60: =CELLCOLOR($E$19) -> -4142 | F60: =CELLCOLOR($F$19) -> -4142 | G60: =CELLCOLOR($G$19) -> -4142 | H60: =CELLCOLOR($H$19) -> -4142 | I60: =CELLCOLOR($I$19) -> -4142 | J60: =CELLCOLOR($J$19) -> -4142 | K60: =CELLCOLOR($K$19) -> -4142 | L60: =CELLCOLOR($L$19) -> -4142 | M60: =CELLCOLOR($M$19) -> -4142 | N60: =CELLCOLOR($N$19) -> -4142 | O60: =CELLCOLOR($O$19) -> -4142 | P60: =CELLCOLOR($P$19) -> -4142 | Q60: =CELLCOLOR($Q$19) -> -4142 | R60: =CELLCOLOR($R$19) -> -4142 | S60: =CELLCOLOR($S$19) -> -4142 | T60: =CELLCOLOR($T$19) -> -4142 | U60: =CELLCOLOR($U$19) -> -4142 | V60: =CELLCOLOR($V$19) -> -4142 | W60: =CELLCOLOR($W$19) -> -4142 | X60: =CELLCOLOR($X$19) -> -4142 | Y60: =CELLCOLOR($Y$19) -> -4142 | Z60: =CELLCOLOR($Z$19) -> -4142 | AA60: =CELLCOLOR($AA$19) -> -4142 | AB60: 12
C61: 1 | D61: =CELLCOLOR($D$20) -> -4142 | E61: =CELLCOLOR($E$20) -> -4142 | F61: =CELLCOLOR($F$20) -> -4142 | G61: =CELLCOLOR($G$20) -> -4142 | H61: =CELLCOLOR($H$20) -> -4142 | I61: =CELLCOLOR($I$20) -> -4142 | J61: =CELLCOLOR($J$20) -> -4142 | K61: =CELLCOLOR($K$20) -> -4142 | L61: =CELLCOLOR($L$20) -> -4142 | M61: =CELLCOLOR($M$20) -> -4142 | N61: =CELLCOLOR($N$20) -> -4142 | O61: =CELLCOLOR($O$20) -> -4142 | P61: =CELLCOLOR($P$20) -> -4142 | Q61: =CELLCOLOR($Q$20) -> -4142 | R61: =CELLCOLOR($R$20) -> -4142 | S61: =CELLCOLOR($S$20) -> -4142 | T61: =CELLCOLOR($T$20) -> -4142 | U61: =CELLCOLOR($U$20) -> -4142 | V61: =CELLCOLOR($V$20) -> -4142 | W61: =CELLCOLOR($W$20) -> -4142 | X61: =CELLCOLOR($X$20) -> -4142 | Y61: =CELLCOLOR($Y$20) -> -4142 | Z61: =CELLCOLOR($Z$20) -> -4142 | AA61: =CELLCOLOR($AA$20) -> -4142 | AB61: 1
C62: 2 | D62: =CELLCOLOR($D$21) -> -4142 | E62: =CELLCOLOR($E$21) -> -4142 | F62: =CELLCOLOR($F$21) -> -4142 | G62: =CELLCOLOR($G$21) -> -4142 | H62: =CELLCOLOR($H$21) -> -4142 | I62: =CELLCOLOR($I$21) -> -4142 | J62: =CELLCOLOR($J$21) -> -4142 | K62: =CELLCOLOR($K$21) -> -4142 | L62: =CELLCOLOR($L$21) -> -4142 | M62: =CELLCOLOR($M$21) -> -4142 | N62: =CELLCOLOR($N$21) -> -4142 | O62: =CELLCOLOR($O$21) -> -4142 | P62: =CELLCOLOR($P$21) -> -4142 | Q62: =CELLCOLOR($Q$21) -> -4142 | R62: =CELLCOLOR($R$21) -> -4142 | S62: =CELLCOLOR($S$21) -> -4142 | T62: =CELLCOLOR($T$21) -> -4142 | U62: =CELLCOLOR($U$21) -> -4142 | V62: =CELLCOLOR($V$21) -> -4142 | W62: =CELLCOLOR($W$21) -> -4142 | X62: =CELLCOLOR($X$21) -> -4142 | Y62: =CELLCOLOR($Y$21) -> -4142 | Z62: =CELLCOLOR($Z$21) -> -4142 | AA62: =CELLCOLOR($AA$21) -> -4142 | AB62: 2
C63: 3 | D63: =CELLCOLOR($D$22) -> -4142 | E63: =CELLCOLOR($E$22) -> -4142 | F63: =CELLCOLOR($F$22) -> -4142 | G63: =CELLCOLOR($G$22) -> -4142 | H63: =CELLCOLOR($H$22) -> -4142 | I63: =CELLCOLOR($I$22) -> -4142 | J63: =CELLCOLOR($J$22) -> -4142 | K63: =CELLCOLOR($K$22) -> -4142 | L63: =CELLCOLOR($L$22) -> -4142 | M63: =CELLCOLOR($M$22) -> -4142 | N63: =CELLCOLOR($N$22) -> -4142 | O63: =CELLCOLOR($O$22) -> -4142 | P63: =CELLCOLOR($P$22) -> -4142 | Q63: =CELLCOLOR($Q$22) -> -4142 | R63: =CELLCOLOR($R$22) -> -4142 | S63: =CELLCOLOR($S$22) -> -4142 | T63: =CELLCOLOR($T$22) -> -4142 | U63: =CELLCOLOR($U$22) -> -4142 | V63: =CELLCOLOR($V$22) -> -4142 | W63: =CELLCOLOR($W$22) -> -4142 | X63: =CELLCOLOR($X$22) -> -4142 | Y63: =CELLCOLOR($Y$22) -> -4142 | Z63: =CELLCOLOR($Z$22) -> -4142 | AA63: =CELLCOLOR($AA$22) -> -4142 | AB63: 3
D64: =IF(SUM(COUNTIF(D52:D63,19))>0,1,"") ->  | Z64: =IF(SUM(COUNTIF(Z52:Z63,19))>0,1,"") ->  | AB64: =COUNT(D64:AA64) -> 0
C65: 作業表2-1(冷房) | E65: ●月▲時の平均気温(四捨五入で表示）
C66: 月 | D66: 時刻 | AB66: 月
D67: 0 | E67: 1 | F67: 2 | G67: 3 | H67: 4 | I67: 5 | J67: 6 | K67: 7 | L67: 8 | M67: 9 | N67: 10 | O67: 11 | P67: 12 | Q67: 13 | R67: 14 | S67: 15 | T67: 16 | U67: 17 | V67: 18 | W67: 19 | X67: 20 | Y67: 21 | Z67: 22 | AA67: 23
C68: 4 | D68: =IF($D$52=24,ROUND($D$11,0),"")&"" ->  | E68: =IF($E$52=24,ROUND($E$11,0),"")&"" ->  | F68: =IF($F$52=24,ROUND($F$11,0),"")&"" ->  | G68: =IF($G$52=24,ROUND($G$11,0),"")&"" ->  | H68: =IF($H$52=24,ROUND($H$11,0),"")&"" ->  | I68: =IF($I$52=24,ROUND($I$11,0),"")&"" ->  | J68: =IF($J$52=24,ROUND($J$11,0),"")&"" ->  | K68: =IF($K$52=24,ROUND($K$11,0),"")&"" ->  | L68: =IF($L$52=24,ROUND($L$11,0),"")&"" ->  | M68: =IF($M$52=24,ROUND($M$11,0),"")&"" ->  | N68: =IF($N$52=24,ROUND($N$11,0),"")&"" ->  | O68: =IF($O$52=24,ROUND($O$11,0),"")&"" ->  | P68: =IF($P$52=24,ROUND($P$11,0),"")&"" ->  | Q68: =IF($Q$52=24,ROUND($Q$11,0),"")&"" ->  | R68: =IF($R$52=24,ROUND($R$11,0),"")&"" ->  | S68: =IF($S$52=24,ROUND($S$11,0),"")&"" ->  | T68: =IF($T$52=24,ROUND($T$11,0),"")&"" ->  | U68: =IF($U$52=24,ROUND($U$11,0),"")&"" ->  | V68: =IF($V$52=24,ROUND($V$11,0),"")&"" ->  | W68: =IF($W$52=24,ROUND($W$11,0),"")&"" ->  | X68: =IF($X$52=24,ROUND($X$11,0),"")&"" ->  | Y68: =IF($Y$52=24,ROUND($Y$11,0),"")&"" ->  | Z68: =IF($Z$52=24,ROUND($Z$11,0),"")&"" ->  | AA68: =IF($AA$52=24,ROUND($AA$11,0),"")&"" ->  | AB68: 4
C69: 5 | D69: =IF($D$53=24,ROUND($D$12,0),"")&"" ->  | E69: =IF($E$53=24,ROUND($E$12,0),"")&"" ->  | F69: =IF($F$53=24,ROUND($F$12,0),"")&"" ->  | G69: =IF($G$53=24,ROUND($G$12,0),"")&"" ->  | H69: =IF($H$53=24,ROUND($H$12,0),"")&"" ->  | I69: =IF($I$53=24,ROUND($I$12,0),"")&"" ->  | J69: =IF($J$53=24,ROUND($J$12,0),"")&"" ->  | K69: =IF($K$53=24,ROUND($K$12,0),"")&"" ->  | L69: =IF($L$53=24,ROUND($L$12,0),"")&"" ->  | M69: =IF($M$53=24,ROUND($M$12,0),"")&"" ->  | N69: =IF($N$53=24,ROUND($N$12,0),"")&"" ->  | O69: =IF($O$53=24,ROUND($O$12,0),"")&"" ->  | P69: =IF($P$53=24,ROUND($P$12,0),"")&"" ->  | Q69: =IF($Q$53=24,ROUND($Q$12,0),"")&"" ->  | R69: =IF($R$53=24,ROUND($R$12,0),"")&"" ->  | S69: =IF($S$53=24,ROUND($S$12,0),"")&"" ->  | T69: =IF($T$53=24,ROUND($T$12,0),"")&"" ->  | U69: =IF($U$53=24,ROUND($U$12,0),"")&"" ->  | V69: =IF($V$53=24,ROUND($V$12,0),"")&"" ->  | W69: =IF($W$53=24,ROUND($W$12,0),"")&"" ->  | X69: =IF($X$53=24,ROUND($X$12,0),"")&"" ->  | Y69: =IF($Y$53=24,ROUND($Y$12,0),"")&"" ->  | Z69: =IF($Z$53=24,ROUND($Z$12,0),"")&"" ->  | AA69: =IF($AA$53=24,ROUND($AA$12,0),"")&"" ->  | AB69: 5
C70: 6 | D70: =IF($D$54=24,ROUND($D$13,0),"")&"" ->  | E70: =IF($E$54=24,ROUND($E$13,0),"")&"" ->  | F70: =IF($F$54=24,ROUND($F$13,0),"")&"" ->  | G70: =IF($G$54=24,ROUND($G$13,0),"")&"" ->  | H70: =IF($H$54=24,ROUND($H$13,0),"")&"" ->  | I70: =IF($I$54=24,ROUND($I$13,0),"")&"" ->  | J70: =IF($J$54=24,ROUND($J$13,0),"")&"" ->  | K70: =IF($K$54=24,ROUND($K$13,0),"")&"" ->  | L70: =IF($L$54=24,ROUND($L$13,0),"")&"" ->  | M70: =IF($M$54=24,ROUND($M$13,0),"")&"" ->  | N70: =IF($N$54=24,ROUND($N$13,0),"")&"" ->  | O70: =IF($O$54=24,ROUND($O$13,0),"")&"" ->  | P70: =IF($P$54=24,ROUND($P$13,0),"")&"" ->  | Q70: =IF($Q$54=24,ROUND($Q$13,0),"")&"" ->  | R70: =IF($R$54=24,ROUND($R$13,0),"")&"" ->  | S70: =IF($S$54=24,ROUND($S$13,0),"")&"" ->  | T70: =IF($T$54=24,ROUND($T$13,0),"")&"" ->  | U70: =IF($U$54=24,ROUND($U$13,0),"")&"" ->  | V70: =IF($V$54=24,ROUND($V$13,0),"")&"" ->  | W70: =IF($W$54=24,ROUND($W$13,0),"")&"" ->  | X70: =IF($X$54=24,ROUND($X$13,0),"")&"" ->  | Y70: =IF($Y$54=24,ROUND($Y$13,0),"")&"" ->  | Z70: =IF($Z$54=24,ROUND($Z$13,0),"")&"" ->  | AA70: =IF($AA$54=24,ROUND($AA$13,0),"")&"" ->  | AB70: 6
C71: 7 | D71: =IF($D$55=24,ROUND($D$14,0),"")&"" ->  | E71: =IF($E$55=24,ROUND($E$14,0),"")&"" ->  | F71: =IF($F$55=24,ROUND($F$14,0),"")&"" ->  | G71: =IF($G$55=24,ROUND($G$14,0),"")&"" ->  | H71: =IF($H$55=24,ROUND($H$14,0),"")&"" ->  | I71: =IF($I$55=24,ROUND($I$14,0),"")&"" ->  | J71: =IF($J$55=24,ROUND($J$14,0),"")&"" ->  | K71: =IF($K$55=24,ROUND($K$14,0),"")&"" ->  | L71: =IF($L$55=24,ROUND($L$14,0),"")&"" ->  | M71: =IF($M$55=24,ROUND($M$14,0),"")&"" ->  | N71: =IF($N$55=24,ROUND($N$14,0),"")&"" ->  | O71: =IF($O$55=24,ROUND($O$14,0),"")&"" ->  | P71: =IF($P$55=24,ROUND($P$14,0),"")&"" ->  | Q71: =IF($Q$55=24,ROUND($Q$14,0),"")&"" ->  | R71: =IF($R$55=24,ROUND($R$14,0),"")&"" ->  | S71: =IF($S$55=24,ROUND($S$14,0),"")&"" ->  | T71: =IF($T$55=24,ROUND($T$14,0),"")&"" ->  | U71: =IF($U$55=24,ROUND($U$14,0),"")&"" ->  | V71: =IF($V$55=24,ROUND($V$14,0),"")&"" ->  | W71: =IF($W$55=24,ROUND($W$14,0),"")&"" ->  | X71: =IF($X$55=24,ROUND($X$14,0),"")&"" ->  | Y71: =IF($Y$55=24,ROUND($Y$14,0),"")&"" ->  | Z71: =IF($Z$55=24,ROUND($Z$14,0),"")&"" ->  | AA71: =IF($AA$55=24,ROUND($AA$14,0),"")&"" ->  | AB71: 7
C72: 8 | D72: =IF($D$56=24,ROUND($D$15,0),"")&"" ->  | E72: =IF($E$56=24,ROUND($E$15,0),"")&"" ->  | F72: =IF($F$56=24,ROUND($F$15,0),"")&"" ->  | G72: =IF($G$56=24,ROUND($G$15,0),"")&"" ->  | H72: =IF($H$56=24,ROUND($H$15,0),"")&"" ->  | I72: =IF($I$56=24,ROUND($I$15,0),"")&"" ->  | J72: =IF($J$56=24,ROUND($J$15,0),"")&"" ->  | K72: =IF($K$56=24,ROUND($K$15,0),"")&"" ->  | L72: =IF($L$56=24,ROUND($L$15,0),"")&"" ->  | M72: =IF($M$56=24,ROUND($M$15,0),"")&"" ->  | N72: =IF($N$56=24,ROUND($N$15,0),"")&"" ->  | O72: =IF($O$56=24,ROUND($O$15,0),"")&"" ->  | P72: =IF($P$56=24,ROUND($P$15,0),"")&"" ->  | Q72: =IF($Q$56=24,ROUND($Q$15,0),"")&"" ->  | R72: =IF($R$56=24,ROUND($R$15,0),"")&"" ->  | S72: =IF($S$56=24,ROUND($S$15,0),"")&"" ->  | T72: =IF($T$56=24,ROUND($T$15,0),"")&"" ->  | U72: =IF($U$56=24,ROUND($U$15,0),"")&"" ->  | V72: =IF($V$56=24,ROUND($V$15,0),"")&"" ->  | W72: =IF($W$56=24,ROUND($W$15,0),"")&"" ->  | X72: =IF($X$56=24,ROUND($X$15,0),"")&"" ->  | Y72: =IF($Y$56=24,ROUND($Y$15,0),"")&"" ->  | Z72: =IF($Z$56=24,ROUND($Z$15,0),"")&"" ->  | AA72: =IF($AA$56=24,ROUND($AA$15,0),"")&"" ->  | AB72: 8
C73: 9 | D73: =IF($D$57=24,ROUND($D$16,0),"")&"" ->  | E73: =IF($E$57=24,ROUND($E$16,0),"")&"" ->  | F73: =IF($F$57=24,ROUND($F$16,0),"")&"" ->  | G73: =IF($G$57=24,ROUND($G$16,0),"")&"" ->  | H73: =IF($H$57=24,ROUND($H$16,0),"")&"" ->  | I73: =IF($I$57=24,ROUND($I$16,0),"")&"" ->  | J73: =IF($J$57=24,ROUND($J$16,0),"")&"" ->  | K73: =IF($K$57=24,ROUND($K$16,0),"")&"" ->  | L73: =IF($L$57=24,ROUND($L$16,0),"")&"" ->  | M73: =IF($M$57=24,ROUND($M$16,0),"")&"" ->  | N73: =IF($N$57=24,ROUND($N$16,0),"")&"" ->  | O73: =IF($O$57=24,ROUND($O$16,0),"")&"" ->  | P73: =IF($P$57=24,ROUND($P$16,0),"")&"" ->  | Q73: =IF($Q$57=24,ROUND($Q$16,0),"")&"" ->  | R73: =IF($R$57=24,ROUND($R$16,0),"")&"" ->  | S73: =IF($S$57=24,ROUND($S$16,0),"")&"" ->  | T73: =IF($T$57=24,ROUND($T$16,0),"")&"" ->  | U73: =IF($U$57=24,ROUND($U$16,0),"")&"" ->  | V73: =IF($V$57=24,ROUND($V$16,0),"")&"" ->  | W73: =IF($W$57=24,ROUND($W$16,0),"")&"" ->  | X73: =IF($X$57=24,ROUND($X$16,0),"")&"" ->  | Y73: =IF($Y$57=24,ROUND($Y$16,0),"")&"" ->  | Z73: =IF($Z$57=24,ROUND($Z$16,0),"")&"" ->  | AA73: =IF($AA$57=24,ROUND($AA$16,0),"")&"" ->  | AB73: 9
C74: 10 | D74: =IF($D$58=24,ROUND($D$17,0),"")&"" ->  | E74: =IF($E$58=24,ROUND($E$17,0),"")&"" ->  | F74: =IF($F$58=24,ROUND($F$17,0),"")&"" ->  | G74: =IF($G$58=24,ROUND($G$17,0),"")&"" ->  | H74: =IF($H$58=24,ROUND($H$17,0),"")&"" ->  | I74: =IF($I$58=24,ROUND($I$17,0),"")&"" ->  | J74: =IF($J$58=24,ROUND($J$17,0),"")&"" ->  | K74: =IF($K$58=24,ROUND($K$17,0),"")&"" ->  | L74: =IF($L$58=24,ROUND($L$17,0),"")&"" ->  | M74: =IF($M$58=24,ROUND($M$17,0),"")&"" ->  | N74: =IF($N$58=24,ROUND($N$17,0),"")&"" ->  | O74: =IF($O$58=24,ROUND($O$17,0),"")&"" ->  | P74: =IF($P$58=24,ROUND($P$17,0),"")&"" ->  | Q74: =IF($Q$58=24,ROUND($Q$17,0),"")&"" ->  | R74: =IF($R$58=24,ROUND($R$17,0),"")&"" ->  | S74: =IF($S$58=24,ROUND($S$17,0),"")&"" ->  | T74: =IF($T$58=24,ROUND($T$17,0),"")&"" ->  | U74: =IF($U$58=24,ROUND($U$17,0),"")&"" ->  | V74: =IF($V$58=24,ROUND($V$17,0),"")&"" ->  | W74: =IF($W$58=24,ROUND($W$17,0),"")&"" ->  | X74: =IF($X$58=24,ROUND($X$17,0),"")&"" ->  | Y74: =IF($Y$58=24,ROUND($Y$17,0),"")&"" ->  | Z74: =IF($Z$58=24,ROUND($Z$17,0),"")&"" ->  | AA74: =IF($AA$58=24,ROUND($AA$17,0),"")&"" ->  | AB74: 10
C75: 11 | D75: =IF($D$59=24,ROUND($D$18,0),"")&"" ->  | E75: =IF($E$59=24,ROUND($E$18,0),"")&"" ->  | F75: =IF($F$59=24,ROUND($F$18,0),"")&"" ->  | G75: =IF($G$59=24,ROUND($G$18,0),"")&"" ->  | H75: =IF($H$59=24,ROUND($H$18,0),"")&"" ->  | I75: =IF($I$59=24,ROUND($I$18,0),"")&"" ->  | J75: =IF($J$59=24,ROUND($J$18,0),"")&"" ->  | K75: =IF($K$59=24,ROUND($K$18,0),"")&"" ->  | L75: =IF($L$59=24,ROUND($L$18,0),"")&"" ->  | M75: =IF($M$59=24,ROUND($M$18,0),"")&"" ->  | N75: =IF($N$59=24,ROUND($N$18,0),"")&"" ->  | O75: =IF($O$59=24,ROUND($O$18,0),"")&"" ->  | P75: =IF($P$59=24,ROUND($P$18,0),"")&"" ->  | Q75: =IF($Q$59=24,ROUND($Q$18,0),"")&"" ->  | R75: =IF($R$59=24,ROUND($R$18,0),"")&"" ->  | S75: =IF($S$59=24,ROUND($S$18,0),"")&"" ->  | T75: =IF($T$59=24,ROUND($T$18,0),"")&"" ->  | U75: =IF($U$59=24,ROUND($U$18,0),"")&"" ->  | V75: =IF($V$59=24,ROUND($V$18,0),"")&"" ->  | W75: =IF($W$59=24,ROUND($W$18,0),"")&"" ->  | X75: =IF($X$59=24,ROUND($X$18,0),"")&"" ->  | Y75: =IF($Y$59=24,ROUND($Y$18,0),"")&"" ->  | Z75: =IF($Z$59=24,ROUND($Z$18,0),"")&"" ->  | AA75: =IF($AA$59=24,ROUND($AA$18,0),"")&"" ->  | AB75: 11
C76: 12 | D76: =IF($D$60=24,ROUND($D$19,0),"")&"" ->  | E76: =IF($E$60=24,ROUND($E$19,0),"")&"" ->  | F76: =IF($F$60=24,ROUND($F$19,0),"")&"" ->  | G76: =IF($G$60=24,ROUND($G$19,0),"")&"" ->  | H76: =IF($H$60=24,ROUND($H$19,0),"")&"" ->  | I76: =IF($I$60=24,ROUND($I$19,0),"")&"" ->  | J76: =IF($J$60=24,ROUND($J$19,0),"")&"" ->  | K76: =IF($K$60=24,ROUND($K$19,0),"")&"" ->  | L76: =IF($L$60=24,ROUND($L$19,0),"")&"" ->  | M76: =IF($M$60=24,ROUND($M$19,0),"")&"" ->  | N76: =IF($N$60=24,ROUND($N$19,0),"")&"" ->  | O76: =IF($O$60=24,ROUND($O$19,0),"")&"" ->  | P76: =IF($P$60=24,ROUND($P$19,0),"")&"" ->  | Q76: =IF($Q$60=24,ROUND($Q$19,0),"")&"" ->  | R76: =IF($R$60=24,ROUND($R$19,0),"")&"" ->  | S76: =IF($S$60=24,ROUND($S$19,0),"")&"" ->  | T76: =IF($T$60=24,ROUND($T$19,0),"")&"" ->  | U76: =IF($U$60=24,ROUND($U$19,0),"")&"" ->  | V76: =IF($V$60=24,ROUND($V$19,0),"")&"" ->  | W76: =IF($W$60=24,ROUND($W$19,0),"")&"" ->  | X76: =IF($X$60=24,ROUND($X$19,0),"")&"" ->  | Y76: =IF($Y$60=24,ROUND($Y$19,0),"")&"" ->  | Z76: =IF($Z$60=24,ROUND($Z$19,0),"")&"" ->  | AA76: =IF($AA$60=24,ROUND($AA$19,0),"")&"" ->  | AB76: 12
C77: 1 | D77: =IF($D$61=24,ROUND($D$20,0),"")&"" ->  | E77: =IF($E$61=24,ROUND($E$20,0),"")&"" ->  | F77: =IF($F$61=24,ROUND($F$20,0),"")&"" ->  | G77: =IF($G$61=24,ROUND($G$20,0),"")&"" ->  | H77: =IF($H$61=24,ROUND($H$20,0),"")&"" ->  | I77: =IF($I$61=24,ROUND($I$20,0),"")&"" ->  | J77: =IF($J$61=24,ROUND($J$20,0),"")&"" ->  | K77: =IF($K$61=24,ROUND($K$20,0),"")&"" ->  | L77: =IF($L$61=24,ROUND($L$20,0),"")&"" ->  | M77: =IF($M$61=24,ROUND($M$20,0),"")&"" ->  | N77: =IF($N$61=24,ROUND($N$20,0),"")&"" ->  | O77: =IF($O$61=24,ROUND($O$20,0),"")&"" ->  | P77: =IF($P$61=24,ROUND($P$20,0),"")&"" ->  | Q77: =IF($Q$61=24,ROUND($Q$20,0),"")&"" ->  | R77: =IF($R$61=24,ROUND($R$20,0),"")&"" ->  | S77: =IF($S$61=24,ROUND($S$20,0),"")&"" ->  | T77: =IF($T$61=24,ROUND($T$20,0),"")&"" ->  | U77: =IF($U$61=24,ROUND($U$20,0),"")&"" ->  | V77: =IF($V$61=24,ROUND($V$20,0),"")&"" ->  | W77: =IF($W$61=24,ROUND($W$20,0),"")&"" ->  | X77: =IF($X$61=24,ROUND($X$20,0),"")&"" ->  | Y77: =IF($Y$61=24,ROUND($Y$20,0),"")&"" ->  | Z77: =IF($Z$61=24,ROUND($Z$20,0),"")&"" ->  | AA77: =IF($AA$61=24,ROUND($AA$20,0),"")&"" ->  | AB77: 1
C78: 2 | D78: =IF($D$62=24,ROUND($D$21,0),"")&"" ->  | E78: =IF($E$62=24,ROUND($E$21,0),"")&"" ->  | F78: =IF($F$62=24,ROUND($F$21,0),"")&"" ->  | G78: =IF($G$62=24,ROUND($G$21,0),"")&"" ->  | H78: =IF($H$62=24,ROUND($H$21,0),"")&"" ->  | I78: =IF($I$62=24,ROUND($I$21,0),"")&"" ->  | J78: =IF($J$62=24,ROUND($J$21,0),"")&"" ->  | K78: =IF($K$62=24,ROUND($K$21,0),"")&"" ->  | L78: =IF($L$62=24,ROUND($L$21,0),"")&"" ->  | M78: =IF($M$62=24,ROUND($M$21,0),"")&"" ->  | N78: =IF($N$62=24,ROUND($N$21,0),"")&"" ->  | O78: =IF($O$62=24,ROUND($O$21,0),"")&"" ->  | P78: =IF($P$62=24,ROUND($P$21,0),"")&"" ->  | Q78: =IF($Q$62=24,ROUND($Q$21,0),"")&"" ->  | R78: =IF($R$62=24,ROUND($R$21,0),"")&"" ->  | S78: =IF($S$62=24,ROUND($S$21,0),"")&"" ->  | T78: =IF($T$62=24,ROUND($T$21,0),"")&"" ->  | U78: =IF($U$62=24,ROUND($U$21,0),"")&"" ->  | V78: =IF($V$62=24,ROUND($V$21,0),"")&"" ->  | W78: =IF($W$62=24,ROUND($W$21,0),"")&"" ->  | X78: =IF($X$62=24,ROUND($X$21,0),"")&"" ->  | Y78: =IF($Y$62=24,ROUND($Y$21,0),"")&"" ->  | Z78: =IF($Z$62=24,ROUND($Z$21,0),"")&"" ->  | AA78: =IF($AA$62=24,ROUND($AA$21,0),"")&"" ->  | AB78: 2
C79: 3 | D79: =IF($D$63=24,ROUND($D$22,0),"")&"" ->  | E79: =IF($E$63=24,ROUND($E$22,0),"")&"" ->  | F79: =IF($F$63=24,ROUND($F$22,0),"")&"" ->  | G79: =IF($G$63=24,ROUND($G$22,0),"")&"" ->  | H79: =IF($H$63=24,ROUND($H$22,0),"")&"" ->  | I79: =IF($I$63=24,ROUND($I$22,0),"")&"" ->  | J79: =IF($J$63=24,ROUND($J$22,0),"")&"" ->  | K79: =IF($K$63=24,ROUND($K$22,0),"")&"" ->  | L79: =IF($L$63=24,ROUND($L$22,0),"")&"" ->  | M79: =IF($M$63=24,ROUND($M$22,0),"")&"" ->  | N79: =IF($N$63=24,ROUND($N$22,0),"")&"" ->  | O79: =IF($O$63=24,ROUND($O$22,0),"")&"" ->  | P79: =IF($P$63=24,ROUND($P$22,0),"")&"" ->  | Q79: =IF($Q$63=24,ROUND($Q$22,0),"")&"" ->  | R79: =IF($R$63=24,ROUND($R$22,0),"")&"" ->  | S79: =IF($S$63=24,ROUND($S$22,0),"")&"" ->  | T79: =IF($T$63=24,ROUND($T$22,0),"")&"" ->  | U79: =IF($U$63=24,ROUND($U$22,0),"")&"" ->  | V79: =IF($V$63=24,ROUND($V$22,0),"")&"" ->  | W79: =IF($W$63=24,ROUND($W$22,0),"")&"" ->  | X79: =IF($X$63=24,ROUND($X$22,0),"")&"" ->  | Y79: =IF($Y$63=24,ROUND($Y$22,0),"")&"" ->  | Z79: =IF($Z$63=24,ROUND($Z$22,0),"")&"" ->  | AA79: =IF($AA$63=24,ROUND($AA$22,0),"")&"" ->  | AB79: 3
C81: 作業表2-2(暖房) | E81: ●月▲時の平均気温(四捨五入で表示）
C82: 月 | D82: 時刻 | AB82: 月
D83: 0 | E83: 1 | F83: 2 | G83: 3 | H83: 4 | I83: 5 | J83: 6 | K83: 7 | L83: 8 | M83: 9 | N83: 10 | O83: 11 | P83: 12 | Q83: 13 | R83: 14 | S83: 15 | T83: 16 | U83: 17 | V83: 18 | W83: 19 | X83: 20 | Y83: 21 | Z83: 22 | AA83: 23
C84: 4 | D84: =IF($D$52=19,ROUND($D$11,0),"★") -> ★ | E84: =IF($E$52=19,ROUND($E$11,0),"★") -> ★ | F84: =IF($F$52=19,ROUND($F$11,0),"★") -> ★ | G84: =IF($G$52=19,ROUND($G$11,0),"★") -> ★ | H84: =IF($H$52=19,ROUND($H$11,0),"★") -> ★ | I84: =IF($I$52=19,ROUND($I$11,0),"★") -> ★ | J84: =IF($J$52=19,ROUND($J$11,0),"★") -> ★ | K84: =IF($K$52=19,ROUND($K$11,0),"★") -> ★ | L84: =IF($L$52=19,ROUND($L$11,0),"★") -> ★ | M84: =IF($M$52=19,ROUND($M$11,0),"★") -> ★ | N84: =IF($N$52=19,ROUND($N$11,0),"★") -> ★ | O84: =IF($O$52=19,ROUND($O$11,0),"★") -> ★ | P84: =IF($P$52=19,ROUND($P$11,0),"★") -> ★ | Q84: =IF($Q$52=19,ROUND($Q$11,0),"★") -> ★ | R84: =IF($R$52=19,ROUND($R$11,0),"★") -> ★ | S84: =IF($S$52=19,ROUND($S$11,0),"★") -> ★ | T84: =IF($T$52=19,ROUND($T$11,0),"★") -> ★ | U84: =IF($U$52=19,ROUND($U$11,0),"★") -> ★ | V84: =IF($V$52=19,ROUND($V$11,0),"★") -> ★ | W84: =IF($W$52=19,ROUND($W$11,0),"★") -> ★ | X84: =IF($X$52=19,ROUND($X$11,0),"★") -> ★ | Y84: =IF($Y$52=19,ROUND($Y$11,0),"★") -> ★ | Z84: =IF($Z$52=19,ROUND($Z$11,0),"★") -> ★ | AA84: =IF($AA$52=19,ROUND($AA$11,0),"★") -> ★ | AB84: 4 | AC84: =IFERROR(AVERAGE(D84:AA84),"") -> 
C85: 5 | D85: =IF($D$53=19,ROUND($D$12,0),"★") -> ★ | E85: =IF($E$53=19,ROUND($E$12,0),"★") -> ★ | F85: =IF($F$53=19,ROUND($F$12,0),"★") -> ★ | G85: =IF($G$53=19,ROUND($G$12,0),"★") -> ★ | H85: =IF($H$53=19,ROUND($H$12,0),"★") -> ★ | I85: =IF($I$53=19,ROUND($I$12,0),"★") -> ★ | J85: =IF($J$53=19,ROUND($J$12,0),"★") -> ★ | K85: =IF($K$53=19,ROUND($K$12,0),"★") -> ★ | L85: =IF($L$53=19,ROUND($L$12,0),"★") -> ★ | M85: =IF($M$53=19,ROUND($M$12,0),"★") -> ★ | N85: =IF($N$53=19,ROUND($N$12,0),"★") -> ★ | O85: =IF($O$53=19,ROUND($O$12,0),"★") -> ★ | P85: =IF($P$53=19,ROUND($P$12,0),"★") -> ★ | Q85: =IF($Q$53=19,ROUND($Q$12,0),"★") -> ★ | R85: =IF($R$53=19,ROUND($R$12,0),"★") -> ★ | S85: =IF($S$53=19,ROUND($S$12,0),"★") -> ★ | T85: =IF($T$53=19,ROUND($T$12,0),"★") -> ★ | U85: =IF($U$53=19,ROUND($U$12,0),"★") -> ★ | V85: =IF($V$53=19,ROUND($V$12,0),"★") -> ★ | W85: =IF($W$53=19,ROUND($W$12,0),"★") -> ★ | X85: =IF($X$53=19,ROUND($X$12,0),"★") -> ★ | Y85: =IF($Y$53=19,ROUND($Y$12,0),"★") -> ★ | Z85: =IF($Z$53=19,ROUND($Z$12,0),"★") -> ★ | AA85: =IF($AA$53=19,ROUND($AA$12,0),"★") -> ★ | AB85: 5
C86: 6 | D86: =IF($D$54=19,ROUND($D$13,0),"★") -> ★ | E86: =IF($E$54=19,ROUND($E$13,0),"★") -> ★ | F86: =IF($F$54=19,ROUND($F$13,0),"★") -> ★ | G86: =IF($G$54=19,ROUND($G$13,0),"★") -> ★ | H86: =IF($H$54=19,ROUND($H$13,0),"★") -> ★ | I86: =IF($I$54=19,ROUND($I$13,0),"★") -> ★ | J86: =IF($J$54=19,ROUND($J$13,0),"★") -> ★ | K86: =IF($K$54=19,ROUND($K$13,0),"★") -> ★ | L86: =IF($L$54=19,ROUND($L$13,0),"★") -> ★ | M86: =IF($M$54=19,ROUND($M$13,0),"★") -> ★ | N86: =IF($N$54=19,ROUND($N$13,0),"★") -> ★ | O86: =IF($O$54=19,ROUND($O$13,0),"★") -> ★ | P86: =IF($P$54=19,ROUND($P$13,0),"★") -> ★ | Q86: =IF($Q$54=19,ROUND($Q$13,0),"★") -> ★ | R86: =IF($R$54=19,ROUND($R$13,0),"★") -> ★ | S86: =IF($S$54=19,ROUND($S$13,0),"★") -> ★ | T86: =IF($T$54=19,ROUND($T$13,0),"★") -> ★ | U86: =IF($U$54=19,ROUND($U$13,0),"★") -> ★ | V86: =IF($V$54=19,ROUND($V$13,0),"★") -> ★ | W86: =IF($W$54=19,ROUND($W$13,0),"★") -> ★ | X86: =IF($X$54=19,ROUND($X$13,0),"★") -> ★ | Y86: =IF($Y$54=19,ROUND($Y$13,0),"★") -> ★ | Z86: =IF($Z$54=19,ROUND($Z$13,0),"★") -> ★ | AA86: =IF($AA$54=19,ROUND($AA$13,0),"★") -> ★ | AB86: 6
C87: 7 | D87: =IF($D$55=19,ROUND($D$14,0),"★") -> ★ | E87: =IF($E$55=19,ROUND($E$14,0),"★") -> ★ | F87: =IF($F$55=19,ROUND($F$14,0),"★") -> ★ | G87: =IF($G$55=19,ROUND($G$14,0),"★") -> ★ | H87: =IF($H$55=19,ROUND($H$14,0),"★") -> ★ | I87: =IF($I$55=19,ROUND($I$14,0),"★") -> ★ | J87: =IF($J$55=19,ROUND($J$14,0),"★") -> ★ | K87: =IF($K$55=19,ROUND($K$14,0),"★") -> ★ | L87: =IF($L$55=19,ROUND($L$14,0),"★") -> ★ | M87: =IF($M$55=19,ROUND($M$14,0),"★") -> ★ | N87: =IF($N$55=19,ROUND($N$14,0),"★") -> ★ | O87: =IF($O$55=19,ROUND($O$14,0),"★") -> ★ | P87: =IF($P$55=19,ROUND($P$14,0),"★") -> ★ | Q87: =IF($Q$55=19,ROUND($Q$14,0),"★") -> ★ | R87: =IF($R$55=19,ROUND($R$14,0),"★") -> ★ | S87: =IF($S$55=19,ROUND($S$14,0),"★") -> ★ | T87: =IF($T$55=19,ROUND($T$14,0),"★") -> ★ | U87: =IF($U$55=19,ROUND($U$14,0),"★") -> ★ | V87: =IF($V$55=19,ROUND($V$14,0),"★") -> ★ | W87: =IF($W$55=19,ROUND($W$14,0),"★") -> ★ | X87: =IF($X$55=19,ROUND($X$14,0),"★") -> ★ | Y87: =IF($Y$55=19,ROUND($Y$14,0),"★") -> ★ | Z87: =IF($Z$55=19,ROUND($Z$14,0),"★") -> ★ | AA87: =IF($AA$55=19,ROUND($AA$14,0),"★") -> ★ | AB87: 7
C88: 8 | D88: =IF($D$56=19,ROUND($D$15,0),"★") -> ★ | E88: =IF($E$56=19,ROUND($E$15,0),"★") -> ★ | F88: =IF($F$56=19,ROUND($F$15,0),"★") -> ★ | G88: =IF($G$56=19,ROUND($G$15,0),"★") -> ★ | H88: =IF($H$56=19,ROUND($H$15,0),"★") -> ★ | I88: =IF($I$56=19,ROUND($I$15,0),"★") -> ★ | J88: =IF($J$56=19,ROUND($J$15,0),"★") -> ★ | K88: =IF($K$56=19,ROUND($K$15,0),"★") -> ★ | L88: =IF($L$56=19,ROUND($L$15,0),"★") -> ★ | M88: =IF($M$56=19,ROUND($M$15,0),"★") -> ★ | N88: =IF($N$56=19,ROUND($N$15,0),"★") -> ★ | O88: =IF($O$56=19,ROUND($O$15,0),"★") -> ★ | P88: =IF($P$56=19,ROUND($P$15,0),"★") -> ★ | Q88: =IF($Q$56=19,ROUND($Q$15,0),"★") -> ★ | R88: =IF($R$56=19,ROUND($R$15,0),"★") -> ★ | S88: =IF($S$56=19,ROUND($S$15,0),"★") -> ★ | T88: =IF($T$56=19,ROUND($T$15,0),"★") -> ★ | U88: =IF($U$56=19,ROUND($U$15,0),"★") -> ★ | V88: =IF($V$56=19,ROUND($V$15,0),"★") -> ★ | W88: =IF($W$56=19,ROUND($W$15,0),"★") -> ★ | X88: =IF($X$56=19,ROUND($X$15,0),"★") -> ★ | Y88: =IF($Y$56=19,ROUND($Y$15,0),"★") -> ★ | Z88: =IF($Z$56=19,ROUND($Z$15,0),"★") -> ★ | AA88: =IF($AA$56=19,ROUND($AA$15,0),"★") -> ★ | AB88: 8
C89: 9 | D89: =IF($D$57=19,ROUND($D$16,0),"★") -> ★ | E89: =IF($E$57=19,ROUND($E$16,0),"★") -> ★ | F89: =IF($F$57=19,ROUND($F$16,0),"★") -> ★ | G89: =IF($G$57=19,ROUND($G$16,0),"★") -> ★ | H89: =IF($H$57=19,ROUND($H$16,0),"★") -> ★ | I89: =IF($I$57=19,ROUND($I$16,0),"★") -> ★ | J89: =IF($J$57=19,ROUND($J$16,0),"★") -> ★ | K89: =IF($K$57=19,ROUND($K$16,0),"★") -> ★ | L89: =IF($L$57=19,ROUND($L$16,0),"★") -> ★ | M89: =IF($M$57=19,ROUND($M$16,0),"★") -> ★ | N89: =IF($N$57=19,ROUND($N$16,0),"★") -> ★ | O89: =IF($O$57=19,ROUND($O$16,0),"★") -> ★ | P89: =IF($P$57=19,ROUND($P$16,0),"★") -> ★ | Q89: =IF($Q$57=19,ROUND($Q$16,0),"★") -> ★ | R89: =IF($R$57=19,ROUND($R$16,0),"★") -> ★ | S89: =IF($S$57=19,ROUND($S$16,0),"★") -> ★ | T89: =IF($T$57=19,ROUND($T$16,0),"★") -> ★ | U89: =IF($U$57=19,ROUND($U$16,0),"★") -> ★ | V89: =IF($V$57=19,ROUND($V$16,0),"★") -> ★ | W89: =IF($W$57=19,ROUND($W$16,0),"★") -> ★ | X89: =IF($X$57=19,ROUND($X$16,0),"★") -> ★ | Y89: =IF($Y$57=19,ROUND($Y$16,0),"★") -> ★ | Z89: =IF($Z$57=19,ROUND($Z$16,0),"★") -> ★ | AA89: =IF($AA$57=19,ROUND($AA$16,0),"★") -> ★ | AB89: 9
C90: 10 | D90: =IF($D$58=19,ROUND($D$17,0),"★") -> ★ | E90: =IF($E$58=19,ROUND($E$17,0),"★") -> ★ | F90: =IF($F$58=19,ROUND($F$17,0),"★") -> ★ | G90: =IF($G$58=19,ROUND($G$17,0),"★") -> ★ | H90: =IF($H$58=19,ROUND($H$17,0),"★") -> ★ | I90: =IF($I$58=19,ROUND($I$17,0),"★") -> ★ | J90: =IF($J$58=19,ROUND($J$17,0),"★") -> ★ | K90: =IF($K$58=19,ROUND($K$17,0),"★") -> ★ | L90: =IF($L$58=19,ROUND($L$17,0),"★") -> ★ | M90: =IF($M$58=19,ROUND($M$17,0),"★") -> ★ | N90: =IF($N$58=19,ROUND($N$17,0),"★") -> ★ | O90: =IF($O$58=19,ROUND($O$17,0),"★") -> ★ | P90: =IF($P$58=19,ROUND($P$17,0),"★") -> ★ | Q90: =IF($Q$58=19,ROUND($Q$17,0),"★") -> ★ | R90: =IF($R$58=19,ROUND($R$17,0),"★") -> ★ | S90: =IF($S$58=19,ROUND($S$17,0),"★") -> ★ | T90: =IF($T$58=19,ROUND($T$17,0),"★") -> ★ | U90: =IF($U$58=19,ROUND($U$17,0),"★") -> ★ | V90: =IF($V$58=19,ROUND($V$17,0),"★") -> ★ | W90: =IF($W$58=19,ROUND($W$17,0),"★") -> ★ | X90: =IF($X$58=19,ROUND($X$17,0),"★") -> ★ | Y90: =IF($Y$58=19,ROUND($Y$17,0),"★") -> ★ | Z90: =IF($Z$58=19,ROUND($Z$17,0),"★") -> ★ | AA90: =IF($AA$58=19,ROUND($AA$17,0),"★") -> ★ | AB90: 10
C91: 11 | D91: =IF($D$59=19,ROUND($D$18,0),"★") -> ★ | E91: =IF($E$59=19,ROUND($E$18,0),"★") -> ★ | F91: =IF($F$59=19,ROUND($F$18,0),"★") -> ★ | G91: =IF($G$59=19,ROUND($G$18,0),"★") -> ★ | H91: =IF($H$59=19,ROUND($H$18,0),"★") -> ★ | I91: =IF($I$59=19,ROUND($I$18,0),"★") -> ★ | J91: =IF($J$59=19,ROUND($J$18,0),"★") -> ★ | K91: =IF($K$59=19,ROUND($K$18,0),"★") -> ★ | L91: =IF($L$59=19,ROUND($L$18,0),"★") -> ★ | M91: =IF($M$59=19,ROUND($M$18,0),"★") -> ★ | N91: =IF($N$59=19,ROUND($N$18,0),"★") -> ★ | O91: =IF($O$59=19,ROUND($O$18,0),"★") -> ★ | P91: =IF($P$59=19,ROUND($P$18,0),"★") -> ★ | Q91: =IF($Q$59=19,ROUND($Q$18,0),"★") -> ★ | R91: =IF($R$59=19,ROUND($R$18,0),"★") -> ★ | S91: =IF($S$59=19,ROUND($S$18,0),"★") -> ★ | T91: =IF($T$59=19,ROUND($T$18,0),"★") -> ★ | U91: =IF($U$59=19,ROUND($U$18,0),"★") -> ★ | V91: =IF($V$59=19,ROUND($V$18,0),"★") -> ★ | W91: =IF($W$59=19,ROUND($W$18,0),"★") -> ★ | X91: =IF($X$59=19,ROUND($X$18,0),"★") -> ★ | Y91: =IF($Y$59=19,ROUND($Y$18,0),"★") -> ★ | Z91: =IF($Z$59=19,ROUND($Z$18,0),"★") -> ★ | AA91: =IF($AA$59=19,ROUND($AA$18,0),"★") -> ★ | AB91: 11
C92: 12 | D92: =IF($D$60=19,ROUND($D$19,0),"★") -> ★ | E92: =IF($E$60=19,ROUND($E$19,0),"★") -> ★ | F92: =IF($F$60=19,ROUND($F$19,0),"★") -> ★ | G92: =IF($G$60=19,ROUND($G$19,0),"★") -> ★ | H92: =IF($H$60=19,ROUND($H$19,0),"★") -> ★ | I92: =IF($I$60=19,ROUND($I$19,0),"★") -> ★ | J92: =IF($J$60=19,ROUND($J$19,0),"★") -> ★ | K92: =IF($K$60=19,ROUND($K$19,0),"★") -> ★ | L92: =IF($L$60=19,ROUND($L$19,0),"★") -> ★ | M92: =IF($M$60=19,ROUND($M$19,0),"★") -> ★ | N92: =IF($N$60=19,ROUND($N$19,0),"★") -> ★ | O92: =IF($O$60=19,ROUND($O$19,0),"★") -> ★ | P92: =IF($P$60=19,ROUND($P$19,0),"★") -> ★ | Q92: =IF($Q$60=19,ROUND($Q$19,0),"★") -> ★ | R92: =IF($R$60=19,ROUND($R$19,0),"★") -> ★ | S92: =IF($S$60=19,ROUND($S$19,0),"★") -> ★ | T92: =IF($T$60=19,ROUND($T$19,0),"★") -> ★ | U92: =IF($U$60=19,ROUND($U$19,0),"★") -> ★ | V92: =IF($V$60=19,ROUND($V$19,0),"★") -> ★ | W92: =IF($W$60=19,ROUND($W$19,0),"★") -> ★ | X92: =IF($X$60=19,ROUND($X$19,0),"★") -> ★ | Y92: =IF($Y$60=19,ROUND($Y$19,0),"★") -> ★ | Z92: =IF($Z$60=19,ROUND($Z$19,0),"★") -> ★ | AA92: =IF($AA$60=19,ROUND($AA$19,0),"★") -> ★ | AB92: 12
C93: 1 | D93: =IF($D$61=19,ROUND($D$20,0),"★") -> ★ | E93: =IF($E$61=19,ROUND($E$20,0),"★") -> ★ | F93: =IF($F$61=19,ROUND($F$20,0),"★") -> ★ | G93: =IF($G$61=19,ROUND($G$20,0),"★") -> ★ | H93: =IF($H$61=19,ROUND($H$20,0),"★") -> ★ | I93: =IF($I$61=19,ROUND($I$20,0),"★") -> ★ | J93: =IF($J$61=19,ROUND($J$20,0),"★") -> ★ | K93: =IF($K$61=19,ROUND($K$20,0),"★") -> ★ | L93: =IF($L$61=19,ROUND($L$20,0),"★") -> ★ | M93: =IF($M$61=19,ROUND($M$20,0),"★") -> ★ | N93: =IF($N$61=19,ROUND($N$20,0),"★") -> ★ | O93: =IF($O$61=19,ROUND($O$20,0),"★") -> ★ | P93: =IF($P$61=19,ROUND($P$20,0),"★") -> ★ | Q93: =IF($Q$61=19,ROUND($Q$20,0),"★") -> ★ | R93: =IF($R$61=19,ROUND($R$20,0),"★") -> ★ | S93: =IF($S$61=19,ROUND($S$20,0),"★") -> ★ | T93: =IF($T$61=19,ROUND($T$20,0),"★") -> ★ | U93: =IF($U$61=19,ROUND($U$20,0),"★") -> ★ | V93: =IF($V$61=19,ROUND($V$20,0),"★") -> ★ | W93: =IF($W$61=19,ROUND($W$20,0),"★") -> ★ | X93: =IF($X$61=19,ROUND($X$20,0),"★") -> ★ | Y93: =IF($Y$61=19,ROUND($Y$20,0),"★") -> ★ | Z93: =IF($Z$61=19,ROUND($Z$20,0),"★") -> ★ | AA93: =IF($AA$61=19,ROUND($AA$20,0),"★") -> ★ | AB93: 1
C94: 2 | D94: =IF($D$62=19,ROUND($D$21,0),"★") -> ★ | E94: =IF($E$62=19,ROUND($E$21,0),"★") -> ★ | F94: =IF($F$62=19,ROUND($F$21,0),"★") -> ★ | G94: =IF($G$62=19,ROUND($G$21,0),"★") -> ★ | H94: =IF($H$62=19,ROUND($H$21,0),"★") -> ★ | I94: =IF($I$62=19,ROUND($I$21,0),"★") -> ★ | J94: =IF($J$62=19,ROUND($J$21,0),"★") -> ★ | K94: =IF($K$62=19,ROUND($K$21,0),"★") -> ★ | L94: =IF($L$62=19,ROUND($L$21,0),"★") -> ★ | M94: =IF($M$62=19,ROUND($M$21,0),"★") -> ★ | N94: =IF($N$62=19,ROUND($N$21,0),"★") -> ★ | O94: =IF($O$62=19,ROUND($O$21,0),"★") -> ★ | P94: =IF($P$62=19,ROUND($P$21,0),"★") -> ★ | Q94: =IF($Q$62=19,ROUND($Q$21,0),"★") -> ★ | R94: =IF($R$62=19,ROUND($R$21,0),"★") -> ★ | S94: =IF($S$62=19,ROUND($S$21,0),"★") -> ★ | T94: =IF($T$62=19,ROUND($T$21,0),"★") -> ★ | U94: =IF($U$62=19,ROUND($U$21,0),"★") -> ★ | V94: =IF($V$62=19,ROUND($V$21,0),"★") -> ★ | W94: =IF($W$62=19,ROUND($W$21,0),"★") -> ★ | X94: =IF($X$62=19,ROUND($X$21,0),"★") -> ★ | Y94: =IF($Y$62=19,ROUND($Y$21,0),"★") -> ★ | Z94: =IF($Z$62=19,ROUND($Z$21,0),"★") -> ★ | AA94: =IF($AA$62=19,ROUND($AA$21,0),"★") -> ★ | AB94: 2
C95: 3 | D95: =IF($D$63=19,ROUND($D$22,0),"★") -> ★ | E95: =IF($E$63=19,ROUND($E$22,0),"★") -> ★ | F95: =IF($F$63=19,ROUND($F$22,0),"★") -> ★ | G95: =IF($G$63=19,ROUND($G$22,0),"★") -> ★ | H95: =IF($H$63=19,ROUND($H$22,0),"★") -> ★ | I95: =IF($I$63=19,ROUND($I$22,0),"★") -> ★ | J95: =IF($J$63=19,ROUND($J$22,0),"★") -> ★ | K95: =IF($K$63=19,ROUND($K$22,0),"★") -> ★ | L95: =IF($L$63=19,ROUND($L$22,0),"★") -> ★ | M95: =IF($M$63=19,ROUND($M$22,0),"★") -> ★ | N95: =IF($N$63=19,ROUND($N$22,0),"★") -> ★ | O95: =IF($O$63=19,ROUND($O$22,0),"★") -> ★ | P95: =IF($P$63=19,ROUND($P$22,0),"★") -> ★ | Q95: =IF($Q$63=19,ROUND($Q$22,0),"★") -> ★ | R95: =IF($R$63=19,ROUND($R$22,0),"★") -> ★ | S95: =IF($S$63=19,ROUND($S$22,0),"★") -> ★ | T95: =IF($T$63=19,ROUND($T$22,0),"★") -> ★ | U95: =IF($U$63=19,ROUND($U$22,0),"★") -> ★ | V95: =IF($V$63=19,ROUND($V$22,0),"★") -> ★ | W95: =IF($W$63=19,ROUND($W$22,0),"★") -> ★ | X95: =IF($X$63=19,ROUND($X$22,0),"★") -> ★ | Y95: =IF($Y$63=19,ROUND($Y$22,0),"★") -> ★ | Z95: =IF($Z$63=19,ROUND($Z$22,0),"★") -> ★ | AA95: =IF($AA$63=19,ROUND($AA$22,0),"★") -> ★ | AB95: 3
C97: 冷房期間中 温度(T)が発生する時間[hour]
D98: 温度(T)
C99: 月 | D99: -6 | E99: -5 | F99: -4 | G99: -3 | H99: -2 | I99: -1 | J99: 0 | K99: 1 | L99: 2 | M99: 3 | N99: 4 | O99: 5 | P99: 6 | Q99: 7 | R99: 8 | S99: 9 | T99: 10 | U99: 11 | V99: 12 | W99: 13 | X99: 14 | Y99: 15 | Z99: 16 | AA99: 17 | AB99: 18 | AC99: 19 | AD99: 20 | AE99: 21 | AF99: 22 | AG99: 23 | AH99: 24 | AI99: 25 | AJ99: 26 | AK99: 27 | AL99: 28 | AM99: 29 | AN99: 30 | AO99: 31 | AP99: 32 | AQ99: 33 | AR99: 34 | AS99: 35 | AT99: 月
C100: 4 | D100: =COUNTIF($D$68:$AA$68,$D$99)*$AB$11 -> 0 | E100: =COUNTIF($D$68:$AA$68,$E$99)*$AB$11 -> 0 | F100: =COUNTIF($D$68:$AA$68,$F$99)*$AB$11 -> 0 | G100: =COUNTIF($D$68:$AA$68,$G$99)*$AB$11 -> 0 | H100: =COUNTIF($D$68:$AA$68,$H$99)*$AB$11 -> 0 | I100: =COUNTIF($D$68:$AA$68,$I$99)*$AB$11 -> 0 | J100: =COUNTIF($D$68:$AA$68,$J$99)*$AB$11 -> 0 | K100: =COUNTIF($D$68:$AA$68,$K$99)*$AB$11 -> 0 | L100: =COUNTIF($D$68:$AA$68,$L$99)*$AB$11 -> 0 | M100: =COUNTIF($D$68:$AA$68,$M$99)*$AB$11 -> 0 | N100: =COUNTIF($D$68:$AA$68,$N$99)*$AB$11 -> 0 | O100: =COUNTIF($D$68:$AA$68,$O$99)*$AB$11 -> 0 | P100: =COUNTIF($D$68:$AA$68,$P$99)*$AB$11 -> 0 | Q100: =COUNTIF($D$68:$AA$68,$Q$99)*$AB$11 -> 0 | R100: =COUNTIF($D$68:$AA$68,$R$99)*$AB$11 -> 0 | S100: =COUNTIF($D$68:$AA$68,$S$99)*$AB$11 -> 0 | T100: =COUNTIF($D$68:$AA$68,$T$99)*$AB$11 -> 0 | U100: =COUNTIF($D$68:$AA$68,$U$99)*$AB$11 -> 0 | V100: =COUNTIF($D$68:$AA$68,$V$99)*$AB$11 -> 0 | W100: =COUNTIF($D$68:$AA$68,$W$99)*$AB$11 -> 0 | X100: =COUNTIF($D$68:$AA$68,$X$99)*$AB$11 -> 0 | Y100: =COUNTIF($D$68:$AA$68,$Y$99)*$AB$11 -> 0 | Z100: =COUNTIF($D$68:$AA$68,$Z$99)*$AB$11 -> 0 | AA100: =COUNTIF($D$68:$AA$68,$AA$99)*$AB$11 -> 0 | AB100: =COUNTIF($D$68:$AA$68,$AB$99)*$AB$11 -> 0 | AC100: =COUNTIF($D$68:$AA$68,$AC$99)*$AB$11 -> 0 | AD100: =COUNTIF($D$68:$AA$68,$AD$99)*$AB$11 -> 0 | AE100: =COUNTIF($D$68:$AA$68,$AE$99)*$AB$11 -> 0 | AF100: =COUNTIF($D$68:$AA$68,$AF$99)*$AB$11 -> 0 | AG100: =COUNTIF($D$68:$AA$68,$AG$99)*$AB$11 -> 0 | AH100: =COUNTIF($D$68:$AA$68,$AH$99)*$AB$11 -> 0 | AI100: =COUNTIF($D$68:$AA$68,$AI$99)*$AB$11 -> 0 | AJ100: =COUNTIF($D$68:$AA$68,$AJ$99)*$AB$11 -> 0 | AK100: =COUNTIF($D$68:$AA$68,$AK$99)*$AB$11 -> 0 | AL100: =COUNTIF($D$68:$AA$68,$AL$99)*$AB$11 -> 0 | AM100: =COUNTIF($D$68:$AA$68,$AM$99)*$AB$11 -> 0 | AN100: =COUNTIF($D$68:$AA$68,$AN$99)*$AB$11 -> 0 | AO100: =COUNTIF($D$68:$AA$68,$AO$99)*$AB$11 -> 0 | AP100: =COUNTIF($D$68:$AA$68,$AP$99)*$AB$11 -> 0 | AQ100: =COUNTIF($D$68:$AA$68,$AQ$99)*$AB$11 -> 0 | AR100: =COUNTIF($D$68:$AA$68,$AR$99)*$AB$11 -> 0 | AS100: =COUNTIF($D$68:$AA$68,$AS$99)*$AB$11 -> 0 | AT100: 4 | AU100: =SUMPRODUCT(D100:AS100,$D$113:$AS$113) -> 
C101: 5 | D101: =COUNTIF($D$69:$AA$69,$D$99)*$AB$12 -> 0 | E101: =COUNTIF($D$69:$AA$69,$E$99)*$AB$12 -> 0 | F101: =COUNTIF($D$69:$AA$69,$F$99)*$AB$12 -> 0 | G101: =COUNTIF($D$69:$AA$69,$G$99)*$AB$12 -> 0 | H101: =COUNTIF($D$69:$AA$69,$H$99)*$AB$12 -> 0 | I101: =COUNTIF($D$69:$AA$69,$I$99)*$AB$12 -> 0 | J101: =COUNTIF($D$69:$AA$69,$J$99)*$AB$12 -> 0 | K101: =COUNTIF($D$69:$AA$69,$K$99)*$AB$12 -> 0 | L101: =COUNTIF($D$69:$AA$69,$L$99)*$AB$12 -> 0 | M101: =COUNTIF($D$69:$AA$69,$M$99)*$AB$12 -> 0 | N101: =COUNTIF($D$69:$AA$69,$N$99)*$AB$12 -> 0 | O101: =COUNTIF($D$69:$AA$69,$O$99)*$AB$12 -> 0 | P101: =COUNTIF($D$69:$AA$69,$P$99)*$AB$12 -> 0 | Q101: =COUNTIF($D$69:$AA$69,$Q$99)*$AB$12 -> 0 | R101: =COUNTIF($D$69:$AA$69,$R$99)*$AB$12 -> 0 | S101: =COUNTIF($D$69:$AA$69,$S$99)*$AB$12 -> 0 | T101: =COUNTIF($D$69:$AA$69,$T$99)*$AB$12 -> 0 | U101: =COUNTIF($D$69:$AA$69,$U$99)*$AB$12 -> 0 | V101: =COUNTIF($D$69:$AA$69,$V$99)*$AB$12 -> 0 | W101: =COUNTIF($D$69:$AA$69,$W$99)*$AB$12 -> 0 | X101: =COUNTIF($D$69:$AA$69,$X$99)*$AB$12 -> 0 | Y101: =COUNTIF($D$69:$AA$69,$Y$99)*$AB$12 -> 0 | Z101: =COUNTIF($D$69:$AA$69,$Z$99)*$AB$12 -> 0 | AA101: =COUNTIF($D$69:$AA$69,$AA$99)*$AB$12 -> 0 | AB101: =COUNTIF($D$69:$AA$69,$AB$99)*$AB$12 -> 0 | AC101: =COUNTIF($D$69:$AA$69,$AC$99)*$AB$12 -> 0 | AD101: =COUNTIF($D$69:$AA$69,$AD$99)*$AB$12 -> 0 | AE101: =COUNTIF($D$69:$AA$69,$AE$99)*$AB$12 -> 0 | AF101: =COUNTIF($D$69:$AA$69,$AF$99)*$AB$12 -> 0 | AG101: =COUNTIF($D$69:$AA$69,$AG$99)*$AB$12 -> 0 | AH101: =COUNTIF($D$69:$AA$69,$AH$99)*$AB$12 -> 0 | AI101: =COUNTIF($D$69:$AA$69,$AI$99)*$AB$12 -> 0 | AJ101: =COUNTIF($D$69:$AA$69,$AJ$99)*$AB$12 -> 0 | AK101: =COUNTIF($D$69:$AA$69,$AK$99)*$AB$12 -> 0 | AL101: =COUNTIF($D$69:$AA$69,$AL$99)*$AB$12 -> 0 | AM101: =COUNTIF($D$69:$AA$69,$AM$99)*$AB$12 -> 0 | AN101: =COUNTIF($D$69:$AA$69,$AN$99)*$AB$12 -> 0 | AO101: =COUNTIF($D$69:$AA$69,$AO$99)*$AB$12 -> 0 | AP101: =COUNTIF($D$69:$AA$69,$AP$99)*$AB$12 -> 0 | AQ101: =COUNTIF($D$69:$AA$69,$AQ$99)*$AB$12 -> 0 | AR101: =COUNTIF($D$69:$AA$69,$AR$99)*$AB$12 -> 0 | AS101: =COUNTIF($D$69:$AA$69,$AS$99)*#REF! ->  | AT101: 5 | AU101: =SUMPRODUCT(D101:AS101,$D$113:$AS$113) -> 
C102: 6 | D102: =COUNTIF($D$70:$AA$70,$D$99)*$AB$13 -> 0 | E102: =COUNTIF($D$70:$AA$70,$E$99)*$AB$13 -> 0 | F102: =COUNTIF($D$70:$AA$70,$F$99)*$AB$13 -> 0 | G102: =COUNTIF($D$70:$AA$70,$G$99)*$AB$13 -> 0 | H102: =COUNTIF($D$70:$AA$70,$H$99)*$AB$13 -> 0 | I102: =COUNTIF($D$70:$AA$70,$I$99)*$AB$13 -> 0 | J102: =COUNTIF($D$70:$AA$70,$J$99)*$AB$13 -> 0 | K102: =COUNTIF($D$70:$AA$70,$K$99)*$AB$13 -> 0 | L102: =COUNTIF($D$70:$AA$70,$L$99)*$AB$13 -> 0 | M102: =COUNTIF($D$70:$AA$70,$M$99)*$AB$13 -> 0 | N102: =COUNTIF($D$70:$AA$70,$N$99)*$AB$13 -> 0 | O102: =COUNTIF($D$70:$AA$70,$O$99)*$AB$13 -> 0 | P102: =COUNTIF($D$70:$AA$70,$P$99)*$AB$13 -> 0 | Q102: =COUNTIF($D$70:$AA$70,$Q$99)*$AB$13 -> 0 | R102: =COUNTIF($D$70:$AA$70,$R$99)*$AB$13 -> 0 | S102: =COUNTIF($D$70:$AA$70,$S$99)*$AB$13 -> 0 | T102: =COUNTIF($D$70:$AA$70,$T$99)*$AB$13 -> 0 | U102: =COUNTIF($D$70:$AA$70,$U$99)*$AB$13 -> 0 | V102: =COUNTIF($D$70:$AA$70,$V$99)*$AB$13 -> 0 | W102: =COUNTIF($D$70:$AA$70,$W$99)*$AB$13 -> 0 | X102: =COUNTIF($D$70:$AA$70,$X$99)*$AB$13 -> 0 | Y102: =COUNTIF($D$70:$AA$70,$Y$99)*$AB$13 -> 0 | Z102: =COUNTIF($D$70:$AA$70,$Z$99)*$AB$13 -> 0 | AA102: =COUNTIF($D$70:$AA$70,$AA$99)*$AB$13 -> 0 | AB102: =COUNTIF($D$70:$AA$70,$AB$99)*$AB$13 -> 0 | AC102: =COUNTIF($D$70:$AA$70,$AC$99)*$AB$13 -> 0 | AD102: =COUNTIF($D$70:$AA$70,$AD$99)*$AB$13 -> 0 | AE102: =COUNTIF($D$70:$AA$70,$AE$99)*$AB$13 -> 0 | AF102: =COUNTIF($D$70:$AA$70,$AF$99)*$AB$13 -> 0 | AG102: =COUNTIF($D$70:$AA$70,$AG$99)*$AB$13 -> 0 | AH102: =COUNTIF($D$70:$AA$70,$AH$99)*$AB$13 -> 0 | AI102: =COUNTIF($D$70:$AA$70,$AI$99)*$AB$13 -> 0 | AJ102: =COUNTIF($D$70:$AA$70,$AJ$99)*$AB$13 -> 0 | AK102: =COUNTIF($D$70:$AA$70,$AK$99)*$AB$13 -> 0 | AL102: =COUNTIF($D$70:$AA$70,$AL$99)*$AB$13 -> 0 | AM102: =COUNTIF($D$70:$AA$70,$AM$99)*$AB$13 -> 0 | AN102: =COUNTIF($D$70:$AA$70,$AN$99)*$AB$13 -> 0 | AO102: =COUNTIF($D$70:$AA$70,$AO$99)*$AB$13 -> 0 | AP102: =COUNTIF($D$70:$AA$70,$AP$99)*$AB$13 -> 0 | AQ102: =COUNTIF($D$70:$AA$70,$AQ$99)*$AB$13 -> 0 | AR102: =COUNTIF($D$70:$AA$70,$AR$99)*$AB$13 -> 0 | AS102: =COUNTIF($D$70:$AA$70,$AS$99)*$AB$13 -> 0 | AT102: 6
C103: 7 | D103: =COUNTIF($D$71:$AA$71,$D$99)*$AB$14 -> 0 | E103: =COUNTIF($D$71:$AA$71,$E$99)*$AB$14 -> 0 | F103: =COUNTIF($D$71:$AA$71,$F$99)*$AB$14 -> 0 | G103: =COUNTIF($D$71:$AA$71,$G$99)*$AB$14 -> 0 | H103: =COUNTIF($D$71:$AA$71,$H$99)*$AB$14 -> 0 | I103: =COUNTIF($D$71:$AA$71,$I$99)*$AB$14 -> 0 | J103: =COUNTIF($D$71:$AA$71,$J$99)*$AB$14 -> 0 | K103: =COUNTIF($D$71:$AA$71,$K$99)*$AB$14 -> 0 | L103: =COUNTIF($D$71:$AA$71,$L$99)*$AB$14 -> 0 | M103: =COUNTIF($D$71:$AA$71,$M$99)*$AB$14 -> 0 | N103: =COUNTIF($D$71:$AA$71,$N$99)*$AB$14 -> 0 | O103: =COUNTIF($D$71:$AA$71,$O$99)*$AB$14 -> 0 | P103: =COUNTIF($D$71:$AA$71,$P$99)*$AB$14 -> 0 | Q103: =COUNTIF($D$71:$AA$71,$Q$99)*$AB$14 -> 0 | R103: =COUNTIF($D$71:$AA$71,$R$99)*$AB$14 -> 0 | S103: =COUNTIF($D$71:$AA$71,$S$99)*$AB$14 -> 0 | T103: =COUNTIF($D$71:$AA$71,$T$99)*$AB$14 -> 0 | U103: =COUNTIF($D$71:$AA$71,$U$99)*$AB$14 -> 0 | V103: =COUNTIF($D$71:$AA$71,$V$99)*$AB$14 -> 0 | W103: =COUNTIF($D$71:$AA$71,$W$99)*$AB$14 -> 0 | X103: =COUNTIF($D$71:$AA$71,$X$99)*$AB$14 -> 0 | Y103: =COUNTIF($D$71:$AA$71,$Y$99)*$AB$14 -> 0 | Z103: =COUNTIF($D$71:$AA$71,$Z$99)*$AB$14 -> 0 | AA103: =COUNTIF($D$71:$AA$71,$AA$99)*$AB$14 -> 0 | AB103: =COUNTIF($D$71:$AA$71,$AB$99)*$AB$14 -> 0 | AC103: =COUNTIF($D$71:$AA$71,$AC$99)*$AB$14 -> 0 | AD103: =COUNTIF($D$71:$AA$71,$AD$99)*$AB$14 -> 0 | AE103: =COUNTIF($D$71:$AA$71,$AE$99)*$AB$14 -> 0 | AF103: =COUNTIF($D$71:$AA$71,$AF$99)*$AB$14 -> 0 | AG103: =COUNTIF($D$71:$AA$71,$AG$99)*$AB$14 -> 0 | AH103: =COUNTIF($D$71:$AA$71,$AH$99)*$AB$14 -> 0 | AI103: =COUNTIF($D$71:$AA$71,$AI$99)*$AB$14 -> 0 | AJ103: =COUNTIF($D$71:$AA$71,$AJ$99)*$AB$14 -> 0 | AK103: =COUNTIF($D$71:$AA$71,$AK$99)*$AB$14 -> 0 | AL103: =COUNTIF($D$71:$AA$71,$AL$99)*$AB$14 -> 0 | AM103: =COUNTIF($D$71:$AA$71,$AM$99)*$AB$14 -> 0 | AN103: =COUNTIF($D$71:$AA$71,$AN$99)*$AB$14 -> 0 | AO103: =COUNTIF($D$71:$AA$71,$AO$99)*$AB$14 -> 0 | AP103: =COUNTIF($D$71:$AA$71,$AP$99)*$AB$14 -> 0 | AQ103: =COUNTIF($D$71:$AA$71,$AQ$99)*$AB$14 -> 0 | AR103: =COUNTIF($D$71:$AA$71,$AR$99)*$AB$14 -> 0 | AS103: =COUNTIF($D$71:$AA$71,$AS$99)*$AB$14 -> 0 | AT103: 7
C104: 8 | D104: =COUNTIF($D$72:$AA$72,$D$99)*$AB$15 -> 0 | E104: =COUNTIF($D$72:$AA$72,$E$99)*$AB$15 -> 0 | F104: =COUNTIF($D$72:$AA$72,$F$99)*$AB$15 -> 0 | G104: =COUNTIF($D$72:$AA$72,$G$99)*$AB$15 -> 0 | H104: =COUNTIF($D$72:$AA$72,$H$99)*$AB$15 -> 0 | I104: =COUNTIF($D$72:$AA$72,$I$99)*$AB$15 -> 0 | J104: =COUNTIF($D$72:$AA$72,$J$99)*$AB$15 -> 0 | K104: =COUNTIF($D$72:$AA$72,$K$99)*$AB$15 -> 0 | L104: =COUNTIF($D$72:$AA$72,$L$99)*$AB$15 -> 0 | M104: =COUNTIF($D$72:$AA$72,$M$99)*$AB$15 -> 0 | N104: =COUNTIF($D$72:$AA$72,$N$99)*$AB$15 -> 0 | O104: =COUNTIF($D$72:$AA$72,$O$99)*$AB$15 -> 0 | P104: =COUNTIF($D$72:$AA$72,$P$99)*$AB$15 -> 0 | Q104: =COUNTIF($D$72:$AA$72,$Q$99)*$AB$15 -> 0 | R104: =COUNTIF($D$72:$AA$72,$R$99)*$AB$15 -> 0 | S104: =COUNTIF($D$72:$AA$72,$S$99)*$AB$15 -> 0 | T104: =COUNTIF($D$72:$AA$72,$T$99)*$AB$15 -> 0 | U104: =COUNTIF($D$72:$AA$72,$U$99)*$AB$15 -> 0 | V104: =COUNTIF($D$72:$AA$72,$V$99)*$AB$15 -> 0 | W104: =COUNTIF($D$72:$AA$72,$W$99)*$AB$15 -> 0 | X104: =COUNTIF($D$72:$AA$72,$X$99)*$AB$15 -> 0 | Y104: =COUNTIF($D$72:$AA$72,$Y$99)*$AB$15 -> 0 | Z104: =COUNTIF($D$72:$AA$72,$Z$99)*$AB$15 -> 0 | AA104: =COUNTIF($D$72:$AA$72,$AA$99)*$AB$15 -> 0 | AB104: =COUNTIF($D$72:$AA$72,$AB$99)*$AB$15 -> 0 | AC104: =COUNTIF($D$72:$AA$72,$AC$99)*$AB$15 -> 0 | AD104: =COUNTIF($D$72:$AA$72,$AD$99)*$AB$15 -> 0 | AE104: =COUNTIF($D$72:$AA$72,$AE$99)*$AB$15 -> 0 | AF104: =COUNTIF($D$72:$AA$72,$AF$99)*$AB$15 -> 0 | AG104: =COUNTIF($D$72:$AA$72,$AG$99)*$AB$15 -> 0 | AH104: =COUNTIF($D$72:$AA$72,$AH$99)*$AB$15 -> 0 | AI104: =COUNTIF($D$72:$AA$72,$AI$99)*$AB$15 -> 0 | AJ104: =COUNTIF($D$72:$AA$72,$AJ$99)*$AB$15 -> 0 | AK104: =COUNTIF($D$72:$AA$72,$AK$99)*$AB$15 -> 0 | AL104: =COUNTIF($D$72:$AA$72,$AL$99)*$AB$15 -> 0 | AM104: =COUNTIF($D$72:$AA$72,$AM$99)*$AB$15 -> 0 | AN104: =COUNTIF($D$72:$AA$72,$AN$99)*$AB$15 -> 0 | AO104: =COUNTIF($D$72:$AA$72,$AO$99)*$AB$15 -> 0 | AP104: =COUNTIF($D$72:$AA$72,$AP$99)*$AB$15 -> 0 | AQ104: =COUNTIF($D$72:$AA$72,$AQ$99)*$AB$15 -> 0 | AR104: =COUNTIF($D$72:$AA$72,$AR$99)*$AB$15 -> 0 | AS104: =COUNTIF($D$72:$AA$72,$AS$99)*$AB$15 -> 0 | AT104: 8
C105: 9 | D105: =COUNTIF($D$73:$AA$73,$D$99)*$AB$16 -> 0 | E105: =COUNTIF($D$73:$AA$73,$E$99)*$AB$16 -> 0 | F105: =COUNTIF($D$73:$AA$73,$F$99)*$AB$16 -> 0 | G105: =COUNTIF($D$73:$AA$73,$G$99)*$AB$16 -> 0 | H105: =COUNTIF($D$73:$AA$73,$H$99)*$AB$16 -> 0 | I105: =COUNTIF($D$73:$AA$73,$I$99)*$AB$16 -> 0 | J105: =COUNTIF($D$73:$AA$73,$J$99)*$AB$16 -> 0 | K105: =COUNTIF($D$73:$AA$73,$K$99)*$AB$16 -> 0 | L105: =COUNTIF($D$73:$AA$73,$L$99)*$AB$16 -> 0 | M105: =COUNTIF($D$73:$AA$73,$M$99)*$AB$16 -> 0 | N105: =COUNTIF($D$73:$AA$73,$N$99)*$AB$16 -> 0 | O105: =COUNTIF($D$73:$AA$73,$O$99)*$AB$16 -> 0 | P105: =COUNTIF($D$73:$AA$73,$P$99)*$AB$16 -> 0 | Q105: =COUNTIF($D$73:$AA$73,$Q$99)*$AB$16 -> 0 | R105: =COUNTIF($D$73:$AA$73,$R$99)*$AB$16 -> 0 | S105: =COUNTIF($D$73:$AA$73,$S$99)*$AB$16 -> 0 | T105: =COUNTIF($D$73:$AA$73,$T$99)*$AB$16 -> 0 | U105: =COUNTIF($D$73:$AA$73,$U$99)*$AB$16 -> 0 | V105: =COUNTIF($D$73:$AA$73,$V$99)*$AB$16 -> 0 | W105: =COUNTIF($D$73:$AA$73,$W$99)*$AB$16 -> 0 | X105: =COUNTIF($D$73:$AA$73,$X$99)*$AB$16 -> 0 | Y105: =COUNTIF($D$73:$AA$73,$Y$99)*$AB$16 -> 0 | Z105: =COUNTIF($D$73:$AA$73,$Z$99)*$AB$16 -> 0 | AA105: =COUNTIF($D$73:$AA$73,$AA$99)*$AB$16 -> 0 | AB105: =COUNTIF($D$73:$AA$73,$AB$99)*$AB$16 -> 0 | AC105: =COUNTIF($D$73:$AA$73,$AC$99)*$AB$16 -> 0 | AD105: =COUNTIF($D$73:$AA$73,$AD$99)*$AB$16 -> 0 | AE105: =COUNTIF($D$73:$AA$73,$AE$99)*$AB$16 -> 0 | AF105: =COUNTIF($D$73:$AA$73,$AF$99)*$AB$16 -> 0 | AG105: =COUNTIF($D$73:$AA$73,$AG$99)*$AB$16 -> 0 | AH105: =COUNTIF($D$73:$AA$73,$AH$99)*$AB$16 -> 0 | AI105: =COUNTIF($D$73:$AA$73,$AI$99)*$AB$16 -> 0 | AJ105: =COUNTIF($D$73:$AA$73,$AJ$99)*$AB$16 -> 0 | AK105: =COUNTIF($D$73:$AA$73,$AK$99)*$AB$16 -> 0 | AL105: =COUNTIF($D$73:$AA$73,$AL$99)*$AB$16 -> 0 | AM105: =COUNTIF($D$73:$AA$73,$AM$99)*$AB$16 -> 0 | AN105: =COUNTIF($D$73:$AA$73,$AN$99)*$AB$16 -> 0 | AO105: =COUNTIF($D$73:$AA$73,$AO$99)*$AB$16 -> 0 | AP105: =COUNTIF($D$73:$AA$73,$AP$99)*$AB$16 -> 0 | AQ105: =COUNTIF($D$73:$AA$73,$AQ$99)*$AB$16 -> 0 | AR105: =COUNTIF($D$73:$AA$73,$AR$99)*$AB$16 -> 0 | AS105: =COUNTIF($D$73:$AA$73,$AS$99)*$AB$16 -> 0 | AT105: 9
C106: 10 | D106: =COUNTIF($D$74:$AA$74,$D$99)*$AB$17 -> 0 | E106: =COUNTIF($D$74:$AA$74,$E$99)*$AB$17 -> 0 | F106: =COUNTIF($D$74:$AA$74,$F$99)*$AB$17 -> 0 | G106: =COUNTIF($D$74:$AA$74,$G$99)*$AB$17 -> 0 | H106: =COUNTIF($D$74:$AA$74,$H$99)*$AB$17 -> 0 | I106: =COUNTIF($D$74:$AA$74,$I$99)*$AB$17 -> 0 | J106: =COUNTIF($D$74:$AA$74,$J$99)*$AB$17 -> 0 | K106: =COUNTIF($D$74:$AA$74,$K$99)*$AB$17 -> 0 | L106: =COUNTIF($D$74:$AA$74,$L$99)*$AB$17 -> 0 | M106: =COUNTIF($D$74:$AA$74,$M$99)*$AB$17 -> 0 | N106: =COUNTIF($D$74:$AA$74,$N$99)*$AB$17 -> 0 | O106: =COUNTIF($D$74:$AA$74,$O$99)*$AB$17 -> 0 | P106: =COUNTIF($D$74:$AA$74,$P$99)*$AB$17 -> 0 | Q106: =COUNTIF($D$74:$AA$74,$Q$99)*$AB$17 -> 0 | R106: =COUNTIF($D$74:$AA$74,$R$99)*$AB$17 -> 0 | S106: =COUNTIF($D$74:$AA$74,$S$99)*$AB$17 -> 0 | T106: =COUNTIF($D$74:$AA$74,$T$99)*$AB$17 -> 0 | U106: =COUNTIF($D$74:$AA$74,$U$99)*$AB$17 -> 0 | V106: =COUNTIF($D$74:$AA$74,$V$99)*$AB$17 -> 0 | W106: =COUNTIF($D$74:$AA$74,$W$99)*$AB$17 -> 0 | X106: =COUNTIF($D$74:$AA$74,$X$99)*$AB$17 -> 0 | Y106: =COUNTIF($D$74:$AA$74,$Y$99)*$AB$17 -> 0 | Z106: =COUNTIF($D$74:$AA$74,$Z$99)*$AB$17 -> 0 | AA106: =COUNTIF($D$74:$AA$74,$AA$99)*$AB$17 -> 0 | AB106: =COUNTIF($D$74:$AA$74,$AB$99)*$AB$17 -> 0 | AC106: =COUNTIF($D$74:$AA$74,$AC$99)*$AB$17 -> 0 | AD106: =COUNTIF($D$74:$AA$74,$AD$99)*$AB$17 -> 0 | AE106: =COUNTIF($D$74:$AA$74,$AE$99)*$AB$17 -> 0 | AF106: =COUNTIF($D$74:$AA$74,$AF$99)*$AB$17 -> 0 | AG106: =COUNTIF($D$74:$AA$74,$AG$99)*$AB$17 -> 0 | AH106: =COUNTIF($D$74:$AA$74,$AH$99)*$AB$17 -> 0 | AI106: =COUNTIF($D$74:$AA$74,$AI$99)*$AB$17 -> 0 | AJ106: =COUNTIF($D$74:$AA$74,$AJ$99)*$AB$17 -> 0 | AK106: =COUNTIF($D$74:$AA$74,$AK$99)*$AB$17 -> 0 | AL106: =COUNTIF($D$74:$AA$74,$AL$99)*$AB$17 -> 0 | AM106: =COUNTIF($D$74:$AA$74,$AM$99)*$AB$17 -> 0 | AN106: =COUNTIF($D$74:$AA$74,$AN$99)*$AB$17 -> 0 | AO106: =COUNTIF($D$74:$AA$74,$AO$99)*$AB$17 -> 0 | AP106: =COUNTIF($D$74:$AA$74,$AP$99)*$AB$17 -> 0 | AQ106: =COUNTIF($D$74:$AA$74,$AQ$99)*$AB$17 -> 0 | AR106: =COUNTIF($D$74:$AA$74,$AR$99)*$AB$17 -> 0 | AS106: =COUNTIF($D$74:$AA$74,$AS$99)*$AB$17 -> 0 | AT106: 10
C107: 11 | D107: =COUNTIF($D$75:$AA$75,$D$99)*$AB$18 -> 0 | E107: =COUNTIF($D$75:$AA$75,$E$99)*$AB$18 -> 0 | F107: =COUNTIF($D$75:$AA$75,$F$99)*$AB$18 -> 0 | G107: =COUNTIF($D$75:$AA$75,$G$99)*$AB$18 -> 0 | H107: =COUNTIF($D$75:$AA$75,$H$99)*$AB$18 -> 0 | I107: =COUNTIF($D$75:$AA$75,$I$99)*$AB$18 -> 0 | J107: =COUNTIF($D$75:$AA$75,$J$99)*$AB$18 -> 0 | K107: =COUNTIF($D$75:$AA$75,$K$99)*$AB$18 -> 0 | L107: =COUNTIF($D$75:$AA$75,$L$99)*$AB$18 -> 0 | M107: =COUNTIF($D$75:$AA$75,$M$99)*$AB$18 -> 0 | N107: =COUNTIF($D$75:$AA$75,$N$99)*$AB$18 -> 0 | O107: =COUNTIF($D$75:$AA$75,$O$99)*$AB$18 -> 0 | P107: =COUNTIF($D$75:$AA$75,$P$99)*$AB$18 -> 0 | Q107: =COUNTIF($D$75:$AA$75,$Q$99)*$AB$18 -> 0 | R107: =COUNTIF($D$75:$AA$75,$R$99)*$AB$18 -> 0 | S107: =COUNTIF($D$75:$AA$75,$S$99)*$AB$18 -> 0 | T107: =COUNTIF($D$75:$AA$75,$T$99)*$AB$18 -> 0 | U107: =COUNTIF($D$75:$AA$75,$U$99)*$AB$18 -> 0 | V107: =COUNTIF($D$75:$AA$75,$V$99)*$AB$18 -> 0 | W107: =COUNTIF($D$75:$AA$75,$W$99)*$AB$18 -> 0 | X107: =COUNTIF($D$75:$AA$75,$X$99)*$AB$18 -> 0 | Y107: =COUNTIF($D$75:$AA$75,$Y$99)*$AB$18 -> 0 | Z107: =COUNTIF($D$75:$AA$75,$Z$99)*$AB$18 -> 0 | AA107: =COUNTIF($D$75:$AA$75,$AA$99)*$AB$18 -> 0 | AB107: =COUNTIF($D$75:$AA$75,$AB$99)*$AB$18 -> 0 | AC107: =COUNTIF($D$75:$AA$75,$AC$99)*$AB$18 -> 0 | AD107: =COUNTIF($D$75:$AA$75,$AD$99)*$AB$18 -> 0 | AE107: =COUNTIF($D$75:$AA$75,$AE$99)*$AB$18 -> 0 | AF107: =COUNTIF($D$75:$AA$75,$AF$99)*$AB$18 -> 0 | AG107: =COUNTIF($D$75:$AA$75,$AG$99)*$AB$18 -> 0 | AH107: =COUNTIF($D$75:$AA$75,$AH$99)*$AB$18 -> 0 | AI107: =COUNTIF($D$75:$AA$75,$AI$99)*$AB$18 -> 0 | AJ107: =COUNTIF($D$75:$AA$75,$AJ$99)*$AB$18 -> 0 | AK107: =COUNTIF($D$75:$AA$75,$AK$99)*$AB$18 -> 0 | AL107: =COUNTIF($D$75:$AA$75,$AL$99)*$AB$18 -> 0 | AM107: =COUNTIF($D$75:$AA$75,$AM$99)*$AB$18 -> 0 | AN107: =COUNTIF($D$75:$AA$75,$AN$99)*$AB$18 -> 0 | AO107: =COUNTIF($D$75:$AA$75,$AO$99)*$AB$18 -> 0 | AP107: =COUNTIF($D$75:$AA$75,$AP$99)*$AB$18 -> 0 | AQ107: =COUNTIF($D$75:$AA$75,$AQ$99)*$AB$18 -> 0 | AR107: =COUNTIF($D$75:$AA$75,$AR$99)*$AB$18 -> 0 | AS107: =COUNTIF($D$75:$AA$75,$AS$99)*$AB$18 -> 0 | AT107: 11
C108: 12 | D108: =COUNTIF($D$76:$AA$76,$D$99)*$AB$19 -> 0 | E108: =COUNTIF($D$76:$AA$76,$E$99)*$AB$19 -> 0 | F108: =COUNTIF($D$76:$AA$76,$F$99)*$AB$19 -> 0 | G108: =COUNTIF($D$76:$AA$76,$G$99)*$AB$19 -> 0 | H108: =COUNTIF($D$76:$AA$76,$H$99)*$AB$19 -> 0 | I108: =COUNTIF($D$76:$AA$76,$I$99)*$AB$19 -> 0 | J108: =COUNTIF($D$76:$AA$76,$J$99)*$AB$19 -> 0 | K108: =COUNTIF($D$76:$AA$76,$K$99)*$AB$19 -> 0 | L108: =COUNTIF($D$76:$AA$76,$L$99)*$AB$19 -> 0 | M108: =COUNTIF($D$76:$AA$76,$M$99)*$AB$19 -> 0 | N108: =COUNTIF($D$76:$AA$76,$N$99)*$AB$19 -> 0 | O108: =COUNTIF($D$76:$AA$76,$O$99)*$AB$19 -> 0 | P108: =COUNTIF($D$76:$AA$76,$P$99)*$AB$19 -> 0 | Q108: =COUNTIF($D$76:$AA$76,$Q$99)*$AB$19 -> 0 | R108: =COUNTIF($D$76:$AA$76,$R$99)*$AB$19 -> 0 | S108: =COUNTIF($D$76:$AA$76,$S$99)*$AB$19 -> 0 | T108: =COUNTIF($D$76:$AA$76,$T$99)*$AB$19 -> 0 | U108: =COUNTIF($D$76:$AA$76,$U$99)*$AB$19 -> 0 | V108: =COUNTIF($D$76:$AA$76,$V$99)*$AB$19 -> 0 | W108: =COUNTIF($D$76:$AA$76,$W$99)*$AB$19 -> 0 | X108: =COUNTIF($D$76:$AA$76,$X$99)*$AB$19 -> 0 | Y108: =COUNTIF($D$76:$AA$76,$Y$99)*$AB$19 -> 0 | Z108: =COUNTIF($D$76:$AA$76,$Z$99)*$AB$19 -> 0 | AA108: =COUNTIF($D$76:$AA$76,$AA$99)*$AB$19 -> 0 | AB108: =COUNTIF($D$76:$AA$76,$AB$99)*$AB$19 -> 0 | AC108: =COUNTIF($D$76:$AA$76,$AC$99)*$AB$19 -> 0 | AD108: =COUNTIF($D$76:$AA$76,$AD$99)*$AB$19 -> 0 | AE108: =COUNTIF($D$76:$AA$76,$AE$99)*$AB$19 -> 0 | AF108: =COUNTIF($D$76:$AA$76,$AF$99)*$AB$19 -> 0 | AG108: =COUNTIF($D$76:$AA$76,$AG$99)*$AB$19 -> 0 | AH108: =COUNTIF($D$76:$AA$76,$AH$99)*$AB$19 -> 0 | AI108: =COUNTIF($D$76:$AA$76,$AI$99)*$AB$19 -> 0 | AJ108: =COUNTIF($D$76:$AA$76,$AJ$99)*$AB$19 -> 0 | AK108: =COUNTIF($D$76:$AA$76,$AK$99)*$AB$19 -> 0 | AL108: =COUNTIF($D$76:$AA$76,$AL$99)*$AB$19 -> 0 | AM108: =COUNTIF($D$76:$AA$76,$AM$99)*$AB$19 -> 0 | AN108: =COUNTIF($D$76:$AA$76,$AN$99)*$AB$19 -> 0 | AO108: =COUNTIF($D$76:$AA$76,$AO$99)*$AB$19 -> 0 | AP108: =COUNTIF($D$76:$AA$76,$AP$99)*$AB$19 -> 0 | AQ108: =COUNTIF($D$76:$AA$76,$AQ$99)*$AB$19 -> 0 | AR108: =COUNTIF($D$76:$AA$76,$AR$99)*$AB$19 -> 0 | AS108: =COUNTIF($D$76:$AA$76,$AS$99)*$AB$19 -> 0 | AT108: 12
C109: 1 | D109: =COUNTIF($D$77:$AA$77,$D$99)*$AB$20 -> 0 | E109: =COUNTIF($D$77:$AA$77,$E$99)*$AB$20 -> 0 | F109: =COUNTIF($D$77:$AA$77,$F$99)*$AB$20 -> 0 | G109: =COUNTIF($D$77:$AA$77,$G$99)*$AB$20 -> 0 | H109: =COUNTIF($D$77:$AA$77,$H$99)*$AB$20 -> 0 | I109: =COUNTIF($D$77:$AA$77,$I$99)*$AB$20 -> 0 | J109: =COUNTIF($D$77:$AA$77,$J$99)*$AB$20 -> 0 | K109: =COUNTIF($D$77:$AA$77,$K$99)*$AB$20 -> 0 | L109: =COUNTIF($D$77:$AA$77,$L$99)*$AB$20 -> 0 | M109: =COUNTIF($D$77:$AA$77,$M$99)*$AB$20 -> 0 | N109: =COUNTIF($D$77:$AA$77,$N$99)*$AB$20 -> 0 | O109: =COUNTIF($D$77:$AA$77,$O$99)*$AB$20 -> 0 | P109: =COUNTIF($D$77:$AA$77,$P$99)*$AB$20 -> 0 | Q109: =COUNTIF($D$77:$AA$77,$Q$99)*$AB$20 -> 0 | R109: =COUNTIF($D$77:$AA$77,$R$99)*$AB$20 -> 0 | S109: =COUNTIF($D$77:$AA$77,$S$99)*$AB$20 -> 0 | T109: =COUNTIF($D$77:$AA$77,$T$99)*$AB$20 -> 0 | U109: =COUNTIF($D$77:$AA$77,$U$99)*$AB$20 -> 0 | V109: =COUNTIF($D$77:$AA$77,$V$99)*$AB$20 -> 0 | W109: =COUNTIF($D$77:$AA$77,$W$99)*$AB$20 -> 0 | X109: =COUNTIF($D$77:$AA$77,$X$99)*$AB$20 -> 0 | Y109: =COUNTIF($D$77:$AA$77,$Y$99)*$AB$20 -> 0 | Z109: =COUNTIF($D$77:$AA$77,$Z$99)*$AB$20 -> 0 | AA109: =COUNTIF($D$77:$AA$77,$AA$99)*$AB$20 -> 0 | AB109: =COUNTIF($D$77:$AA$77,$AB$99)*$AB$20 -> 0 | AC109: =COUNTIF($D$77:$AA$77,$AC$99)*$AB$20 -> 0 | AD109: =COUNTIF($D$77:$AA$77,$AD$99)*$AB$20 -> 0 | AE109: =COUNTIF($D$77:$AA$77,$AE$99)*$AB$20 -> 0 | AF109: =COUNTIF($D$77:$AA$77,$AF$99)*$AB$20 -> 0 | AG109: =COUNTIF($D$77:$AA$77,$AG$99)*$AB$20 -> 0 | AH109: =COUNTIF($D$77:$AA$77,$AH$99)*$AB$20 -> 0 | AI109: =COUNTIF($D$77:$AA$77,$AI$99)*$AB$20 -> 0 | AJ109: =COUNTIF($D$77:$AA$77,$AJ$99)*$AB$20 -> 0 | AK109: =COUNTIF($D$77:$AA$77,$AK$99)*$AB$20 -> 0 | AL109: =COUNTIF($D$77:$AA$77,$AL$99)*$AB$20 -> 0 | AM109: =COUNTIF($D$77:$AA$77,$AM$99)*$AB$20 -> 0 | AN109: =COUNTIF($D$77:$AA$77,$AN$99)*$AB$20 -> 0 | AO109: =COUNTIF($D$77:$AA$77,$AO$99)*$AB$20 -> 0 | AP109: =COUNTIF($D$77:$AA$77,$AP$99)*$AB$20 -> 0 | AQ109: =COUNTIF($D$77:$AA$77,$AQ$99)*$AB$20 -> 0 | AR109: =COUNTIF($D$77:$AA$77,$AR$99)*$AB$20 -> 0 | AS109: =COUNTIF($D$77:$AA$77,$AS$99)*$AB$20 -> 0 | AT109: 1
C110: 2 | D110: =COUNTIF($D$78:$AA$78,$D$99)*$AB$21 -> 0 | E110: =COUNTIF($D$78:$AA$78,$E$99)*$AB$21 -> 0 | F110: =COUNTIF($D$78:$AA$78,$F$99)*$AB$21 -> 0 | G110: =COUNTIF($D$78:$AA$78,$G$99)*$AB$21 -> 0 | H110: =COUNTIF($D$78:$AA$78,$H$99)*$AB$21 -> 0 | I110: =COUNTIF($D$78:$AA$78,$I$99)*$AB$21 -> 0 | J110: =COUNTIF($D$78:$AA$78,$J$99)*$AB$21 -> 0 | K110: =COUNTIF($D$78:$AA$78,$K$99)*$AB$21 -> 0 | L110: =COUNTIF($D$78:$AA$78,$L$99)*$AB$21 -> 0 | M110: =COUNTIF($D$78:$AA$78,$M$99)*$AB$21 -> 0 | N110: =COUNTIF($D$78:$AA$78,$N$99)*$AB$21 -> 0 | O110: =COUNTIF($D$78:$AA$78,$O$99)*$AB$21 -> 0 | P110: =COUNTIF($D$78:$AA$78,$P$99)*$AB$21 -> 0 | Q110: =COUNTIF($D$78:$AA$78,$Q$99)*$AB$21 -> 0 | R110: =COUNTIF($D$78:$AA$78,$R$99)*$AB$21 -> 0 | S110: =COUNTIF($D$78:$AA$78,$S$99)*$AB$21 -> 0 | T110: =COUNTIF($D$78:$AA$78,$T$99)*$AB$21 -> 0 | U110: =COUNTIF($D$78:$AA$78,$U$99)*$AB$21 -> 0 | V110: =COUNTIF($D$78:$AA$78,$V$99)*$AB$21 -> 0 | W110: =COUNTIF($D$78:$AA$78,$W$99)*$AB$21 -> 0 | X110: =COUNTIF($D$78:$AA$78,$X$99)*$AB$21 -> 0 | Y110: =COUNTIF($D$78:$AA$78,$Y$99)*$AB$21 -> 0 | Z110: =COUNTIF($D$78:$AA$78,$Z$99)*$AB$21 -> 0 | AA110: =COUNTIF($D$78:$AA$78,$AA$99)*$AB$21 -> 0 | AB110: =COUNTIF($D$78:$AA$78,$AB$99)*$AB$21 -> 0 | AC110: =COUNTIF($D$78:$AA$78,$AC$99)*$AB$21 -> 0 | AD110: =COUNTIF($D$78:$AA$78,$AD$99)*$AB$21 -> 0 | AE110: =COUNTIF($D$78:$AA$78,$AE$99)*$AB$21 -> 0 | AF110: =COUNTIF($D$78:$AA$78,$AF$99)*$AB$21 -> 0 | AG110: =COUNTIF($D$78:$AA$78,$AG$99)*$AB$21 -> 0 | AH110: =COUNTIF($D$78:$AA$78,$AH$99)*$AB$21 -> 0 | AI110: =COUNTIF($D$78:$AA$78,$AI$99)*$AB$21 -> 0 | AJ110: =COUNTIF($D$78:$AA$78,$AJ$99)*$AB$21 -> 0 | AK110: =COUNTIF($D$78:$AA$78,$AK$99)*$AB$21 -> 0 | AL110: =COUNTIF($D$78:$AA$78,$AL$99)*$AB$21 -> 0 | AM110: =COUNTIF($D$78:$AA$78,$AM$99)*$AB$21 -> 0 | AN110: =COUNTIF($D$78:$AA$78,$AN$99)*$AB$21 -> 0 | AO110: =COUNTIF($D$78:$AA$78,$AO$99)*$AB$21 -> 0 | AP110: =COUNTIF($D$78:$AA$78,$AP$99)*$AB$21 -> 0 | AQ110: =COUNTIF($D$78:$AA$78,$AQ$99)*$AB$21 -> 0 | AR110: =COUNTIF($D$78:$AA$78,$AR$99)*$AB$21 -> 0 | AS110: =COUNTIF($D$78:$AA$78,$AS$99)*$AB$21 -> 0 | AT110: 2
C111: 3 | D111: =COUNTIF($D$79:$AA$79,$D$99)*$AB$22 -> 0 | E111: =COUNTIF($D$79:$AA$79,$E$99)*$AB$22 -> 0 | F111: =COUNTIF($D$79:$AA$79,$F$99)*$AB$22 -> 0 | G111: =COUNTIF($D$79:$AA$79,$G$99)*$AB$22 -> 0 | H111: =COUNTIF($D$79:$AA$79,$H$99)*$AB$22 -> 0 | I111: =COUNTIF($D$79:$AA$79,$I$99)*$AB$22 -> 0 | J111: =COUNTIF($D$79:$AA$79,$J$99)*$AB$22 -> 0 | K111: =COUNTIF($D$79:$AA$79,$K$99)*$AB$22 -> 0 | L111: =COUNTIF($D$79:$AA$79,$L$99)*$AB$22 -> 0 | M111: =COUNTIF($D$79:$AA$79,$M$99)*$AB$22 -> 0 | N111: =COUNTIF($D$79:$AA$79,$N$99)*$AB$22 -> 0 | O111: =COUNTIF($D$79:$AA$79,$O$99)*$AB$22 -> 0 | P111: =COUNTIF($D$79:$AA$79,$P$99)*$AB$22 -> 0 | Q111: =COUNTIF($D$79:$AA$79,$Q$99)*$AB$22 -> 0 | R111: =COUNTIF($D$79:$AA$79,$R$99)*$AB$22 -> 0 | S111: =COUNTIF($D$79:$AA$79,$S$99)*$AB$22 -> 0 | T111: =COUNTIF($D$79:$AA$79,$T$99)*$AB$22 -> 0 | U111: =COUNTIF($D$79:$AA$79,$U$99)*$AB$22 -> 0 | V111: =COUNTIF($D$79:$AA$79,$V$99)*$AB$22 -> 0 | W111: =COUNTIF($D$79:$AA$79,$W$99)*$AB$22 -> 0 | X111: =COUNTIF($D$79:$AA$79,$X$99)*$AB$22 -> 0 | Y111: =COUNTIF($D$79:$AA$79,$Y$99)*$AB$22 -> 0 | Z111: =COUNTIF($D$79:$AA$79,$Z$99)*$AB$22 -> 0 | AA111: =COUNTIF($D$79:$AA$79,$AA$99)*$AB$22 -> 0 | AB111: =COUNTIF($D$79:$AA$79,$AB$99)*$AB$22 -> 0 | AC111: =COUNTIF($D$79:$AA$79,$AC$99)*$AB$22 -> 0 | AD111: =COUNTIF($D$79:$AA$79,$AD$99)*$AB$22 -> 0 | AE111: =COUNTIF($D$79:$AA$79,$AE$99)*$AB$22 -> 0 | AF111: =COUNTIF($D$79:$AA$79,$AF$99)*$AB$22 -> 0 | AG111: =COUNTIF($D$79:$AA$79,$AG$99)*$AB$22 -> 0 | AH111: =COUNTIF($D$79:$AA$79,$AH$99)*$AB$22 -> 0 | AI111: =COUNTIF($D$79:$AA$79,$AI$99)*$AB$22 -> 0 | AJ111: =COUNTIF($D$79:$AA$79,$AJ$99)*$AB$22 -> 0 | AK111: =COUNTIF($D$79:$AA$79,$AK$99)*$AB$22 -> 0 | AL111: =COUNTIF($D$79:$AA$79,$AL$99)*$AB$22 -> 0 | AM111: =COUNTIF($D$79:$AA$79,$AM$99)*$AB$22 -> 0 | AN111: =COUNTIF($D$79:$AA$79,$AN$99)*$AB$22 -> 0 | AO111: =COUNTIF($D$79:$AA$79,$AO$99)*$AB$22 -> 0 | AP111: =COUNTIF($D$79:$AA$79,$AP$99)*$AB$22 -> 0 | AQ111: =COUNTIF($D$79:$AA$79,$AQ$99)*$AB$22 -> 0 | AR111: =COUNTIF($D$79:$AA$79,$AR$99)*$AB$22 -> 0 | AS111: =COUNTIF($D$79:$AA$79,$AS$99)*$AB$22 -> 0 | AT111: 3
C112: 発生時間 | D112: =SUM($D$100:$D$111) -> 0 | E112: =SUM($E$100:$E$111) -> 0 | F112: =SUM($F$100:$F$111) -> 0 | G112: =SUM($G$100:$G$111) -> 0 | H112: =SUM($H$100:$H$111) -> 0 | I112: =SUM($I$100:$I$111) -> 0 | J112: =SUM($J$100:$J$111) -> 0 | K112: =SUM($K$100:$K$111) -> 0 | L112: =SUM($L$100:$L$111) -> 0 | M112: =SUM($M$100:$M$111) -> 0 | N112: =SUM($N$100:$N$111) -> 0 | O112: =SUM($O$100:$O$111) -> 0 | P112: =SUM($P$100:$P$111) -> 0 | Q112: =SUM($Q$100:$Q$111) -> 0 | R112: =SUM($R$100:$R$111) -> 0 | S112: =SUM($S$100:$S$111) -> 0 | T112: =SUM($T$100:$T$111) -> 0 | U112: =SUM($U$100:$U$111) -> 0 | V112: =SUM($V$100:$V$111) -> 0 | W112: =SUM($W$100:$W$111) -> 0 | X112: =SUM($X$100:$X$111) -> 0 | Y112: =SUM($Y$100:$Y$111) -> 0 | Z112: =SUM($Z$100:$Z$111) -> 0 | AA112: =SUM($AA$100:$AA$111) -> 0 | AB112: =SUM($AB$100:$AB$111) -> 0 | AC112: =SUM($AC$100:$AC$111) -> 0 | AD112: =SUM($AD$100:$AD$111) -> 0 | AE112: =SUM($AE$100:$AE$111) -> 0 | AF112: =SUM($AF$100:$AF$111) -> 0 | AG112: =SUM($AG$100:$AG$111) -> 0 | AH112: =SUM($AH$100:$AH$111) -> 0 | AI112: =SUM($AI$100:$AI$111) -> 0 | AJ112: =SUM($AJ$100:$AJ$111) -> 0 | AK112: =SUM($AK$100:$AK$111) -> 0 | AL112: =SUM($AL$100:$AL$111) -> 0 | AM112: =SUM($AM$100:$AM$111) -> 0 | AN112: =SUM($AN$100:$AN$111) -> 0 | AO112: =SUM($AO$100:$AO$111) -> 0 | AP112: =SUM($AP$100:$AP$111) -> 0 | AQ112: =SUM($AQ$100:$AQ$111) -> 0 | AR112: =SUM($AR$100:$AR$111) -> 0 | AS112: =SUM($AS$100:$AS$111) ->  | AT112: 発生時間
B113: εc | C113: 冷房時消費電力比 | D113: =$D$114/$D$118 ->  | E113: =$E$114/$E$118 ->  | F113: =$F$114/$F$118 ->  | G113: =$G$114/$G$118 ->  | H113: =$H$114/$H$118 ->  | I113: =$I$114/$I$118 ->  | J113: =$J$114/$J$118 ->  | K113: =$K$114/$K$118 ->  | L113: =$L$114/$L$118 ->  | M113: =$M$114/$M$118 ->  | N113: =$N$114/$N$118 ->  | O113: =$O$114/$O$118 ->  | P113: =$P$114/$P$118 ->  | Q113: =$Q$114/$Q$118 ->  | R113: =$R$114/$R$118 ->  | S113: =$S$114/$S$118 ->  | T113: =$T$114/$T$118 ->  | U113: =$U$114/$U$118 ->  | V113: =$V$114/$V$118 ->  | W113: =$W$114/$W$118 ->  | X113: =$X$114/$X$118 ->  | Y113: =$Y$114/$Y$118 ->  | Z113: =$Z$114/$Z$118 ->  | AA113: =$AA$114/$AA$118 ->  | AB113: =$AB$114/$AB$118 ->  | AC113: =$AC$114/$AC$118 ->  | AD113: =$AD$114/$AD$118 ->  | AE113: =$AE$114/$AE$118 ->  | AF113: =$AF$114/$AF$118 ->  | AG113: =$AG$114/$AG$118 ->  | AH113: =$AH$114/$AH$118 ->  | AI113: =$AI$114/$AI$118 ->  | AJ113: =$AJ$114/$AJ$118 ->  | AK113: =$AK$114/$AK$118 ->  | AL113: =$AL$114/$AL$118 ->  | AM113: =$AM$114/$AM$118 ->  | AN113: =$AN$114/$AN$118 ->  | AO113: =$AO$114/$AO$118 ->  | AP113: =$AP$114/$AP$118 ->  | AQ113: =$AQ$114/$AQ$118 ->  | AR113: =$AR$114/$AR$118 ->  | AS113: =$AS$114/$AS$118 ->  | AT113: 冷房時消費電力比
B114: αc | C114: 冷房空調負荷率 | D114: =IF((1/(35-$AF$27))*$D$99-$AF$27/(35-$AF$27)<0,0,IF((1/(35-$AF$27))*$D$99-$AF$27/(35-$AF$27)>1,1,(1/(35-$AF$27))*$D$99-$AF$27/(35-$AF$27))) -> 0 | E114: =IF((1/(35-$AF$27))*$E$99-$AF$27/(35-$AF$27)<0,0,IF((1/(35-$AF$27))*$E$99-$AF$27/(35-$AF$27)>1,1,(1/(35-$AF$27))*$E$99-$AF$27/(35-$AF$27))) -> 0 | F114: =IF((1/(35-$AF$27))*$F$99-$AF$27/(35-$AF$27)<0,0,IF((1/(35-$AF$27))*$F$99-$AF$27/(35-$AF$27)>1,1,(1/(35-$AF$27))*$F$99-$AF$27/(35-$AF$27))) -> 0 | G114: =IF((1/(35-$AF$27))*$G$99-$AF$27/(35-$AF$27)<0,0,IF((1/(35-$AF$27))*$G$99-$AF$27/(35-$AF$27)>1,1,(1/(35-$AF$27))*$G$99-$AF$27/(35-$AF$27))) -> 0 | H114: =IF((1/(35-$AF$27))*$H$99-$AF$27/(35-$AF$27)<0,0,IF((1/(35-$AF$27))*$H$99-$AF$27/(35-$AF$27)>1,1,(1/(35-$AF$27))*$H$99-$AF$27/(35-$AF$27))) -> 0 | I114: =IF((1/(35-$AF$27))*$I$99-$AF$27/(35-$AF$27)<0,0,IF((1/(35-$AF$27))*$I$99-$AF$27/(35-$AF$27)>1,1,(1/(35-$AF$27))*$I$99-$AF$27/(35-$AF$27))) -> 0 | J114: =IF((1/(35-$AF$27))*$J$99-$AF$27/(35-$AF$27)<0,0,IF((1/(35-$AF$27))*$J$99-$AF$27/(35-$AF$27)>1,1,(1/(35-$AF$27))*$J$99-$AF$27/(35-$AF$27))) -> 0 | K114: =IF((1/(35-$AF$27))*$K$99-$AF$27/(35-$AF$27)<0,0,IF((1/(35-$AF$27))*$K$99-$AF$27/(35-$AF$27)>1,1,(1/(35-$AF$27))*$K$99-$AF$27/(35-$AF$27))) -> 0.02857142857 | L114: =IF((1/(35-$AF$27))*$L$99-$AF$27/(35-$AF$27)<0,0,IF((1/(35-$AF$27))*$L$99-$AF$27/(35-$AF$27)>1,1,(1/(35-$AF$27))*$L$99-$AF$27/(35-$AF$27))) -> 0.05714285714 | M114: =IF((1/(35-$AF$27))*$M$99-$AF$27/(35-$AF$27)<0,0,IF((1/(35-$AF$27))*$M$99-$AF$27/(35-$AF$27)>1,1,(1/(35-$AF$27))*$M$99-$AF$27/(35-$AF$27))) -> 0.08571428571 | N114: =IF((1/(35-$AF$27))*$N$99-$AF$27/(35-$AF$27)<0,0,IF((1/(35-$AF$27))*$N$99-$AF$27/(35-$AF$27)>1,1,(1/(35-$AF$27))*$N$99-$AF$27/(35-$AF$27))) -> 0.1142857143 | O114: =IF((1/(35-$AF$27))*$O$99-$AF$27/(35-$AF$27)<0,0,IF((1/(35-$AF$27))*$O$99-$AF$27/(35-$AF$27)>1,1,(1/(35-$AF$27))*$O$99-$AF$27/(35-$AF$27))) -> 0.1428571429 | P114: =IF((1/(35-$AF$27))*$P$99-$AF$27/(35-$AF$27)<0,0,IF((1/(35-$AF$27))*$P$99-$AF$27/(35-$AF$27)>1,1,(1/(35-$AF$27))*$P$99-$AF$27/(35-$AF$27))) -> 0.1714285714 | Q114: =IF((1/(35-$AF$27))*$Q$99-$AF$27/(35-$AF$27)<0,0,IF((1/(35-$AF$27))*$Q$99-$AF$27/(35-$AF$27)>1,1,(1/(35-$AF$27))*$Q$99-$AF$27/(35-$AF$27))) -> 0.2 | R114: =IF((1/(35-$AF$27))*$R$99-$AF$27/(35-$AF$27)<0,0,IF((1/(35-$AF$27))*$R$99-$AF$27/(35-$AF$27)>1,1,(1/(35-$AF$27))*$R$99-$AF$27/(35-$AF$27))) -> 0.2285714286 | S114: =IF((1/(35-$AF$27))*$S$99-$AF$27/(35-$AF$27)<0,0,IF((1/(35-$AF$27))*$S$99-$AF$27/(35-$AF$27)>1,1,(1/(35-$AF$27))*$S$99-$AF$27/(35-$AF$27))) -> 0.2571428571 | T114: =IF((1/(35-$AF$27))*$T$99-$AF$27/(35-$AF$27)<0,0,IF((1/(35-$AF$27))*$T$99-$AF$27/(35-$AF$27)>1,1,(1/(35-$AF$27))*$T$99-$AF$27/(35-$AF$27))) -> 0.2857142857 | U114: =IF((1/(35-$AF$27))*$U$99-$AF$27/(35-$AF$27)<0,0,IF((1/(35-$AF$27))*$U$99-$AF$27/(35-$AF$27)>1,1,(1/(35-$AF$27))*$U$99-$AF$27/(35-$AF$27))) -> 0.3142857143 | V114: =IF((1/(35-$AF$27))*$V$99-$AF$27/(35-$AF$27)<0,0,IF((1/(35-$AF$27))*$V$99-$AF$27/(35-$AF$27)>1,1,(1/(35-$AF$27))*$V$99-$AF$27/(35-$AF$27))) -> 0.3428571429 | W114: =IF((1/(35-$AF$27))*$W$99-$AF$27/(35-$AF$27)<0,0,IF((1/(35-$AF$27))*$W$99-$AF$27/(35-$AF$27)>1,1,(1/(35-$AF$27))*$W$99-$AF$27/(35-$AF$27))) -> 0.3714285714 | X114: =IF((1/(35-$AF$27))*$X$99-$AF$27/(35-$AF$27)<0,0,IF((1/(35-$AF$27))*$X$99-$AF$27/(35-$AF$27)>1,1,(1/(35-$AF$27))*$X$99-$AF$27/(35-$AF$27))) -> 0.4 | Y114: =IF((1/(35-$AF$27))*$Y$99-$AF$27/(35-$AF$27)<0,0,IF((1/(35-$AF$27))*$Y$99-$AF$27/(35-$AF$27)>1,1,(1/(35-$AF$27))*$Y$99-$AF$27/(35-$AF$27))) -> 0.4285714286 | Z114: =IF((1/(35-$AF$27))*$Z$99-$AF$27/(35-$AF$27)<0,0,IF((1/(35-$AF$27))*$Z$99-$AF$27/(35-$AF$27)>1,1,(1/(35-$AF$27))*$Z$99-$AF$27/(35-$AF$27))) -> 0.4571428571 | AA114: =IF((1/(35-$AF$27))*$AA$99-$AF$27/(35-$AF$27)<0,0,IF((1/(35-$AF$27))*$AA$99-$AF$27/(35-$AF$27)>1,1,(1/(35-$AF$27))*$AA$99-$AF$27/(35-$AF$27))) -> 0.4857142857 | AB114: =IF((1/(35-$AF$27))*$AB$99-$AF$27/(35-$AF$27)<0,0,IF((1/(35-$AF$27))*$AB$99-$AF$27/(35-$AF$27)>1,1,(1/(35-$AF$27))*$AB$99-$AF$27/(35-$AF$27))) -> 0.5142857143 | AC114: =IF((1/(35-$AF$27))*$AC$99-$AF$27/(35-$AF$27)<0,0,IF((1/(35-$AF$27))*$AC$99-$AF$27/(35-$AF$27)>1,1,(1/(35-$AF$27))*$AC$99-$AF$27/(35-$AF$27))) -> 0.5428571429 | AD114: =IF((1/(35-$AF$27))*$AD$99-$AF$27/(35-$AF$27)<0,0,IF((1/(35-$AF$27))*$AD$99-$AF$27/(35-$AF$27)>1,1,(1/(35-$AF$27))*$AD$99-$AF$27/(35-$AF$27))) -> 0.5714285714 | AE114: =IF((1/(35-$AF$27))*$AE$99-$AF$27/(35-$AF$27)<0,0,IF((1/(35-$AF$27))*$AE$99-$AF$27/(35-$AF$27)>1,1,(1/(35-$AF$27))*$AE$99-$AF$27/(35-$AF$27))) -> 0.6 | AF114: =IF((1/(35-$AF$27))*$AF$99-$AF$27/(35-$AF$27)<0,0,IF((1/(35-$AF$27))*$AF$99-$AF$27/(35-$AF$27)>1,1,(1/(35-$AF$27))*$AF$99-$AF$27/(35-$AF$27))) -> 0.6285714286 | AG114: =IF((1/(35-$AF$27))*$AG$99-$AF$27/(35-$AF$27)<0,0,IF((1/(35-$AF$27))*$AG$99-$AF$27/(35-$AF$27)>1,1,(1/(35-$AF$27))*$AG$99-$AF$27/(35-$AF$27))) -> 0.6571428571 | AH114: =IF((1/(35-$AF$27))*$AH$99-$AF$27/(35-$AF$27)<0,0,IF((1/(35-$AF$27))*$AH$99-$AF$27/(35-$AF$27)>1,1,(1/(35-$AF$27))*$AH$99-$AF$27/(35-$AF$27))) -> 0.6857142857 | AI114: =IF((1/(35-$AF$27))*$AI$99-$AF$27/(35-$AF$27)<0,0,IF((1/(35-$AF$27))*$AI$99-$AF$27/(35-$AF$27)>1,1,(1/(35-$AF$27))*$AI$99-$AF$27/(35-$AF$27))) -> 0.7142857143 | AJ114: =IF((1/(35-$AF$27))*$AJ$99-$AF$27/(35-$AF$27)<0,0,IF((1/(35-$AF$27))*$AJ$99-$AF$27/(35-$AF$27)>1,1,(1/(35-$AF$27))*$AJ$99-$AF$27/(35-$AF$27))) -> 0.7428571429 | AK114: =IF((1/(35-$AF$27))*$AK$99-$AF$27/(35-$AF$27)<0,0,IF((1/(35-$AF$27))*$AK$99-$AF$27/(35-$AF$27)>1,1,(1/(35-$AF$27))*$AK$99-$AF$27/(35-$AF$27))) -> 0.7714285714 | AL114: =IF((1/(35-$AF$27))*$AL$99-$AF$27/(35-$AF$27)<0,0,IF((1/(35-$AF$27))*$AL$99-$AF$27/(35-$AF$27)>1,1,(1/(35-$AF$27))*$AL$99-$AF$27/(35-$AF$27))) -> 0.8 | AM114: =IF((1/(35-$AF$27))*$AM$99-$AF$27/(35-$AF$27)<0,0,IF((1/(35-$AF$27))*$AM$99-$AF$27/(35-$AF$27)>1,1,(1/(35-$AF$27))*$AM$99-$AF$27/(35-$AF$27))) -> 0.8285714286 | AN114: =IF((1/(35-$AF$27))*$AN$99-$AF$27/(35-$AF$27)<0,0,IF((1/(35-$AF$27))*$AN$99-$AF$27/(35-$AF$27)>1,1,(1/(35-$AF$27))*$AN$99-$AF$27/(35-$AF$27))) -> 0.8571428571 | AO114: =IF((1/(35-$AF$27))*$AO$99-$AF$27/(35-$AF$27)<0,0,IF((1/(35-$AF$27))*$AO$99-$AF$27/(35-$AF$27)>1,1,(1/(35-$AF$27))*$AO$99-$AF$27/(35-$AF$27))) -> 0.8857142857 | AP114: =IF((1/(35-$AF$27))*$AP$99-$AF$27/(35-$AF$27)<0,0,IF((1/(35-$AF$27))*$AP$99-$AF$27/(35-$AF$27)>1,1,(1/(35-$AF$27))*$AP$99-$AF$27/(35-$AF$27))) -> 0.9142857143 | AQ114: =IF((1/(35-$AF$27))*$AQ$99-$AF$27/(35-$AF$27)<0,0,IF((1/(35-$AF$27))*$AQ$99-$AF$27/(35-$AF$27)>1,1,(1/(35-$AF$27))*$AQ$99-$AF$27/(35-$AF$27))) -> 0.9428571429 | AR114: =IF((1/(35-$AF$27))*$AR$99-$AF$27/(35-$AF$27)<0,0,IF((1/(35-$AF$27))*$AR$99-$AF$27/(35-$AF$27)>1,1,(1/(35-$AF$27))*$AR$99-$AF$27/(35-$AF$27))) -> 0.9714285714 | AS114: =IF((1/(35-$AF$27))*$AS$99-$AF$27/(35-$AF$27)<0,0,IF((1/(35-$AF$27))*$AS$99-$AF$27/(35-$AF$27)>1,1,(1/(35-$AF$27))*$AS$99-$AF$27/(35-$AF$27))) -> 1 | AT114: 冷房空調負荷率
B115: Φc | C115: 冷房能力 | D115: =(#REF!-1.077*#REF!)/6*($D$99-35)+#REF! ->  | E115: =(#REF!-1.077*#REF!)/6*($E$99-35)+#REF! ->  | F115: =(#REF!-1.077*#REF!)/6*($F$99-35)+#REF! ->  | G115: =(#REF!-1.077*#REF!)/6*($G$99-35)+#REF! ->  | H115: =(#REF!-1.077*#REF!)/6*($H$99-35)+#REF! ->  | I115: =(#REF!-1.077*#REF!)/6*($I$99-35)+#REF! ->  | J115: =(#REF!-1.077*#REF!)/6*($J$99-35)+#REF! ->  | K115: =(#REF!-1.077*#REF!)/6*($K$99-35)+#REF! ->  | L115: =(#REF!-1.077*#REF!)/6*($L$99-35)+#REF! ->  | M115: =(#REF!-1.077*#REF!)/6*($M$99-35)+#REF! ->  | N115: =(#REF!-1.077*#REF!)/6*($N$99-35)+#REF! ->  | O115: =(#REF!-1.077*#REF!)/6*($O$99-35)+#REF! ->  | P115: =(#REF!-1.077*#REF!)/6*($P$99-35)+#REF! ->  | Q115: =(#REF!-1.077*#REF!)/6*($Q$99-35)+#REF! ->  | R115: =(#REF!-1.077*#REF!)/6*($R$99-35)+#REF! ->  | S115: =(#REF!-1.077*#REF!)/6*($S$99-35)+#REF! ->  | T115: =(#REF!-1.077*#REF!)/6*($T$99-35)+#REF! ->  | U115: =(#REF!-1.077*#REF!)/6*($U$99-35)+#REF! ->  | V115: =(#REF!-1.077*#REF!)/6*($V$99-35)+#REF! ->  | W115: =(#REF!-1.077*#REF!)/6*($W$99-35)+#REF! ->  | X115: =(#REF!-1.077*#REF!)/6*($X$99-35)+#REF! ->  | Y115: =(#REF!-1.077*#REF!)/6*($Y$99-35)+#REF! ->  | Z115: =(#REF!-1.077*#REF!)/6*($Z$99-35)+#REF! ->  | AA115: =(#REF!-1.077*#REF!)/6*($AA$99-35)+#REF! ->  | AB115: =(#REF!-1.077*#REF!)/6*($AB$99-35)+#REF! ->  | AC115: =(#REF!-1.077*#REF!)/6*($AC$99-35)+#REF! ->  | AD115: =(#REF!-1.077*#REF!)/6*($AD$99-35)+#REF! ->  | AE115: =(#REF!-1.077*#REF!)/6*($AE$99-35)+#REF! ->  | AF115: =(#REF!-1.077*#REF!)/6*($AF$99-35)+#REF! ->  | AG115: =(#REF!-1.077*#REF!)/6*($AG$99-35)+#REF! ->  | AH115: =(#REF!-1.077*#REF!)/6*($AH$99-35)+#REF! ->  | AI115: =(#REF!-1.077*#REF!)/6*($AI$99-35)+#REF! ->  | AJ115: =(#REF!-1.077*#REF!)/6*($AJ$99-35)+#REF! ->  | AK115: =(#REF!-1.077*#REF!)/6*($AK$99-35)+#REF! ->  | AL115: =(#REF!-1.077*#REF!)/6*($AL$99-35)+#REF! ->  | AM115: =(#REF!-1.077*#REF!)/6*($AM$99-35)+#REF! ->  | AN115: =(#REF!-1.077*#REF!)/6*($AN$99-35)+#REF! ->  | AO115: =(#REF!-1.077*#REF!)/6*($AO$99-35)+#REF! ->  | AP115: =(#REF!-1.077*#REF!)/6*($AP$99-35)+#REF! ->  | AQ115: =(#REF!-1.077*#REF!)/6*($AQ$99-35)+#REF! ->  | AR115: =(#REF!-1.077*#REF!)/6*($AR$99-35)+#REF! ->  | AS115: =(#REF!-1.077*#REF!)/6*($AS$99-35)+#REF! ->  | AT115: 冷房能力
B116: Pc | C116: 消費電力 | D116: =($AF$28-0.914*$AF$28)/6*($D$99-35)+$AF$28 -> 0 | E116: =($AF$28-0.914*$AF$28)/6*($E$99-35)+$AF$28 -> 0 | F116: =($AF$28-0.914*$AF$28)/6*($F$99-35)+$AF$28 -> 0 | G116: =($AF$28-0.914*$AF$28)/6*($G$99-35)+$AF$28 -> 0 | H116: =($AF$28-0.914*$AF$28)/6*($H$99-35)+$AF$28 -> 0 | I116: =($AF$28-0.914*$AF$28)/6*($I$99-35)+$AF$28 -> 0 | J116: =($AF$28-0.914*$AF$28)/6*($J$99-35)+$AF$28 -> 0 | K116: =($AF$28-0.914*$AF$28)/6*($K$99-35)+$AF$28 -> 0 | L116: =($AF$28-0.914*$AF$28)/6*($L$99-35)+$AF$28 -> 0 | M116: =($AF$28-0.914*$AF$28)/6*($M$99-35)+$AF$28 -> 0 | N116: =($AF$28-0.914*$AF$28)/6*($N$99-35)+$AF$28 -> 0 | O116: =($AF$28-0.914*$AF$28)/6*($O$99-35)+$AF$28 -> 0 | P116: =($AF$28-0.914*$AF$28)/6*($P$99-35)+$AF$28 -> 0 | Q116: =($AF$28-0.914*$AF$28)/6*($Q$99-35)+$AF$28 -> 0 | R116: =($AF$28-0.914*$AF$28)/6*($R$99-35)+$AF$28 -> 0 | S116: =($AF$28-0.914*$AF$28)/6*($S$99-35)+$AF$28 -> 0 | T116: =($AF$28-0.914*$AF$28)/6*($T$99-35)+$AF$28 -> 0 | U116: =($AF$28-0.914*$AF$28)/6*($U$99-35)+$AF$28 -> 0 | V116: =($AF$28-0.914*$AF$28)/6*($V$99-35)+$AF$28 -> 0 | W116: =($AF$28-0.914*$AF$28)/6*($W$99-35)+$AF$28 -> 0 | X116: =($AF$28-0.914*$AF$28)/6*($X$99-35)+$AF$28 -> 0 | Y116: =($AF$28-0.914*$AF$28)/6*($Y$99-35)+$AF$28 -> 0 | Z116: =($AF$28-0.914*$AF$28)/6*($Z$99-35)+$AF$28 -> 0 | AA116: =($AF$28-0.914*$AF$28)/6*($AA$99-35)+$AF$28 -> 0 | AB116: =($AF$28-0.914*$AF$28)/6*($AB$99-35)+$AF$28 -> 0 | AC116: =($AF$28-0.914*$AF$28)/6*($AC$99-35)+$AF$28 -> 0 | AD116: =($AF$28-0.914*$AF$28)/6*($AD$99-35)+$AF$28 -> 0 | AE116: =($AF$28-0.914*$AF$28)/6*($AE$99-35)+$AF$28 -> 0 | AF116: =($AF$28-0.914*$AF$28)/6*($AF$99-35)+$AF$28 -> 0 | AG116: =($AF$28-0.914*$AF$28)/6*($AG$99-35)+$AF$28 -> 0 | AH116: =($AF$28-0.914*$AF$28)/6*($AH$99-35)+$AF$28 -> 0 | AI116: =($AF$28-0.914*$AF$28)/6*($AI$99-35)+$AF$28 -> 0 | AJ116: =($AF$28-0.914*$AF$28)/6*($AJ$99-35)+$AF$28 -> 0 | AK116: =($AF$28-0.914*$AF$28)/6*($AK$99-35)+$AF$28 -> 0 | AL116: =($AF$28-0.914*$AF$28)/6*($AL$99-35)+$AF$28 -> 0 | AM116: =($AF$28-0.914*$AF$28)/6*($AM$99-35)+$AF$28 -> 0 | AN116: =($AF$28-0.914*$AF$28)/6*($AN$99-35)+$AF$28 -> 0 | AO116: =($AF$28-0.914*$AF$28)/6*($AO$99-35)+$AF$28 -> 0 | AP116: =($AF$28-0.914*$AF$28)/6*($AP$99-35)+$AF$28 -> 0 | AQ116: =($AF$28-0.914*$AF$28)/6*($AQ$99-35)+$AF$28 -> 0 | AR116: =($AF$28-0.914*$AF$28)/6*($AR$99-35)+$AF$28 -> 0 | AS116: =($AF$28-0.914*$AF$28)/6*($AS$99-35)+$AF$28 -> 0 | AT116: 消費電力
B117: σc | C117: COP | D117: =$D$115/$D$116 ->  | E117: =$E$115/$E$116 ->  | F117: =$F$115/$F$116 ->  | G117: =$G$115/$G$116 ->  | H117: =$H$115/$H$116 ->  | I117: =$I$115/$I$116 ->  | J117: =$J$115/$J$116 ->  | K117: =$K$115/$K$116 ->  | L117: =$L$115/$L$116 ->  | M117: =$M$115/$M$116 ->  | N117: =$N$115/$N$116 ->  | O117: =$O$115/$O$116 ->  | P117: =$P$115/$P$116 ->  | Q117: =$Q$115/$Q$116 ->  | R117: =$R$115/$R$116 ->  | S117: =$S$115/$S$116 ->  | T117: =$T$115/$T$116 ->  | U117: =$U$115/$U$116 ->  | V117: =$V$115/$V$116 ->  | W117: =$W$115/$W$116 ->  | X117: =$X$115/$X$116 ->  | Y117: =$Y$115/$Y$116 ->  | Z117: =$Z$115/$Z$116 ->  | AA117: =$AA$115/$AA$116 ->  | AB117: =$AB$115/$AB$116 ->  | AC117: =$AC$115/$AC$116 ->  | AD117: =$AD$115/$AD$116 ->  | AE117: =$AE$115/$AE$116 ->  | AF117: =$AF$115/$AF$116 ->  | AG117: =$AG$115/$AG$116 ->  | AH117: =$AH$115/$AH$116 ->  | AI117: =$AI$115/$AI$116 ->  | AJ117: =$AJ$115/$AJ$116 ->  | AK117: =$AK$115/$AK$116 ->  | AL117: =$AL$115/$AL$116 ->  | AM117: =$AM$115/$AM$116 ->  | AN117: =$AN$115/$AN$116 ->  | AO117: =$AO$115/$AO$116 ->  | AP117: =$AP$115/$AP$116 ->  | AQ117: =$AQ$115/$AQ$116 ->  | AR117: =$AR$115/$AR$116 ->  | AS117: =$AS$115/$AS$116 ->  | AT117: COP
B118: βc | C118: 冷房COP比 | D118: =$D$117/$AS$117 ->  | E118: =$E$117/$AS$117 ->  | F118: =$F$117/$AS$117 ->  | G118: =$G$117/$AS$117 ->  | H118: =$H$117/$AS$117 ->  | I118: =$I$117/$AS$117 ->  | J118: =$J$117/$AS$117 ->  | K118: =$K$117/$AS$117 ->  | L118: =$L$117/$AS$117 ->  | M118: =$M$117/$AS$117 ->  | N118: =$N$117/$AS$117 ->  | O118: =$O$117/$AS$117 ->  | P118: =$P$117/$AS$117 ->  | Q118: =$Q$117/$AS$117 ->  | R118: =$R$117/$AS$117 ->  | S118: =$S$117/$AS$117 ->  | T118: =$T$117/$AS$117 ->  | U118: =$U$117/$AS$117 ->  | V118: =$V$117/$AS$117 ->  | W118: =$W$117/$AS$117 ->  | X118: =$X$117/$AS$117 ->  | Y118: =$Y$117/$AS$117 ->  | Z118: =$Z$117/$AS$117 ->  | AA118: =$AA$117/$AS$117 ->  | AB118: =$AB$117/$AS$117 ->  | AC118: =$AC$117/$AS$117 ->  | AD118: =$AD$117/$AS$117 ->  | AE118: =$AE$117/$AS$117 ->  | AF118: =$AF$117/$AS$117 ->  | AG118: =$AG$117/$AS$117 ->  | AH118: =$AH$117/$AS$117 ->  | AI118: =$AI$117/$AS$117 ->  | AJ118: =$AJ$117/$AS$117 ->  | AK118: =$AK$117/$AS$117 ->  | AL118: =$AL$117/$AS$117 ->  | AM118: =$AM$117/$AS$117 ->  | AN118: =$AN$117/$AS$117 ->  | AO118: =$AO$117/$AS$117 ->  | AP118: =$AP$117/$AS$117 ->  | AQ118: =$AQ$117/$AS$117 ->  | AR118: =$AR$117/$AS$117 ->  | AS118: =$AS$117/$AS$117 ->  | AT118: 冷房COP比
B119: Σ合計 | C119: =SUM($D$119:$AS$119) ->  | D119: =$D$112*$D$113 ->  | E119: =$E$112*$E$113 ->  | F119: =$F$112*$F$113 ->  | G119: =$G$112*$G$113 ->  | H119: =$H$112*$H$113 ->  | I119: =$I$112*$I$113 ->  | J119: =$J$112*$J$113 ->  | K119: =$K$112*$K$113 ->  | L119: =$L$112*$L$113 ->  | M119: =$M$112*$M$113 ->  | N119: =$N$112*$N$113 ->  | O119: =$O$112*$O$113 ->  | P119: =$P$112*$P$113 ->  | Q119: =$Q$112*$Q$113 ->  | R119: =$R$112*$R$113 ->  | S119: =$S$112*$S$113 ->  | T119: =$T$112*$T$113 ->  | U119: =$U$112*$U$113 ->  | V119: =$V$112*$V$113 ->  | W119: =$W$112*$W$113 ->  | X119: =$X$112*$X$113 ->  | Y119: =$Y$112*$Y$113 ->  | Z119: =$Z$112*$Z$113 ->  | AA119: =$AA$112*$AA$113 ->  | AB119: =$AB$112*$AB$113 ->  | AC119: =$AC$112*$AC$113 ->  | AD119: =$AD$112*$AD$113 ->  | AE119: =$AE$112*$AE$113 ->  | AF119: =$AF$112*$AF$113 ->  | AG119: =$AG$112*$AG$113 ->  | AH119: =$AH$112*$AH$113 ->  | AI119: =$AI$112*$AI$113 ->  | AJ119: =$AJ$112*$AJ$113 ->  | AK119: =$AK$112*$AK$113 ->  | AL119: =$AL$112*$AL$113 ->  | AM119: =$AM$112*$AM$113 ->  | AN119: =$AN$112*$AN$113 ->  | AO119: =$AO$112*$AO$113 ->  | AP119: =$AP$112*$AP$113 ->  | AQ119: =$AQ$112*$AQ$113 ->  | AR119: =$AR$112*$AR$113 ->  | AS119: =$AS$112*$AS$113 ->  | AT119: =SUM($D$119:$AS$119) ->  | AU119: =SUM(AU100:AU111) -> 
C121: 温度(Tid)が発生する時間[hour]
D122: 温度(T)
C123: 月 | D123: -6 | E123: -5 | F123: -4 | G123: -3 | H123: -2 | I123: -1 | J123: 0 | K123: 1 | L123: 2 | M123: 3 | N123: 4 | O123: 5 | P123: 6 | Q123: 7 | R123: 8 | S123: 9 | T123: 10 | U123: 11 | V123: 12 | W123: 13 | X123: 14 | Y123: 15 | Z123: 16 | AA123: 17 | AB123: 18 | AC123: 19 | AD123: 20 | AE123: 21 | AF123: 22 | AG123: 23 | AH123: 24 | AI123: 25 | AJ123: 26 | AK123: 27 | AL123: 28 | AM123: 29 | AN123: 30 | AO123: 31 | AP123: 32 | AQ123: 33 | AR123: 34 | AS123: 35 | AT123: 月
C124: 4 | D124: =COUNTIF($D$84:$AA$84,$D$123)*$AB$11 -> 0 | E124: =COUNTIF($D$84:$AA$84,$E$123)*$AB$11 -> 0 | F124: =COUNTIF($D$84:$AA$84,$F$123)*$AB$11 -> 0 | G124: =COUNTIF($D$84:$AA$84,$G$123)*$AB$11 -> 0 | H124: =COUNTIF($D$84:$AA$84,$H$123)*$AB$11 -> 0 | I124: =COUNTIF($D$84:$AA$84,$I$123)*$AB$11 -> 0 | J124: =COUNTIF($D$84:$AA$84,$J$123)*$AB$11 -> 0 | K124: =COUNTIF($D$84:$AA$84,$K$123)*$AB$11 -> 0 | L124: =COUNTIF($D$84:$AA$84,$L$123)*$AB$11 -> 0 | M124: =COUNTIF($D$84:$AA$84,$M$123)*$AB$11 -> 0 | N124: =COUNTIF($D$84:$AA$84,$N$123)*$AB$11 -> 0 | O124: =COUNTIF($D$84:$AA$84,$O$123)*$AB$11 -> 0 | P124: =COUNTIF($D$84:$AA$84,$P$123)*$AB$11 -> 0 | Q124: =COUNTIF($D$84:$AA$84,$Q$123)*$AB$11 -> 0 | R124: =COUNTIF($D$84:$AA$84,$R$123)*$AB$11 -> 0 | S124: =COUNTIF($D$84:$AA$84,$S$123)*$AB$11 -> 0 | T124: =COUNTIF($D$84:$AA$84,$T$123)*$AB$11 -> 0 | U124: =COUNTIF($D$84:$AA$84,$U$123)*$AB$11 -> 0 | V124: =COUNTIF($D$84:$AA$84,$V$123)*$AB$11 -> 0 | W124: =COUNTIF($D$84:$AA$84,$W$123)*$AB$11 -> 0 | X124: =COUNTIF($D$84:$AA$84,$X$123)*$AB$11 -> 0 | Y124: =COUNTIF($D$84:$AA$84,$Y$123)*$AB$11 -> 0 | Z124: =COUNTIF($D$84:$AA$84,$Z$123)*$AB$11 -> 0 | AA124: =COUNTIF($D$84:$AA$84,$AA$123)*$AB$11 -> 0 | AB124: =COUNTIF($D$84:$AA$84,$AB$123)*$AB$11 -> 0 | AC124: =COUNTIF($D$84:$AA$84,$AC$123)*$AB$11 -> 0 | AD124: =COUNTIF($D$84:$AA$84,$AD$123)*$AB$11 -> 0 | AE124: =COUNTIF($D$84:$AA$84,$AE$123)*$AB$11 -> 0 | AF124: =COUNTIF($D$84:$AA$84,$AF$123)*$AB$11 -> 0 | AG124: =COUNTIF($D$84:$AA$84,$AG$123)*$AB$11 -> 0 | AH124: =COUNTIF($D$84:$AA$84,$AH$123)*$AB$11 -> 0 | AI124: =COUNTIF($D$84:$AA$84,$AI$123)*$AB$11 -> 0 | AJ124: =COUNTIF($D$84:$AA$84,$AJ$123)*$AB$11 -> 0 | AK124: =COUNTIF($D$84:$AA$84,$AK$123)*$AB$11 -> 0 | AL124: =COUNTIF($D$84:$AA$84,$AL$123)*$AB$11 -> 0 | AM124: =COUNTIF($D$84:$AA$84,$AM$123)*$AB$11 -> 0 | AN124: =COUNTIF($D$84:$AA$84,$AN$123)*$AB$11 -> 0 | AO124: =COUNTIF($D$84:$AA$84,$AO$123)*$AB$11 -> 0 | AP124: =COUNTIF($D$84:$AA$84,$AP$123)*$AB$11 -> 0 | AQ124: =COUNTIF($D$84:$AA$84,$AQ$123)*$AB$11 -> 0 | AR124: =COUNTIF($D$84:$AA$84,$AR$123)*$AB$11 -> 0 | AS124: =COUNTIF($D$84:$AA$84,$AS$123)*$AB$11 -> 0 | AT124: 4 | AU124: =SUMPRODUCT(D124:AS124,$D$137:$AS$137) -> 
C125: 5 | D125: =COUNTIF($D$85:$AA$85,$D$123)*$AB$12 -> 0 | E125: =COUNTIF($D$85:$AA$85,$E$123)*$AB$12 -> 0 | F125: =COUNTIF($D$85:$AA$85,$F$123)*$AB$12 -> 0 | G125: =COUNTIF($D$85:$AA$85,$G$123)*$AB$12 -> 0 | H125: =COUNTIF($D$85:$AA$85,$H$123)*$AB$12 -> 0 | I125: =COUNTIF($D$85:$AA$85,$I$123)*$AB$12 -> 0 | J125: =COUNTIF($D$85:$AA$85,$J$123)*$AB$12 -> 0 | K125: =COUNTIF($D$85:$AA$85,$K$123)*$AB$12 -> 0 | L125: =COUNTIF($D$85:$AA$85,$L$123)*$AB$12 -> 0 | M125: =COUNTIF($D$85:$AA$85,$M$123)*$AB$12 -> 0 | N125: =COUNTIF($D$85:$AA$85,$N$123)*$AB$12 -> 0 | O125: =COUNTIF($D$85:$AA$85,$O$123)*$AB$12 -> 0 | P125: =COUNTIF($D$85:$AA$85,$P$123)*$AB$12 -> 0 | Q125: =COUNTIF($D$85:$AA$85,$Q$123)*$AB$12 -> 0 | R125: =COUNTIF($D$85:$AA$85,$R$123)*$AB$12 -> 0 | S125: =COUNTIF($D$85:$AA$85,$S$123)*$AB$12 -> 0 | T125: =COUNTIF($D$85:$AA$85,$T$123)*$AB$12 -> 0 | U125: =COUNTIF($D$85:$AA$85,$U$123)*$AB$12 -> 0 | V125: =COUNTIF($D$85:$AA$85,$V$123)*$AB$12 -> 0 | W125: =COUNTIF($D$85:$AA$85,$W$123)*$AB$12 -> 0 | X125: =COUNTIF($D$85:$AA$85,$X$123)*$AB$12 -> 0 | Y125: =COUNTIF($D$85:$AA$85,$Y$123)*$AB$12 -> 0 | Z125: =COUNTIF($D$85:$AA$85,$Z$123)*$AB$12 -> 0 | AA125: =COUNTIF($D$85:$AA$85,$AA$123)*$AB$12 -> 0 | AB125: =COUNTIF($D$85:$AA$85,$AB$123)*$AB$12 -> 0 | AC125: =COUNTIF($D$85:$AA$85,$AC$123)*$AB$12 -> 0 | AD125: =COUNTIF($D$85:$AA$85,$AD$123)*$AB$12 -> 0 | AE125: =COUNTIF($D$85:$AA$85,$AE$123)*$AB$12 -> 0 | AF125: =COUNTIF($D$85:$AA$85,$AF$123)*$AB$12 -> 0 | AG125: =COUNTIF($D$85:$AA$85,$AG$123)*$AB$12 -> 0 | AH125: =COUNTIF($D$85:$AA$85,$AH$123)*$AB$12 -> 0 | AI125: =COUNTIF($D$85:$AA$85,$AI$123)*$AB$12 -> 0 | AJ125: =COUNTIF($D$85:$AA$85,$AJ$123)*$AB$12 -> 0 | AK125: =COUNTIF($D$85:$AA$85,$AK$123)*$AB$12 -> 0 | AL125: =COUNTIF($D$85:$AA$85,$AL$123)*$AB$12 -> 0 | AM125: =COUNTIF($D$85:$AA$85,$AM$123)*$AB$12 -> 0 | AN125: =COUNTIF($D$85:$AA$85,$AN$123)*$AB$12 -> 0 | AO125: =COUNTIF($D$85:$AA$85,$AO$123)*$AB$12 -> 0 | AP125: =COUNTIF($D$85:$AA$85,$AP$123)*$AB$12 -> 0 | AQ125: =COUNTIF($D$85:$AA$85,$AQ$123)*$AB$12 -> 0 | AR125: =COUNTIF($D$85:$AA$85,$AR$123)*$AB$12 -> 0 | AS125: =COUNTIF($D$85:$AA$85,$AS$123)*$AB$12 -> 0 | AT125: 5 | AU125: =SUMPRODUCT(D125:AS125,$D$137:$AS$137) -> 
C126: 6 | D126: =COUNTIF($D$86:$AA$86,$D$123)*$AB$13 -> 0 | E126: =COUNTIF($D$86:$AA$86,$E$123)*$AB$13 -> 0 | F126: =COUNTIF($D$86:$AA$86,$F$123)*$AB$13 -> 0 | G126: =COUNTIF($D$86:$AA$86,$G$123)*$AB$13 -> 0 | H126: =COUNTIF($D$86:$AA$86,$H$123)*$AB$13 -> 0 | I126: =COUNTIF($D$86:$AA$86,$I$123)*$AB$13 -> 0 | J126: =COUNTIF($D$86:$AA$86,$J$123)*$AB$13 -> 0 | K126: =COUNTIF($D$86:$AA$86,$K$123)*$AB$13 -> 0 | L126: =COUNTIF($D$86:$AA$86,$L$123)*$AB$13 -> 0 | M126: =COUNTIF($D$86:$AA$86,$M$123)*$AB$13 -> 0 | N126: =COUNTIF($D$86:$AA$86,$N$123)*$AB$13 -> 0 | O126: =COUNTIF($D$86:$AA$86,$O$123)*$AB$13 -> 0 | P126: =COUNTIF($D$86:$AA$86,$P$123)*$AB$13 -> 0 | Q126: =COUNTIF($D$86:$AA$86,$Q$123)*$AB$13 -> 0 | R126: =COUNTIF($D$86:$AA$86,$R$123)*$AB$13 -> 0 | S126: =COUNTIF($D$86:$AA$86,$S$123)*$AB$13 -> 0 | T126: =COUNTIF($D$86:$AA$86,$T$123)*$AB$13 -> 0 | U126: =COUNTIF($D$86:$AA$86,$U$123)*$AB$13 -> 0 | V126: =COUNTIF($D$86:$AA$86,$V$123)*$AB$13 -> 0 | W126: =COUNTIF($D$86:$AA$86,$W$123)*$AB$13 -> 0 | X126: =COUNTIF($D$86:$AA$86,$X$123)*$AB$13 -> 0 | Y126: =COUNTIF($D$86:$AA$86,$Y$123)*$AB$13 -> 0 | Z126: =COUNTIF($D$86:$AA$86,$Z$123)*$AB$13 -> 0 | AA126: =COUNTIF($D$86:$AA$86,$AA$123)*$AB$13 -> 0 | AB126: =COUNTIF($D$86:$AA$86,$AB$123)*$AB$13 -> 0 | AC126: =COUNTIF($D$86:$AA$86,$AC$123)*$AB$13 -> 0 | AD126: =COUNTIF($D$86:$AA$86,$AD$123)*$AB$13 -> 0 | AE126: =COUNTIF($D$86:$AA$86,$AE$123)*$AB$13 -> 0 | AF126: =COUNTIF($D$86:$AA$86,$AF$123)*$AB$13 -> 0 | AG126: =COUNTIF($D$86:$AA$86,$AG$123)*$AB$13 -> 0 | AH126: =COUNTIF($D$86:$AA$86,$AH$123)*$AB$13 -> 0 | AI126: =COUNTIF($D$86:$AA$86,$AI$123)*$AB$13 -> 0 | AJ126: =COUNTIF($D$86:$AA$86,$AJ$123)*$AB$13 -> 0 | AK126: =COUNTIF($D$86:$AA$86,$AK$123)*$AB$13 -> 0 | AL126: =COUNTIF($D$86:$AA$86,$AL$123)*$AB$13 -> 0 | AM126: =COUNTIF($D$86:$AA$86,$AM$123)*$AB$13 -> 0 | AN126: =COUNTIF($D$86:$AA$86,$AN$123)*$AB$13 -> 0 | AO126: =COUNTIF($D$86:$AA$86,$AO$123)*$AB$13 -> 0 | AP126: =COUNTIF($D$86:$AA$86,$AP$123)*$AB$13 -> 0 | AQ126: =COUNTIF($D$86:$AA$86,$AQ$123)*$AB$13 -> 0 | AR126: =COUNTIF($D$86:$AA$86,$AR$123)*$AB$13 -> 0 | AS126: =COUNTIF($D$86:$AA$86,$AS$123)*$AB$13 -> 0 | AT126: 6
C127: 7 | D127: =COUNTIF($D$87:$AA$87,$D$123)*$AB$14 -> 0 | E127: =COUNTIF($D$87:$AA$87,$E$123)*$AB$14 -> 0 | F127: =COUNTIF($D$87:$AA$87,$F$123)*$AB$14 -> 0 | G127: =COUNTIF($D$87:$AA$87,$G$123)*$AB$14 -> 0 | H127: =COUNTIF($D$87:$AA$87,$H$123)*$AB$14 -> 0 | I127: =COUNTIF($D$87:$AA$87,$I$123)*$AB$14 -> 0 | J127: =COUNTIF($D$87:$AA$87,$J$123)*$AB$14 -> 0 | K127: =COUNTIF($D$87:$AA$87,$K$123)*$AB$14 -> 0 | L127: =COUNTIF($D$87:$AA$87,$L$123)*$AB$14 -> 0 | M127: =COUNTIF($D$87:$AA$87,$M$123)*$AB$14 -> 0 | N127: =COUNTIF($D$87:$AA$87,$N$123)*$AB$14 -> 0 | O127: =COUNTIF($D$87:$AA$87,$O$123)*$AB$14 -> 0 | P127: =COUNTIF($D$87:$AA$87,$P$123)*$AB$14 -> 0 | Q127: =COUNTIF($D$87:$AA$87,$Q$123)*$AB$14 -> 0 | R127: =COUNTIF($D$87:$AA$87,$R$123)*$AB$14 -> 0 | S127: =COUNTIF($D$87:$AA$87,$S$123)*$AB$14 -> 0 | T127: =COUNTIF($D$87:$AA$87,$T$123)*$AB$14 -> 0 | U127: =COUNTIF($D$87:$AA$87,$U$123)*$AB$14 -> 0 | V127: =COUNTIF($D$87:$AA$87,$V$123)*$AB$14 -> 0 | W127: =COUNTIF($D$87:$AA$87,$W$123)*$AB$14 -> 0 | X127: =COUNTIF($D$87:$AA$87,$X$123)*$AB$14 -> 0 | Y127: =COUNTIF($D$87:$AA$87,$Y$123)*$AB$14 -> 0 | Z127: =COUNTIF($D$87:$AA$87,$Z$123)*$AB$14 -> 0 | AA127: =COUNTIF($D$87:$AA$87,$AA$123)*$AB$14 -> 0 | AB127: =COUNTIF($D$87:$AA$87,$AB$123)*$AB$14 -> 0 | AC127: =COUNTIF($D$87:$AA$87,$AC$123)*$AB$14 -> 0 | AD127: =COUNTIF($D$87:$AA$87,$AD$123)*$AB$14 -> 0 | AE127: =COUNTIF($D$87:$AA$87,$AE$123)*$AB$14 -> 0 | AF127: =COUNTIF($D$87:$AA$87,$AF$123)*$AB$14 -> 0 | AG127: =COUNTIF($D$87:$AA$87,$AG$123)*$AB$14 -> 0 | AH127: =COUNTIF($D$87:$AA$87,$AH$123)*$AB$14 -> 0 | AI127: =COUNTIF($D$87:$AA$87,$AI$123)*$AB$14 -> 0 | AJ127: =COUNTIF($D$87:$AA$87,$AJ$123)*$AB$14 -> 0 | AK127: =COUNTIF($D$87:$AA$87,$AK$123)*$AB$14 -> 0 | AL127: =COUNTIF($D$87:$AA$87,$AL$123)*$AB$14 -> 0 | AM127: =COUNTIF($D$87:$AA$87,$AM$123)*$AB$14 -> 0 | AN127: =COUNTIF($D$87:$AA$87,$AN$123)*$AB$14 -> 0 | AO127: =COUNTIF($D$87:$AA$87,$AO$123)*$AB$14 -> 0 | AP127: =COUNTIF($D$87:$AA$87,$AP$123)*$AB$14 -> 0 | AQ127: =COUNTIF($D$87:$AA$87,$AQ$123)*$AB$14 -> 0 | AR127: =COUNTIF($D$87:$AA$87,$AR$123)*$AB$14 -> 0 | AS127: =COUNTIF($D$87:$AA$87,$AS$123)*$AB$14 -> 0 | AT127: 7
C128: 8 | D128: =COUNTIF($D$88:$AA$88,$D$123)*$AB$15 -> 0 | E128: =COUNTIF($D$88:$AA$88,$E$123)*$AB$15 -> 0 | F128: =COUNTIF($D$88:$AA$88,$F$123)*$AB$15 -> 0 | G128: =COUNTIF($D$88:$AA$88,$G$123)*$AB$15 -> 0 | H128: =COUNTIF($D$88:$AA$88,$H$123)*$AB$15 -> 0 | I128: =COUNTIF($D$88:$AA$88,$I$123)*$AB$15 -> 0 | J128: =COUNTIF($D$88:$AA$88,$J$123)*$AB$15 -> 0 | K128: =COUNTIF($D$88:$AA$88,$K$123)*$AB$15 -> 0 | L128: =COUNTIF($D$88:$AA$88,$L$123)*$AB$15 -> 0 | M128: =COUNTIF($D$88:$AA$88,$M$123)*$AB$15 -> 0 | N128: =COUNTIF($D$88:$AA$88,$N$123)*$AB$15 -> 0 | O128: =COUNTIF($D$88:$AA$88,$O$123)*$AB$15 -> 0 | P128: =COUNTIF($D$88:$AA$88,$P$123)*$AB$15 -> 0 | Q128: =COUNTIF($D$88:$AA$88,$Q$123)*$AB$15 -> 0 | R128: =COUNTIF($D$88:$AA$88,$R$123)*$AB$15 -> 0 | S128: =COUNTIF($D$88:$AA$88,$S$123)*$AB$15 -> 0 | T128: =COUNTIF($D$88:$AA$88,$T$123)*$AB$15 -> 0 | U128: =COUNTIF($D$88:$AA$88,$U$123)*$AB$15 -> 0 | V128: =COUNTIF($D$88:$AA$88,$V$123)*$AB$15 -> 0 | W128: =COUNTIF($D$88:$AA$88,$W$123)*$AB$15 -> 0 | X128: =COUNTIF($D$88:$AA$88,$X$123)*$AB$15 -> 0 | Y128: =COUNTIF($D$88:$AA$88,$Y$123)*$AB$15 -> 0 | Z128: =COUNTIF($D$88:$AA$88,$Z$123)*$AB$15 -> 0 | AA128: =COUNTIF($D$88:$AA$88,$AA$123)*$AB$15 -> 0 | AB128: =COUNTIF($D$88:$AA$88,$AB$123)*$AB$15 -> 0 | AC128: =COUNTIF($D$88:$AA$88,$AC$123)*$AB$15 -> 0 | AD128: =COUNTIF($D$88:$AA$88,$AD$123)*$AB$15 -> 0 | AE128: =COUNTIF($D$88:$AA$88,$AE$123)*$AB$15 -> 0 | AF128: =COUNTIF($D$88:$AA$88,$AF$123)*$AB$15 -> 0 | AG128: =COUNTIF($D$88:$AA$88,$AG$123)*$AB$15 -> 0 | AH128: =COUNTIF($D$88:$AA$88,$AH$123)*$AB$15 -> 0 | AI128: =COUNTIF($D$88:$AA$88,$AI$123)*$AB$15 -> 0 | AJ128: =COUNTIF($D$88:$AA$88,$AJ$123)*$AB$15 -> 0 | AK128: =COUNTIF($D$88:$AA$88,$AK$123)*$AB$15 -> 0 | AL128: =COUNTIF($D$88:$AA$88,$AL$123)*$AB$15 -> 0 | AM128: =COUNTIF($D$88:$AA$88,$AM$123)*$AB$15 -> 0 | AN128: =COUNTIF($D$88:$AA$88,$AN$123)*$AB$15 -> 0 | AO128: =COUNTIF($D$88:$AA$88,$AO$123)*$AB$15 -> 0 | AP128: =COUNTIF($D$88:$AA$88,$AP$123)*$AB$15 -> 0 | AQ128: =COUNTIF($D$88:$AA$88,$AQ$123)*$AB$15 -> 0 | AR128: =COUNTIF($D$88:$AA$88,$AR$123)*$AB$15 -> 0 | AS128: =COUNTIF($D$88:$AA$88,$AS$123)*$AB$15 -> 0 | AT128: 8
C129: 9 | D129: =COUNTIF($D$89:$AA$89,$D$123)*$AB$16 -> 0 | E129: =COUNTIF($D$89:$AA$89,$E$123)*$AB$16 -> 0 | F129: =COUNTIF($D$89:$AA$89,$F$123)*$AB$16 -> 0 | G129: =COUNTIF($D$89:$AA$89,$G$123)*$AB$16 -> 0 | H129: =COUNTIF($D$89:$AA$89,$H$123)*$AB$16 -> 0 | I129: =COUNTIF($D$89:$AA$89,$I$123)*$AB$16 -> 0 | J129: =COUNTIF($D$89:$AA$89,$J$123)*$AB$16 -> 0 | K129: =COUNTIF($D$89:$AA$89,$K$123)*$AB$16 -> 0 | L129: =COUNTIF($D$89:$AA$89,$L$123)*$AB$16 -> 0 | M129: =COUNTIF($D$89:$AA$89,$M$123)*$AB$16 -> 0 | N129: =COUNTIF($D$89:$AA$89,$N$123)*$AB$16 -> 0 | O129: =COUNTIF($D$89:$AA$89,$O$123)*$AB$16 -> 0 | P129: =COUNTIF($D$89:$AA$89,$P$123)*$AB$16 -> 0 | Q129: =COUNTIF($D$89:$AA$89,$Q$123)*$AB$16 -> 0 | R129: =COUNTIF($D$89:$AA$89,$R$123)*$AB$16 -> 0 | S129: =COUNTIF($D$89:$AA$89,$S$123)*$AB$16 -> 0 | T129: =COUNTIF($D$89:$AA$89,$T$123)*$AB$16 -> 0 | U129: =COUNTIF($D$89:$AA$89,$U$123)*$AB$16 -> 0 | V129: =COUNTIF($D$89:$AA$89,$V$123)*$AB$16 -> 0 | W129: =COUNTIF($D$89:$AA$89,$W$123)*$AB$16 -> 0 | X129: =COUNTIF($D$89:$AA$89,$X$123)*$AB$16 -> 0 | Y129: =COUNTIF($D$89:$AA$89,$Y$123)*$AB$16 -> 0 | Z129: =COUNTIF($D$89:$AA$89,$Z$123)*$AB$16 -> 0 | AA129: =COUNTIF($D$89:$AA$89,$AA$123)*$AB$16 -> 0 | AB129: =COUNTIF($D$89:$AA$89,$AB$123)*$AB$16 -> 0 | AC129: =COUNTIF($D$89:$AA$89,$AC$123)*$AB$16 -> 0 | AD129: =COUNTIF($D$89:$AA$89,$AD$123)*$AB$16 -> 0 | AE129: =COUNTIF($D$89:$AA$89,$AE$123)*$AB$16 -> 0 | AF129: =COUNTIF($D$89:$AA$89,$AF$123)*$AB$16 -> 0 | AG129: =COUNTIF($D$89:$AA$89,$AG$123)*$AB$16 -> 0 | AH129: =COUNTIF($D$89:$AA$89,$AH$123)*$AB$16 -> 0 | AI129: =COUNTIF($D$89:$AA$89,$AI$123)*$AB$16 -> 0 | AJ129: =COUNTIF($D$89:$AA$89,$AJ$123)*$AB$16 -> 0 | AK129: =COUNTIF($D$89:$AA$89,$AK$123)*$AB$16 -> 0 | AL129: =COUNTIF($D$89:$AA$89,$AL$123)*$AB$16 -> 0 | AM129: =COUNTIF($D$89:$AA$89,$AM$123)*$AB$16 -> 0 | AN129: =COUNTIF($D$89:$AA$89,$AN$123)*$AB$16 -> 0 | AO129: =COUNTIF($D$89:$AA$89,$AO$123)*$AB$16 -> 0 | AP129: =COUNTIF($D$89:$AA$89,$AP$123)*$AB$16 -> 0 | AQ129: =COUNTIF($D$89:$AA$89,$AQ$123)*$AB$16 -> 0 | AR129: =COUNTIF($D$89:$AA$89,$AR$123)*$AB$16 -> 0 | AS129: =COUNTIF($D$89:$AA$89,$AS$123)*$AB$16 -> 0 | AT129: 9
C130: 10 | D130: =COUNTIF($D$90:$AA$90,$D$123)*$AB$17 -> 0 | E130: =COUNTIF($D$90:$AA$90,$E$123)*$AB$17 -> 0 | F130: =COUNTIF($D$90:$AA$90,$F$123)*$AB$17 -> 0 | G130: =COUNTIF($D$90:$AA$90,$G$123)*$AB$17 -> 0 | H130: =COUNTIF($D$90:$AA$90,$H$123)*$AB$17 -> 0 | I130: =COUNTIF($D$90:$AA$90,$I$123)*$AB$17 -> 0 | J130: =COUNTIF($D$90:$AA$90,$J$123)*$AB$17 -> 0 | K130: =COUNTIF($D$90:$AA$90,$K$123)*$AB$17 -> 0 | L130: =COUNTIF($D$90:$AA$90,$L$123)*$AB$17 -> 0 | M130: =COUNTIF($D$90:$AA$90,$M$123)*$AB$17 -> 0 | N130: =COUNTIF($D$90:$AA$90,$N$123)*$AB$17 -> 0 | O130: =COUNTIF($D$90:$AA$90,$O$123)*$AB$17 -> 0 | P130: =COUNTIF($D$90:$AA$90,$P$123)*$AB$17 -> 0 | Q130: =COUNTIF($D$90:$AA$90,$Q$123)*$AB$17 -> 0 | R130: =COUNTIF($D$90:$AA$90,$R$123)*$AB$17 -> 0 | S130: =COUNTIF($D$90:$AA$90,$S$123)*$AB$17 -> 0 | T130: =COUNTIF($D$90:$AA$90,$T$123)*$AB$17 -> 0 | U130: =COUNTIF($D$90:$AA$90,$U$123)*$AB$17 -> 0 | V130: =COUNTIF($D$90:$AA$90,$V$123)*$AB$17 -> 0 | W130: =COUNTIF($D$90:$AA$90,$W$123)*$AB$17 -> 0 | X130: =COUNTIF($D$90:$AA$90,$X$123)*$AB$17 -> 0 | Y130: =COUNTIF($D$90:$AA$90,$Y$123)*$AB$17 -> 0 | Z130: =COUNTIF($D$90:$AA$90,$Z$123)*$AB$17 -> 0 | AA130: =COUNTIF($D$90:$AA$90,$AA$123)*$AB$17 -> 0 | AB130: =COUNTIF($D$90:$AA$90,$AB$123)*$AB$17 -> 0 | AC130: =COUNTIF($D$90:$AA$90,$AC$123)*$AB$17 -> 0 | AD130: =COUNTIF($D$90:$AA$90,$AD$123)*$AB$17 -> 0 | AE130: =COUNTIF($D$90:$AA$90,$AE$123)*$AB$17 -> 0 | AF130: =COUNTIF($D$90:$AA$90,$AF$123)*$AB$17 -> 0 | AG130: =COUNTIF($D$90:$AA$90,$AG$123)*$AB$17 -> 0 | AH130: =COUNTIF($D$90:$AA$90,$AH$123)*$AB$17 -> 0 | AI130: =COUNTIF($D$90:$AA$90,$AI$123)*$AB$17 -> 0 | AJ130: =COUNTIF($D$90:$AA$90,$AJ$123)*$AB$17 -> 0 | AK130: =COUNTIF($D$90:$AA$90,$AK$123)*$AB$17 -> 0 | AL130: =COUNTIF($D$90:$AA$90,$AL$123)*$AB$17 -> 0 | AM130: =COUNTIF($D$90:$AA$90,$AM$123)*$AB$17 -> 0 | AN130: =COUNTIF($D$90:$AA$90,$AN$123)*$AB$17 -> 0 | AO130: =COUNTIF($D$90:$AA$90,$AO$123)*$AB$17 -> 0 | AP130: =COUNTIF($D$90:$AA$90,$AP$123)*$AB$17 -> 0 | AQ130: =COUNTIF($D$90:$AA$90,$AQ$123)*$AB$17 -> 0 | AR130: =COUNTIF($D$90:$AA$90,$AR$123)*$AB$17 -> 0 | AS130: =COUNTIF($D$90:$AA$90,$AS$123)*$AB$17 -> 0 | AT130: 10
C131: 11 | D131: =COUNTIF($D$91:$AA$91,$D$123)*$AB$18 -> 0 | E131: =COUNTIF($D$91:$AA$91,$E$123)*$AB$18 -> 0 | F131: =COUNTIF($D$91:$AA$91,$F$123)*$AB$18 -> 0 | G131: =COUNTIF($D$91:$AA$91,$G$123)*$AB$18 -> 0 | H131: =COUNTIF($D$91:$AA$91,$H$123)*$AB$18 -> 0 | I131: =COUNTIF($D$91:$AA$91,$I$123)*$AB$18 -> 0 | J131: =COUNTIF($D$91:$AA$91,$J$123)*$AB$18 -> 0 | K131: =COUNTIF($D$91:$AA$91,$K$123)*$AB$18 -> 0 | L131: =COUNTIF($D$91:$AA$91,$L$123)*$AB$18 -> 0 | M131: =COUNTIF($D$91:$AA$91,$M$123)*$AB$18 -> 0 | N131: =COUNTIF($D$91:$AA$91,$N$123)*$AB$18 -> 0 | O131: =COUNTIF($D$91:$AA$91,$O$123)*$AB$18 -> 0 | P131: =COUNTIF($D$91:$AA$91,$P$123)*$AB$18 -> 0 | Q131: =COUNTIF($D$91:$AA$91,$Q$123)*$AB$18 -> 0 | R131: =COUNTIF($D$91:$AA$91,$R$123)*$AB$18 -> 0 | S131: =COUNTIF($D$91:$AA$91,$S$123)*$AB$18 -> 0 | T131: =COUNTIF($D$91:$AA$91,$T$123)*$AB$18 -> 0 | U131: =COUNTIF($D$91:$AA$91,$U$123)*$AB$18 -> 0 | V131: =COUNTIF($D$91:$AA$91,$V$123)*$AB$18 -> 0 | W131: =COUNTIF($D$91:$AA$91,$W$123)*$AB$18 -> 0 | X131: =COUNTIF($D$91:$AA$91,$X$123)*$AB$18 -> 0 | Y131: =COUNTIF($D$91:$AA$91,$Y$123)*$AB$18 -> 0 | Z131: =COUNTIF($D$91:$AA$91,$Z$123)*$AB$18 -> 0 | AA131: =COUNTIF($D$91:$AA$91,$AA$123)*$AB$18 -> 0 | AB131: =COUNTIF($D$91:$AA$91,$AB$123)*$AB$18 -> 0 | AC131: =COUNTIF($D$91:$AA$91,$AC$123)*$AB$18 -> 0 | AD131: =COUNTIF($D$91:$AA$91,$AD$123)*$AB$18 -> 0 | AE131: =COUNTIF($D$91:$AA$91,$AE$123)*$AB$18 -> 0 | AF131: =COUNTIF($D$91:$AA$91,$AF$123)*$AB$18 -> 0 | AG131: =COUNTIF($D$91:$AA$91,$AG$123)*$AB$18 -> 0 | AH131: =COUNTIF($D$91:$AA$91,$AH$123)*$AB$18 -> 0 | AI131: =COUNTIF($D$91:$AA$91,$AI$123)*$AB$18 -> 0 | AJ131: =COUNTIF($D$91:$AA$91,$AJ$123)*$AB$18 -> 0 | AK131: =COUNTIF($D$91:$AA$91,$AK$123)*$AB$18 -> 0 | AL131: =COUNTIF($D$91:$AA$91,$AL$123)*$AB$18 -> 0 | AM131: =COUNTIF($D$91:$AA$91,$AM$123)*$AB$18 -> 0 | AN131: =COUNTIF($D$91:$AA$91,$AN$123)*$AB$18 -> 0 | AO131: =COUNTIF($D$91:$AA$91,$AO$123)*$AB$18 -> 0 | AP131: =COUNTIF($D$91:$AA$91,$AP$123)*$AB$18 -> 0 | AQ131: =COUNTIF($D$91:$AA$91,$AQ$123)*$AB$18 -> 0 | AR131: =COUNTIF($D$91:$AA$91,$AR$123)*$AB$18 -> 0 | AS131: =COUNTIF($D$91:$AA$91,$AS$123)*$AB$18 -> 0 | AT131: 11
C132: 12 | D132: =COUNTIF($D$92:$AA$92,$D$123)*$AB$19 -> 0 | E132: =COUNTIF($D$92:$AA$92,$E$123)*$AB$19 -> 0 | F132: =COUNTIF($D$92:$AA$92,$F$123)*$AB$19 -> 0 | G132: =COUNTIF($D$92:$AA$92,$G$123)*$AB$19 -> 0 | H132: =COUNTIF($D$92:$AA$92,$H$123)*$AB$19 -> 0 | I132: =COUNTIF($D$92:$AA$92,$I$123)*$AB$19 -> 0 | J132: =COUNTIF($D$92:$AA$92,$J$123)*$AB$19 -> 0 | K132: =COUNTIF($D$92:$AA$92,$K$123)*$AB$19 -> 0 | L132: =COUNTIF($D$92:$AA$92,$L$123)*$AB$19 -> 0 | M132: =COUNTIF($D$92:$AA$92,$M$123)*$AB$19 -> 0 | N132: =COUNTIF($D$92:$AA$92,$N$123)*$AB$19 -> 0 | O132: =COUNTIF($D$92:$AA$92,$O$123)*$AB$19 -> 0 | P132: =COUNTIF($D$92:$AA$92,$P$123)*$AB$19 -> 0 | Q132: =COUNTIF($D$92:$AA$92,$Q$123)*$AB$19 -> 0 | R132: =COUNTIF($D$92:$AA$92,$R$123)*$AB$19 -> 0 | S132: =COUNTIF($D$92:$AA$92,$S$123)*$AB$19 -> 0 | T132: =COUNTIF($D$92:$AA$92,$T$123)*$AB$19 -> 0 | U132: =COUNTIF($D$92:$AA$92,$U$123)*$AB$19 -> 0 | V132: =COUNTIF($D$92:$AA$92,$V$123)*$AB$19 -> 0 | W132: =COUNTIF($D$92:$AA$92,$W$123)*$AB$19 -> 0 | X132: =COUNTIF($D$92:$AA$92,$X$123)*$AB$19 -> 0 | Y132: =COUNTIF($D$92:$AA$92,$Y$123)*$AB$19 -> 0 | Z132: =COUNTIF($D$92:$AA$92,$Z$123)*$AB$19 -> 0 | AA132: =COUNTIF($D$92:$AA$92,$AA$123)*$AB$19 -> 0 | AB132: =COUNTIF($D$92:$AA$92,$AB$123)*$AB$19 -> 0 | AC132: =COUNTIF($D$92:$AA$92,$AC$123)*$AB$19 -> 0 | AD132: =COUNTIF($D$92:$AA$92,$AD$123)*$AB$19 -> 0 | AE132: =COUNTIF($D$92:$AA$92,$AE$123)*$AB$19 -> 0 | AF132: =COUNTIF($D$92:$AA$92,$AF$123)*$AB$19 -> 0 | AG132: =COUNTIF($D$92:$AA$92,$AG$123)*$AB$19 -> 0 | AH132: =COUNTIF($D$92:$AA$92,$AH$123)*$AB$19 -> 0 | AI132: =COUNTIF($D$92:$AA$92,$AI$123)*$AB$19 -> 0 | AJ132: =COUNTIF($D$92:$AA$92,$AJ$123)*$AB$19 -> 0 | AK132: =COUNTIF($D$92:$AA$92,$AK$123)*$AB$19 -> 0 | AL132: =COUNTIF($D$92:$AA$92,$AL$123)*$AB$19 -> 0 | AM132: =COUNTIF($D$92:$AA$92,$AM$123)*$AB$19 -> 0 | AN132: =COUNTIF($D$92:$AA$92,$AN$123)*$AB$19 -> 0 | AO132: =COUNTIF($D$92:$AA$92,$AO$123)*$AB$19 -> 0 | AP132: =COUNTIF($D$92:$AA$92,$AP$123)*$AB$19 -> 0 | AQ132: =COUNTIF($D$92:$AA$92,$AQ$123)*$AB$19 -> 0 | AR132: =COUNTIF($D$92:$AA$92,$AR$123)*$AB$19 -> 0 | AS132: =COUNTIF($D$92:$AA$92,$AS$123)*$AB$19 -> 0 | AT132: 12
C133: 1 | D133: =COUNTIF($D$93:$AA$93,$D$123)*$AB$20 -> 0 | E133: =COUNTIF($D$93:$AA$93,$E$123)*$AB$20 -> 0 | F133: =COUNTIF($D$93:$AA$93,$F$123)*$AB$20 -> 0 | G133: =COUNTIF($D$93:$AA$93,$G$123)*$AB$20 -> 0 | H133: =COUNTIF($D$93:$AA$93,$H$123)*$AB$20 -> 0 | I133: =COUNTIF($D$93:$AA$93,$I$123)*$AB$20 -> 0 | J133: =COUNTIF($D$93:$AA$93,$J$123)*$AB$20 -> 0 | K133: =COUNTIF($D$93:$AA$93,$K$123)*$AB$20 -> 0 | L133: =COUNTIF($D$93:$AA$93,$L$123)*$AB$20 -> 0 | M133: =COUNTIF($D$93:$AA$93,$M$123)*$AB$20 -> 0 | N133: =COUNTIF($D$93:$AA$93,$N$123)*$AB$20 -> 0 | O133: =COUNTIF($D$93:$AA$93,$O$123)*$AB$20 -> 0 | P133: =COUNTIF($D$93:$AA$93,$P$123)*$AB$20 -> 0 | Q133: =COUNTIF($D$93:$AA$93,$Q$123)*$AB$20 -> 0 | R133: =COUNTIF($D$93:$AA$93,$R$123)*$AB$20 -> 0 | S133: =COUNTIF($D$93:$AA$93,$S$123)*$AB$20 -> 0 | T133: =COUNTIF($D$93:$AA$93,$T$123)*$AB$20 -> 0 | U133: =COUNTIF($D$93:$AA$93,$U$123)*$AB$20 -> 0 | V133: =COUNTIF($D$93:$AA$93,$V$123)*$AB$20 -> 0 | W133: =COUNTIF($D$93:$AA$93,$W$123)*$AB$20 -> 0 | X133: =COUNTIF($D$93:$AA$93,$X$123)*$AB$20 -> 0 | Y133: =COUNTIF($D$93:$AA$93,$Y$123)*$AB$20 -> 0 | Z133: =COUNTIF($D$93:$AA$93,$Z$123)*$AB$20 -> 0 | AA133: =COUNTIF($D$93:$AA$93,$AA$123)*$AB$20 -> 0 | AB133: =COUNTIF($D$93:$AA$93,$AB$123)*$AB$20 -> 0 | AC133: =COUNTIF($D$93:$AA$93,$AC$123)*$AB$20 -> 0 | AD133: =COUNTIF($D$93:$AA$93,$AD$123)*$AB$20 -> 0 | AE133: =COUNTIF($D$93:$AA$93,$AE$123)*$AB$20 -> 0 | AF133: =COUNTIF($D$93:$AA$93,$AF$123)*$AB$20 -> 0 | AG133: =COUNTIF($D$93:$AA$93,$AG$123)*$AB$20 -> 0 | AH133: =COUNTIF($D$93:$AA$93,$AH$123)*$AB$20 -> 0 | AI133: =COUNTIF($D$93:$AA$93,$AI$123)*$AB$20 -> 0 | AJ133: =COUNTIF($D$93:$AA$93,$AJ$123)*$AB$20 -> 0 | AK133: =COUNTIF($D$93:$AA$93,$AK$123)*$AB$20 -> 0 | AL133: =COUNTIF($D$93:$AA$93,$AL$123)*$AB$20 -> 0 | AM133: =COUNTIF($D$93:$AA$93,$AM$123)*$AB$20 -> 0 | AN133: =COUNTIF($D$93:$AA$93,$AN$123)*$AB$20 -> 0 | AO133: =COUNTIF($D$93:$AA$93,$AO$123)*$AB$20 -> 0 | AP133: =COUNTIF($D$93:$AA$93,$AP$123)*$AB$20 -> 0 | AQ133: =COUNTIF($D$93:$AA$93,$AQ$123)*$AB$20 -> 0 | AR133: =COUNTIF($D$93:$AA$93,$AR$123)*$AB$20 -> 0 | AS133: =COUNTIF($D$93:$AA$93,$AS$123)*$AB$20 -> 0 | AT133: 1
C134: 2 | D134: =COUNTIF($D$94:$AA$94,$D$123)*$AB$21 -> 0 | E134: =COUNTIF($D$94:$AA$94,$E$123)*$AB$21 -> 0 | F134: =COUNTIF($D$94:$AA$94,$F$123)*$AB$21 -> 0 | G134: =COUNTIF($D$94:$AA$94,$G$123)*$AB$21 -> 0 | H134: =COUNTIF($D$94:$AA$94,$H$123)*$AB$21 -> 0 | I134: =COUNTIF($D$94:$AA$94,$I$123)*$AB$21 -> 0 | J134: =COUNTIF($D$94:$AA$94,$J$123)*$AB$21 -> 0 | K134: =COUNTIF($D$94:$AA$94,$K$123)*$AB$21 -> 0 | L134: =COUNTIF($D$94:$AA$94,$L$123)*$AB$21 -> 0 | M134: =COUNTIF($D$94:$AA$94,$M$123)*$AB$21 -> 0 | N134: =COUNTIF($D$94:$AA$94,$N$123)*$AB$21 -> 0 | O134: =COUNTIF($D$94:$AA$94,$O$123)*$AB$21 -> 0 | P134: =COUNTIF($D$94:$AA$94,$P$123)*$AB$21 -> 0 | Q134: =COUNTIF($D$94:$AA$94,$Q$123)*$AB$21 -> 0 | R134: =COUNTIF($D$94:$AA$94,$R$123)*$AB$21 -> 0 | S134: =COUNTIF($D$94:$AA$94,$S$123)*$AB$21 -> 0 | T134: =COUNTIF($D$94:$AA$94,$T$123)*$AB$21 -> 0 | U134: =COUNTIF($D$94:$AA$94,$U$123)*$AB$21 -> 0 | V134: =COUNTIF($D$94:$AA$94,$V$123)*$AB$21 -> 0 | W134: =COUNTIF($D$94:$AA$94,$W$123)*$AB$21 -> 0 | X134: =COUNTIF($D$94:$AA$94,$X$123)*$AB$21 -> 0 | Y134: =COUNTIF($D$94:$AA$94,$Y$123)*$AB$21 -> 0 | Z134: =COUNTIF($D$94:$AA$94,$Z$123)*$AB$21 -> 0 | AA134: =COUNTIF($D$94:$AA$94,$AA$123)*$AB$21 -> 0 | AB134: =COUNTIF($D$94:$AA$94,$AB$123)*$AB$21 -> 0 | AC134: =COUNTIF($D$94:$AA$94,$AC$123)*$AB$21 -> 0 | AD134: =COUNTIF($D$94:$AA$94,$AD$123)*$AB$21 -> 0 | AE134: =COUNTIF($D$94:$AA$94,$AE$123)*$AB$21 -> 0 | AF134: =COUNTIF($D$94:$AA$94,$AF$123)*$AB$21 -> 0 | AG134: =COUNTIF($D$94:$AA$94,$AG$123)*$AB$21 -> 0 | AH134: =COUNTIF($D$94:$AA$94,$AH$123)*$AB$21 -> 0 | AI134: =COUNTIF($D$94:$AA$94,$AI$123)*$AB$21 -> 0 | AJ134: =COUNTIF($D$94:$AA$94,$AJ$123)*$AB$21 -> 0 | AK134: =COUNTIF($D$94:$AA$94,$AK$123)*$AB$21 -> 0 | AL134: =COUNTIF($D$94:$AA$94,$AL$123)*$AB$21 -> 0 | AM134: =COUNTIF($D$94:$AA$94,$AM$123)*$AB$21 -> 0 | AN134: =COUNTIF($D$94:$AA$94,$AN$123)*$AB$21 -> 0 | AO134: =COUNTIF($D$94:$AA$94,$AO$123)*$AB$21 -> 0 | AP134: =COUNTIF($D$94:$AA$94,$AP$123)*$AB$21 -> 0 | AQ134: =COUNTIF($D$94:$AA$94,$AQ$123)*$AB$21 -> 0 | AR134: =COUNTIF($D$94:$AA$94,$AR$123)*$AB$21 -> 0 | AS134: =COUNTIF($D$94:$AA$94,$AS$123)*$AB$21 -> 0 | AT134: 2
C135: 3 | D135: =COUNTIF($D$95:$AA$95,$D$123)*$AB$22 -> 0 | E135: =COUNTIF($D$95:$AA$95,$E$123)*$AB$22 -> 0 | F135: =COUNTIF($D$95:$AA$95,$F$123)*$AB$22 -> 0 | G135: =COUNTIF($D$95:$AA$95,$G$123)*$AB$22 -> 0 | H135: =COUNTIF($D$95:$AA$95,$H$123)*$AB$22 -> 0 | I135: =COUNTIF($D$95:$AA$95,$I$123)*$AB$22 -> 0 | J135: =COUNTIF($D$95:$AA$95,$J$123)*$AB$22 -> 0 | K135: =COUNTIF($D$95:$AA$95,$K$123)*$AB$22 -> 0 | L135: =COUNTIF($D$95:$AA$95,$L$123)*$AB$22 -> 0 | M135: =COUNTIF($D$95:$AA$95,$M$123)*$AB$22 -> 0 | N135: =COUNTIF($D$95:$AA$95,$N$123)*$AB$22 -> 0 | O135: =COUNTIF($D$95:$AA$95,$O$123)*$AB$22 -> 0 | P135: =COUNTIF($D$95:$AA$95,$P$123)*$AB$22 -> 0 | Q135: =COUNTIF($D$95:$AA$95,$Q$123)*$AB$22 -> 0 | R135: =COUNTIF($D$95:$AA$95,$R$123)*$AB$22 -> 0 | S135: =COUNTIF($D$95:$AA$95,$S$123)*$AB$22 -> 0 | T135: =COUNTIF($D$95:$AA$95,$T$123)*$AB$22 -> 0 | U135: =COUNTIF($D$95:$AA$95,$U$123)*$AB$22 -> 0 | V135: =COUNTIF($D$95:$AA$95,$V$123)*$AB$22 -> 0 | W135: =COUNTIF($D$95:$AA$95,$W$123)*$AB$22 -> 0 | X135: =COUNTIF($D$95:$AA$95,$X$123)*$AB$22 -> 0 | Y135: =COUNTIF($D$95:$AA$95,$Y$123)*$AB$22 -> 0 | Z135: =COUNTIF($D$95:$AA$95,$Z$123)*$AB$22 -> 0 | AA135: =COUNTIF($D$95:$AA$95,$AA$123)*$AB$22 -> 0 | AB135: =COUNTIF($D$95:$AA$95,$AB$123)*$AB$22 -> 0 | AC135: =COUNTIF($D$95:$AA$95,$AC$123)*$AB$22 -> 0 | AD135: =COUNTIF($D$95:$AA$95,$AD$123)*$AB$22 -> 0 | AE135: =COUNTIF($D$95:$AA$95,$AE$123)*$AB$22 -> 0 | AF135: =COUNTIF($D$95:$AA$95,$AF$123)*$AB$22 -> 0 | AG135: =COUNTIF($D$95:$AA$95,$AG$123)*$AB$22 -> 0 | AH135: =COUNTIF($D$95:$AA$95,$AH$123)*$AB$22 -> 0 | AI135: =COUNTIF($D$95:$AA$95,$AI$123)*$AB$22 -> 0 | AJ135: =COUNTIF($D$95:$AA$95,$AJ$123)*$AB$22 -> 0 | AK135: =COUNTIF($D$95:$AA$95,$AK$123)*$AB$22 -> 0 | AL135: =COUNTIF($D$95:$AA$95,$AL$123)*$AB$22 -> 0 | AM135: =COUNTIF($D$95:$AA$95,$AM$123)*$AB$22 -> 0 | AN135: =COUNTIF($D$95:$AA$95,$AN$123)*$AB$22 -> 0 | AO135: =COUNTIF($D$95:$AA$95,$AO$123)*$AB$22 -> 0 | AP135: =COUNTIF($D$95:$AA$95,$AP$123)*$AB$22 -> 0 | AQ135: =COUNTIF($D$95:$AA$95,$AQ$123)*$AB$22 -> 0 | AR135: =COUNTIF($D$95:$AA$95,$AR$123)*$AB$22 -> 0 | AS135: =COUNTIF($D$95:$AA$95,$AS$123)*$AB$22 -> 0 | AT135: 3
C136: 発生時間 | D136: =SUM($D$124:$D$135) -> 0 | E136: =SUM($E$124:$E$135) -> 0 | F136: =SUM($F$124:$F$135) -> 0 | G136: =SUM($G$124:$G$135) -> 0 | H136: =SUM($H$124:$H$135) -> 0 | I136: =SUM($I$124:$I$135) -> 0 | J136: =SUM($J$124:$J$135) -> 0 | K136: =SUM($K$124:$K$135) -> 0 | L136: =SUM($L$124:$L$135) -> 0 | M136: =SUM($M$124:$M$135) -> 0 | N136: =SUM($N$124:$N$135) -> 0 | O136: =SUM($O$124:$O$135) -> 0 | P136: =SUM($P$124:$P$135) -> 0 | Q136: =SUM($Q$124:$Q$135) -> 0 | R136: =SUM($R$124:$R$135) -> 0 | S136: =SUM($S$124:$S$135) -> 0 | T136: =SUM($T$124:$T$135) -> 0 | U136: =SUM($U$124:$U$135) -> 0 | V136: =SUM($V$124:$V$135) -> 0 | W136: =SUM($W$124:$W$135) -> 0 | X136: =SUM($X$124:$X$135) -> 0 | Y136: =SUM($Y$124:$Y$135) -> 0 | Z136: =SUM($Z$124:$Z$135) -> 0 | AA136: =SUM($AA$124:$AA$135) -> 0 | AB136: =SUM($AB$124:$AB$135) -> 0 | AC136: =SUM($AC$124:$AC$135) -> 0 | AD136: =SUM($AD$124:$AD$135) -> 0 | AE136: =SUM($AE$124:$AE$135) -> 0 | AF136: =SUM($AF$124:$AF$135) -> 0 | AG136: =SUM($AG$124:$AG$135) -> 0 | AH136: =SUM($AH$124:$AH$135) -> 0 | AI136: =SUM($AI$124:$AI$135) -> 0 | AJ136: =SUM($AJ$124:$AJ$135) -> 0 | AK136: =SUM($AK$124:$AK$135) -> 0 | AL136: =SUM($AL$124:$AL$135) -> 0 | AM136: =SUM($AM$124:$AM$135) -> 0 | AN136: =SUM($AN$124:$AN$135) -> 0 | AO136: =SUM($AO$124:$AO$135) -> 0 | AP136: =SUM($AP$124:$AP$135) -> 0 | AQ136: =SUM($AQ$124:$AQ$135) -> 0 | AR136: =SUM($AR$124:$AR$135) -> 0 | AS136: =SUM($AS$124:$AS$135) -> 0 | AT136: 発生時間
B137: εw | C137: 暖房時消費電力比 | D137: =$D$138/$D$142 ->  | E137: =$E$138/$E$142 ->  | F137: =$F$138/$F$142 ->  | G137: =$G$138/$G$142 ->  | H137: =$H$138/$H$142 ->  | I137: =$I$138/$I$142 ->  | J137: =$J$138/$J$142 ->  | K137: =$K$138/$K$142 ->  | L137: =$L$138/$L$142 ->  | M137: =$M$138/$M$142 ->  | N137: =$N$138/$N$142 ->  | O137: =$O$138/$O$142 ->  | P137: =$P$138/$P$142 ->  | Q137: =$Q$138/$Q$142 ->  | R137: =$R$138/$R$142 ->  | S137: =$S$138/$S$142 ->  | T137: =$T$138/$T$142 ->  | U137: =$U$138/$U$142 ->  | V137: =$V$138/$V$142 ->  | W137: =$W$138/$W$142 ->  | X137: =$X$138/$X$142 ->  | Y137: =$Y$138/$Y$142 ->  | Z137: =$Z$138/$Z$142 ->  | AA137: =$AA$138/$AA$142 ->  | AB137: =$AB$138/$AB$142 ->  | AC137: =$AC$138/$AC$142 ->  | AD137: =$AD$138/$AD$142 ->  | AE137: =$AE$138/$AE$142 ->  | AF137: =$AF$138/$AF$142 ->  | AG137: =$AG$138/$AG$142 ->  | AH137: =$AH$138/$AH$142 ->  | AI137: =$AI$138/$AI$142 ->  | AJ137: =$AJ$138/$AJ$142 ->  | AK137: =$AK$138/$AK$142 ->  | AL137: =$AL$138/$AL$142 ->  | AM137: =$AM$138/$AM$142 ->  | AN137: =$AN$138/$AN$142 ->  | AO137: =$AO$138/$AO$142 ->  | AP137: =$AP$138/$AP$142 ->  | AQ137: =$AQ$138/$AQ$142 ->  | AR137: =$AR$138/$AR$142 ->  | AS137: =$AS$138/$AS$142 ->  | AT137: 暖房時消費電力比
B138: αw | C138: 暖房空調負荷率 | D138: =IF((1/(0-#REF!))*$D$123+1<0,0,IF((1/(0-#REF!))*$D$123+1>1,1,(1/(0-#REF!))*$D$123+1)) ->  | E138: =IF((1/(0-#REF!))*$E$123+1<0,0,IF((1/(0-#REF!))*$E$123+1>1,1,(1/(0-#REF!))*$E$123+1)) ->  | F138: =IF((1/(0-#REF!))*$F$123+1<0,0,IF((1/(0-#REF!))*$F$123+1>1,1,(1/(0-#REF!))*$F$123+1)) ->  | G138: =IF((1/(0-#REF!))*$G$123+1<0,0,IF((1/(0-#REF!))*$G$123+1>1,1,(1/(0-#REF!))*$G$123+1)) ->  | H138: =IF((1/(0-#REF!))*$H$123+1<0,0,IF((1/(0-#REF!))*$H$123+1>1,1,(1/(0-#REF!))*$H$123+1)) ->  | I138: =IF((1/(0-#REF!))*$I$123+1<0,0,IF((1/(0-#REF!))*$I$123+1>1,1,(1/(0-#REF!))*$I$123+1)) ->  | J138: =IF((1/(0-#REF!))*$J$123+1<0,0,IF((1/(0-#REF!))*$J$123+1>1,1,(1/(0-#REF!))*$J$123+1)) ->  | K138: =IF((1/(0-#REF!))*$K$123+1<0,0,IF((1/(0-#REF!))*$K$123+1>1,1,(1/(0-#REF!))*$K$123+1)) ->  | L138: =IF((1/(0-#REF!))*$L$123+1<0,0,IF((1/(0-#REF!))*$L$123+1>1,1,(1/(0-#REF!))*$L$123+1)) ->  | M138: =IF((1/(0-#REF!))*$M$123+1<0,0,IF((1/(0-#REF!))*$M$123+1>1,1,(1/(0-#REF!))*$M$123+1)) ->  | N138: =IF((1/(0-#REF!))*$N$123+1<0,0,IF((1/(0-#REF!))*$N$123+1>1,1,(1/(0-#REF!))*$N$123+1)) ->  | O138: =IF((1/(0-#REF!))*$O$123+1<0,0,IF((1/(0-#REF!))*$O$123+1>1,1,(1/(0-#REF!))*$O$123+1)) ->  | P138: =IF((1/(0-#REF!))*$P$123+1<0,0,IF((1/(0-#REF!))*$P$123+1>1,1,(1/(0-#REF!))*$P$123+1)) ->  | Q138: =IF((1/(0-#REF!))*$Q$123+1<0,0,IF((1/(0-#REF!))*$Q$123+1>1,1,(1/(0-#REF!))*$Q$123+1)) ->  | R138: =IF((1/(0-#REF!))*$R$123+1<0,0,IF((1/(0-#REF!))*$R$123+1>1,1,(1/(0-#REF!))*$R$123+1)) ->  | S138: =IF((1/(0-#REF!))*$S$123+1<0,0,IF((1/(0-#REF!))*$S$123+1>1,1,(1/(0-#REF!))*$S$123+1)) ->  | T138: =IF((1/(0-#REF!))*$T$123+1<0,0,IF((1/(0-#REF!))*$T$123+1>1,1,(1/(0-#REF!))*$T$123+1)) ->  | U138: =IF((1/(0-#REF!))*$U$123+1<0,0,IF((1/(0-#REF!))*$U$123+1>1,1,(1/(0-#REF!))*$U$123+1)) ->  | V138: =IF((1/(0-#REF!))*$V$123+1<0,0,IF((1/(0-#REF!))*$V$123+1>1,1,(1/(0-#REF!))*$V$123+1)) ->  | W138: =IF((1/(0-#REF!))*$W$123+1<0,0,IF((1/(0-#REF!))*$W$123+1>1,1,(1/(0-#REF!))*$W$123+1)) ->  | X138: =IF((1/(0-#REF!))*$X$123+1<0,0,IF((1/(0-#REF!))*$X$123+1>1,1,(1/(0-#REF!))*$X$123+1)) ->  | Y138: =IF((1/(0-#REF!))*$Y$123+1<0,0,IF((1/(0-#REF!))*$Y$123+1>1,1,(1/(0-#REF!))*$Y$123+1)) ->  | Z138: =IF((1/(0-#REF!))*$Z$123+1<0,0,IF((1/(0-#REF!))*$Z$123+1>1,1,(1/(0-#REF!))*$Z$123+1)) ->  | AA138: =IF((1/(0-#REF!))*$AA$123+1<0,0,IF((1/(0-#REF!))*$AA$123+1>1,1,(1/(0-#REF!))*$AA$123+1)) ->  | AB138: =IF((1/(0-#REF!))*$AB$123+1<0,0,IF((1/(0-#REF!))*$AB$123+1>1,1,(1/(0-#REF!))*$AB$123+1)) ->  | AC138: =IF((1/(0-#REF!))*$AC$123+1<0,0,IF((1/(0-#REF!))*$AC$123+1>1,1,(1/(0-#REF!))*$AC$123+1)) ->  | AD138: =IF((1/(0-#REF!))*$AD$123+1<0,0,IF((1/(0-#REF!))*$AD$123+1>1,1,(1/(0-#REF!))*$AD$123+1)) ->  | AE138: =IF((1/(0-#REF!))*$AE$123+1<0,0,IF((1/(0-#REF!))*$AE$123+1>1,1,(1/(0-#REF!))*$AE$123+1)) ->  | AF138: =IF((1/(0-#REF!))*$AF$123+1<0,0,IF((1/(0-#REF!))*$AF$123+1>1,1,(1/(0-#REF!))*$AF$123+1)) ->  | AG138: =IF((1/(0-#REF!))*$AG$123+1<0,0,IF((1/(0-#REF!))*$AG$123+1>1,1,(1/(0-#REF!))*$AG$123+1)) ->  | AH138: =IF((1/(0-#REF!))*$AH$123+1<0,0,IF((1/(0-#REF!))*$AH$123+1>1,1,(1/(0-#REF!))*$AH$123+1)) ->  | AI138: =IF((1/(0-#REF!))*$AI$123+1<0,0,IF((1/(0-#REF!))*$AI$123+1>1,1,(1/(0-#REF!))*$AI$123+1)) ->  | AJ138: =IF((1/(0-#REF!))*$AJ$123+1<0,0,IF((1/(0-#REF!))*$AJ$123+1>1,1,(1/(0-#REF!))*$AJ$123+1)) ->  | AK138: =IF((1/(0-#REF!))*$AK$123+1<0,0,IF((1/(0-#REF!))*$AK$123+1>1,1,(1/(0-#REF!))*$AK$123+1)) ->  | AL138: =IF((1/(0-#REF!))*$AL$123+1<0,0,IF((1/(0-#REF!))*$AL$123+1>1,1,(1/(0-#REF!))*$AL$123+1)) ->  | AM138: =IF((1/(0-#REF!))*$AM$123+1<0,0,IF((1/(0-#REF!))*$AM$123+1>1,1,(1/(0-#REF!))*$AM$123+1)) ->  | AN138: =IF((1/(0-#REF!))*$AN$123+1<0,0,IF((1/(0-#REF!))*$AN$123+1>1,1,(1/(0-#REF!))*$AN$123+1)) ->  | AO138: =IF((1/(0-#REF!))*$AO$123+1<0,0,IF((1/(0-#REF!))*$AO$123+1>1,1,(1/(0-#REF!))*$AO$123+1)) ->  | AP138: =IF((1/(0-#REF!))*$AP$123+1<0,0,IF((1/(0-#REF!))*$AP$123+1>1,1,(1/(0-#REF!))*$AP$123+1)) ->  | AQ138: =IF((1/(0-#REF!))*$AQ$123+1<0,0,IF((1/(0-#REF!))*$AQ$123+1>1,1,(1/(0-#REF!))*$AQ$123+1)) ->  | AR138: =IF((1/(0-#REF!))*$AR$123+1<0,0,IF((1/(0-#REF!))*$AR$123+1>1,1,(1/(0-#REF!))*$AR$123+1)) ->  | AS138: =IF((1/(0-#REF!))*$AS$123+1<0,0,IF((1/(0-#REF!))*$AS$123+1>1,1,(1/(0-#REF!))*$AS$123+1)) ->  | AT138: 暖房空調負荷率
B139: Φw | C139: 暖房能力 | D139: =(#REF!-0.64*#REF!)/14*($D$123-7)+#REF! ->  | E139: =(#REF!-0.64*#REF!)/14*($E$123-7)+#REF! ->  | F139: =(#REF!-0.64*#REF!)/14*($F$123-7)+#REF! ->  | G139: =(#REF!-0.64*#REF!)/14*($G$123-7)+#REF! ->  | H139: =(#REF!-0.64*#REF!)/14*($H$123-7)+#REF! ->  | I139: =(#REF!-0.64*#REF!)/14*($I$123-7)+#REF! ->  | J139: =(#REF!-0.64*#REF!)/14*($J$123-7)+#REF! ->  | K139: =(#REF!-0.64*#REF!)/14*($K$123-7)+#REF! ->  | L139: =(#REF!-0.64*#REF!)/14*($L$123-7)+#REF! ->  | M139: =(#REF!-0.64*#REF!)/14*($M$123-7)+#REF! ->  | N139: =(#REF!-0.64*#REF!)/14*($N$123-7)+#REF! ->  | O139: =(#REF!-0.64*#REF!)/14*($O$123-7)+#REF! ->  | P139: =(#REF!-0.64*#REF!)/14*($P$123-7)+#REF! ->  | Q139: =(#REF!-0.64*#REF!)/14*($Q$123-7)+#REF! ->  | R139: =(#REF!-0.64*#REF!)/14*($R$123-7)+#REF! ->  | S139: =(#REF!-0.64*#REF!)/14*($S$123-7)+#REF! ->  | T139: =(#REF!-0.64*#REF!)/14*($T$123-7)+#REF! ->  | U139: =(#REF!-0.64*#REF!)/14*($U$123-7)+#REF! ->  | V139: =(#REF!-0.64*#REF!)/14*($V$123-7)+#REF! ->  | W139: =(#REF!-0.64*#REF!)/14*($W$123-7)+#REF! ->  | X139: =(#REF!-0.64*#REF!)/14*($X$123-7)+#REF! ->  | Y139: =(#REF!-0.64*#REF!)/14*($Y$123-7)+#REF! ->  | Z139: =(#REF!-0.64*#REF!)/14*($Z$123-7)+#REF! ->  | AA139: =(#REF!-0.64*#REF!)/14*($AA$123-7)+#REF! ->  | AB139: =(#REF!-0.64*#REF!)/14*($AB$123-7)+#REF! ->  | AC139: =(#REF!-0.64*#REF!)/14*($AC$123-7)+#REF! ->  | AD139: =(#REF!-0.64*#REF!)/14*($AD$123-7)+#REF! ->  | AE139: =(#REF!-0.64*#REF!)/14*($AE$123-7)+#REF! ->  | AF139: =(#REF!-0.64*#REF!)/14*($AF$123-7)+#REF! ->  | AG139: =(#REF!-0.64*#REF!)/14*($AG$123-7)+#REF! ->  | AH139: =(#REF!-0.64*#REF!)/14*($AH$123-7)+#REF! ->  | AI139: =(#REF!-0.64*#REF!)/14*($AI$123-7)+#REF! ->  | AJ139: =(#REF!-0.64*#REF!)/14*($AJ$123-7)+#REF! ->  | AK139: =(#REF!-0.64*#REF!)/14*($AK$123-7)+#REF! ->  | AL139: =(#REF!-0.64*#REF!)/14*($AL$123-7)+#REF! ->  | AM139: =(#REF!-0.64*#REF!)/14*($AM$123-7)+#REF! ->  | AN139: =(#REF!-0.64*#REF!)/14*($AN$123-7)+#REF! ->  | AO139: =(#REF!-0.64*#REF!)/14*($AO$123-7)+#REF! ->  | AP139: =(#REF!-0.64*#REF!)/14*($AP$123-7)+#REF! ->  | AQ139: =(#REF!-0.64*#REF!)/14*($AQ$123-7)+#REF! ->  | AR139: =(#REF!-0.64*#REF!)/14*($AR$123-7)+#REF! ->  | AS139: =(#REF!-0.64*#REF!)/14*($AS$123-7)+#REF! ->  | AT139: 暖房能力
B140: Pw | C140: 消費電力 | D140: =(#REF!-0.82*#REF!)/14*($D$123-7)+#REF! ->  | E140: =(#REF!-0.82*#REF!)/14*($E$123-7)+#REF! ->  | F140: =(#REF!-0.82*#REF!)/14*($F$123-7)+#REF! ->  | G140: =(#REF!-0.82*#REF!)/14*($G$123-7)+#REF! ->  | H140: =(#REF!-0.82*#REF!)/14*($H$123-7)+#REF! ->  | I140: =(#REF!-0.82*#REF!)/14*($I$123-7)+#REF! ->  | J140: =(#REF!-0.82*#REF!)/14*($J$123-7)+#REF! ->  | K140: =(#REF!-0.82*#REF!)/14*($K$123-7)+#REF! ->  | L140: =(#REF!-0.82*#REF!)/14*($L$123-7)+#REF! ->  | M140: =(#REF!-0.82*#REF!)/14*($M$123-7)+#REF! ->  | N140: =(#REF!-0.82*#REF!)/14*($N$123-7)+#REF! ->  | O140: =(#REF!-0.82*#REF!)/14*($O$123-7)+#REF! ->  | P140: =(#REF!-0.82*#REF!)/14*($P$123-7)+#REF! ->  | Q140: =(#REF!-0.82*#REF!)/14*($Q$123-7)+#REF! ->  | R140: =(#REF!-0.82*#REF!)/14*($R$123-7)+#REF! ->  | S140: =(#REF!-0.82*#REF!)/14*($S$123-7)+#REF! ->  | T140: =(#REF!-0.82*#REF!)/14*($T$123-7)+#REF! ->  | U140: =(#REF!-0.82*#REF!)/14*($U$123-7)+#REF! ->  | V140: =(#REF!-0.82*#REF!)/14*($V$123-7)+#REF! ->  | W140: =(#REF!-0.82*#REF!)/14*($W$123-7)+#REF! ->  | X140: =(#REF!-0.82*#REF!)/14*($X$123-7)+#REF! ->  | Y140: =(#REF!-0.82*#REF!)/14*($Y$123-7)+#REF! ->  | Z140: =(#REF!-0.82*#REF!)/14*($Z$123-7)+#REF! ->  | AA140: =(#REF!-0.82*#REF!)/14*($AA$123-7)+#REF! ->  | AB140: =(#REF!-0.82*#REF!)/14*($AB$123-7)+#REF! ->  | AC140: =(#REF!-0.82*#REF!)/14*($AC$123-7)+#REF! ->  | AD140: =(#REF!-0.82*#REF!)/14*($AD$123-7)+#REF! ->  | AE140: =(#REF!-0.82*#REF!)/14*($AE$123-7)+#REF! ->  | AF140: =(#REF!-0.82*#REF!)/14*($AF$123-7)+#REF! ->  | AG140: =(#REF!-0.82*#REF!)/14*($AG$123-7)+#REF! ->  | AH140: =(#REF!-0.82*#REF!)/14*($AH$123-7)+#REF! ->  | AI140: =(#REF!-0.82*#REF!)/14*($AI$123-7)+#REF! ->  | AJ140: =(#REF!-0.82*#REF!)/14*($AJ$123-7)+#REF! ->  | AK140: =(#REF!-0.82*#REF!)/14*($AK$123-7)+#REF! ->  | AL140: =(#REF!-0.82*#REF!)/14*($AL$123-7)+#REF! ->  | AM140: =(#REF!-0.82*#REF!)/14*($AM$123-7)+#REF! ->  | AN140: =(#REF!-0.82*#REF!)/14*($AN$123-7)+#REF! ->  | AO140: =(#REF!-0.82*#REF!)/14*($AO$123-7)+#REF! ->  | AP140: =(#REF!-0.82*#REF!)/14*($AP$123-7)+#REF! ->  | AQ140: =(#REF!-0.82*#REF!)/14*($AQ$123-7)+#REF! ->  | AR140: =(#REF!-0.82*#REF!)/14*($AR$123-7)+#REF! ->  | AS140: =(#REF!-0.82*#REF!)/14*($AS$123-7)+#REF! ->  | AT140: 消費電力
B141: σw | C141: COP | D141: =$D$139/$D$140 ->  | E141: =$E$139/$E$140 ->  | F141: =$F$139/$F$140 ->  | G141: =$G$139/$G$140 ->  | H141: =$H$139/$H$140 ->  | I141: =$I$139/$I$140 ->  | J141: =$J$139/$J$140 ->  | K141: =$K$139/$K$140 ->  | L141: =$L$139/$L$140 ->  | M141: =$M$139/$M$140 ->  | N141: =$N$139/$N$140 ->  | O141: =$O$139/$O$140 ->  | P141: =$P$139/$P$140 ->  | Q141: =$Q$139/$Q$140 ->  | R141: =$R$139/$R$140 ->  | S141: =$S$139/$S$140 ->  | T141: =$T$139/$T$140 ->  | U141: =$U$139/$U$140 ->  | V141: =$V$139/$V$140 ->  | W141: =$W$139/$W$140 ->  | X141: =$X$139/$X$140 ->  | Y141: =$Y$139/$Y$140 ->  | Z141: =$Z$139/$Z$140 ->  | AA141: =$AA$139/$AA$140 ->  | AB141: =$AB$139/$AB$140 ->  | AC141: =$AC$139/$AC$140 ->  | AD141: =$AD$139/$AD$140 ->  | AE141: =$AE$139/$AE$140 ->  | AF141: =$AF$139/$AF$140 ->  | AG141: =$AG$139/$AG$140 ->  | AH141: =$AH$139/$AH$140 ->  | AI141: =$AI$139/$AI$140 ->  | AJ141: =$AJ$139/$AJ$140 ->  | AK141: =$AK$139/$AK$140 ->  | AL141: =$AL$139/$AL$140 ->  | AM141: =$AM$139/$AM$140 ->  | AN141: =$AN$139/$AN$140 ->  | AO141: =$AO$139/$AO$140 ->  | AP141: =$AP$139/$AP$140 ->  | AQ141: =$AQ$139/$AQ$140 ->  | AR141: =$AR$139/$AR$140 ->  | AS141: =$AS$139/$AS$140 ->  | AT141: COP
B142: βw | C142: 暖房COP比 | D142: =$D$141/$Q$141 ->  | E142: =$E$141/$Q$141 ->  | F142: =$F$141/$Q$141 ->  | G142: =$G$141/$Q$141 ->  | H142: =$H$141/$Q$141 ->  | I142: =$I$141/$Q$141 ->  | J142: =$J$141/$Q$141 ->  | K142: =$K$141/$Q$141 ->  | L142: =$L$141/$Q$141 ->  | M142: =$M$141/$Q$141 ->  | N142: =$N$141/$Q$141 ->  | O142: =$O$141/$Q$141 ->  | P142: =$P$141/$Q$141 ->  | Q142: =$Q$141/$Q$141 ->  | R142: =$R$141/$Q$141 ->  | S142: =$S$141/$Q$141 ->  | T142: =$T$141/$Q$141 ->  | U142: =$U$141/$Q$141 ->  | V142: =$V$141/$Q$141 ->  | W142: =$W$141/$Q$141 ->  | X142: =$X$141/$Q$141 ->  | Y142: =$Y$141/$Q$141 ->  | Z142: =$Z$141/$Q$141 ->  | AA142: =$AA$141/$Q$141 ->  | AB142: =$AB$141/$Q$141 ->  | AC142: =$AC$141/$Q$141 ->  | AD142: =$AD$141/$Q$141 ->  | AE142: =$AE$141/$Q$141 ->  | AF142: =$AF$141/$Q$141 ->  | AG142: =$AG$141/$Q$141 ->  | AH142: =$AH$141/$Q$141 ->  | AI142: =$AI$141/$Q$141 ->  | AJ142: =$AJ$141/$Q$141 ->  | AK142: =$AK$141/$Q$141 ->  | AL142: =$AL$141/$Q$141 ->  | AM142: =$AM$141/$Q$141 ->  | AN142: =$AN$141/$Q$141 ->  | AO142: =$AO$141/$Q$141 ->  | AP142: =$AP$141/$Q$141 ->  | AQ142: =$AQ$141/$Q$141 ->  | AR142: =$AR$141/$Q$141 ->  | AS142: =$AS$141/$Q$141 ->  | AT142: 暖房COP比
B143: Σ合計 | C143: =SUM($D$143:$AS$143) ->  | D143: =$D$136*$D$137 ->  | E143: =$E$136*$E$137 ->  | F143: =$F$136*$F$137 ->  | G143: =$G$136*$G$137 ->  | H143: =$H$136*$H$137 ->  | I143: =$I$136*$I$137 ->  | J143: =$J$136*$J$137 ->  | K143: =$K$136*$K$137 ->  | L143: =$L$136*$L$137 ->  | M143: =$M$136*$M$137 ->  | N143: =$N$136*$N$137 ->  | O143: =$O$136*$O$137 ->  | P143: =$P$136*$P$137 ->  | Q143: =$Q$136*$Q$137 ->  | R143: =$R$136*$R$137 ->  | S143: =$S$136*$S$137 ->  | T143: =$T$136*$T$137 ->  | U143: =$U$136*$U$137 ->  | V143: =$V$136*$V$137 ->  | W143: =$W$136*$W$137 ->  | X143: =$X$136*$X$137 ->  | Y143: =$Y$136*$Y$137 ->  | Z143: =$Z$136*$Z$137 ->  | AA143: =$AA$136*$AA$137 ->  | AB143: =$AB$136*$AB$137 ->  | AC143: =$AC$136*$AC$137 ->  | AD143: =$AD$136*$AD$137 ->  | AE143: =$AE$136*$AE$137 ->  | AF143: =$AF$136*$AF$137 ->  | AG143: =$AG$136*$AG$137 ->  | AH143: =$AH$136*$AH$137 ->  | AI143: =$AI$136*$AI$137 ->  | AJ143: =$AJ$136*$AJ$137 ->  | AK143: =$AK$136*$AK$137 ->  | AL143: =$AL$136*$AL$137 ->  | AM143: =$AM$136*$AM$137 ->  | AN143: =$AN$136*$AN$137 ->  | AO143: =$AO$136*$AO$137 ->  | AP143: =$AP$136*$AP$137 ->  | AQ143: =$AQ$136*$AQ$137 ->  | AR143: =$AR$136*$AR$137 ->  | AS143: =$AS$136*$AS$137 ->  | AT143: =SUM($D$143:$AS$143) ->  | AU143: =SUM(AU124:AU135) -> 

Sheet 2-3 貯湯量確認シート
A1: 貯湯量の確認
B2: 施設の日給湯量Ld[Ｌ/h］からピーク給湯量Lp[L/h］を求め必要な貯湯量Ｖ［L]を算定する。 | M2: 自動計算
B5: th1：ピーク開始時の貯湯温度 ［℃］ | G5: =IF('2-2 運転条件シート'!C6="","",'2-2 運転条件シート'!AH21) ->  | H5: ［℃］ | I5: （65℃または90℃）
B6: th2：ピーク終了後の貯湯温度 ［℃］ | G6: =IFERROR(VLOOKUP(G5,データ集!I29:J31,2,FALSE),"") ->  | H6: ［℃］
B7: Ｈ：加熱能力※３） ［kW] | G7: =IF('2-2 運転条件シート'!AG20="","",'2-2 運転条件シート'!AG20) ->  | H7: ［kW/台] × | I7: =IF('2-2 運転条件シート'!AF27=0,"",'2-2 運転条件シート'!AF27) ->  | J7: [台] | K7: (※3)：冬季能力（日本冷凍工業会規格JRA4050:2007R））
B8: tc：入水温度※３） ［℃] | G8: =データ集②!M8 ->  | H8: ［℃］ | I8: （選択地域の最大給湯負荷月の入水温度)
B9: T：ピーク継続時間 ［h] | G9: =IFERROR(VLOOKUP('2-2 運転条件シート'!V28,データ集!D34:H38,2,FALSE),"") ->  | H9: ［h] | I9: （病院、事務所ビルはピーク1h、他施設は2h程度）
B12: Ld：日平均給湯量 ［L/日］ | F12: =IFERROR(VLOOKUP('2-2 運転条件シート'!V28,データ集!D34:W38,16,FALSE),"") ->  | H12: ［L/日] | I12: （③計算シートの「日給湯量の算出方法例」最大繁忙月繁忙度例と日給湯量算定/病院(老健) 参照）
B13: Lp：ピーク時の給湯量 ［Ｌ/ｈ] | F13: =IFERROR(データ集!AA36,"") ->  | H13: ［L/ｈ] | I13: （日給湯量Q÷日稼働時間×ピーク係数3.5 日稼働時間は附表の「最大繁忙月の日給湯量算定例」の
I14: 該当施設に「給湯ヒートポンプ運転時間」を入力する）
I15: 例：病院14h/日、シティーホテル・温泉旅館・24h/日、オフィスビル10h/日、飲食・店舗12h/日）
B16: 日給湯量の算出内容
C17: ・給湯熱量は「給湯ヒートポンプツールが計算する冬季の月給湯能力［kWh］」から月給湯量［L/月］を算出。
C18: （一部給湯ボイラーが残存する場合、全体の燃料使用量から給湯ヒートポンプ能力を差引いて算出した給湯量［L/月」を合算）
C20: 給湯ヒートポンプ | E20: =I7 ->  | F20: 台の | G20: 給湯熱量 | H20: =IF(計算シート!AE83=0,"",計算シート!AE83) ->  | J20: MJ/1月 | L20: 給湯量 | M20: (焚上65℃） | N20: =IFERROR(計算シート!AM83,"") ->  | P20: ℓ/1月
A22: =B29 -> 繁忙度 | C22: ・給湯全負荷相当時間の算出には「給湯ヒートポンプ年間活動量算定ツール」の該当月の日稼働時間［h/日］を使用。
A23: =B30 -> 土・日 | C23: ・用途別の繁忙度から最大日給湯量を算定。繁忙度は該当月の在室人員、病床使用数、宿泊者数、入場者数などから算定。
A24: =B31 -> 祝祭日 | C24: ・給湯熱量の一番大きい月の熱量から繁忙度により最大日給湯量を算定。
A25: =D29 -> 日数 ［日/月］ | C25: ・表の | E25: は繁忙度の最も高い日を示す。
A26: ='2-2 運転条件シート'!V28 -> 0 | C26: ・算定ツールでは、用途・地域により給湯熱量［MJ/月］が変化しますが、表の値は年間活動量算定ツールの選定用途・地域での同じ値を使用しています。
B27: 最大繁忙月の日給湯量算定例
E28: 病院(老健) | H28: =データ集!AG3 -> - | I28: h/日 | K28: 最大繁忙月の日給湯量算定例 | N28: シティーホテル | Q28: =データ集!AG4 -> - | R28: h/日
B29: 繁忙度 | D29: 日数 ［日/月］ | E29: 給湯全負荷 相当時間［ｈ] | G29: 負荷 割合 | H29: 日給湯負荷［ℓ/日］ | K29: 繁忙度 | M29: 日数 ［日/月］ | N29: 給湯全負荷 相当時間［ｈ] | P29: 負荷 割合 | Q29: 日給湯負荷［ℓ/日］
B30: 土・日 | C30: =IFERROR(_xlfn.XLOOKUP(A23&A26,データ集!W4:W13&データ集!T4:T13,データ集!AB4:AB13),"") ->  | D30: =IFERROR(_xlfn.XLOOKUP(A23&A26,データ集!W4:W13&データ集!T4:T13,データ集!AA4:AA13),"") ->  | E30: =IFERROR(C30*D30*$H$28,"") ->  | F30: ［ｈ] | G30: =IFERROR(E30/$E$33,"") ->  | H30: =IFERROR($N$20*G30/D30,"") ->  | K30: 祝祭日 | L30: =IFERROR(_xlfn.XLOOKUP(A24&A26,データ集!Y4:Y13&データ集!T4:T13,データ集!AB4:'データ集'!AB13),"") ->  | M30: =IFERROR(_xlfn.XLOOKUP(A24&A26,データ集!Y4:Y13&データ集!T4:T13,データ集!AA4:AA13),"") ->  | N30: =IFERROR(L30*M30*$Q$28,"") ->  | O30: ［ｈ] | P30: =IFERROR(N30/$N$33,"") ->  | Q30: =IFERROR($N$20*P30/M30,"") -> 
B31: 祝祭日 | C31: =IFERROR(_xlfn.XLOOKUP(A24&A26,データ集!Y4:Y13&データ集!T4:T13,データ集!AB4:'データ集'!AB13),"") ->  | D31: =IFERROR(_xlfn.XLOOKUP(A24&A26,データ集!Y4:Y13&データ集!T4:T13,データ集!AA4:AA13),"") ->  | E31: =IFERROR(C31*D31*$H$28,"") ->  | F31: ［ｈ] | G31: =IFERROR(E31/$E$33,"") ->  | H31: =IFERROR($N$20*G31/D31,"") ->  | K31: 土・日 | L31: =IFERROR(_xlfn.XLOOKUP(A23&A26,データ集!W4:W13&データ集!T4:T13,データ集!AB4:AB13),"") ->  | M31: =IFERROR(_xlfn.XLOOKUP(A23&A26,データ集!W4:W13&データ集!T4:T13,データ集!AA4:AA13),"") ->  | N31: =IFERROR(L31*M31*$Q$28,"") ->  | O31: ［ｈ] | P31: =IFERROR(N31/$N$33,"") ->  | Q31: =IFERROR($N$20*P31/M31,"") -> 
B32: 平日 | C32: 1 | D32: =IFERROR(31-(D30+D31),"") ->  | E32: =IFERROR(C32*D32*$H$28,"") ->  | F32: ［ｈ] | G32: =IFERROR(E32/$E$33,"") ->  | H32: =IFERROR($N$20*G32/D32,"") ->  | K32: 平日 | L32: 0.8 | M32: =IFERROR(31-(M30+M31),"") ->  | N32: =IFERROR(L32*M32*$Q$28,"") ->  | O32: ［ｈ] | P32: =IFERROR(N32/$N$33,"") ->  | Q32: =IFERROR($N$20*P32/M32,"") -> 
B33: 計 | D33: =SUM(D30:D32) -> 0 | E33: =SUM(E30:E32) -> 0 | F33: ［h/月］ | G33: =SUM(G30:G32) -> 0 | H33: =IFERROR(D30*H30+D31*H31+D32*H32,"") ->  | I33: ［ℓ/月］ | K33: 計 | M33: =SUM(M30:M32) -> 0 | N33: =SUM(N30:N32) -> 0 | O33: ［h/月］ | P33: =SUM(P30:P32) -> 0 | Q33: =IFERROR(M30*Q30+M31*Q31+M32*Q32,"") ->  | R33: ［ℓ/月］
B35: 最大繁忙月の日給湯量算定例 | E35: 温泉旅館 | H35: =データ集!AG5 -> - | I35: h/日 | K35: 最大繁忙月の日給湯量算定例 | N35: オフィスビル | Q35: =データ集!AG6 -> - | R35: h/日
B36: 繁忙度 | D36: 日数 ［日/月］ | E36: 給湯全負荷 相当時間［ｈ] | G36: 負荷 割合 | H36: 日給湯負荷［ℓ/日］ | K36: 繁忙度 | M36: 日数 ［日/月］ | N36: 給湯全負荷 相当時間［ｈ] | P36: 負荷 割合 | Q36: 日給湯負荷［ℓ/日］
B37: 祝祭日 | C37: =IFERROR(_xlfn.XLOOKUP(A24&A26,データ集!Y4:Y13&データ集!T4:T13,データ集!AB4:'データ集'!AB13),"") ->  | D37: =IFERROR(_xlfn.XLOOKUP(A24&A26,データ集!Y4:Y13&データ集!T4:T13,データ集!AA4:AA13),"") ->  | E37: =IFERROR(C37*D37*$H$35,"") ->  | F37: ［ｈ] | G37: =IFERROR(E37/$E$40,"") ->  | H37: =IFERROR($N$20*G37/D37,"") ->  | K37: 土・日 | L37: =IFERROR(_xlfn.XLOOKUP(A23&A26,データ集!W4:W13&データ集!T4:T13,データ集!AB4:AB13),"") ->  | M37: =IFERROR(_xlfn.XLOOKUP(A23&A26,データ集!W4:W13&データ集!T4:T13,データ集!AA4:AA13),"") ->  | N37: =IFERROR(L37*M37*$Q$35,"") ->  | O37: ［ｈ] | P37: =IFERROR(N37/$N$40,"") ->  | Q37: =IFERROR($N$20*P37/M37,"") -> 
B38: 土・日 | C38: =IFERROR(_xlfn.XLOOKUP(A23&A26,データ集!W4:W13&データ集!T4:T13,データ集!AB4:AB13),"") ->  | D38: =IFERROR(_xlfn.XLOOKUP(A23&A26,データ集!W4:W13&データ集!T4:T13,データ集!AA4:AA13),"") ->  | E38: =IFERROR(C38*D38*$H$35,"") ->  | F38: ［ｈ] | G38: =IFERROR(E38/$E$40,"") ->  | H38: =IFERROR($N$20*G38/D38,"") ->  | K38: 祝祭日 | L38: =IFERROR(_xlfn.XLOOKUP(A24&A26,データ集!Y4:Y13&データ集!T4:T13,データ集!AB4:'データ集'!AB13),"") ->  | M38: =IFERROR(_xlfn.XLOOKUP(A24&A26,データ集!Y4:Y13&データ集!T4:T13,データ集!AA4:AA13),"") ->  | N38: =IFERROR(L38*M38*$Q$35,"") ->  | O38: ［ｈ] | P38: =IFERROR(N38/$N$40,"") ->  | Q38: =IFERROR($N$20*P38/M38,"") -> 
B39: 平日 | C39: 0.5 | D39: =IFERROR(31-(D37+D38),"") ->  | E39: =IFERROR(C39*D39*$H$35,"") ->  | F39: ［ｈ] | G39: =IFERROR(E39/$E$40,"") ->  | H39: =IFERROR($N$20*G39/D39,"") ->  | K39: 平日 | L39: 1 | M39: =IFERROR(31-(M37+M38),"") ->  | N39: =IFERROR(L39*M39*$Q$35,"") ->  | O39: ［ｈ] | P39: =IFERROR(N39/$N$40,"") ->  | Q39: =IFERROR($N$20*P39/M39,"") -> 
B40: 計 | D40: =IFERROR(SUM(D37:D39),"") -> 0 | E40: =SUM(E37:E39) -> 0 | F40: ［h/月］ | G40: =SUM(G37:G39) -> 0 | H40: =IFERROR(D37*H37+D38*H38+D39*H39,"") ->  | I40: ［ℓ/月］ | K40: 計 | M40: =SUM(M37:M39) -> 0 | N40: =SUM(N37:N39) -> 0 | O40: ［h/月］ | P40: =SUM(P37:P39) -> 0 | Q40: =IFERROR(M37*Q37+M38*Q38+M39*Q39,"") ->  | R40: ［ℓ/月］
B42: 最大繁忙月の日給湯量算定例 | E42: 飲食・店舗例 | H42: =データ集!AG7 -> - | I42: h/日
B43: 繁忙度 | D43: 日数 ［日/月］ | E43: 給湯全負荷 相当時間［ｈ] | G43: 負荷 割合 | H43: 日給湯負荷［ℓ/日］
B44: 土・日 | C44: =IFERROR(_xlfn.XLOOKUP(A23&A26,データ集!W4:W13&データ集!T4:T13,データ集!AB4:AB13),"") ->  | D44: =IFERROR(_xlfn.XLOOKUP(A23&A26,データ集!W4:W13&データ集!T4:T13,データ集!AA4:AA13),"") ->  | E44: =IFERROR(C44*D44*$H$42,"") ->  | F44: ［ｈ] | G44: =IFERROR(E44/$E$47,"") ->  | H44: =IFERROR($N$20*G44/D44,"") -> 
B45: 祝祭日 | C45: =IFERROR(_xlfn.XLOOKUP(A24&A26,データ集!Y4:Y13&データ集!T4:T13,データ集!AB4:'データ集'!AB13),"") ->  | D45: =IFERROR(_xlfn.XLOOKUP(A24&A26,データ集!Y4:Y13&データ集!T4:T13,データ集!AA4:AA13),"") ->  | E45: =IFERROR(C45*D45*$H$42,"") ->  | F45: ［ｈ] | G45: =IFERROR(E45/$E$47,"") ->  | H45: =IFERROR($N$20*G45/D45,"") -> 
B46: 平日 | C46: 0.6 | D46: =IFERROR(31-(D44+D45),"") ->  | E46: =IFERROR(C46*D46*$H$42,"") ->  | F46: ［ｈ] | G46: =IFERROR(E46/$E$47,"") ->  | H46: =IFERROR($N$20*G46/D46,"") -> 
B47: 計 | D47: =SUM(D44:D46) -> 0 | E47: =SUM(E44:E46) -> 0 | F47: ［h/月］ | G47: =SUM(G44:G46) -> 0 | H47: =IFERROR(D44*H44+D45*H45+D46*H46,"") ->  | I47: ［ℓ/月］
B49: 計算結果
B50: Ｖ：必要有効貯湯容量 ［Ｌ]
B51: 4.2（th1-th2）V ≧ 4.2｛（th1+th2)/2－tc｝Lp－HT
B52: Ｖ ≧ | C52: 〔4.2｛(65＋53)／2－15 ｝×Lp－ＨT3600〕 ／ 4.2 (th1－th2)
A53: =IFERROR(ROUND(+(4.2*((($G$5+$G$6)/2-$G$8)*$F$13*$G$9)-($G$7*$I$7*3600*$G$9))/(4.2*($G$5-$G$6)),-3),"") ->  | B53: Ｖ ≧ | C53: =IF(A53<0,0,A53) ->  | E53: ［Ｌ] | F53: （実容量は×1.3程度）
B54: 日給湯量に対する割合： | E54: =IFERROR(ROUND(+$A$53/$F$12,2),"") -> 

Sheet 3 効果算定シート
A2: Step1～7の操作により既存設備と導入設備の電力使用量等が自動的に計算・表示されます。
A4: Step 1 | B4: 現在お使いのボイラの燃料は何ですか？9種類の中からお選びください。 (注1a、注1b） | K4: 選択
A6: 注1a. LPGは、ガス会社の購買伝票を確認し、kgまたはｔ(トン)表示であればLPG(液)を、m3表示であればLPG(ガス)を選択 してください。
A7: 注1b. 都市ガスについては、ガス会社の購買伝票の数値をそのまま入力する場合は㎥を、0℃1気圧の標準状態に換算する場合はNm3を選択して ください。
A9: 2 | B9: 1で選択した燃料の購買伝票などから基準年度燃料使用量を入力してください。 | K9: 入力
B10: (注2a、注2b) | L10: =IFERROR(VLOOKUP(L4,燃料データ_新!A20:E28,5,FALSE),"") -> 
A11: 注2a. 基準年度燃料使用量とは、直近過去3年度間の平均値(令和3年度～令和5年度)、または令和5年度のいずれかの数値となります。
A12: 注2b. ここに表示されない単位は、購買店にご確認ください。
A14: 3 | B14: 現在お使いのボイラのカタログや仕様書からボイラ効率を調べて入力してください。 | K14: 入力 | L14: =IFERROR('4の複数ボイラの平均効率算出方法の裏'!L21,"") -> 
B15: ボイラーが1台の場合でも「4 平均効率計算シート」をお使いください。自動入力(青色セル)となります。（注3） | L15: ％
A16: 注3. ボイラー効率は真発熱量(低位発熱量)で入力してください。ご不明の場合は購入店、もしくはメーカーにご確認ください。
A18: 4 | B18: 導入予定のヒートポンプの電力使用量の推定値を入力してください。 | K18: 入力 | L18: =IF(L24="","",'2-2 運転条件シート'!S40) -> 
B19: 【2-2 運転条件シート】の建物用途別の計算結果が推定値として自動入力(青色セル)されています。（注4）
A20: 注4. 工程の必要給湯量を設定した時の計算結果を入力する場合は黄色のセルに手入力してください。 | L20: kWh/年
A22: 5 | B22: 導入予定の補助ボイラの燃料は何ですか？8種類の中からお選びください。 | K22: 選択
A24: 6 | B24: 導入予定の補助ボイラのカタログや仕様書からボイラ効率を調べて入力してください。 | K24: 入力 | L24: =IFERROR('4の複数ボイラの平均効率算出方法の裏'!L49,"") -> 
B25: ボイラーが1台の場合でも「4 平均効率計算シート」をお使いください。自動入力(青色セル)となります。（注5） | L25: ％
A26: 注5. ボイラ効率は真発熱量(低位発熱量)で入力してください。ご不明の場合は購入店、もしくはメーカーにご確認ください。
A28: 7 | B28: Step1で選択した燃料の一般的な単価 | I28: =IFERROR(VLOOKUP(L4,燃料データ_新!A2:I14,9,FALSE),"") ->  | K28: 入力
B29: Step5で選択した燃料の一般的な単価 | I29: =IFERROR(VLOOKUP(L22,燃料データ_新!A2:I14,9,FALSE),"") ->  | K29: 入力
B30: Step5で選択したヒートポンプの電力の一般的な単価 | I30: =IF(I29="","","千円/千kWh") ->  | K30: 入力
B35: 項 目 | E35: A.既存設備 | G35: 導入設備 | K35: B+C
G36: B.給湯 ヒートポンプ | I36: C.給湯ボイラ
B37: ボイラ効率(％) | E37: =IF(L14=0,"",L14) ->  | I37: =IF(L24=0,"",L24) -> 
B38: 燃料種別 | E38: =IF(L4=0,"",L4) ->  | G38: =L22 -> 0 | I38: =IF(L22=0,"",L22) -> 
B39: 真発熱量 | E39: =IFERROR(VLOOKUP(E38,燃料データ_新!A2:B14,2,FALSE),"") ->  | I39: =IFERROR(VLOOKUP(I38,燃料データ_新!A2:B14,2,FALSE),"") -> 
B40: 燃料使用量 | E40: =IF(L9=0,"",L9) ->  | G40: =IF(E40="","",'3の効果算定シートの裏'!F7) ->  | I40: =IF(I37="","",'3の効果算定シートの裏'!G7) -> 
E41: =IFERROR(VLOOKUP(L4,燃料データ_新!A2:D14,4,FALSE),"") ->  | G41: =IF(G40="","","千kWh/年") ->  | I41: =IFERROR(VLOOKUP(L22,燃料データ_新!A2:D14,4,FALSE),"") -> 
B42: CO2排出量(t-CO2/年) | E42: ='3の効果算定シートの裏'!D8 ->  | G42: =IF(G40="","",'3の効果算定シートの裏'!F8) ->  | I42: =IF(I37="","",'3の効果算定シートの裏'!G8) ->  | K42: =IF(I37="","",'3の効果算定シートの裏'!I8) -> 
B43: CO2削減量(t-CO2/年) | K43: =IF(I37="","",'3の効果算定シートの裏'!I9) ->  | M43: 削減率(%) | N43: =IFERROR('3の効果算定シートの裏'!M14,"") -> 
B44: エネルギー使用量 (GJ/年) | E44: ='3の効果算定シートの裏'!D10 ->  | G44: =IF(G42="","",'3の効果算定シートの裏'!F10) ->  | I44: =IF(I37="","",'3の効果算定シートの裏'!G10) ->  | K44: =IF(I37="","",'3の効果算定シートの裏'!I10) ->  | M44: 省エネ率(%) | N44: =IFERROR('3の効果算定シートの裏'!M15,"") -> 
B46: エネルギーコスト (千円/年) | E46: =IFERROR('3の効果算定シートの裏'!D11,"") ->  | G46: =IF(G44="","",'3の効果算定シートの裏'!F11) ->  | I46: =IFERROR('3の効果算定シートの裏'!G11,"") ->  | K46: =IFERROR(G46+I46,"") -> 

Sheet 3の効果算定シートの裏 (hidden)
D1: 既存設備 | F1: 導入設備
C2: 項 目 | D2: A | F2: B | G2: C | I2: B+C
F3: 給湯ヒートポンプ | G3: 給湯ボイラ
C4: ボイラ効率(％) | D4: ='3 効果算定シート'!E37 ->  | G4: ='3 効果算定シート'!I37 -> 
C5: 燃料種別 | D5: ='3 効果算定シート'!E38 ->  | G5: ='3 効果算定シート'!I38 -> 
C6: 真発熱量 | D6: ='3 効果算定シート'!E39 ->  | G6: ='3 効果算定シート'!I39 ->  | J6: =VLOOKUP(G5,燃料データ_新!A2:D14,4,FALSE) ->  | K6: =K7-K8 ->  | L6: a-b=c
B7: =VLOOKUP(D5,燃料データ_新!A2:D14,4,FALSE) ->  | C7: 燃料使用量 | D7: =燃料データ_新!G21 ->  | F7: =IF(F20,G20,E20) ->  | G7: =K6/G4/G6*100 ->  | H7: d | J7: 既存発熱量 | K7: =D7*D4*0.01*D6 ->  | L7: a= | M7: 既存燃料使用量×既存ボイラー効率×低位発熱量
C8: CO2排出量(t-CO2/年) | D8: =燃料データ_新!H32 ->  | F8: =IF(F21,G21,E21) ->  | G8: =G7*J9 ->  | H8: f | I8: =F8+G8 ->  | J8: 合計給湯能力 | K8: =計算シート!$CE$84/1000*3.6 -> 0 | L8: b= | M8: 導入HPの給湯能力×台数÷1000×3.6
C9: CO2削減量(t-CO2/年) | I9: =D8-F8-G8 ->  | J9: =VLOOKUP(G5,燃料データ_新!A31:E43,5,FALSE) ->  | K9: z | L9: f= | M9: d×z | N9: z=「燃料データ_新」シートの既存CO2排出量より
C10: エネルギー使用量(GJ/年) | D10: =IF('3 効果算定シート'!L4="電気",燃料データ_新!J39,燃料データ_新!H39) ->  | G10: =G7*J10 ->  | H10: e | I10: =F10+G10 ->  | J10: =IF(G5="電気",E12,J11) ->  | K10: ① | L10: e= | M10: d×導入高位発熱量
C11: エネルギーコスト（千円/年） | D11: =D14*燃料データ_新!G21 ->  | G11: =G7*D15 ->  | I11: =F11+G11 ->  | J11: =VLOOKUP(G5,燃料データ_新!A31:E43,2,FALSE) ->  | K11: ②
E12: 8.64 | F12: ←係数 | K12: 導入が電気なら①、そうでないなら② 数値入替え
A13: 係数 | B13: 0.000434
A14: Step1で選択した燃料の一般的な単価 | D14: ='3 効果算定シート'!L28 -> 0 | L14: 削減率(%) | M14: =I9/D8*100 -> 
A15: Step5で選択した燃料の一般的な単価 | D15: ='3 効果算定シート'!L29 -> 0 | L15: 省エネ率(%) | M15: =(D10-I10)/(D10/100) -> 
A16: Step5で選択したヒートポンプの電力の一般的な単価 | D16: ='3 効果算定シート'!L30 -> 0
C19: 効果算定シート L18枠の数値差替え表 | D19: 「2-2 運転条件シート」の月別消費電力（合計）から自動入力 | F19: step4を手入力した場合
C20: 燃料使用量 | D20: ='2-2 運転条件シート'!S40 ->  | E20: =TRUNC(D20/1000) ->  | F20: ='3 効果算定シート'!L19 -> 0 | G20: =TRUNC(F20/1000) -> 0
C21: CO2排出量(t-CO2/年) | D21: =D20*B13*1000 ->  | E21: =TRUNC(D21/1000) ->  | F21: =F20*B13*1000 -> 0 | G21: =TRUNC(F21/1000) -> 0
C22: CO2削減量(t-CO2/年)
C23: エネルギー使用量(GJ/年) | D23: =D20*E12 ->  | E23: =D23/1000 ->  | F23: =F20*E12 -> 0 | G23: =F23/1000 -> 0
C24: エネルギーコスト（千円/年） | D24: =D20*D16 ->  | E24: =D24/1000 ->  | F24: =F20*D16 -> 0 | G24: =F24/1000 -> 0

Sheet 4 平均効率計算シート
A1: ※複数ボイラーの効率が異なる場合の平均効率を計算します。
A2: 既存設備 | C2: 1号機 | D2: 2号機 | E2: 3号機 | F2: 4号機 | G2: 5号機 | H2: 6号機 | I2: 7号機 | J2: 8号機 | K2: 9号機 | L2: 10号機 | M2: 平均効率
A3: 相当蒸発量 [kg/h] | M3: =IFERROR('4の複数ボイラの平均効率算出方法の裏'!L20,"") ->  | N3: =M3*100 -> 
A4: ボイラー効率 [％]
A6: 導入設備 | C6: 11号機 | D6: 12号機 | E6: 13号機 | F6: 14号機 | G6: 15号機 | H6: 16号機 | I6: 17号機 | J6: 18号機 | K6: 19号機 | L6: 20号機 | M6: 平均効率
A7: 相当蒸発量 [kg/h] | M7: =IFERROR('4の複数ボイラの平均効率算出方法の裏'!L48,"") ->  | N7: =M7*100 -> 
A8: ボイラー効率 [％]

Sheet 4の複数ボイラの平均効率算出方法の裏 (hidden)
A2: 導入前 | B2: ボイラ効率 | C2: η | D2: W | F2: W(相当蒸発量 kg/h） | N2: 1 | O2: 燃料使用量：Q1［kl/年］、[t/年]または［千Nm3/年］
A3: １号機 | B3: ='4 平均効率計算シート'!C4 -> 0 | C3: =B3/100 -> 0 | D3: ='4 平均効率計算シート'!C3 -> 0 | F3: η(効率/100) | N3: 2 | O3: ボイラー燃料使用量：1～10号機q1～10 [kl/年]、[t/年]または［千Nm3/年］
A4: ２号機 | B4: ='4 平均効率計算シート'!D4 -> 0 | C4: =B4/100 -> 0 | D4: ='4 平均効率計算シート'!D3 -> 0 | N4: 3 | O4: ボイラー出力（相当蒸発量）：W1～W10［kg/h］
A5: ３号機 | B5: ='4 平均効率計算シート'!E4 -> 0 | C5: =B5/100 -> 0 | D5: ='4 平均効率計算シート'!E3 -> 0 | N5: 4 | O5: ボイラー効率：η1～η10[％]
A6: ４号機 | B6: ='4 平均効率計算シート'!F4 -> 0 | C6: =B6/100 -> 0 | D6: ='4 平均効率計算シート'!F3 -> 0 | N6: 5 | O6: ボイラー平均効率：ηA [％]
A7: ５号機 | B7: ='4 平均効率計算シート'!G4 -> 0 | C7: 0 | D7: ='4 平均効率計算シート'!G3 -> 0 | N7: 6 | O7: 燃料真発熱量（低位発熱量）：HL1［GJ/kl］、[GJ/t]または［GJ/千Nm3］
A8: ６号機 | B8: ='4 平均効率計算シート'!H4 -> 0 | C8: 0 | D8: ='4 平均効率計算シート'!H3 -> 0
A9: ７号機 | B9: ='4 平均効率計算シート'!I4 -> 0 | C9: 0 | D9: ='4 平均効率計算シート'!I3 -> 0
A10: ８号機 | B10: ='4 平均効率計算シート'!J4 -> 0 | C10: 0 | D10: ='4 平均効率計算シート'!J3 -> 0
A11: ９号機 | B11: ='4 平均効率計算シート'!K4 -> 0 | C11: 0 | D11: ='4 平均効率計算シート'!K3 -> 0
A12: 10号機 | B12: ='4 平均効率計算シート'!L4 -> 0 | C12: 0 | D12: ='4 平均効率計算シート'!L3 -> 0
A15: １号機 | B15: ２号機 | C15: ３号機 | D15: ４号機 | E15: ５号機 | F15: ６号機 | G15: ７号機 | H15: ８号機 | I15: ９号機 | J15: 10号機 | K15: 合計
A16: ='4 平均効率計算シート'!C$3 -> 0 | B16: ='4 平均効率計算シート'!D$3 -> 0 | C16: ='4 平均効率計算シート'!E$3 -> 0 | D16: ='4 平均効率計算シート'!F$3 -> 0 | E16: ='4 平均効率計算シート'!G$3 -> 0 | F16: ='4 平均効率計算シート'!H$3 -> 0 | G16: ='4 平均効率計算シート'!I$3 -> 0 | H16: ='4 平均効率計算シート'!J$3 -> 0 | I16: ='4 平均効率計算シート'!K$3 -> 0 | J16: ='4 平均効率計算シート'!L$3 -> 0 | K16: =SUM(A16:J16) -> 0 | M16: W
A17: =C3 -> 0 | B17: =C4 -> 0 | C17: =C5 -> 0 | D17: =C6 -> 0 | E17: =C7 -> 0 | F17: =C8 -> 0 | G17: =C9 -> 0 | H17: =C10 -> 0 | I17: =C11 -> 0 | J17: =C12 -> 0 | M17: η
A18: =A16*A17 -> 0 | B18: =B16*B17 -> 0 | C18: =C16*C17 -> 0 | D18: =D16*D17 -> 0 | E18: 0 | F18: 0 | G18: 0 | H18: 0 | I18: 0 | J18: 0
B19: =SUM(A18:B18) -> 0 | C19: =SUM(A18:C18) -> 0 | D19: =SUM(A18:D18) -> 0 | E19: =SUM(A18:E18) -> 0 | F19: =SUM(A18:F18) -> 0 | G19: =SUM(A18:G18) -> 0 | H19: =SUM(A18:H18) -> 0 | I19: =SUM(A18:I18) -> 0 | J19: =SUM(A18:J18) -> 0
A20: =A18/K16 ->  | B20: =B19/K16 ->  | C20: =C19/K16 ->  | D20: =D19/K16 ->  | E20: =E19/K16 ->  | F20: =F19/K16 ->  | G20: =G19/K16 ->  | H20: =H19/K16 ->  | I20: =I19/K16 ->  | J20: =J19/K16 ->  | L20: =INDEX(A20:J20,COUNTA(A20:J20)) -> 
L21: =L20*100 ->  | M21: %
L22: 最後のデータ
A30: 導入後 | B30: ボイラ効率 | C30: η | D30: W
A31: 11号機 | B31: ='4 平均効率計算シート'!C8 -> 0 | C31: =B31/100 -> 0 | D31: ='4 平均効率計算シート'!C7 -> 0
A32: 12号機 | B32: ='4 平均効率計算シート'!D8 -> 0 | C32: =B32/100 -> 0 | D32: ='4 平均効率計算シート'!D7 -> 0
A33: 13号機 | B33: ='4 平均効率計算シート'!E8 -> 0 | C33: =B33/100 -> 0 | D33: ='4 平均効率計算シート'!E7 -> 0
A34: 14号機 | B34: ='4 平均効率計算シート'!F8 -> 0 | C34: 0 | D34: ='4 平均効率計算シート'!F7 -> 0
A35: 15号機 | B35: ='4 平均効率計算シート'!G8 -> 0 | C35: 0 | D35: ='4 平均効率計算シート'!G7 -> 0
A36: 16号機 | B36: ='4 平均効率計算シート'!H8 -> 0 | C36: 0 | D36: ='4 平均効率計算シート'!H7 -> 0
A37: 17号機 | B37: ='4 平均効率計算シート'!I8 -> 0 | C37: 0 | D37: ='4 平均効率計算シート'!I7 -> 0
A38: 18号機 | B38: ='4 平均効率計算シート'!J8 -> 0 | C38: 0 | D38: ='4 平均効率計算シート'!J7 -> 0
A39: 19号機 | B39: ='4 平均効率計算シート'!K8 -> 0 | C39: 0 | D39: ='4 平均効率計算シート'!K7 -> 0
A40: 20号機 | B40: ='4 平均効率計算シート'!L8 -> 0 | C40: 0 | D40: ='4 平均効率計算シート'!L7 -> 0
A43: 11号機 | B43: 12号機 | C43: 13号機 | D43: 14号機 | E43: 15号機 | F43: 16号機 | G43: 17号機 | H43: 18号機 | I43: 19号機 | J43: 20号機 | K43: 合計
A44: ='4 平均効率計算シート'!C$7 -> 0 | B44: ='4 平均効率計算シート'!D$7 -> 0 | C44: ='4 平均効率計算シート'!E$7 -> 0 | D44: ='4 平均効率計算シート'!F$7 -> 0 | E44: ='4 平均効率計算シート'!G$7 -> 0 | F44: ='4 平均効率計算シート'!H$7 -> 0 | G44: ='4 平均効率計算シート'!I$7 -> 0 | H44: ='4 平均効率計算シート'!J$7 -> 0 | I44: ='4 平均効率計算シート'!K$7 -> 0 | J44: ='4 平均効率計算シート'!L$7 -> 0 | K44: =SUM(A44:J44) -> 0
A45: =C31 -> 0 | B45: =C32 -> 0 | C45: =C33 -> 0 | D45: =C34 -> 0 | E45: =C35 -> 0 | F45: =C36 -> 0 | G45: =C37 -> 0 | H45: =C38 -> 0 | I45: =C39 -> 0 | J45: =C40 -> 0 | O45: 0.9 | P45: =A45*PRODUCT(A46:A54)*A44 -> 
A46: =A44*A45 -> 0 | B46: =B44*B45 -> 0 | C46: 0 | D46: 0 | E46: 0 | F46: 0 | G46: 0 | H46: 0 | I46: 0 | J46: 0 | O46: 0.89
B47: =SUM(A46:B46) -> 0 | C47: =SUM(A46:C46) -> 0 | D47: =SUM(A46:D46) -> 0 | E47: =SUM(A46:E46) -> 0 | F47: =SUM(A46:F46) -> 0 | G47: =SUM(A46:G46) -> 0 | H47: =SUM(A46:H46) -> 0 | I47: =SUM(A46:I46) -> 0 | J47: =SUM(A46:J46) -> 0 | O47: 0.91
A48: =A46/K44 ->  | B48: =B47/K44 ->  | C48: =C47/K44 ->  | D48: =D47/K44 ->  | E48: =E47/K44 ->  | F48: =F47/K44 ->  | G48: =G47/K44 ->  | H48: =H47/K44 ->  | I48: =I47/K44 ->  | J48: =J47/K44 ->  | L48: =INDEX(A48:J48,COUNTA(A48:J48)) ->  | O48: 0.92
L49: =L48*100 ->  | M49: % | O49: 0.93
L50: 最後のデータ | O50: 0.94
O51: 0.95
O52: 0.96
O53: 0.97
O54: 0.98
O55: =O46*PRODUCT(O47:O54)*B44 -> 0
O57: =PRODUCT(IF(K46:K54<>0,K46:K54,""))*K44 -> 0

Sheet たたき台 5 ヒートポンプ更新シート (hidden)
A2: Step 1～3 の操作により導入設備の電力使用量等が自動的に計算・表示されます。
A4: Step 1 | B4: 現在お使いのヒートポンプの電力使用量を入力してください。 | K4: 入力 | L4: 67000
L5: kWh/年
A6: 注1.複数台ある場合は、合計電力使用量を入力してください。
A8: 2 | B8: 導入予定のヒートポンプの電力使用量の推定値を入力してください。 | K8: 入力 | L8: ='2-2 運転条件シート'!S40 -> 
L9: kWh/年
A10: 注2. 推定値は消費電力算出シートの建物用途別の計算結果が自動入力されています。
A12: 3 | B12: Step 1と2の電力単価を入力してください。 | K12: 入力 | L12: 25 | N12: =IFERROR(VLOOKUP(L4,#REF!,2,FALSE),"") -> 
L13: 円/kWh | N13: =IFERROR(VLOOKUP(#REF!,#REF!,2,FALSE),"") -> 
C18: 項 目 | F18: 既存設備 | I18: 導入設備
C19: 真発熱量 | F19: ='たたき台 5のヒートポンプ更新シートの裏'!H3 -> 3.6 | I19: ='たたき台 5のヒートポンプ更新シートの裏'!L3 -> 
C20: 電力使用量 (千kWh/年) | F20: ='たたき台 5のヒートポンプ更新シートの裏'!H4 -> 67 | I20: ='たたき台 5のヒートポンプ更新シートの裏'!L4 -> 
C21: CO2排出量(t-CO2/年) | F21: ='たたき台 5のヒートポンプ更新シートの裏'!H5 -> 29.078 | I21: ='たたき台 5のヒートポンプ更新シートの裏'!L5 -> 
C22: CO2削減量(t-CO2/年) | I22: ='たたき台 5のヒートポンプ更新シートの裏'!L6 ->  | L22: 削減率 (%) | M22: =F21-I21/F21 -> 
C23: エネルギー使用量(GJ/年) | F23: ='たたき台 5のヒートポンプ更新シートの裏'!H7 -> 578.88 | I23: ='たたき台 5のヒートポンプ更新シートの裏'!L7 ->  | L23: 省エネ率 (%) | M23: =(F23-I23)/(F23/100) -> 
C24: エネルギーコスト(千円/年) | F24: ='たたき台 5のヒートポンプ更新シートの裏'!H8 -> 1675 | I24: ='たたき台 5のヒートポンプ更新シートの裏'!L8 -> 

Sheet たたき台 5のヒートポンプ更新シートの裏 (hidden)
H1: 表 | L1: 表
C2: 項 目 | H2: 既存設備 | L2: 導入設備
C3: 真発熱量 | H3: =IF('たたき台 5 ヒートポンプ更新シート'!L4,"3.6","") -> 3.6 | L3: =IF('たたき台 5 ヒートポンプ更新シート'!L8,"3.6","") -> 
C4: 電力使用量 (千kWh/年) | F4: ='たたき台 5 ヒートポンプ更新シート'!L4 -> 67000 | H4: =F4/1000 -> 67 | J4: ='2-2 運転条件シート'!S40 ->  | L4: ='2-2 運転条件シート'!S40/1000 ->  | M4: 千kWh/年
C5: CO2排出量(t-CO2/年) | F5: =F4*C12 -> 29078 | H5: =H4*C12 -> 29.078 | J5: =J4*C12 ->  | L5: =L4*C12 ->  | M5: t-CO2/年
C6: CO2削減量(t-CO2/年) | J6: =F5-J5 ->  | L6: =J6/1000 -> 
C7: エネルギー使用量(GJ/年) | F7: =F4*C13 -> 578880 | H7: =H4*C13 -> 578.88 | J7: =J4*C13 ->  | L7: =L4*C13 ->  | M7: GJ/年
C8: エネルギーコスト(千円/年) | F8: =F4*B11 -> 1675000 | H8: =H4*B11 -> 1675 | J8: =J4*B11 ->  | L8: =L4*B11 ->  | M8: 千円/年
A11: 単価 | B11: ='たたき台 5 ヒートポンプ更新シート'!L12 -> 25 | C11: 円/kWh
A12: CO2排出係数 | C12: 0.434
A13: 電力の一次エネルギー換算係数 | C13: 8.64

Sheet 燃料データ_新 (hidden)
A1: ◆燃料一覧表 | B1: (低) | F1: エネルギー単価
A2: A重油 | B2: 36.73 | C2: GJ/kL | D2: kL/年 | E2: GJ/年 | F2: 85 | G2: 1 | H2: =F2*G2 -> 85 | I2: 千円/kL
A3: C重油 | B3: 39.67 | C3: GJ/kL | D3: kL/年 | E3: GJ/年 | F3: 68 | G3: 1 | H3: =F3*G3 -> 68 | I3: 千円/kL
A4: 灯油 | B4: 34.27 | C4: GJ/kL | D4: kL/年 | E4: GJ/年 | F4: 101 | G4: 1 | H4: 101 | I4: 千円/kL
A5: LPG(液) | B5: 46.44 | C5: GJ/t | D5: t/年 | E5: GJ/年 | F5: 140 | G5: 1 | H5: 140 | I5: 千円/t
A6: LPG(ガス) | B6: 46.44 | C6: GJ/t | D6: 千m3/年 | E6: GJ/年 | F6: 140 | G6: 2.1834 | H6: 305.676 | I6: 千円/t
A7: LNG | B7: 49.84 | C7: GJ/t | D7: t/年 | E7: GJ/年 | F7: 101 | G7: 1 | H7: 101 | I7: 千円/t
A8: 都市ガス(Nm3) | B8: 40.63 | C8: GJ/千Nm3 | D8: 千Nm3/年 | E8: GJ/年 | F8: 94 | G8: 1 | H8: 94 | I8: 千円/千Nm3
A9: 都市ガス(m3) | B9: 40.63 | C9: GJ/千m3 | D9: 千m3/年 | E9: GJ/年 | F9: 94 | G9: 0.9291 | H9: 87.3354 | I9: 千円/千m3
A10: 電気 | B10: 3.6 | C10: GJ/千kWh | D10: 千kWh/年 | E10: GJ/年 | F10: 24 | G10: 1 | H10: 24 | I10: 千円/千kWh
A11: LPG | B11: 46.44 | C11: GJ/t | D11: t/年 | E11: GJ/年 | F11: 140 | G11: 1 | H11: 140 | I11: 千円/t
A12: LNG | B12: 49.84 | C12: GJ/t | D12: t/年 | E12: GJ/年 | F12: 101 | G12: 1 | H12: 101 | I12: 千円/t
A13: 都市ガス | B13: 40.63 | C13: GJ/千Nm3 | D13: 千Nm3/年 | E13: GJ/年 | F13: 94 | G13: 1 | H13: 94 | I13: 千円/千Nm3
A14: 木質ペレット | B14: 12.57 | C14: GJ/t | D14: t/年 | E14: GJ/年 | F14: 25 | G14: 1 | H14: 25 | I14: 千円/t
A15: 【注★】既存と導入の燃料種を統合した表からVLOOKUPで値を返すように変更。
A16: （プルダウンリストの燃料名が既存と導入で表現違いあり。違いがあるとVLOOKUPで拾わないため燃料名重複させている）
A19: ◆既存燃料使用量算定 | G19: 既存燃料使用量 | I19: 既存エネルギーコスト | J19: =IFERROR(VLOOKUP('3 効果算定シート'!E38,燃料データ_新!A2:H14,8,FALSE),"") ->  | K19: 円
A20: A重油 | B20: 1 | C20: ='3 効果算定シート'!$L$9 -> 0 | D20: =B20*C20 -> 0 | E20: kL/年 | J20: =IFERROR(J19*G21,"") ->  | K20: 千円/年
A21: C重油 | B21: 1 | C21: ='3 効果算定シート'!$L$9 -> 0 | D21: =B21*C21 -> 0 | E21: kL/年 | F21: ⇐単位 | G21: =IFERROR(VLOOKUP('3 効果算定シート'!L4,燃料データ_新!A20:D28,4,FALSE),"") ->  | I21: 手入力 | K21: 千円/年
A22: 灯油 | B22: 1 | C22: ='3 効果算定シート'!$L$9 -> 0 | D22: 0 | E22: kL/年
A23: LPG(液) | B23: 1 | C23: ='3 効果算定シート'!$L$9 -> 0 | D23: 0 | E23: t/年 | G23: 導入燃料使用量 | I23: 導入エネルギーコスト | K23: 円
A24: LPG(ガス) | B24: 2.1834 | C24: ='3 効果算定シート'!$L$9 -> 0 | D24: 0 | E24: 千m3/年 | J24: =IFERROR(J23*G25,"") ->  | K24: 千円/年
A25: LNG | B25: 1 | C25: ='3 効果算定シート'!$L$9 -> 0 | D25: 0 | E25: t/年 | F25: ⇐単位 | G25: =IFERROR((G21*'3 効果算定シート'!E37*'3 効果算定シート'!E39)/('3 効果算定シート'!I37*'3 効果算定シート'!I39),"") ->  | I25: 手入力 | K25: 千円/年
A26: 都市ガス(Nm3) | B26: 1 | C26: ='3 効果算定シート'!$L$9 -> 0 | D26: 0 | E26: 千Nm3/年
A27: 都市ガス(m3) | B27: 0.9291 | C27: ='3 効果算定シート'!$L$9 -> 0 | D27: 0 | E27: 千m3/年
A28: 電気 | B28: 1 | C28: ='3 効果算定シート'!$L$9 -> 0 | D28: =C28*B28 -> 0 | E28: 千kWh/年
A30: CO2排出量算定 | B30: a（高） | D30: b | E30: c=a×ｂ | F30: [t-CO2/GJ]
A31: A重油 | B31: 38.9 | C31: GJ/kL | D31: 0.0706940874 | E31: =B31*D31 -> 2.75 | G31: 既存CO2排出量 | H31: =IFERROR(VLOOKUP('3 効果算定シート'!E38,燃料データ_新!A31:E43,5,FALSE),"") ->  | I31: →「3の効果算定シートの裏」のｚ
A32: C重油 | B32: 41.78 | C32: GJ/kL | D32: 0.07419818095 | E32: 3.1 | H32: =IFERROR(H31*G21,"") ->  | I32: t-co2/年
A33: 灯油 | B33: 36.49 | C33: GJ/kL | D33: 0.06851192107 | E33: 2.5
A34: LPG(液) | B34: 50.08 | C34: GJ/t | D34: 0.05970447284 | E34: 2.99 | G34: 導入CO2排出量
A35: LPG(ガス) | B35: 50.08 | C35: GJ/t | D35: 0.05970447284 | E35: 2.99 | H35: =IFERROR(H34*G25,"") -> 
A36: LNG | B36: 54.7 | C36: GJ/t | D36: 0.05100548446 | E36: 2.79
A37: 都市ガス(Nm3) | B37: 45 | C37: GJ/千Nm3 | D37: 0.05044444444 | E37: =B37*D37 -> 2.27 | H37: A | J37: B
A38: 都市ガス(m3) | B38: 45 | C38: GJ/千m3 | D38: 0.05044444444 | E38: 2.27 | F38: 2025-04-03 | G38: 既存エネ使用量 | H38: =IFERROR(VLOOKUP('3 効果算定シート'!E38,燃料データ_新!A31:E43,2,FALSE),"") ->  | J38: 8.64 | K38: 既存で電気を選んだ時はB、それ以外はA
A39: 電気 | B39: 3.6 | C39: GJ/千kWh | D39: 0.1216666667 | E39: =B39*D39 -> 0.438 | F39: 係数変更 | H39: =IFERROR(H38*G21,"") ->  | I39: GJ/年 | J39: =G21*J38 ->  | K39: 算定シートの裏のD10にリンク
A40: LPG | B40: 50.08 | C40: GJ/t | D40: 0.05970447284 | E40: 2.99
A41: LNG | B41: 54.7 | C41: GJ/t | D41: 0.05100548446 | E41: 2.79 | G41: 導入エネ使用量
A42: 都市ガス | B42: 45 | C42: GJ/千Nm3 | D42: 0.05044444444 | E42: 2.27 | H42: =IFERROR(H41*G25,"") -> 
A43: 木質ペレット | B43: 13.21 | C43: GJ/t | D43: 0 | E43: 0
A44: 【注★】と同様
A45: ※電気の場合は1次エネルギー換算として
B46: 8.64 | C46: GJ/千kWh

Sheet 改訂日 (hidden)
A1: 改訂日 | B1: Ver | C1: 担当 | D1: 内容
A2: 2025-01-29 | B2: 1.0
A3: 2025-02-19 | B3: 1.1 | C3: 大原 | D3: 計算式の修正、排出係数等修正
A4: 2025-03-28 | B4: 1.1.1 | C4: 大原 | D4: 修正係数の調整、導入設備の平均効率計算修正
A5: 2025-04-03 | B5: 1.1.2 | C5: 鈴木 | D5: 電気のCO2排出係数を0.434→0.438に変更

Sheet 計算シート (hidden)
D1: 方式 | E1: 焚上温度 | F1: 入口水温 | G1: 冷媒種類 | K1: -6 | L1: -5 | M1: -4 | N1: -3 | O1: -2 | P1: -1 | Q1: 0 | R1: 1 | S1: 2 | T1: 3 | U1: 4 | V1: 5 | W1: 6 | X1: 7 | Y1: 8 | Z1: 9 | AA1: 10 | AB1: 11 | AC1: 12 | AD1: 13 | AE1: 14 | AF1: 15 | AG1: 16 | AH1: 17 | AI1: 18 | AJ1: 19 | AK1: 20 | AL1: 21 | AM1: 22 | AN1: 23 | AO1: 24 | AP1: 25 | AQ1: 26 | AR1: 27 | AS1: 28 | AT1: 29 | AU1: 30 | AV1: 31 | AW1: 32 | AX1: 33 | AY1: 34 | AZ1: 35
A2: 季節(JRAIA) | B2: 外気温度と季節 | D2: 一過式 | E2: 65 | F2: 50 | G2: R744 | J2: α1 | K2: 0.3 | L2: 0.3 | M2: 0.3 | N2: 0.3 | O2: 0.3 | P2: 0.3 | Q2: 0.3 | R2: 0.28 | S2: 0.28 | T2: 0.28 | U2: 0.28 | V2: 0.28 | W2: 0.28 | X2: 0.28 | Y2: 0.28 | Z2: 0.28 | AA2: 0.28 | AB2: 0.28 | AC2: 0.27 | AD2: 0.27 | AE2: 0.27 | AF2: 0.27 | AG2: 0.27 | AH2: 0.27 | AI2: 0.27 | AJ2: 0.27 | AK2: 0.27 | AL2: 0.27 | AM2: 0.22 | AN2: 0.22 | AO2: 0.22 | AP2: 0.22 | AQ2: 0.22 | AR2: 0.22 | AS2: 0.22 | AT2: 0.22 | AU2: 0.22 | AV2: 0.22 | AW2: 0.22 | AX2: 0.22 | AY2: 0.22 | AZ2: 0.22
A3: 夏期 | B3: 21℃＜T1d | D3: 一過式 | E3: 65 | F3: 50 | G3: 2元(R410A/R134a) | J3: α2 | K3: 0.29 | L3: 0.29 | M3: 0.29 | N3: 0.29 | O3: 0.29 | P3: 0.29 | Q3: 0.29 | R3: 0.22 | S3: 0.22 | T3: 0.22 | U3: 0.22 | V3: 0.22 | W3: 0.22 | X3: 0.25 | Y3: 0.25 | Z3: 0.25 | AA3: 0.25 | AB3: 0.25 | AC3: 0.22 | AD3: 0.22 | AE3: 0.22 | AF3: 0.22 | AG3: 0.22 | AH3: 0.22 | AI3: 0.22 | AJ3: 0.22 | AK3: 0.22 | AL3: 0.22 | AM3: 0.2 | AN3: 0.2 | AO3: 0.2 | AP3: 0.2 | AQ3: 0.2 | AR3: 0.2 | AS3: 0.2 | AT3: 0.2 | AU3: 0.2 | AV3: 0.2 | AW3: 0.2 | AX3: 0.2 | AY3: 0.2 | AZ3: 0.2
A4: 中間期 | B4: 11℃＜T1d≦21℃ | D4: 一過式 | E4: 90 | F4: 70 | G4: R744 | J4: α1 | K4: 0.3 | L4: 0.3 | M4: 0.3 | N4: 0.3 | O4: 0.3 | P4: 0.3 | Q4: 0.3 | R4: 0.3 | S4: 0.3 | T4: 0.3 | U4: 0.3 | V4: 0.3 | W4: 0.3 | X4: 0.3 | Y4: 0.3 | Z4: 0.3 | AA4: 0.3 | AB4: 0.3 | AC4: 0.34 | AD4: 0.34 | AE4: 0.34 | AF4: 0.34 | AG4: 0.34 | AH4: 0.34 | AI4: 0.34 | AJ4: 0.34 | AK4: 0.34 | AL4: 0.34 | AM4: 0.27 | AN4: 0.27 | AO4: 0.27 | AP4: 0.27 | AQ4: 0.27 | AR4: 0.27 | AS4: 0.27 | AT4: 0.27 | AU4: 0.27 | AV4: 0.27 | AW4: 0.27 | AX4: 0.27 | AY4: 0.27 | AZ4: 0.27
A5: 冬季標準 | B5: 6℃＜T1d≦11℃ | D5: 一過式 | E5: 90 | F5: 70 | G5: 2元(R410A/R134a) | J5: α2 | K5: 0.28 | L5: 0.28 | M5: 0.28 | N5: 0.28 | O5: 0.28 | P5: 0.28 | Q5: 0.28 | R5: 0.26 | S5: 0.26 | T5: 0.26 | U5: 0.26 | V5: 0.26 | W5: 0.26 | X5: 0.25 | Y5: 0.25 | Z5: 0.25 | AA5: 0.25 | AB5: 0.25 | AC5: 0.24 | AD5: 0.24 | AE5: 0.24 | AF5: 0.24 | AG5: 0.24 | AH5: 0.24 | AI5: 0.24 | AJ5: 0.24 | AK5: 0.24 | AL5: 0.24 | AM5: 0.25 | AN5: 0.25 | AO5: 0.25 | AP5: 0.25 | AQ5: 0.25 | AR5: 0.25 | AS5: 0.25 | AT5: 0.25 | AU5: 0.25 | AV5: 0.25 | AW5: 0.25 | AX5: 0.25 | AY5: 0.25 | AZ5: 0.25
A6: 着霜期 | B6: 0℃＜T1d≦6℃ | D6: 循環式 | E6: 60 | F6: 45 | G6: R410A | J6: ζ2 | K6: 0.3 | L6: 0.3 | M6: 0.3 | N6: 0.3 | O6: 0.3 | P6: 0.3 | Q6: 0.3 | R6: 0.29 | S6: 0.29 | T6: 0.29 | U6: 0.29 | V6: 0.29 | W6: 0.29 | X6: 0.34 | Y6: 0.34 | Z6: 0.34 | AA6: 0.34 | AB6: 0.34 | AC6: 0.34 | AD6: 0.34 | AE6: 0.34 | AF6: 0.34 | AG6: 0.34 | AH6: 0.34 | AI6: 0.34 | AJ6: 0.34 | AK6: 0.34 | AL6: 0.34 | AM6: 0.36 | AN6: 0.36 | AO6: 0.36 | AP6: 0.36 | AQ6: 0.36 | AR6: 0.36 | AS6: 0.36 | AT6: 0.36 | AU6: 0.36 | AV6: 0.36 | AW6: 0.36 | AX6: 0.36 | AY6: 0.36 | AZ6: 0.36
A7: 厳冬期 | B7: T1d≦0℃ | D7: 循環式 | E7: 60 | F7: 45 | G7: 2元(R410A/R134a) | J7: ζ1 | K7: 0.35 | L7: 0.35 | M7: 0.35 | N7: 0.35 | O7: 0.35 | P7: 0.35 | Q7: 0.35 | R7: 0.35 | S7: 0.35 | T7: 0.35 | U7: 0.35 | V7: 0.35 | W7: 0.35 | X7: 0.38 | Y7: 0.38 | Z7: 0.38 | AA7: 0.38 | AB7: 0.38 | AC7: 0.34 | AD7: 0.34 | AE7: 0.34 | AF7: 0.34 | AG7: 0.34 | AH7: 0.34 | AI7: 0.34 | AJ7: 0.34 | AK7: 0.34 | AL7: 0.34 | AM7: 0.29 | AN7: 0.29 | AO7: 0.29 | AP7: 0.29 | AQ7: 0.29 | AR7: 0.29 | AS7: 0.29 | AT7: 0.29 | AU7: 0.29 | AV7: 0.29 | AW7: 0.29 | AX7: 0.29 | AY7: 0.29 | AZ7: 0.29
A8: θ | B8: ℃ | D8: 循環式 | E8: 65 | F8: 50 | G8: 2段(R454C) | J8: ε | K8: 0.38 | L8: 0.38 | M8: 0.38 | N8: 0.38 | O8: 0.38 | P8: 0.38 | Q8: 0.38 | R8: 0.4 | S8: 0.4 | T8: 0.4 | U8: 0.4 | V8: 0.4 | W8: 0.4 | X8: 0.39 | Y8: 0.39 | Z8: 0.39 | AA8: 0.39 | AB8: 0.39 | AC8: 0.35 | AD8: 0.35 | AE8: 0.35 | AF8: 0.35 | AG8: 0.35 | AH8: 0.35 | AI8: 0.35 | AJ8: 0.35 | AK8: 0.35 | AL8: 0.35 | AM8: 0.34 | AN8: 0.34 | AO8: 0.34 | AP8: 0.34 | AQ8: 0.34 | AR8: 0.34 | AS8: 0.34 | AT8: 0.34 | AU8: 0.34 | AV8: 0.34 | AW8: 0.34 | AX8: 0.34 | AY8: 0.34 | AZ8: 0.34
A9: 循環式 | B9: 55 | C9: R410A | D9: 循環式 | E9: 60 | F9: 45 | G9: R407C | J9: γ2 | K9: 0.39 | L9: 0.39 | M9: 0.39 | N9: 0.39 | O9: 0.39 | P9: 0.39 | Q9: 0.39 | R9: 0.39 | S9: 0.39 | T9: 0.39 | U9: 0.39 | V9: 0.39 | W9: 0.39 | X9: 0.39 | Y9: 0.39 | Z9: 0.39 | AA9: 0.39 | AB9: 0.39 | AC9: 0.38 | AD9: 0.38 | AE9: 0.38 | AF9: 0.38 | AG9: 0.38 | AH9: 0.38 | AI9: 0.38 | AJ9: 0.38 | AK9: 0.38 | AL9: 0.38 | AM9: 0.32 | AN9: 0.32 | AO9: 0.32 | AP9: 0.32 | AQ9: 0.32 | AR9: 0.32 | AS9: 0.32 | AT9: 0.32 | AU9: 0.32 | AV9: 0.32 | AW9: 0.32 | AX9: 0.32 | AY9: 0.32 | AZ9: 0.32
A10: 循環式 | B10: 55 | C10: 2元(R410A/R134a) | D10: 保温加熱 | E10: 90 | F10: 70 | G10: R744 | J10: β | K10: 0.23 | L10: 0.23 | M10: 0.23 | N10: 0.23 | O10: 0.23 | P10: 0.23 | Q10: 0.23 | R10: 0.26 | S10: 0.26 | T10: 0.26 | U10: 0.26 | V10: 0.26 | W10: 0.26 | X10: 0.26 | Y10: 0.26 | Z10: 0.26 | AA10: 0.26 | AB10: 0.26 | AC10: 0.25 | AD10: 0.25 | AE10: 0.25 | AF10: 0.25 | AG10: 0.25 | AH10: 0.25 | AI10: 0.25 | AJ10: 0.25 | AK10: 0.25 | AL10: 0.25 | AM10: 0.21 | AN10: 0.21 | AO10: 0.21 | AP10: 0.21 | AQ10: 0.21 | AR10: 0.21 | AS10: 0.21 | AT10: 0.21 | AU10: 0.21 | AV10: 0.21 | AW10: 0.21 | AX10: 0.21 | AY10: 0.21 | AZ10: 0.21
A11: 循環式 | B11: 60 | C11: 2段(R454C)
A12: 循環式 | B12: 55 | C12: R407C | D12: 4月 | E12: θ | F12: η | G12: q | L12: ５月 | M12: θ | N12: η | O12: q | S12: ６月 | T12: θ | U12: η | V12: q | Z12: ７月 | AA12: θ | AB12: η | AC12: q | AG12: ８月 | AH12: θ | AI12: η | AJ12: q | AN12: ９月 | AO12: θ | AP12: η | AQ12: q | AU12: 10月 | AV12: θ | AW12: η | AX12: q | BB12: 11月 | BC12: θ | BD12: η | BE12: q | BI12: 12月 | BJ12: θ | BK12: η | BL12: q | BP12: 1月 | BQ12: θ | BR12: η | BS12: q | BW12: 2月 | BX12: θ | BY12: η | BZ12: q | CD12: 3月 | CE12: θ | CF12: η | CG12: q
A13: 保温加熱 | B13: 60 | C13: R744 | E13: =IF(A18="一過式",データ集②!D8,計算シート!A14) ->  | F13: =IFERROR(データ集!G5,"") ->  | G13: ='2-2 運転条件シート'!AG11 -> 0 | M13: =IF(A18="一過式",データ集②!E8,計算シート!A14) ->  | N13: =IFERROR(データ集!G6,"") ->  | O13: ='2-2 運転条件シート'!AG12 -> 0 | T13: =IF(A18="一過式",データ集②!F8,計算シート!A14) ->  | U13: =IFERROR(データ集!G7,"") ->  | V13: ='2-2 運転条件シート'!AG13 -> 0 | AA13: =IF(A18="一過式",データ集②!G8,計算シート!A14) ->  | AB13: =IFERROR(データ集!G8,"") ->  | AC13: ='2-2 運転条件シート'!AG14 -> 0 | AH13: =IF(A18="一過式",データ集②!H8,計算シート!A14) ->  | AI13: =IFERROR(データ集!G9,"") ->  | AJ13: ='2-2 運転条件シート'!AG15 -> 0 | AO13: =IF(A18="一過式",データ集②!I8,計算シート!A14) ->  | AP13: =IFERROR(データ集!G10,"") ->  | AQ13: ='2-2 運転条件シート'!AG16 -> 0 | AV13: =IF(A18="一過式",データ集②!J8,計算シート!A14) ->  | AW13: =IFERROR(データ集!G11,"") ->  | AX13: ='2-2 運転条件シート'!AG17 -> 0 | BC13: =IF(A18="一過式",データ集②!K8,計算シート!A14) ->  | BD13: =IFERROR(データ集!G12,"") ->  | BE13: ='2-2 運転条件シート'!AG18 -> 0 | BJ13: =IF(A18="一過式",データ集②!L8,計算シート!A14) ->  | BK13: =IFERROR(データ集!G13,"") ->  | BL13: ='2-2 運転条件シート'!AG19 -> 0 | BQ13: =IF(A18="一過式",データ集②!M8,計算シート!A14) ->  | BR13: =IFERROR(データ集!G14,"") ->  | BS13: ='2-2 運転条件シート'!AG20 -> 0 | BX13: =IF(A18="一過式",データ集②!N8,計算シート!A14) ->  | BY13: =IFERROR(データ集!G15,"") ->  | BZ13: ='2-2 運転条件シート'!AG21 -> 0 | CE13: =IF(A18="一過式",データ集②!O8,計算シート!A14) ->  | CF13: =IFERROR(データ集!G16,"") ->  | CG13: ='2-2 運転条件シート'!AG22 -> 0
A14: =_xlfn.XLOOKUP(A18&A20,A9:A13&C9:C13,B9:B13) ->  | B14: ←循環式のθ | E14: 発生時間 | F14: 修正係数 | G14: 給湯理論 | H14: 給湯効率 | I14: 消費電力1 | J14: 消費電力量 Φ4 | K14: 能力 Q4 | L14: 発生時間 | M14: 修正係数 | N14: 給湯理論 | O14: 給湯効率 | P14: 消費電力1 | Q14: 消費電力量 Φ5 | R14: 能力 Q5 | S14: 発生時間 | T14: 修正係数 | U14: 給湯理論 | V14: 給湯効率 | W14: 消費電力1 | X14: 消費電力量 Φ6 | Y14: 能力 Q6 | Z14: 発生時間 | AA14: 修正係数 | AB14: 給湯理論 | AC14: 給湯効率 | AD14: 消費電力1 | AE14: 消費電力量 Φ７ | AF14: 能力 Q７ | AG14: 発生時間 | AH14: 修正係数 | AI14: 給湯理論 | AJ14: 給湯効率 | AK14: 消費電力1 | AL14: 消費電力量 Φ８ | AM14: 能力 Q８ | AN14: 発生時間 | AO14: 修正係数 | AP14: 給湯理論 | AQ14: 給湯効率 | AR14: 消費電力1 | AS14: 消費電力量 Φ９ | AT14: 能力 Q９ | AU14: 発生時間 | AV14: 修正係数 | AW14: 給湯理論 | AX14: 給湯効率 | AY14: 消費電力1 | AZ14: 消費電力量 Φ10 | BA14: 能力 Q10 | BB14: 発生時間 | BC14: 修正係数 | BD14: 給湯理論 | BE14: 給湯効率 | BF14: 消費電力1 | BG14: 消費電力量 Φ11 | BH14: 能力 Q11 | BI14: 発生時間 | BJ14: 修正係数 | BK14: 給湯理論 | BL14: 給湯効率 | BM14: 消費電力1 | BN14: 消費電力量 Φ12 | BO14: 能力 Q12 | BP14: 発生時間 | BQ14: 修正係数 | BR14: 給湯理論 | BS14: 給湯効率 | BT14: 消費電力1 | BU14: 消費電力量 Φ1 | BV14: 能力 Q1 | BW14: 発生時間 | BX14: 修正係数 | BY14: 給湯理論 | BZ14: 給湯効率 | CA14: 消費電力1 | CB14: 消費電力量 Φ2 | CC14: 能力 Q2 | CD14: 発生時間 | CE14: 修正係数 | CF14: 給湯理論 | CG14: 給湯効率 | CH14: 消費電力1 | CI14: 消費電力量 Φ3 | CJ14: 能力 Q3
D15: 入口 乾球温度 | E15: t | F15: =IFERROR(_xlfn.XLOOKUP($A$18&$A$19&$A$20,$D$2:$D$10&$E$2:$E$10&G2:$G$10,J$2:J$10),"") ->  | G15: COP | H15: COPe | I15: p | J15: P×η×t | K15: ｑ t×η×q | L15: t | M15: =IFERROR(_xlfn.XLOOKUP($A$18&$A$19&$A$20,$D$2:$D$10&$E$2:$E$10&G2:$G$10,J$2:J$10),"") ->  | N15: COP | O15: COPe | P15: p | Q15: P×η×t | R15: ｑ t×η×q | S15: t | T15: =IFERROR(_xlfn.XLOOKUP($A$18&$A$19&$A$20,$D$2:$D$10&$E$2:$E$10&$G$2:$G$10,J$2:J$10),"") ->  | U15: COP | V15: COPe | W15: p | X15: P×η×t | Y15: ｑ t×η×q | Z15: t | AA15: =IFERROR(_xlfn.XLOOKUP($A$18&$A$19&$A$20,$D$2:$D$10&$E$2:$E$10&$G$2:$G$10,J$2:J$10),"") ->  | AB15: COP | AC15: COPe | AD15: p | AE15: P×η×t | AF15: ｑ t×η×q | AG15: t | AH15: =IFERROR(_xlfn.XLOOKUP($A$18&$A$19&$A$20,$D$2:$D$10&$E$2:$E$10&$G$2:$G$10,J$2:J$10),"") ->  | AI15: COP | AJ15: COPe | AK15: p | AL15: P×η×t | AM15: ｑ t×η×q | AN15: t | AO15: =IFERROR(_xlfn.XLOOKUP($A$18&$A$19&$A$20,$D$2:$D$10&$E$2:$E$10&$G$2:$G$10,J$2:J$10),"") ->  | AP15: COP | AQ15: COPe | AR15: p | AS15: P×η×t | AT15: ｑ t×η×q | AU15: t | AV15: =IFERROR(_xlfn.XLOOKUP($A$18&$A$19&$A$20,$D$2:$D$10&$E$2:$E$10&$G$2:$G$10,J$2:J$10),"") ->  | AW15: COP | AX15: COPe | AY15: p | AZ15: P×η×t | BA15: ｑ t×η×q | BB15: t | BC15: =IFERROR(_xlfn.XLOOKUP($A$18&$A$19&$A$20,$D$2:$D$10&$E$2:$E$10&$G$2:$G$10,J$2:J$10),"") ->  | BD15: COP | BE15: COPe | BF15: p | BG15: P×η×t | BH15: ｑ t×η×q | BI15: t | BJ15: =IFERROR(_xlfn.XLOOKUP($A$18&$A$19&$A$20,$D$2:$D$10&$E$2:$E$10&$G$2:$G$10,J$2:J$10),"") ->  | BK15: COP | BL15: COPe | BM15: p | BN15: P×η×t | BO15: ｑ t×η×q | BP15: t | BQ15: =IFERROR(_xlfn.XLOOKUP($A$18&$A$19&$A$20,$D$2:$D$10&$E$2:$E$10&$G$2:$G$10,J$2:J$10),"") ->  | BR15: COP | BS15: COPe | BT15: p | BU15: P×η×t | BV15: ｑ t×η×q | BW15: t | BX15: =IFERROR(_xlfn.XLOOKUP($A$18&$A$19&$A$20,$D$2:$D$10&$E$2:$E$10&$G$2:$G$10,J$2:J$10),"") ->  | BY15: COP | BZ15: COPe | CA15: p | CB15: P×η×t | CC15: ｑ t×η×q | CD15: t | CE15: =IFERROR(_xlfn.XLOOKUP($A$18&$A$19&$A$20,$D$2:$D$10&$E$2:$E$10&$G$2:$G$10,J$2:J$10),"") ->  | CF15: COP | CG15: COPe | CH15: p | CI15: P×η×t | CJ15: ｑ t×η×q
D16: T1d [℃] | E16: [h] | F16: [-] | G16: COPh(li1) | H16: [-] | I16: [kW] | J16: [kWh] | K16: ［kWh] | L16: [h] | M16: [-] | N16: COPh(li1) | O16: [-] | P16: [kW] | Q16: [kWh] | R16: ［kWh] | S16: [h] | T16: [-] | U16: COPh(li1) | V16: [-] | W16: [kW] | X16: [kWh] | Y16: ［kWh] | Z16: [h] | AA16: [-] | AB16: COPh(li1) | AC16: [-] | AD16: [kW] | AE16: [kWh] | AF16: ［kWh] | AG16: [h] | AH16: [-] | AI16: COPh(li1) | AJ16: [-] | AK16: [kW] | AL16: [kWh] | AM16: ［kWh] | AN16: [h] | AO16: [-] | AP16: COPh(li1) | AQ16: [-] | AR16: [kW] | AS16: [kWh] | AT16: ［kWh] | AU16: [h] | AV16: [-] | AW16: COPh(li1) | AX16: [-] | AY16: [kW] | AZ16: [kWh] | BA16: ［kWh] | BB16: [h] | BC16: [-] | BD16: COPh(li1) | BE16: [-] | BF16: [kW] | BG16: [kWh] | BH16: ［kWh] | BI16: [h] | BJ16: [-] | BK16: COPh(li1) | BL16: [-] | BM16: [kW] | BN16: [kWh] | BO16: ［kWh] | BP16: [h] | BQ16: [-] | BR16: COPh(li1) | BS16: [-] | BT16: [kW] | BU16: [kWh] | BV16: ［kWh] | BW16: [h] | BX16: [-] | BY16: COPh(li1) | BZ16: [-] | CA16: [kW] | CB16: [kWh] | CC16: ［kWh] | CD16: [h] | CE16: [-] | CF16: COPh(li1) | CG16: [-] | CH16: [kW] | CI16: [kWh] | CJ16: ［kWh]
A17: ='2-1 設備条件シート'!L10 ->  | D17: -6 | E17: ='2-2 運転条件シート'!D124 -> 0 | F17: =IFERROR(_xlfn.XLOOKUP($A$18&$A$19&$A$20,$D$2:$D$10&$E$2:$E$10&$G$2:$G$10,K$2:K$10),"") ->  | G17: =IFERROR(ROUND(1/(1-((D17+273)*LN(($A$19+273)/($E$13+273)))/($A$19-$E$13)),1),"") ->  | H17: =IFERROR(ROUND(F17*G17,1),"") ->  | I17: =IFERROR($G$13/H17,"") ->  | J17: =IFERROR($G$13/H17*E17*$F$13,"") ->  | K17: =IFERROR($G$13*$F$13*E17,"-") -> - | L17: ='2-2 運転条件シート'!D125 -> 0 | M17: =IFERROR(_xlfn.XLOOKUP($A$18&$A$19&$A$20,$D$2:$D$10&$E$2:$E$10&$G$2:$G$10,K$2:K$10),"") ->  | N17: =IFERROR(ROUND(1/(1-((D17+273)*LN(($A$19+273)/($M$13+273)))/($A$19-$M$13)),1),"") ->  | O17: =IFERROR(ROUND(M17*N17,1),"") ->  | P17: =IFERROR($O$13/O17,"") ->  | Q17: =IFERROR($O$13/O17*L17*$N$13,"") ->  | R17: =IFERROR($O$13*$N$13*L17,"-") -> - | S17: ='2-2 運転条件シート'!D126 -> 0 | T17: =IFERROR(_xlfn.XLOOKUP($A$18&$A$19&$A$20,$D$2:$D$10&$E$2:$E$10&$G$2:$G$10,K$2:K$10),"") ->  | U17: =IFERROR(ROUND(1/(1-((D17+273)*LN(($A$19+273)/($T$13+273)))/($A$19-$T$13)),1),"") ->  | V17: =IFERROR(ROUND(T17*U17,1),"") ->  | W17: =IFERROR($V$13/V17,"") ->  | X17: =IFERROR($V$13/V17*S17*$U$13,"") ->  | Y17: =IFERROR($V$13*$U$13*S17,"-") -> - | Z17: ='2-2 運転条件シート'!D127 -> 0 | AA17: =IFERROR(_xlfn.XLOOKUP($A$18&$A$19&$A$20,$D$2:$D$10&$E$2:$E$10&$G$2:$G$10,K$2:K$10),"") ->  | AB17: =IFERROR(ROUND(1/(1-((D17+273)*LN(($A$19+273)/($AA$13+273)))/($A$19-$AA$13)),1),"") ->  | AC17: =IFERROR(ROUND(AA17*AB17,1),"") ->  | AD17: =IFERROR($AC$13/AC17,"") ->  | AE17: =IFERROR($AC$13/AC17*Z17*$AB$13,"") ->  | AF17: =IFERROR($AC$13*$AB$13*Z17,"-") -> - | AG17: ='2-2 運転条件シート'!D128 -> 0 | AH17: =IFERROR(_xlfn.XLOOKUP($A$18&$A$19&$A$20,$D$2:$D$10&$E$2:$E$10&$G$2:$G$10,K$2:K$10),"") ->  | AI17: =IFERROR(ROUND(1/(1-((D17+273)*LN(($A$19+273)/($AH$13+273)))/($A$19-$AH$13)),1),"") ->  | AJ17: =IFERROR(ROUND(AH17*AI17,1),"") ->  | AK17: =IFERROR($AJ$13/AJ17,"") ->  | AL17: =IFERROR($AJ$13/AJ17*AG17*$AI$13,"") ->  | AM17: =IFERROR($AJ$13*$AI$13*AG17,"-") -> - | AN17: ='2-2 運転条件シート'!D129 -> 0 | AO17: =IFERROR(_xlfn.XLOOKUP($A$18&$A$19&$A$20,$D$2:$D$10&$E$2:$E$10&$G$2:$G$10,K$2:K$10),"") ->  | AP17: =IFERROR(ROUND(1/(1-((D17+273)*LN(($A$19+273)/($AO$13+273)))/($A$19-$AO$13)),1),"") ->  | AQ17: =IFERROR(ROUND(AO17*AP17,1),"") ->  | AR17: =IFERROR($AQ$13/AQ17,"") ->  | AS17: =IFERROR($AQ$13/AQ17*AN17*$AP$13,"") ->  | AT17: =IFERROR($AQ$13*$AP$13*AN17,"-") -> - | AU17: ='2-2 運転条件シート'!D130 -> 0 | AV17: =IFERROR(_xlfn.XLOOKUP($A$18&$A$19&$A$20,$D$2:$D$10&$E$2:$E$10&$G$2:$G$10,K$2:K$10),"") ->  | AW17: =IFERROR(ROUND(1/(1-((D17+273)*LN(($A$19+273)/($AV$13+273)))/($A$19-$AV$13)),1),"") ->  | AX17: =IFERROR(ROUND(AV17*AW17,1),"") ->  | AY17: =IFERROR($AX$13/AX17,"") ->  | AZ17: =IFERROR($AX$13/AX17*AU17*$AW$13,"") ->  | BA17: =IFERROR($AX$13*$AW$13*AU17,"-") -> - | BB17: ='2-2 運転条件シート'!D131 -> 0 | BC17: =IFERROR(_xlfn.XLOOKUP($A$18&$A$19&$A$20,$D$2:$D$10&$E$2:$E$10&$G$2:$G$10,K$2:K$10),"") ->  | BD17: =IFERROR(ROUND(1/(1-((D17+273)*LN(($A$19+273)/($BC$13+273)))/($A$19-$BC$13)),1),"") ->  | BE17: =IFERROR(ROUND(BC17*BD17,1),"") ->  | BF17: =IFERROR($BE$13/BE17,"") ->  | BG17: =IFERROR($BE$13/BE17*BB17*$BD$13,"") ->  | BH17: =IFERROR($BE$13*$BD$13*BB17,"-") -> - | BI17: ='2-2 運転条件シート'!D132 -> 0 | BJ17: =IFERROR(_xlfn.XLOOKUP($A$18&$A$19&$A$20,$D$2:$D$10&$E$2:$E$10&$G$2:$G$10,K$2:K$10),"") ->  | BK17: =IFERROR(ROUND(1/(1-((D17+273)*LN(($A$19+273)/($BJ$13+273)))/($A$19-$BJ$13)),1),"") ->  | BL17: =IFERROR(ROUND(BJ17*BK17,1),"") ->  | BM17: =IFERROR($BL$13/BL17,"") ->  | BN17: =IFERROR($BL$13/BL17*BI17*$BK$13,"") ->  | BO17: =IFERROR($BL$13*$BK$13*BI17,"-") -> - | BP17: ='2-2 運転条件シート'!D133 -> 0 | BQ17: =IFERROR(_xlfn.XLOOKUP($A$18&$A$19&$A$20,$D$2:$D$10&$E$2:$E$10&$G$2:$G$10,K$2:K$10),"") ->  | BR17: =IFERROR(ROUND(1/(1-((D17+273)*LN(($A$19+273)/($BQ$13+273)))/($A$19-$BQ$13)),1),"") ->  | BS17: =IFERROR(ROUND(BQ17*BR17,1),"") ->  | BT17: =IFERROR($BS$13/BS17,"") ->  | BU17: =IFERROR($BS$13/BS17*BP17*$BR$13,"") ->  | BV17: =IFERROR($BS$13*$BR$13*BP17,"-") -> - | BW17: ='2-2 運転条件シート'!D134 -> 0 | BX17: =IFERROR(_xlfn.XLOOKUP($A$18&$A$19&$A$20,$D$2:$D$10&$E$2:$E$10&$G$2:$G$10,K$2:K$10),"") ->  | BY17: =IFERROR(ROUND(1/(1-((D17+273)*LN(($A$19+273)/($BX$13+273)))/($A$19-$BX$13)),1),"") ->  | BZ17: =IFERROR(ROUND(BX17*BY17,1),"") ->  | CA17: =IFERROR($BZ$13/BZ17,"") ->  | CB17: =IFERROR($BZ$13/BZ17*BW17*$BY$13,"") ->  | CC17: =IFERROR($BZ$13*$BY$13*BW17,"-") -> - | CD17: ='2-2 運転条件シート'!D135 -> 0 | CE17: =IFERROR(_xlfn.XLOOKUP($A$18&$A$19&$A$20,$D$2:$D$10&$E$2:$E$10&$G$2:$G$10,K$2:K$10),"") ->  | CF17: =IFERROR(ROUND(1/(1-((D17+273)*LN(($A$19+273)/($CE$13+273)))/($A$19-$CE$13)),1),"") ->  | CG17: =IFERROR(ROUND(CE17*CF17,1),"") ->  | CH17: =IFERROR($CG$13/CG17,"") ->  | CI17: =IFERROR($CG$13/CG17*CD17*$CF$13,"") ->  | CJ17: =IFERROR($CG$13*$CF$13*CD17,"-") -> -
A18: ='2-1 設備条件シート'!L14 -> 0 | D18: -5 | E18: ='2-2 運転条件シート'!E124 -> 0 | F18: =IFERROR(_xlfn.XLOOKUP($A$18&$A$19&$A$20,$D$2:$D$10&$E$2:$E$10&$G$2:$G$10,L$2:L$10),"") ->  | G18: =IFERROR(ROUND(1/(1-((D18+273)*LN(($A$19+273)/($E$13+273)))/($A$19-$E$13)),1),"") ->  | H18: =IFERROR(ROUND(F18*G18,1),"") ->  | I18: =IFERROR($G$13/H18,"") ->  | J18: =IFERROR($G$13/H18*E18*$F$13,"") ->  | K18: =IFERROR($G$13*$F$13*E18,"-") -> - | L18: ='2-2 運転条件シート'!E125 -> 0 | M18: =IFERROR(_xlfn.XLOOKUP($A$18&$A$19&$A$20,$D$2:$D$10&$E$2:$E$10&$G$2:$G$10,L$2:L$10),"") ->  | O18: =IFERROR(ROUND(M18*N18,1),"") ->  | P18: =IFERROR($O$13/O18,"") ->  | Q18: =IFERROR($O$13/O18*L18*$N$13,"") ->  | R18: =IFERROR($O$13*$N$13*L18,"-") -> - | S18: ='2-2 運転条件シート'!E126 -> 0 | T18: =IFERROR(_xlfn.XLOOKUP($A$18&$A$19&$A$20,$D$2:$D$10&$E$2:$E$10&$G$2:$G$10,L$2:L$10),"") ->  | V18: =IFERROR(ROUND(T18*U18,1),"") ->  | W18: =IFERROR($V$13/V18,"") ->  | X18: =IFERROR($V$13/V18*S18*$U$13,"") ->  | Y18: =IFERROR($V$13*$U$13*S18,"-") -> - | Z18: ='2-2 運転条件シート'!E127 -> 0 | AA18: =IFERROR(_xlfn.XLOOKUP($A$18&$A$19&$A$20,$D$2:$D$10&$E$2:$E$10&$G$2:$G$10,L$2:L$10),"") ->  | AC18: =IFERROR(ROUND(AA18*AB18,1),"") ->  | AD18: =IFERROR($AC$13/AC18,"") ->  | AE18: =IFERROR($AC$13/AC18*Z18*$AB$13,"") ->  | AF18: =IFERROR($AC$13*$AB$13*Z18,"-") -> - | AG18: ='2-2 運転条件シート'!E128 -> 0 | AH18: =IFERROR(_xlfn.XLOOKUP($A$18&$A$19&$A$20,$D$2:$D$10&$E$2:$E$10&$G$2:$G$10,L$2:L$10),"") ->  | AJ18: =IFERROR(ROUND(AH18*AI18,1),"") ->  | AK18: =IFERROR($AJ$13/AJ18,"") ->  | AL18: =IFERROR($AJ$13/AJ18*AG18*$AI$13,"") ->  | AM18: =IFERROR($AJ$13*$AI$13*AG18,"-") -> - | AN18: ='2-2 運転条件シート'!E129 -> 0 | AO18: =IFERROR(_xlfn.XLOOKUP($A$18&$A$19&$A$20,$D$2:$D$10&$E$2:$E$10&$G$2:$G$10,L$2:L$10),"") ->  | AP18: =IFERROR(ROUND(1/(1-((D18+273)*LN(($A$19+273)/($AO$13+273)))/($A$19-$AO$13)),1),"") ->  | AQ18: =IFERROR(ROUND(AO18*AP18,1),"") ->  | AR18: =IFERROR($AQ$13/AQ18,"") ->  | AS18: =IFERROR($AQ$13/AQ18*AN18*$AP$13,"") ->  | AT18: =IFERROR($AQ$13*$AP$13*AN18,"-") -> - | AU18: ='2-2 運転条件シート'!E130 -> 0 | AV18: =IFERROR(_xlfn.XLOOKUP($A$18&$A$19&$A$20,$D$2:$D$10&$E$2:$E$10&$G$2:$G$10,L$2:L$10),"") ->  | AW18: =IFERROR(ROUND(1/(1-((D18+273)*LN(($A$19+273)/($AV$13+273)))/($A$19-$AV$13)),1),"") ->  | AX18: =IFERROR(ROUND(AV18*AW18,1),"") ->  | AY18: =IFERROR($AX$13/AX18,"") ->  | AZ18: =IFERROR($AX$13/AX18*AU18*$AW$13,"") ->  | BA18: =IFERROR($AX$13*$AW$13*AU18,"-") -> - | BB18: ='2-2 運転条件シート'!E131 -> 0 | BC18: =IFERROR(_xlfn.XLOOKUP($A$18&$A$19&$A$20,$D$2:$D$10&$E$2:$E$10&$G$2:$G$10,L$2:L$10),"") ->  | BE18: =IFERROR(ROUND(BC18*BD18,1),"") ->  | BF18: =IFERROR($BE$13/BE18,"") ->  | BG18: =IFERROR($BE$13/BE18*BB18*$BD$13,"") ->  | BH18: =IFERROR($BE$13*$BD$13*BB18,"-") -> - | BI18: ='2-2 運転条件シート'!E132 -> 0 | BJ18: =IFERROR(_xlfn.XLOOKUP($A$18&$A$19&$A$20,$D$2:$D$10&$E$2:$E$10&$G$2:$G$10,L$2:L$10),"") ->  | BL18: =IFERROR(ROUND(BJ18*BK18,1),"") ->  | BM18: =IFERROR($BL$13/BL18,"") ->  | BN18: =IFERROR($BL$13/BL18*BI18*$BK$13,"") ->  | BO18: =IFERROR($BL$13*$BK$13*BI18,"-") -> - | BP18: ='2-2 運転条件シート'!E133 -> 0 | BQ18: =IFERROR(_xlfn.XLOOKUP($A$18&$A$19&$A$20,$D$2:$D$10&$E$2:$E$10&$G$2:$G$10,L$2:L$10),"") ->  | BS18: =IFERROR(ROUND(BQ18*BR18,1),"") ->  | BT18: =IFERROR($BS$13/BS18,"") ->  | BU18: =IFERROR($BS$13/BS18*BP18*$BR$13,"") ->  | BV18: =IFERROR($BS$13*$BR$13*BP18,"-") -> - | BW18: ='2-2 運転条件シート'!E134 -> 0 | BX18: =IFERROR(_xlfn.XLOOKUP($A$18&$A$19&$A$20,$D$2:$D$10&$E$2:$E$10&$G$2:$G$10,L$2:L$10),"") ->  | BZ18: =IFERROR(ROUND(BX18*BY18,1),"") ->  | CA18: =IFERROR($BZ$13/BZ18,"") ->  | CB18: =IFERROR($BZ$13/BZ18*BW18*$BY$13,"") ->  | CC18: =IFERROR($BZ$13*$BY$13*BW18,"-") -> - | CD18: ='2-2 運転条件シート'!E135 -> 0 | CE18: =IFERROR(_xlfn.XLOOKUP($A$18&$A$19&$A$20,$D$2:$D$10&$E$2:$E$10&$G$2:$G$10,L$2:L$10),"") ->  | CG18: =IFERROR(ROUND(CE18*CF18,1),"") ->  | CH18: =IFERROR($CG$13/CG18,"") ->  | CI18: =IFERROR($CG$13/CG18*CD18*$CF$13,"") ->  | CJ18: =IFERROR($CG$13*$CF$13*CD18,"-") -> -
A19: ='2-2 運転条件シート'!AH11 -> 0 | C19: 焚上温度 | D19: -4 | E19: ='2-2 運転条件シート'!F124 -> 0 | F19: =IFERROR(_xlfn.XLOOKUP($A$18&$A$19&$A$20,$D$2:$D$10&$E$2:$E$10&$G$2:$G$10,M$2:M$10),"") ->  | I19: =IFERROR($G$13/H19,"") ->  | K19: - | L19: ='2-2 運転条件シート'!F125 -> 0 | M19: =IFERROR(_xlfn.XLOOKUP($A$18&$A$19&$A$20,$D$2:$D$10&$E$2:$E$10&$G$2:$G$10,M$2:M$10),"") ->  | R19: - | S19: ='2-2 運転条件シート'!F126 -> 0 | T19: =IFERROR(_xlfn.XLOOKUP($A$18&$A$19&$A$20,$D$2:$D$10&$E$2:$E$10&$G$2:$G$10,M$2:M$10),"") ->  | V19: =IFERROR(ROUND(T19*U19,1),"") ->  | Y19: - | Z19: ='2-2 運転条件シート'!F127 -> 0 | AA19: =IFERROR(_xlfn.XLOOKUP($A$18&$A$19&$A$20,$D$2:$D$10&$E$2:$E$10&$G$2:$G$10,M$2:M$10),"") ->  | AF19: - | AG19: ='2-2 運転条件シート'!F128 -> 0 | AH19: =IFERROR(_xlfn.XLOOKUP($A$18&$A$19&$A$20,$D$2:$D$10&$E$2:$E$10&$G$2:$G$10,M$2:M$10),"") ->  | AJ19: =IFERROR(ROUND(AH19*AI19,1),"") ->  | AM19: - | AN19: ='2-2 運転条件シート'!F129 -> 0 | AO19: =IFERROR(_xlfn.XLOOKUP($A$18&$A$19&$A$20,$D$2:$D$10&$E$2:$E$10&$G$2:$G$10,M$2:M$10),"") ->  | AQ19: =IFERROR(ROUND(AO19*AP19,1),"") ->  | AT19: - | AU19: ='2-2 運転条件シート'!F130 -> 0 | AV19: =IFERROR(_xlfn.XLOOKUP($A$18&$A$19&$A$20,$D$2:$D$10&$E$2:$E$10&$G$2:$G$10,M$2:M$10),"") ->  | AW19: =IFERROR(ROUND(1/(1-((D19+273)*LN(($A$19+273)/($AV$13+273)))/($A$19-$AV$13)),1),"") ->  | BA19: - | BB19: ='2-2 運転条件シート'!F131 -> 0 | BC19: =IFERROR(_xlfn.XLOOKUP($A$18&$A$19&$A$20,$D$2:$D$10&$E$2:$E$10&$G$2:$G$10,M$2:M$10),"") ->  | BH19: - | BI19: ='2-2 運転条件シート'!F132 -> 0 | BJ19: =IFERROR(_xlfn.XLOOKUP($A$18&$A$19&$A$20,$D$2:$D$10&$E$2:$E$10&$G$2:$G$10,M$2:M$10),"") ->  | BO19: - | BP19: ='2-2 運転条件シート'!F133 -> 0 | BQ19: =IFERROR(_xlfn.XLOOKUP($A$18&$A$19&$A$20,$D$2:$D$10&$E$2:$E$10&$G$2:$G$10,M$2:M$10),"") ->  | BV19: - | BW19: ='2-2 運転条件シート'!F134 -> 0 | BX19: =IFERROR(_xlfn.XLOOKUP($A$18&$A$19&$A$20,$D$2:$D$10&$E$2:$E$10&$G$2:$G$10,M$2:M$10),"") ->  | CC19: - | CD19: ='2-2 運転条件シート'!F135 -> 0 | CE19: =IFERROR(_xlfn.XLOOKUP($A$18&$A$19&$A$20,$D$2:$D$10&$E$2:$E$10&$G$2:$G$10,M$2:M$10),"") ->  | CJ19: -
A20: ='2-1 設備条件シート'!L16 -> 0 | D20: -3 | E20: ='2-2 運転条件シート'!G124 -> 0 | F20: =IFERROR(_xlfn.XLOOKUP($A$18&$A$19&$A$20,$D$2:$D$10&$E$2:$E$10&$G$2:$G$10,N$2:N$10),"") ->  | K20: - | L20: ='2-2 運転条件シート'!G125 -> 0 | M20: =IFERROR(_xlfn.XLOOKUP($A$18&$A$19&$A$20,$D$2:$D$10&$E$2:$E$10&$G$2:$G$10,N$2:N$10),"") ->  | R20: - | S20: ='2-2 運転条件シート'!G126 -> 0 | T20: =IFERROR(_xlfn.XLOOKUP($A$18&$A$19&$A$20,$D$2:$D$10&$E$2:$E$10&$G$2:$G$10,N$2:N$10),"") ->  | V20: =IFERROR(ROUND(T20*U20,1),"") ->  | Y20: - | Z20: ='2-2 運転条件シート'!G127 -> 0 | AA20: =IFERROR(_xlfn.XLOOKUP($A$18&$A$19&$A$20,$D$2:$D$10&$E$2:$E$10&$G$2:$G$10,N$2:N$10),"") ->  | AF20: - | AG20: ='2-2 運転条件シート'!G128 -> 0 | AH20: =IFERROR(_xlfn.XLOOKUP($A$18&$A$19&$A$20,$D$2:$D$10&$E$2:$E$10&$G$2:$G$10,N$2:N$10),"") ->  | AM20: - | AN20: ='2-2 運転条件シート'!G129 -> 0 | AO20: =IFERROR(_xlfn.XLOOKUP($A$18&$A$19&$A$20,$D$2:$D$10&$E$2:$E$10&$G$2:$G$10,N$2:N$10),"") ->  | AT20: - | AU20: ='2-2 運転条件シート'!G130 -> 0 | AV20: =IFERROR(_xlfn.XLOOKUP($A$18&$A$19&$A$20,$D$2:$D$10&$E$2:$E$10&$G$2:$G$10,N$2:N$10),"") ->  | BA20: - | BB20: ='2-2 運転条件シート'!G131 -> 0 | BC20: =IFERROR(_xlfn.XLOOKUP($A$18&$A$19&$A$20,$D$2:$D$10&$E$2:$E$10&$G$2:$G$10,N$2:N$10),"") ->  | BH20: - | BI20: ='2-2 運転条件シート'!G132 -> 0 | BJ20: =IFERROR(_xlfn.XLOOKUP($A$18&$A$19&$A$20,$D$2:$D$10&$E$2:$E$10&$G$2:$G$10,N$2:N$10),"") ->  | BO20: - | BP20: ='2-2 運転条件シート'!G133 -> 0 | BQ20: =IFERROR(_xlfn.XLOOKUP($A$18&$A$19&$A$20,$D$2:$D$10&$E$2:$E$10&$G$2:$G$10,N$2:N$10),"") ->  | BV20: - | BW20: ='2-2 運転条件シート'!G134 -> 0 | BX20: =IFERROR(_xlfn.XLOOKUP($A$18&$A$19&$A$20,$D$2:$D$10&$E$2:$E$10&$G$2:$G$10,N$2:N$10),"") ->  | CC20: - | CD20: ='2-2 運転条件シート'!G135 -> 0 | CE20: =IFERROR(_xlfn.XLOOKUP($A$18&$A$19&$A$20,$D$2:$D$10&$E$2:$E$10&$G$2:$G$10,N$2:N$10),"") ->  | CJ20: -
A21: =IFERROR(_xlfn.XLOOKUP(A18&A19&A20&F15,D2:D10&E2:E10&G2:G10&J2:J10,F2:F10),"-") -> - | C21: ピーク終了時の貯湯温度 | D21: -2 | E21: ='2-2 運転条件シート'!H124 -> 0 | F21: =IFERROR(_xlfn.XLOOKUP($A$18&$A$19&$A$20,$D$2:$D$10&$E$2:$E$10&$G$2:$G$10,O$2:O$10),"") ->  | K21: - | L21: ='2-2 運転条件シート'!H125 -> 0 | M21: =IFERROR(_xlfn.XLOOKUP($A$18&$A$19&$A$20,$D$2:$D$10&$E$2:$E$10&$G$2:$G$10,O$2:O$10),"") ->  | O21: =IFERROR(ROUND(M21*N21,1),"") ->  | R21: - | S21: ='2-2 運転条件シート'!H126 -> 0 | T21: =IFERROR(_xlfn.XLOOKUP($A$18&$A$19&$A$20,$D$2:$D$10&$E$2:$E$10&$G$2:$G$10,O$2:O$10),"") ->  | Y21: - | Z21: ='2-2 運転条件シート'!H127 -> 0 | AA21: =IFERROR(_xlfn.XLOOKUP($A$18&$A$19&$A$20,$D$2:$D$10&$E$2:$E$10&$G$2:$G$10,O$2:O$10),"") ->  | AF21: - | AG21: ='2-2 運転条件シート'!H128 -> 0 | AH21: =IFERROR(_xlfn.XLOOKUP($A$18&$A$19&$A$20,$D$2:$D$10&$E$2:$E$10&$G$2:$G$10,O$2:O$10),"") ->  | AM21: - | AN21: ='2-2 運転条件シート'!H129 -> 0 | AO21: =IFERROR(_xlfn.XLOOKUP($A$18&$A$19&$A$20,$D$2:$D$10&$E$2:$E$10&$G$2:$G$10,O$2:O$10),"") ->  | AP21: =IFERROR(ROUND(1/(1-((D21+273)*LN(($A$19+273)/($AO$13+273)))/($A$19-$AO$13)),1),"") ->  | AT21: - | AU21: ='2-2 運転条件シート'!H130 -> 0 | AV21: =IFERROR(_xlfn.XLOOKUP($A$18&$A$19&$A$20,$D$2:$D$10&$E$2:$E$10&$G$2:$G$10,O$2:O$10),"") ->  | AY21: =IFERROR($AX$13/AX21,"") ->  | BA21: - | BB21: ='2-2 運転条件シート'!H131 -> 0 | BC21: =IFERROR(_xlfn.XLOOKUP($A$18&$A$19&$A$20,$D$2:$D$10&$E$2:$E$10&$G$2:$G$10,O$2:O$10),"") ->  | BH21: - | BI21: ='2-2 運転条件シート'!H132 -> 0 | BJ21: =IFERROR(_xlfn.XLOOKUP($A$18&$A$19&$A$20,$D$2:$D$10&$E$2:$E$10&$G$2:$G$10,O$2:O$10),"") ->  | BM21: =IFERROR($BL$13/BL21,"") ->  | BO21: - | BP21: ='2-2 運転条件シート'!H133 -> 0 | BQ21: =IFERROR(_xlfn.XLOOKUP($A$18&$A$19&$A$20,$D$2:$D$10&$E$2:$E$10&$G$2:$G$10,O$2:O$10),"") ->  | BV21: - | BW21: ='2-2 運転条件シート'!H134 -> 0 | BX21: =IFERROR(_xlfn.XLOOKUP($A$18&$A$19&$A$20,$D$2:$D$10&$E$2:$E$10&$G$2:$G$10,O$2:O$10),"") ->  | CC21: - | CD21: ='2-2 運転条件シート'!H135 -> 0 | CE21: =IFERROR(_xlfn.XLOOKUP($A$18&$A$19&$A$20,$D$2:$D$10&$E$2:$E$10&$G$2:$G$10,O$2:O$10),"") ->  | CJ21: -
A22: ='2-1 設備条件シート'!L12 -> 0 | D22: -1 | E22: ='2-2 運転条件シート'!I124 -> 0 | F22: =IFERROR(_xlfn.XLOOKUP($A$18&$A$19&$A$20,$D$2:$D$10&$E$2:$E$10&$G$2:$G$10,P$2:P$10),"") ->  | K22: - | L22: ='2-2 運転条件シート'!I125 -> 0 | M22: =IFERROR(_xlfn.XLOOKUP($A$18&$A$19&$A$20,$D$2:$D$10&$E$2:$E$10&$G$2:$G$10,P$2:P$10),"") ->  | O22: =IFERROR(ROUND(M22*N22,1),"") ->  | R22: - | S22: ='2-2 運転条件シート'!I126 -> 0 | T22: =IFERROR(_xlfn.XLOOKUP($A$18&$A$19&$A$20,$D$2:$D$10&$E$2:$E$10&$G$2:$G$10,P$2:P$10),"") ->  | Y22: - | Z22: ='2-2 運転条件シート'!I127 -> 0 | AA22: =IFERROR(_xlfn.XLOOKUP($A$18&$A$19&$A$20,$D$2:$D$10&$E$2:$E$10&$G$2:$G$10,P$2:P$10),"") ->  | AF22: - | AG22: ='2-2 運転条件シート'!I128 -> 0 | AH22: =IFERROR(_xlfn.XLOOKUP($A$18&$A$19&$A$20,$D$2:$D$10&$E$2:$E$10&$G$2:$G$10,P$2:P$10),"") ->  | AM22: - | AN22: ='2-2 運転条件シート'!I129 -> 0 | AO22: =IFERROR(_xlfn.XLOOKUP($A$18&$A$19&$A$20,$D$2:$D$10&$E$2:$E$10&$G$2:$G$10,P$2:P$10),"") ->  | AT22: - | AU22: ='2-2 運転条件シート'!I130 -> 0 | AV22: =IFERROR(_xlfn.XLOOKUP($A$18&$A$19&$A$20,$D$2:$D$10&$E$2:$E$10&$G$2:$G$10,P$2:P$10),"") ->  | BA22: - | BB22: ='2-2 運転条件シート'!I131 -> 0 | BC22: =IFERROR(_xlfn.XLOOKUP($A$18&$A$19&$A$20,$D$2:$D$10&$E$2:$E$10&$G$2:$G$10,P$2:P$10),"") ->  | BH22: - | BI22: ='2-2 運転条件シート'!I132 -> 0 | BJ22: =IFERROR(_xlfn.XLOOKUP($A$18&$A$19&$A$20,$D$2:$D$10&$E$2:$E$10&$G$2:$G$10,P$2:P$10),"") ->  | BO22: - | BP22: ='2-2 運転条件シート'!I133 -> 0 | BQ22: =IFERROR(_xlfn.XLOOKUP($A$18&$A$19&$A$20,$D$2:$D$10&$E$2:$E$10&$G$2:$G$10,P$2:P$10),"") ->  | BV22: - | BW22: ='2-2 運転条件シート'!I134 -> 0 | BX22: =IFERROR(_xlfn.XLOOKUP($A$18&$A$19&$A$20,$D$2:$D$10&$E$2:$E$10&$G$2:$G$10,P$2:P$10),"") ->  | CC22: - | CD22: ='2-2 運転条件シート'!I135 -> 0 | CE22: =IFERROR(_xlfn.XLOOKUP($A$18&$A$19&$A$20,$D$2:$D$10&$E$2:$E$10&$G$2:$G$10,P$2:P$10),"") ->  | CJ22: -
A23: =データ集②!M8 ->  | C23: 各地域の1月入水温度 | D23: 0 | E23: ='2-2 運転条件シート'!J124 -> 0 | F23: =IFERROR(_xlfn.XLOOKUP($A$18&$A$19&$A$20,$D$2:$D$10&$E$2:$E$10&$G$2:$G$10,Q$2:Q$10),"") ->  | K23: - | L23: ='2-2 運転条件シート'!J125 -> 0 | M23: =IFERROR(_xlfn.XLOOKUP($A$18&$A$19&$A$20,$D$2:$D$10&$E$2:$E$10&$G$2:$G$10,Q$2:Q$10),"") ->  | R23: - | S23: ='2-2 運転条件シート'!J126 -> 0 | T23: =IFERROR(_xlfn.XLOOKUP($A$18&$A$19&$A$20,$D$2:$D$10&$E$2:$E$10&$G$2:$G$10,Q$2:Q$10),"") ->  | Y23: - | Z23: ='2-2 運転条件シート'!J127 -> 0 | AA23: =IFERROR(_xlfn.XLOOKUP($A$18&$A$19&$A$20,$D$2:$D$10&$E$2:$E$10&$G$2:$G$10,Q$2:Q$10),"") ->  | AF23: - | AG23: ='2-2 運転条件シート'!J128 -> 0 | AH23: =IFERROR(_xlfn.XLOOKUP($A$18&$A$19&$A$20,$D$2:$D$10&$E$2:$E$10&$G$2:$G$10,Q$2:Q$10),"") ->  | AM23: - | AN23: ='2-2 運転条件シート'!J129 -> 0 | AO23: =IFERROR(_xlfn.XLOOKUP($A$18&$A$19&$A$20,$D$2:$D$10&$E$2:$E$10&$G$2:$G$10,Q$2:Q$10),"") ->  | AT23: - | AU23: ='2-2 運転条件シート'!J130 -> 0 | AV23: =IFERROR(_xlfn.XLOOKUP($A$18&$A$19&$A$20,$D$2:$D$10&$E$2:$E$10&$G$2:$G$10,Q$2:Q$10),"") ->  | BA23: - | BB23: ='2-2 運転条件シート'!J131 -> 0 | BC23: =IFERROR(_xlfn.XLOOKUP($A$18&$A$19&$A$20,$D$2:$D$10&$E$2:$E$10&$G$2:$G$10,Q$2:Q$10),"") ->  | BH23: - | BI23: ='2-2 運転条件シート'!J132 -> 0 | BJ23: =IFERROR(_xlfn.XLOOKUP($A$18&$A$19&$A$20,$D$2:$D$10&$E$2:$E$10&$G$2:$G$10,Q$2:Q$10),"") ->  | BO23: - | BP23: ='2-2 運転条件シート'!J133 -> 0 | BQ23: =IFERROR(_xlfn.XLOOKUP($A$18&$A$19&$A$20,$D$2:$D$10&$E$2:$E$10&$G$2:$G$10,Q$2:Q$10),"") ->  | BV23: - | BW23: ='2-2 運転条件シート'!J134 -> 0 | BX23: =IFERROR(_xlfn.XLOOKUP($A$18&$A$19&$A$20,$D$2:$D$10&$E$2:$E$10&$G$2:$G$10,Q$2:Q$10),"") ->  | CC23: - | CD23: ='2-2 運転条件シート'!J135 -> 0 | CE23: =IFERROR(_xlfn.XLOOKUP($A$18&$A$19&$A$20,$D$2:$D$10&$E$2:$E$10&$G$2:$G$10,Q$2:Q$10),"") ->  | CJ23: -
D24: 1 | E24: ='2-2 運転条件シート'!K124 -> 0 | F24: =IFERROR(_xlfn.XLOOKUP($A$18&$A$19&$A$20,$D$2:$D$10&$E$2:$E$10&$G$2:$G$10,R$2:R$10),"") ->  | K24: - | L24: ='2-2 運転条件シート'!K125 -> 0 | M24: =IFERROR(_xlfn.XLOOKUP($A$18&$A$19&$A$20,$D$2:$D$10&$E$2:$E$10&$G$2:$G$10,R$2:R$10),"") ->  | O24: =IFERROR(ROUND(M24*N24,1),"") ->  | R24: - | S24: ='2-2 運転条件シート'!K126 -> 0 | T24: =IFERROR(_xlfn.XLOOKUP($A$18&$A$19&$A$20,$D$2:$D$10&$E$2:$E$10&$G$2:$G$10,R$2:R$10),"") ->  | Y24: - | Z24: ='2-2 運転条件シート'!K127 -> 0 | AA24: =IFERROR(_xlfn.XLOOKUP($A$18&$A$19&$A$20,$D$2:$D$10&$E$2:$E$10&$G$2:$G$10,R$2:R$10),"") ->  | AF24: - | AG24: ='2-2 運転条件シート'!K128 -> 0 | AH24: =IFERROR(_xlfn.XLOOKUP($A$18&$A$19&$A$20,$D$2:$D$10&$E$2:$E$10&$G$2:$G$10,R$2:R$10),"") ->  | AM24: - | AN24: ='2-2 運転条件シート'!K129 -> 0 | AO24: =IFERROR(_xlfn.XLOOKUP($A$18&$A$19&$A$20,$D$2:$D$10&$E$2:$E$10&$G$2:$G$10,R$2:R$10),"") ->  | AT24: - | AU24: ='2-2 運転条件シート'!K130 -> 0 | AV24: =IFERROR(_xlfn.XLOOKUP($A$18&$A$19&$A$20,$D$2:$D$10&$E$2:$E$10&$G$2:$G$10,R$2:R$10),"") ->  | BA24: - | BB24: ='2-2 運転条件シート'!K131 -> 0 | BC24: =IFERROR(_xlfn.XLOOKUP($A$18&$A$19&$A$20,$D$2:$D$10&$E$2:$E$10&$G$2:$G$10,R$2:R$10),"") ->  | BH24: - | BI24: ='2-2 運転条件シート'!K132 -> 0 | BJ24: =IFERROR(_xlfn.XLOOKUP($A$18&$A$19&$A$20,$D$2:$D$10&$E$2:$E$10&$G$2:$G$10,R$2:R$10),"") ->  | BO24: - | BP24: ='2-2 運転条件シート'!K133 -> 0 | BQ24: =IFERROR(_xlfn.XLOOKUP($A$18&$A$19&$A$20,$D$2:$D$10&$E$2:$E$10&$G$2:$G$10,R$2:R$10),"") ->  | BV24: - | BW24: ='2-2 運転条件シート'!K134 -> 0 | BX24: =IFERROR(_xlfn.XLOOKUP($A$18&$A$19&$A$20,$D$2:$D$10&$E$2:$E$10&$G$2:$G$10,R$2:R$10),"") ->  | CC24: - | CD24: ='2-2 運転条件シート'!K135 -> 0 | CE24: =IFERROR(_xlfn.XLOOKUP($A$18&$A$19&$A$20,$D$2:$D$10&$E$2:$E$10&$G$2:$G$10,R$2:R$10),"") ->  | CJ24: -
D25: 2 | E25: ='2-2 運転条件シート'!L124 -> 0 | F25: =IFERROR(_xlfn.XLOOKUP($A$18&$A$19&$A$20,$D$2:$D$10&$E$2:$E$10&$G$2:$G$10,S$2:S$10),"") ->  | K25: - | L25: ='2-2 運転条件シート'!L125 -> 0 | M25: =IFERROR(_xlfn.XLOOKUP($A$18&$A$19&$A$20,$D$2:$D$10&$E$2:$E$10&$G$2:$G$10,S$2:S$10),"") ->  | O25: =IFERROR(ROUND(M25*N25,1),"") ->  | R25: - | S25: ='2-2 運転条件シート'!L126 -> 0 | T25: =IFERROR(_xlfn.XLOOKUP($A$18&$A$19&$A$20,$D$2:$D$10&$E$2:$E$10&$G$2:$G$10,S$2:S$10),"") ->  | Y25: - | Z25: ='2-2 運転条件シート'!L127 -> 0 | AA25: =IFERROR(_xlfn.XLOOKUP($A$18&$A$19&$A$20,$D$2:$D$10&$E$2:$E$10&$G$2:$G$10,S$2:S$10),"") ->  | AF25: - | AG25: ='2-2 運転条件シート'!L128 -> 0 | AH25: =IFERROR(_xlfn.XLOOKUP($A$18&$A$19&$A$20,$D$2:$D$10&$E$2:$E$10&$G$2:$G$10,S$2:S$10),"") ->  | AM25: - | AN25: ='2-2 運転条件シート'!L129 -> 0 | AO25: =IFERROR(_xlfn.XLOOKUP($A$18&$A$19&$A$20,$D$2:$D$10&$E$2:$E$10&$G$2:$G$10,S$2:S$10),"") ->  | AT25: - | AU25: ='2-2 運転条件シート'!L130 -> 0 | AV25: =IFERROR(_xlfn.XLOOKUP($A$18&$A$19&$A$20,$D$2:$D$10&$E$2:$E$10&$G$2:$G$10,S$2:S$10),"") ->  | BA25: - | BB25: ='2-2 運転条件シート'!L131 -> 0 | BC25: =IFERROR(_xlfn.XLOOKUP($A$18&$A$19&$A$20,$D$2:$D$10&$E$2:$E$10&$G$2:$G$10,S$2:S$10),"") ->  | BH25: - | BI25: ='2-2 運転条件シート'!L132 -> 0 | BJ25: =IFERROR(_xlfn.XLOOKUP($A$18&$A$19&$A$20,$D$2:$D$10&$E$2:$E$10&$G$2:$G$10,S$2:S$10),"") ->  | BO25: - | BP25: ='2-2 運転条件シート'!L133 -> 0 | BQ25: =IFERROR(_xlfn.XLOOKUP($A$18&$A$19&$A$20,$D$2:$D$10&$E$2:$E$10&$G$2:$G$10,S$2:S$10),"") ->  | BV25: - | BW25: ='2-2 運転条件シート'!L134 -> 0 | BX25: =IFERROR(_xlfn.XLOOKUP($A$18&$A$19&$A$20,$D$2:$D$10&$E$2:$E$10&$G$2:$G$10,S$2:S$10),"") ->  | CC25: - | CD25: ='2-2 運転条件シート'!L135 -> 0 | CE25: =IFERROR(_xlfn.XLOOKUP($A$18&$A$19&$A$20,$D$2:$D$10&$E$2:$E$10&$G$2:$G$10,S$2:S$10),"") ->  | CJ25: -
D26: 3 | E26: ='2-2 運転条件シート'!M124 -> 0 | F26: =IFERROR(_xlfn.XLOOKUP($A$18&$A$19&$A$20,$D$2:$D$10&$E$2:$E$10&$G$2:$G$10,T$2:T$10),"") ->  | K26: - | L26: ='2-2 運転条件シート'!M125 -> 0 | M26: =IFERROR(_xlfn.XLOOKUP($A$18&$A$19&$A$20,$D$2:$D$10&$E$2:$E$10&$G$2:$G$10,T$2:T$10),"") ->  | O26: =IFERROR(ROUND(M26*N26,1),"") ->  | R26: - | S26: ='2-2 運転条件シート'!M126 -> 0 | T26: =IFERROR(_xlfn.XLOOKUP($A$18&$A$19&$A$20,$D$2:$D$10&$E$2:$E$10&$G$2:$G$10,T$2:T$10),"") ->  | Y26: - | Z26: ='2-2 運転条件シート'!M127 -> 0 | AA26: =IFERROR(_xlfn.XLOOKUP($A$18&$A$19&$A$20,$D$2:$D$10&$E$2:$E$10&$G$2:$G$10,T$2:T$10),"") ->  | AF26: - | AG26: ='2-2 運転条件シート'!M128 -> 0 | AH26: =IFERROR(_xlfn.XLOOKUP($A$18&$A$19&$A$20,$D$2:$D$10&$E$2:$E$10&$G$2:$G$10,T$2:T$10),"") ->  | AM26: - | AN26: ='2-2 運転条件シート'!M129 -> 0 | AO26: =IFERROR(_xlfn.XLOOKUP($A$18&$A$19&$A$20,$D$2:$D$10&$E$2:$E$10&$G$2:$G$10,T$2:T$10),"") ->  | AT26: - | AU26: ='2-2 運転条件シート'!M130 -> 0 | AV26: =IFERROR(_xlfn.XLOOKUP($A$18&$A$19&$A$20,$D$2:$D$10&$E$2:$E$10&$G$2:$G$10,T$2:T$10),"") ->  | BA26: - | BB26: ='2-2 運転条件シート'!M131 -> 0 | BC26: =IFERROR(_xlfn.XLOOKUP($A$18&$A$19&$A$20,$D$2:$D$10&$E$2:$E$10&$G$2:$G$10,T$2:T$10),"") ->  | BH26: - | BI26: ='2-2 運転条件シート'!M132 -> 0 | BJ26: =IFERROR(_xlfn.XLOOKUP($A$18&$A$19&$A$20,$D$2:$D$10&$E$2:$E$10&$G$2:$G$10,T$2:T$10),"") ->  | BO26: - | BP26: ='2-2 運転条件シート'!M133 -> 0 | BQ26: =IFERROR(_xlfn.XLOOKUP($A$18&$A$19&$A$20,$D$2:$D$10&$E$2:$E$10&$G$2:$G$10,T$2:T$10),"") ->  | BV26: - | BW26: ='2-2 運転条件シート'!M134 -> 0 | BX26: =IFERROR(_xlfn.XLOOKUP($A$18&$A$19&$A$20,$D$2:$D$10&$E$2:$E$10&$G$2:$G$10,T$2:T$10),"") ->  | CC26: - | CD26: ='2-2 運転条件シート'!M135 -> 0 | CE26: =IFERROR(_xlfn.XLOOKUP($A$18&$A$19&$A$20,$D$2:$D$10&$E$2:$E$10&$G$2:$G$10,T$2:T$10),"") ->  | CJ26: -
D27: 4 | E27: ='2-2 運転条件シート'!N124 -> 0 | F27: =IFERROR(_xlfn.XLOOKUP($A$18&$A$19&$A$20,$D$2:$D$10&$E$2:$E$10&$G$2:$G$10,U$2:U$10),"") ->  | K27: - | L27: ='2-2 運転条件シート'!N125 -> 0 | M27: =IFERROR(_xlfn.XLOOKUP($A$18&$A$19&$A$20,$D$2:$D$10&$E$2:$E$10&$G$2:$G$10,U$2:U$10),"") ->  | O27: =IFERROR(ROUND(M27*N27,1),"") ->  | R27: - | S27: ='2-2 運転条件シート'!N126 -> 0 | T27: =IFERROR(_xlfn.XLOOKUP($A$18&$A$19&$A$20,$D$2:$D$10&$E$2:$E$10&$G$2:$G$10,U$2:U$10),"") ->  | Y27: - | Z27: ='2-2 運転条件シート'!N127 -> 0 | AA27: =IFERROR(_xlfn.XLOOKUP($A$18&$A$19&$A$20,$D$2:$D$10&$E$2:$E$10&$G$2:$G$10,U$2:U$10),"") ->  | AF27: - | AG27: ='2-2 運転条件シート'!N128 -> 0 | AH27: =IFERROR(_xlfn.XLOOKUP($A$18&$A$19&$A$20,$D$2:$D$10&$E$2:$E$10&$G$2:$G$10,U$2:U$10),"") ->  | AM27: - | AN27: ='2-2 運転条件シート'!N129 -> 0 | AO27: =IFERROR(_xlfn.XLOOKUP($A$18&$A$19&$A$20,$D$2:$D$10&$E$2:$E$10&$G$2:$G$10,U$2:U$10),"") ->  | AT27: - | AU27: ='2-2 運転条件シート'!N130 -> 0 | AV27: =IFERROR(_xlfn.XLOOKUP($A$18&$A$19&$A$20,$D$2:$D$10&$E$2:$E$10&$G$2:$G$10,U$2:U$10),"") ->  | BA27: - | BB27: ='2-2 運転条件シート'!N131 -> 0 | BC27: =IFERROR(_xlfn.XLOOKUP($A$18&$A$19&$A$20,$D$2:$D$10&$E$2:$E$10&$G$2:$G$10,U$2:U$10),"") ->  | BH27: - | BI27: ='2-2 運転条件シート'!N132 -> 0 | BJ27: =IFERROR(_xlfn.XLOOKUP($A$18&$A$19&$A$20,$D$2:$D$10&$E$2:$E$10&$G$2:$G$10,U$2:U$10),"") ->  | BO27: - | BP27: ='2-2 運転条件シート'!N133 -> 0 | BQ27: =IFERROR(_xlfn.XLOOKUP($A$18&$A$19&$A$20,$D$2:$D$10&$E$2:$E$10&$G$2:$G$10,U$2:U$10),"") ->  | BV27: - | BW27: ='2-2 運転条件シート'!N134 -> 0 | BX27: =IFERROR(_xlfn.XLOOKUP($A$18&$A$19&$A$20,$D$2:$D$10&$E$2:$E$10&$G$2:$G$10,U$2:U$10),"") ->  | CC27: - | CD27: ='2-2 運転条件シート'!N135 -> 0 | CE27: =IFERROR(_xlfn.XLOOKUP($A$18&$A$19&$A$20,$D$2:$D$10&$E$2:$E$10&$G$2:$G$10,U$2:U$10),"") ->  | CJ27: -
D28: 5 | E28: ='2-2 運転条件シート'!O124 -> 0 | F28: =IFERROR(_xlfn.XLOOKUP($A$18&$A$19&$A$20,$D$2:$D$10&$E$2:$E$10&$G$2:$G$10,V$2:V$10),"") ->  | I28: =IFERROR($G$13/H28,"") ->  | J28: =IFERROR($G$13/H28*E28*$F$13,"") ->  | K28: =IFERROR($G$13*$F$13*E28,"-") -> - | L28: ='2-2 運転条件シート'!O125 -> 0 | M28: =IFERROR(_xlfn.XLOOKUP($A$18&$A$19&$A$20,$D$2:$D$10&$E$2:$E$10&$G$2:$G$10,V$2:V$10),"") ->  | R28: - | S28: ='2-2 運転条件シート'!O126 -> 0 | T28: =IFERROR(_xlfn.XLOOKUP($A$18&$A$19&$A$20,$D$2:$D$10&$E$2:$E$10&$G$2:$G$10,V$2:V$10),"") ->  | Y28: - | Z28: ='2-2 運転条件シート'!O127 -> 0 | AA28: =IFERROR(_xlfn.XLOOKUP($A$18&$A$19&$A$20,$D$2:$D$10&$E$2:$E$10&$G$2:$G$10,V$2:V$10),"") ->  | AF28: - | AG28: ='2-2 運転条件シート'!O128 -> 0 | AH28: =IFERROR(_xlfn.XLOOKUP($A$18&$A$19&$A$20,$D$2:$D$10&$E$2:$E$10&$G$2:$G$10,V$2:V$10),"") ->  | AM28: - | AN28: ='2-2 運転条件シート'!O129 -> 0 | AO28: =IFERROR(_xlfn.XLOOKUP($A$18&$A$19&$A$20,$D$2:$D$10&$E$2:$E$10&$G$2:$G$10,V$2:V$10),"") ->  | AT28: - | AU28: ='2-2 運転条件シート'!O130 -> 0 | AV28: =IFERROR(_xlfn.XLOOKUP($A$18&$A$19&$A$20,$D$2:$D$10&$E$2:$E$10&$G$2:$G$10,V$2:V$10),"") ->  | BA28: - | BB28: ='2-2 運転条件シート'!O131 -> 0 | BC28: =IFERROR(_xlfn.XLOOKUP($A$18&$A$19&$A$20,$D$2:$D$10&$E$2:$E$10&$G$2:$G$10,V$2:V$10),"") ->  | BH28: - | BI28: ='2-2 運転条件シート'!O132 -> 0 | BJ28: =IFERROR(_xlfn.XLOOKUP($A$18&$A$19&$A$20,$D$2:$D$10&$E$2:$E$10&$G$2:$G$10,V$2:V$10),"") ->  | BO28: - | BP28: ='2-2 運転条件シート'!O133 -> 0 | BQ28: =IFERROR(_xlfn.XLOOKUP($A$18&$A$19&$A$20,$D$2:$D$10&$E$2:$E$10&$G$2:$G$10,V$2:V$10),"") ->  | BV28: =IFERROR($BS$13*$BR$13*BP28,"-") -> - | BW28: ='2-2 運転条件シート'!O134 -> 0 | BX28: =IFERROR(_xlfn.XLOOKUP($A$18&$A$19&$A$20,$D$2:$D$10&$E$2:$E$10&$G$2:$G$10,V$2:V$10),"") ->  | CC28: - | CD28: ='2-2 運転条件シート'!O135 -> 0 | CE28: =IFERROR(_xlfn.XLOOKUP($A$18&$A$19&$A$20,$D$2:$D$10&$E$2:$E$10&$G$2:$G$10,V$2:V$10),"") ->  | CJ28: -
D29: 6 | E29: ='2-2 運転条件シート'!P124 -> 0 | F29: =IFERROR(_xlfn.XLOOKUP($A$18&$A$19&$A$20,$D$2:$D$10&$E$2:$E$10&$G$2:$G$10,W$2:W$10),"") ->  | J29: =IFERROR($G$13/H29*E29*$F$13,"") ->  | K29: - | L29: ='2-2 運転条件シート'!P125 -> 0 | M29: =IFERROR(_xlfn.XLOOKUP($A$18&$A$19&$A$20,$D$2:$D$10&$E$2:$E$10&$G$2:$G$10,W$2:W$10),"") ->  | R29: - | S29: ='2-2 運転条件シート'!P126 -> 0 | T29: =IFERROR(_xlfn.XLOOKUP($A$18&$A$19&$A$20,$D$2:$D$10&$E$2:$E$10&$G$2:$G$10,W$2:W$10),"") ->  | Y29: - | Z29: ='2-2 運転条件シート'!P127 -> 0 | AA29: =IFERROR(_xlfn.XLOOKUP($A$18&$A$19&$A$20,$D$2:$D$10&$E$2:$E$10&$G$2:$G$10,W$2:W$10),"") ->  | AF29: - | AG29: ='2-2 運転条件シート'!P128 -> 0 | AH29: =IFERROR(_xlfn.XLOOKUP($A$18&$A$19&$A$20,$D$2:$D$10&$E$2:$E$10&$G$2:$G$10,W$2:W$10),"") ->  | AM29: - | AN29: ='2-2 運転条件シート'!P129 -> 0 | AO29: =IFERROR(_xlfn.XLOOKUP($A$18&$A$19&$A$20,$D$2:$D$10&$E$2:$E$10&$G$2:$G$10,W$2:W$10),"") ->  | AT29: - | AU29: ='2-2 運転条件シート'!P130 -> 0 | AV29: =IFERROR(_xlfn.XLOOKUP($A$18&$A$19&$A$20,$D$2:$D$10&$E$2:$E$10&$G$2:$G$10,W$2:W$10),"") ->  | BA29: - | BB29: ='2-2 運転条件シート'!P131 -> 0 | BC29: =IFERROR(_xlfn.XLOOKUP($A$18&$A$19&$A$20,$D$2:$D$10&$E$2:$E$10&$G$2:$G$10,W$2:W$10),"") ->  | BH29: - | BI29: ='2-2 運転条件シート'!P132 -> 0 | BJ29: =IFERROR(_xlfn.XLOOKUP($A$18&$A$19&$A$20,$D$2:$D$10&$E$2:$E$10&$G$2:$G$10,W$2:W$10),"") ->  | BO29: - | BP29: ='2-2 運転条件シート'!P133 -> 0 | BQ29: =IFERROR(_xlfn.XLOOKUP($A$18&$A$19&$A$20,$D$2:$D$10&$E$2:$E$10&$G$2:$G$10,W$2:W$10),"") ->  | BV29: - | BW29: ='2-2 運転条件シート'!P134 -> 0 | BX29: =IFERROR(_xlfn.XLOOKUP($A$18&$A$19&$A$20,$D$2:$D$10&$E$2:$E$10&$G$2:$G$10,W$2:W$10),"") ->  | CC29: - | CD29: ='2-2 運転条件シート'!P135 -> 0 | CE29: =IFERROR(_xlfn.XLOOKUP($A$18&$A$19&$A$20,$D$2:$D$10&$E$2:$E$10&$G$2:$G$10,W$2:W$10),"") ->  | CJ29: -
D30: 7 | E30: ='2-2 運転条件シート'!Q124 -> 0 | F30: =IFERROR(_xlfn.XLOOKUP($A$18&$A$19&$A$20,$D$2:$D$10&$E$2:$E$10&$G$2:$G$10,X$2:X$10),"") ->  | K30: - | L30: ='2-2 運転条件シート'!Q125 -> 0 | M30: =IFERROR(_xlfn.XLOOKUP($A$18&$A$19&$A$20,$D$2:$D$10&$E$2:$E$10&$G$2:$G$10,X$2:X$10),"") ->  | R30: - | S30: ='2-2 運転条件シート'!Q126 -> 0 | T30: =IFERROR(_xlfn.XLOOKUP($A$18&$A$19&$A$20,$D$2:$D$10&$E$2:$E$10&$G$2:$G$10,X$2:X$10),"") ->  | Y30: - | Z30: ='2-2 運転条件シート'!Q127 -> 0 | AA30: =IFERROR(_xlfn.XLOOKUP($A$18&$A$19&$A$20,$D$2:$D$10&$E$2:$E$10&$G$2:$G$10,X$2:X$10),"") ->  | AF30: - | AG30: ='2-2 運転条件シート'!Q128 -> 0 | AH30: =IFERROR(_xlfn.XLOOKUP($A$18&$A$19&$A$20,$D$2:$D$10&$E$2:$E$10&$G$2:$G$10,X$2:X$10),"") ->  | AM30: - | AN30: ='2-2 運転条件シート'!Q129 -> 0 | AO30: =IFERROR(_xlfn.XLOOKUP($A$18&$A$19&$A$20,$D$2:$D$10&$E$2:$E$10&$G$2:$G$10,X$2:X$10),"") ->  | AT30: - | AU30: ='2-2 運転条件シート'!Q130 -> 0 | AV30: =IFERROR(_xlfn.XLOOKUP($A$18&$A$19&$A$20,$D$2:$D$10&$E$2:$E$10&$G$2:$G$10,X$2:X$10),"") ->  | BA30: - | BB30: ='2-2 運転条件シート'!Q131 -> 0 | BC30: =IFERROR(_xlfn.XLOOKUP($A$18&$A$19&$A$20,$D$2:$D$10&$E$2:$E$10&$G$2:$G$10,X$2:X$10),"") ->  | BH30: - | BI30: ='2-2 運転条件シート'!Q132 -> 0 | BJ30: =IFERROR(_xlfn.XLOOKUP($A$18&$A$19&$A$20,$D$2:$D$10&$E$2:$E$10&$G$2:$G$10,X$2:X$10),"") ->  | BO30: - | BP30: ='2-2 運転条件シート'!Q133 -> 0 | BQ30: =IFERROR(_xlfn.XLOOKUP($A$18&$A$19&$A$20,$D$2:$D$10&$E$2:$E$10&$G$2:$G$10,X$2:X$10),"") ->  | BV30: - | BW30: ='2-2 運転条件シート'!Q134 -> 0 | BX30: =IFERROR(_xlfn.XLOOKUP($A$18&$A$19&$A$20,$D$2:$D$10&$E$2:$E$10&$G$2:$G$10,X$2:X$10),"") ->  | CC30: - | CD30: ='2-2 運転条件シート'!Q135 -> 0 | CE30: =IFERROR(_xlfn.XLOOKUP($A$18&$A$19&$A$20,$D$2:$D$10&$E$2:$E$10&$G$2:$G$10,X$2:X$10),"") ->  | CJ30: -
D31: 8 | E31: ='2-2 運転条件シート'!R124 -> 0 | F31: =IFERROR(_xlfn.XLOOKUP($A$18&$A$19&$A$20,$D$2:$D$10&$E$2:$E$10&$G$2:$G$10,Y$2:Y$10),"") ->  | K31: - | L31: ='2-2 運転条件シート'!R125 -> 0 | M31: =IFERROR(_xlfn.XLOOKUP($A$18&$A$19&$A$20,$D$2:$D$10&$E$2:$E$10&$G$2:$G$10,Y$2:Y$10),"") ->  | R31: - | S31: ='2-2 運転条件シート'!R126 -> 0 | T31: =IFERROR(_xlfn.XLOOKUP($A$18&$A$19&$A$20,$D$2:$D$10&$E$2:$E$10&$G$2:$G$10,Y$2:Y$10),"") ->  | Y31: - | Z31: ='2-2 運転条件シート'!R127 -> 0 | AA31: =IFERROR(_xlfn.XLOOKUP($A$18&$A$19&$A$20,$D$2:$D$10&$E$2:$E$10&$G$2:$G$10,Y$2:Y$10),"") ->  | AF31: - | AG31: ='2-2 運転条件シート'!R128 -> 0 | AH31: =IFERROR(_xlfn.XLOOKUP($A$18&$A$19&$A$20,$D$2:$D$10&$E$2:$E$10&$G$2:$G$10,Y$2:Y$10),"") ->  | AM31: - | AN31: ='2-2 運転条件シート'!R129 -> 0 | AO31: =IFERROR(_xlfn.XLOOKUP($A$18&$A$19&$A$20,$D$2:$D$10&$E$2:$E$10&$G$2:$G$10,Y$2:Y$10),"") ->  | AT31: - | AU31: ='2-2 運転条件シート'!R130 -> 0 | AV31: =IFERROR(_xlfn.XLOOKUP($A$18&$A$19&$A$20,$D$2:$D$10&$E$2:$E$10&$G$2:$G$10,Y$2:Y$10),"") ->  | BA31: - | BB31: ='2-2 運転条件シート'!R131 -> 0 | BC31: =IFERROR(_xlfn.XLOOKUP($A$18&$A$19&$A$20,$D$2:$D$10&$E$2:$E$10&$G$2:$G$10,Y$2:Y$10),"") ->  | BH31: - | BI31: ='2-2 運転条件シート'!R132 -> 0 | BJ31: =IFERROR(_xlfn.XLOOKUP($A$18&$A$19&$A$20,$D$2:$D$10&$E$2:$E$10&$G$2:$G$10,Y$2:Y$10),"") ->  | BO31: - | BP31: ='2-2 運転条件シート'!R133 -> 0 | BQ31: =IFERROR(_xlfn.XLOOKUP($A$18&$A$19&$A$20,$D$2:$D$10&$E$2:$E$10&$G$2:$G$10,Y$2:Y$10),"") ->  | BV31: - | BW31: ='2-2 運転条件シート'!R134 -> 0 | BX31: =IFERROR(_xlfn.XLOOKUP($A$18&$A$19&$A$20,$D$2:$D$10&$E$2:$E$10&$G$2:$G$10,Y$2:Y$10),"") ->  | CC31: - | CD31: ='2-2 運転条件シート'!R135 -> 0 | CE31: =IFERROR(_xlfn.XLOOKUP($A$18&$A$19&$A$20,$D$2:$D$10&$E$2:$E$10&$G$2:$G$10,Y$2:Y$10),"") ->  | CJ31: -
D32: 9 | E32: ='2-2 運転条件シート'!S124 -> 0 | F32: =IFERROR(_xlfn.XLOOKUP($A$18&$A$19&$A$20,$D$2:$D$10&$E$2:$E$10&$G$2:$G$10,Z$2:Z$10),"") ->  | K32: - | L32: ='2-2 運転条件シート'!S125 -> 0 | M32: =IFERROR(_xlfn.XLOOKUP($A$18&$A$19&$A$20,$D$2:$D$10&$E$2:$E$10&$G$2:$G$10,Z$2:Z$10),"") ->  | R32: - | S32: ='2-2 運転条件シート'!S126 -> 0 | T32: =IFERROR(_xlfn.XLOOKUP($A$18&$A$19&$A$20,$D$2:$D$10&$E$2:$E$10&$G$2:$G$10,Z$2:Z$10),"") ->  | Y32: - | Z32: ='2-2 運転条件シート'!S127 -> 0 | AA32: =IFERROR(_xlfn.XLOOKUP($A$18&$A$19&$A$20,$D$2:$D$10&$E$2:$E$10&$G$2:$G$10,Z$2:Z$10),"") ->  | AF32: - | AG32: ='2-2 運転条件シート'!S128 -> 0 | AH32: =IFERROR(_xlfn.XLOOKUP($A$18&$A$19&$A$20,$D$2:$D$10&$E$2:$E$10&$G$2:$G$10,Z$2:Z$10),"") ->  | AM32: - | AN32: ='2-2 運転条件シート'!S129 -> 0 | AO32: =IFERROR(_xlfn.XLOOKUP($A$18&$A$19&$A$20,$D$2:$D$10&$E$2:$E$10&$G$2:$G$10,Z$2:Z$10),"") ->  | AT32: - | AU32: ='2-2 運転条件シート'!S130 -> 0 | AV32: =IFERROR(_xlfn.XLOOKUP($A$18&$A$19&$A$20,$D$2:$D$10&$E$2:$E$10&$G$2:$G$10,Z$2:Z$10),"") ->  | BA32: - | BB32: ='2-2 運転条件シート'!S131 -> 0 | BC32: =IFERROR(_xlfn.XLOOKUP($A$18&$A$19&$A$20,$D$2:$D$10&$E$2:$E$10&$G$2:$G$10,Z$2:Z$10),"") ->  | BH32: - | BI32: ='2-2 運転条件シート'!S132 -> 0 | BJ32: =IFERROR(_xlfn.XLOOKUP($A$18&$A$19&$A$20,$D$2:$D$10&$E$2:$E$10&$G$2:$G$10,Z$2:Z$10),"") ->  | BO32: - | BP32: ='2-2 運転条件シート'!S133 -> 0 | BQ32: =IFERROR(_xlfn.XLOOKUP($A$18&$A$19&$A$20,$D$2:$D$10&$E$2:$E$10&$G$2:$G$10,Z$2:Z$10),"") ->  | BV32: - | BW32: ='2-2 運転条件シート'!S134 -> 0 | BX32: =IFERROR(_xlfn.XLOOKUP($A$18&$A$19&$A$20,$D$2:$D$10&$E$2:$E$10&$G$2:$G$10,Z$2:Z$10),"") ->  | CC32: - | CD32: ='2-2 運転条件シート'!S135 -> 0 | CE32: =IFERROR(_xlfn.XLOOKUP($A$18&$A$19&$A$20,$D$2:$D$10&$E$2:$E$10&$G$2:$G$10,Z$2:Z$10),"") ->  | CJ32: -
D33: 10 | E33: ='2-2 運転条件シート'!T124 -> 0 | F33: =IFERROR(_xlfn.XLOOKUP($A$18&$A$19&$A$20,$D$2:$D$10&$E$2:$E$10&$G$2:$G$10,AA$2:AA$10),"") ->  | K33: - | L33: ='2-2 運転条件シート'!T125 -> 0 | M33: =IFERROR(_xlfn.XLOOKUP($A$18&$A$19&$A$20,$D$2:$D$10&$E$2:$E$10&$G$2:$G$10,AA$2:AA$10),"") ->  | R33: - | S33: ='2-2 運転条件シート'!T126 -> 0 | T33: =IFERROR(_xlfn.XLOOKUP($A$18&$A$19&$A$20,$D$2:$D$10&$E$2:$E$10&$G$2:$G$10,AA$2:AA$10),"") ->  | Y33: - | Z33: ='2-2 運転条件シート'!T127 -> 0 | AA33: =IFERROR(_xlfn.XLOOKUP($A$18&$A$19&$A$20,$D$2:$D$10&$E$2:$E$10&$G$2:$G$10,AA$2:AA$10),"") ->  | AF33: - | AG33: ='2-2 運転条件シート'!T128 -> 0 | AH33: =IFERROR(_xlfn.XLOOKUP($A$18&$A$19&$A$20,$D$2:$D$10&$E$2:$E$10&$G$2:$G$10,AA$2:AA$10),"") ->  | AM33: - | AN33: ='2-2 運転条件シート'!T129 -> 0 | AO33: =IFERROR(_xlfn.XLOOKUP($A$18&$A$19&$A$20,$D$2:$D$10&$E$2:$E$10&$G$2:$G$10,AA$2:AA$10),"") ->  | AT33: - | AU33: ='2-2 運転条件シート'!T130 -> 0 | AV33: =IFERROR(_xlfn.XLOOKUP($A$18&$A$19&$A$20,$D$2:$D$10&$E$2:$E$10&$G$2:$G$10,AA$2:AA$10),"") ->  | BA33: - | BB33: ='2-2 運転条件シート'!T131 -> 0 | BC33: =IFERROR(_xlfn.XLOOKUP($A$18&$A$19&$A$20,$D$2:$D$10&$E$2:$E$10&$G$2:$G$10,AA$2:AA$10),"") ->  | BH33: - | BI33: ='2-2 運転条件シート'!T132 -> 0 | BJ33: =IFERROR(_xlfn.XLOOKUP($A$18&$A$19&$A$20,$D$2:$D$10&$E$2:$E$10&$G$2:$G$10,AA$2:AA$10),"") ->  | BO33: - | BP33: ='2-2 運転条件シート'!T133 -> 0 | BQ33: =IFERROR(_xlfn.XLOOKUP($A$18&$A$19&$A$20,$D$2:$D$10&$E$2:$E$10&$G$2:$G$10,AA$2:AA$10),"") ->  | BV33: - | BW33: ='2-2 運転条件シート'!T134 -> 0 | BX33: =IFERROR(_xlfn.XLOOKUP($A$18&$A$19&$A$20,$D$2:$D$10&$E$2:$E$10&$G$2:$G$10,AA$2:AA$10),"") ->  | CC33: - | CD33: ='2-2 運転条件シート'!T135 -> 0 | CE33: =IFERROR(_xlfn.XLOOKUP($A$18&$A$19&$A$20,$D$2:$D$10&$E$2:$E$10&$G$2:$G$10,AA$2:AA$10),"") ->  | CJ33: -
D34: 11 | E34: ='2-2 運転条件シート'!U124 -> 0 | F34: =IFERROR(_xlfn.XLOOKUP($A$18&$A$19&$A$20,$D$2:$D$10&$E$2:$E$10&$G$2:$G$10,AB$2:AB$10),"") ->  | K34: - | L34: ='2-2 運転条件シート'!U125 -> 0 | M34: =IFERROR(_xlfn.XLOOKUP($A$18&$A$19&$A$20,$D$2:$D$10&$E$2:$E$10&$G$2:$G$10,AB$2:AB$10),"") ->  | R34: - | S34: ='2-2 運転条件シート'!U126 -> 0 | T34: =IFERROR(_xlfn.XLOOKUP($A$18&$A$19&$A$20,$D$2:$D$10&$E$2:$E$10&$G$2:$G$10,AB$2:AB$10),"") ->  | Y34: - | Z34: ='2-2 運転条件シート'!U127 -> 0 | AA34: =IFERROR(_xlfn.XLOOKUP($A$18&$A$19&$A$20,$D$2:$D$10&$E$2:$E$10&$G$2:$G$10,AB$2:AB$10),"") ->  | AF34: - | AG34: ='2-2 運転条件シート'!U128 -> 0 | AH34: =IFERROR(_xlfn.XLOOKUP($A$18&$A$19&$A$20,$D$2:$D$10&$E$2:$E$10&$G$2:$G$10,AB$2:AB$10),"") ->  | AM34: - | AN34: ='2-2 運転条件シート'!U129 -> 0 | AO34: =IFERROR(_xlfn.XLOOKUP($A$18&$A$19&$A$20,$D$2:$D$10&$E$2:$E$10&$G$2:$G$10,AB$2:AB$10),"") ->  | AT34: - | AU34: ='2-2 運転条件シート'!U130 -> 0 | AV34: =IFERROR(_xlfn.XLOOKUP($A$18&$A$19&$A$20,$D$2:$D$10&$E$2:$E$10&$G$2:$G$10,AB$2:AB$10),"") ->  | BA34: - | BB34: ='2-2 運転条件シート'!U131 -> 0 | BC34: =IFERROR(_xlfn.XLOOKUP($A$18&$A$19&$A$20,$D$2:$D$10&$E$2:$E$10&$G$2:$G$10,AB$2:AB$10),"") ->  | BH34: - | BI34: ='2-2 運転条件シート'!U132 -> 0 | BJ34: =IFERROR(_xlfn.XLOOKUP($A$18&$A$19&$A$20,$D$2:$D$10&$E$2:$E$10&$G$2:$G$10,AB$2:AB$10),"") ->  | BO34: - | BP34: ='2-2 運転条件シート'!U133 -> 0 | BQ34: =IFERROR(_xlfn.XLOOKUP($A$18&$A$19&$A$20,$D$2:$D$10&$E$2:$E$10&$G$2:$G$10,AB$2:AB$10),"") ->  | BV34: - | BW34: ='2-2 運転条件シート'!U134 -> 0 | BX34: =IFERROR(_xlfn.XLOOKUP($A$18&$A$19&$A$20,$D$2:$D$10&$E$2:$E$10&$G$2:$G$10,AB$2:AB$10),"") ->  | CC34: - | CD34: ='2-2 運転条件シート'!U135 -> 0 | CE34: =IFERROR(_xlfn.XLOOKUP($A$18&$A$19&$A$20,$D$2:$D$10&$E$2:$E$10&$G$2:$G$10,AB$2:AB$10),"") ->  | CJ34: -
D35: 12 | E35: ='2-2 運転条件シート'!V124 -> 0 | F35: =IFERROR(_xlfn.XLOOKUP($A$18&$A$19&$A$20,$D$2:$D$10&$E$2:$E$10&$G$2:$G$10,AC$2:AC$10),"") ->  | K35: - | L35: ='2-2 運転条件シート'!V125 -> 0 | M35: =IFERROR(_xlfn.XLOOKUP($A$18&$A$19&$A$20,$D$2:$D$10&$E$2:$E$10&$G$2:$G$10,AC$2:AC$10),"") ->  | Q35: =IFERROR($O$13/O35*L35*$N$13,"") ->  | R35: - | S35: ='2-2 運転条件シート'!V126 -> 0 | T35: =IFERROR(_xlfn.XLOOKUP($A$18&$A$19&$A$20,$D$2:$D$10&$E$2:$E$10&$G$2:$G$10,AC$2:AC$10),"") ->  | Y35: - | Z35: ='2-2 運転条件シート'!V127 -> 0 | AA35: =IFERROR(_xlfn.XLOOKUP($A$18&$A$19&$A$20,$D$2:$D$10&$E$2:$E$10&$G$2:$G$10,AC$2:AC$10),"") ->  | AF35: - | AG35: ='2-2 運転条件シート'!V128 -> 0 | AH35: =IFERROR(_xlfn.XLOOKUP($A$18&$A$19&$A$20,$D$2:$D$10&$E$2:$E$10&$G$2:$G$10,AC$2:AC$10),"") ->  | AM35: - | AN35: ='2-2 運転条件シート'!V129 -> 0 | AO35: =IFERROR(_xlfn.XLOOKUP($A$18&$A$19&$A$20,$D$2:$D$10&$E$2:$E$10&$G$2:$G$10,AC$2:AC$10),"") ->  | AT35: - | AU35: ='2-2 運転条件シート'!V130 -> 0 | AV35: =IFERROR(_xlfn.XLOOKUP($A$18&$A$19&$A$20,$D$2:$D$10&$E$2:$E$10&$G$2:$G$10,AC$2:AC$10),"") ->  | BA35: - | BB35: ='2-2 運転条件シート'!V131 -> 0 | BC35: =IFERROR(_xlfn.XLOOKUP($A$18&$A$19&$A$20,$D$2:$D$10&$E$2:$E$10&$G$2:$G$10,AC$2:AC$10),"") ->  | BH35: - | BI35: ='2-2 運転条件シート'!V132 -> 0 | BJ35: =IFERROR(_xlfn.XLOOKUP($A$18&$A$19&$A$20,$D$2:$D$10&$E$2:$E$10&$G$2:$G$10,AC$2:AC$10),"") ->  | BO35: - | BP35: ='2-2 運転条件シート'!V133 -> 0 | BQ35: =IFERROR(_xlfn.XLOOKUP($A$18&$A$19&$A$20,$D$2:$D$10&$E$2:$E$10&$G$2:$G$10,AC$2:AC$10),"") ->  | BV35: - | BW35: ='2-2 運転条件シート'!V134 -> 0 | BX35: =IFERROR(_xlfn.XLOOKUP($A$18&$A$19&$A$20,$D$2:$D$10&$E$2:$E$10&$G$2:$G$10,AC$2:AC$10),"") ->  | CC35: - | CD35: ='2-2 運転条件シート'!V135 -> 0 | CE35: =IFERROR(_xlfn.XLOOKUP($A$18&$A$19&$A$20,$D$2:$D$10&$E$2:$E$10&$G$2:$G$10,AC$2:AC$10),"") ->  | CJ35: -
D36: 13 | E36: ='2-2 運転条件シート'!W124 -> 0 | F36: =IFERROR(_xlfn.XLOOKUP($A$18&$A$19&$A$20,$D$2:$D$10&$E$2:$E$10&$G$2:$G$10,AD$2:AD$10),"") ->  | K36: - | L36: ='2-2 運転条件シート'!W125 -> 0 | M36: =IFERROR(_xlfn.XLOOKUP($A$18&$A$19&$A$20,$D$2:$D$10&$E$2:$E$10&$G$2:$G$10,AD$2:AD$10),"") ->  | R36: - | S36: ='2-2 運転条件シート'!W126 -> 0 | T36: =IFERROR(_xlfn.XLOOKUP($A$18&$A$19&$A$20,$D$2:$D$10&$E$2:$E$10&$G$2:$G$10,AD$2:AD$10),"") ->  | Y36: - | Z36: ='2-2 運転条件シート'!W127 -> 0 | AA36: =IFERROR(_xlfn.XLOOKUP($A$18&$A$19&$A$20,$D$2:$D$10&$E$2:$E$10&$G$2:$G$10,AD$2:AD$10),"") ->  | AF36: - | AG36: ='2-2 運転条件シート'!W128 -> 0 | AH36: =IFERROR(_xlfn.XLOOKUP($A$18&$A$19&$A$20,$D$2:$D$10&$E$2:$E$10&$G$2:$G$10,AD$2:AD$10),"") ->  | AM36: - | AN36: ='2-2 運転条件シート'!W129 -> 0 | AO36: =IFERROR(_xlfn.XLOOKUP($A$18&$A$19&$A$20,$D$2:$D$10&$E$2:$E$10&$G$2:$G$10,AD$2:AD$10),"") ->  | AT36: - | AU36: ='2-2 運転条件シート'!W130 -> 0 | AV36: =IFERROR(_xlfn.XLOOKUP($A$18&$A$19&$A$20,$D$2:$D$10&$E$2:$E$10&$G$2:$G$10,AD$2:AD$10),"") ->  | BA36: - | BB36: ='2-2 運転条件シート'!W131 -> 0 | BC36: =IFERROR(_xlfn.XLOOKUP($A$18&$A$19&$A$20,$D$2:$D$10&$E$2:$E$10&$G$2:$G$10,AD$2:AD$10),"") ->  | BH36: - | BI36: ='2-2 運転条件シート'!W132 -> 0 | BJ36: =IFERROR(_xlfn.XLOOKUP($A$18&$A$19&$A$20,$D$2:$D$10&$E$2:$E$10&$G$2:$G$10,AD$2:AD$10),"") ->  | BO36: - | BP36: ='2-2 運転条件シート'!W133 -> 0 | BQ36: =IFERROR(_xlfn.XLOOKUP($A$18&$A$19&$A$20,$D$2:$D$10&$E$2:$E$10&$G$2:$G$10,AD$2:AD$10),"") ->  | BV36: - | BW36: ='2-2 運転条件シート'!W134 -> 0 | BX36: =IFERROR(_xlfn.XLOOKUP($A$18&$A$19&$A$20,$D$2:$D$10&$E$2:$E$10&$G$2:$G$10,AD$2:AD$10),"") ->  | CC36: - | CD36: ='2-2 運転条件シート'!W135 -> 0 | CE36: =IFERROR(_xlfn.XLOOKUP($A$18&$A$19&$A$20,$D$2:$D$10&$E$2:$E$10&$G$2:$G$10,AD$2:AD$10),"") ->  | CJ36: -
D37: 14 | E37: ='2-2 運転条件シート'!X124 -> 0 | F37: =IFERROR(_xlfn.XLOOKUP($A$18&$A$19&$A$20,$D$2:$D$10&$E$2:$E$10&$G$2:$G$10,AE$2:AE$10),"") ->  | K37: =IFERROR($G$13*$F$13*E37,"-") -> - | L37: ='2-2 運転条件シート'!X125 -> 0 | M37: =IFERROR(_xlfn.XLOOKUP($A$18&$A$19&$A$20,$D$2:$D$10&$E$2:$E$10&$G$2:$G$10,AE$2:AE$10),"") ->  | R37: - | S37: ='2-2 運転条件シート'!X126 -> 0 | T37: =IFERROR(_xlfn.XLOOKUP($A$18&$A$19&$A$20,$D$2:$D$10&$E$2:$E$10&$G$2:$G$10,AE$2:AE$10),"") ->  | Y37: - | Z37: ='2-2 運転条件シート'!X127 -> 0 | AA37: =IFERROR(_xlfn.XLOOKUP($A$18&$A$19&$A$20,$D$2:$D$10&$E$2:$E$10&$G$2:$G$10,AE$2:AE$10),"") ->  | AF37: - | AG37: ='2-2 運転条件シート'!X128 -> 0 | AH37: =IFERROR(_xlfn.XLOOKUP($A$18&$A$19&$A$20,$D$2:$D$10&$E$2:$E$10&$G$2:$G$10,AE$2:AE$10),"") ->  | AM37: - | AN37: ='2-2 運転条件シート'!X129 -> 0 | AO37: =IFERROR(_xlfn.XLOOKUP($A$18&$A$19&$A$20,$D$2:$D$10&$E$2:$E$10&$G$2:$G$10,AE$2:AE$10),"") ->  | AT37: - | AU37: ='2-2 運転条件シート'!X130 -> 0 | AV37: =IFERROR(_xlfn.XLOOKUP($A$18&$A$19&$A$20,$D$2:$D$10&$E$2:$E$10&$G$2:$G$10,AE$2:AE$10),"") ->  | BA37: - | BB37: ='2-2 運転条件シート'!X131 -> 0 | BC37: =IFERROR(_xlfn.XLOOKUP($A$18&$A$19&$A$20,$D$2:$D$10&$E$2:$E$10&$G$2:$G$10,AE$2:AE$10),"") ->  | BH37: - | BI37: ='2-2 運転条件シート'!X132 -> 0 | BJ37: =IFERROR(_xlfn.XLOOKUP($A$18&$A$19&$A$20,$D$2:$D$10&$E$2:$E$10&$G$2:$G$10,AE$2:AE$10),"") ->  | BO37: - | BP37: ='2-2 運転条件シート'!X133 -> 0 | BQ37: =IFERROR(_xlfn.XLOOKUP($A$18&$A$19&$A$20,$D$2:$D$10&$E$2:$E$10&$G$2:$G$10,AE$2:AE$10),"") ->  | BV37: - | BW37: ='2-2 運転条件シート'!X134 -> 0 | BX37: =IFERROR(_xlfn.XLOOKUP($A$18&$A$19&$A$20,$D$2:$D$10&$E$2:$E$10&$G$2:$G$10,AE$2:AE$10),"") ->  | CC37: - | CD37: ='2-2 運転条件シート'!X135 -> 0 | CE37: =IFERROR(_xlfn.XLOOKUP($A$18&$A$19&$A$20,$D$2:$D$10&$E$2:$E$10&$G$2:$G$10,AE$2:AE$10),"") ->  | CJ37: -
D38: 15 | E38: ='2-2 運転条件シート'!Y124 -> 0 | F38: =IFERROR(_xlfn.XLOOKUP($A$18&$A$19&$A$20,$D$2:$D$10&$E$2:$E$10&$G$2:$G$10,AF$2:AF$10),"") ->  | K38: - | L38: ='2-2 運転条件シート'!Y125 -> 0 | M38: =IFERROR(_xlfn.XLOOKUP($A$18&$A$19&$A$20,$D$2:$D$10&$E$2:$E$10&$G$2:$G$10,AF$2:AF$10),"") ->  | R38: - | S38: ='2-2 運転条件シート'!Y126 -> 0 | T38: =IFERROR(_xlfn.XLOOKUP($A$18&$A$19&$A$20,$D$2:$D$10&$E$2:$E$10&$G$2:$G$10,AF$2:AF$10),"") ->  | Y38: - | Z38: ='2-2 運転条件シート'!Y127 -> 0 | AA38: =IFERROR(_xlfn.XLOOKUP($A$18&$A$19&$A$20,$D$2:$D$10&$E$2:$E$10&$G$2:$G$10,AF$2:AF$10),"") ->  | AF38: - | AG38: ='2-2 運転条件シート'!Y128 -> 0 | AH38: =IFERROR(_xlfn.XLOOKUP($A$18&$A$19&$A$20,$D$2:$D$10&$E$2:$E$10&$G$2:$G$10,AF$2:AF$10),"") ->  | AM38: - | AN38: ='2-2 運転条件シート'!Y129 -> 0 | AO38: =IFERROR(_xlfn.XLOOKUP($A$18&$A$19&$A$20,$D$2:$D$10&$E$2:$E$10&$G$2:$G$10,AF$2:AF$10),"") ->  | AT38: - | AU38: ='2-2 運転条件シート'!Y130 -> 0 | AV38: =IFERROR(_xlfn.XLOOKUP($A$18&$A$19&$A$20,$D$2:$D$10&$E$2:$E$10&$G$2:$G$10,AF$2:AF$10),"") ->  | BA38: - | BB38: ='2-2 運転条件シート'!Y131 -> 0 | BC38: =IFERROR(_xlfn.XLOOKUP($A$18&$A$19&$A$20,$D$2:$D$10&$E$2:$E$10&$G$2:$G$10,AF$2:AF$10),"") ->  | BH38: - | BI38: ='2-2 運転条件シート'!Y132 -> 0 | BJ38: =IFERROR(_xlfn.XLOOKUP($A$18&$A$19&$A$20,$D$2:$D$10&$E$2:$E$10&$G$2:$G$10,AF$2:AF$10),"") ->  | BO38: - | BP38: ='2-2 運転条件シート'!Y133 -> 0 | BQ38: =IFERROR(_xlfn.XLOOKUP($A$18&$A$19&$A$20,$D$2:$D$10&$E$2:$E$10&$G$2:$G$10,AF$2:AF$10),"") ->  | BV38: - | BW38: ='2-2 運転条件シート'!Y134 -> 0 | BX38: =IFERROR(_xlfn.XLOOKUP($A$18&$A$19&$A$20,$D$2:$D$10&$E$2:$E$10&$G$2:$G$10,AF$2:AF$10),"") ->  | CC38: - | CD38: ='2-2 運転条件シート'!Y135 -> 0 | CE38: =IFERROR(_xlfn.XLOOKUP($A$18&$A$19&$A$20,$D$2:$D$10&$E$2:$E$10&$G$2:$G$10,AF$2:AF$10),"") ->  | CJ38: -
D39: 16 | E39: ='2-2 運転条件シート'!Z124 -> 0 | F39: =IFERROR(_xlfn.XLOOKUP($A$18&$A$19&$A$20,$D$2:$D$10&$E$2:$E$10&$G$2:$G$10,AG$2:AG$10),"") ->  | K39: - | L39: ='2-2 運転条件シート'!Z125 -> 0 | M39: =IFERROR(_xlfn.XLOOKUP($A$18&$A$19&$A$20,$D$2:$D$10&$E$2:$E$10&$G$2:$G$10,AG$2:AG$10),"") ->  | R39: - | S39: ='2-2 運転条件シート'!Z126 -> 0 | T39: =IFERROR(_xlfn.XLOOKUP($A$18&$A$19&$A$20,$D$2:$D$10&$E$2:$E$10&$G$2:$G$10,AG$2:AG$10),"") ->  | Y39: - | Z39: ='2-2 運転条件シート'!Z127 -> 0 | AA39: =IFERROR(_xlfn.XLOOKUP($A$18&$A$19&$A$20,$D$2:$D$10&$E$2:$E$10&$G$2:$G$10,AG$2:AG$10),"") ->  | AF39: - | AG39: ='2-2 運転条件シート'!Z128 -> 0 | AH39: =IFERROR(_xlfn.XLOOKUP($A$18&$A$19&$A$20,$D$2:$D$10&$E$2:$E$10&$G$2:$G$10,AG$2:AG$10),"") ->  | AM39: - | AN39: ='2-2 運転条件シート'!Z129 -> 0 | AO39: =IFERROR(_xlfn.XLOOKUP($A$18&$A$19&$A$20,$D$2:$D$10&$E$2:$E$10&$G$2:$G$10,AG$2:AG$10),"") ->  | AT39: - | AU39: ='2-2 運転条件シート'!Z130 -> 0 | AV39: =IFERROR(_xlfn.XLOOKUP($A$18&$A$19&$A$20,$D$2:$D$10&$E$2:$E$10&$G$2:$G$10,AG$2:AG$10),"") ->  | BA39: - | BB39: ='2-2 運転条件シート'!Z131 -> 0 | BC39: =IFERROR(_xlfn.XLOOKUP($A$18&$A$19&$A$20,$D$2:$D$10&$E$2:$E$10&$G$2:$G$10,AG$2:AG$10),"") ->  | BH39: - | BI39: ='2-2 運転条件シート'!Z132 -> 0 | BJ39: =IFERROR(_xlfn.XLOOKUP($A$18&$A$19&$A$20,$D$2:$D$10&$E$2:$E$10&$G$2:$G$10,AG$2:AG$10),"") ->  | BO39: - | BP39: ='2-2 運転条件シート'!Z133 -> 0 | BQ39: =IFERROR(_xlfn.XLOOKUP($A$18&$A$19&$A$20,$D$2:$D$10&$E$2:$E$10&$G$2:$G$10,AG$2:AG$10),"") ->  | BV39: - | BW39: ='2-2 運転条件シート'!Z134 -> 0 | BX39: =IFERROR(_xlfn.XLOOKUP($A$18&$A$19&$A$20,$D$2:$D$10&$E$2:$E$10&$G$2:$G$10,AG$2:AG$10),"") ->  | CC39: - | CD39: ='2-2 運転条件シート'!Z135 -> 0 | CE39: =IFERROR(_xlfn.XLOOKUP($A$18&$A$19&$A$20,$D$2:$D$10&$E$2:$E$10&$G$2:$G$10,AG$2:AG$10),"") ->  | CJ39: -
D40: 17 | E40: ='2-2 運転条件シート'!AA124 -> 0 | F40: =IFERROR(_xlfn.XLOOKUP($A$18&$A$19&$A$20,$D$2:$D$10&$E$2:$E$10&$G$2:$G$10,AH$2:AH$10),"") ->  | K40: - | L40: ='2-2 運転条件シート'!AA125 -> 0 | M40: =IFERROR(_xlfn.XLOOKUP($A$18&$A$19&$A$20,$D$2:$D$10&$E$2:$E$10&$G$2:$G$10,AH$2:AH$10),"") ->  | R40: - | S40: ='2-2 運転条件シート'!AA126 -> 0 | T40: =IFERROR(_xlfn.XLOOKUP($A$18&$A$19&$A$20,$D$2:$D$10&$E$2:$E$10&$G$2:$G$10,AH$2:AH$10),"") ->  | Y40: - | Z40: ='2-2 運転条件シート'!AA127 -> 0 | AA40: =IFERROR(_xlfn.XLOOKUP($A$18&$A$19&$A$20,$D$2:$D$10&$E$2:$E$10&$G$2:$G$10,AH$2:AH$10),"") ->  | AF40: - | AG40: ='2-2 運転条件シート'!AA128 -> 0 | AH40: =IFERROR(_xlfn.XLOOKUP($A$18&$A$19&$A$20,$D$2:$D$10&$E$2:$E$10&$G$2:$G$10,AH$2:AH$10),"") ->  | AM40: - | AN40: ='2-2 運転条件シート'!AA129 -> 0 | AO40: =IFERROR(_xlfn.XLOOKUP($A$18&$A$19&$A$20,$D$2:$D$10&$E$2:$E$10&$G$2:$G$10,AH$2:AH$10),"") ->  | AT40: - | AU40: ='2-2 運転条件シート'!AA130 -> 0 | AV40: =IFERROR(_xlfn.XLOOKUP($A$18&$A$19&$A$20,$D$2:$D$10&$E$2:$E$10&$G$2:$G$10,AH$2:AH$10),"") ->  | BA40: - | BB40: ='2-2 運転条件シート'!AA131 -> 0 | BC40: =IFERROR(_xlfn.XLOOKUP($A$18&$A$19&$A$20,$D$2:$D$10&$E$2:$E$10&$G$2:$G$10,AH$2:AH$10),"") ->  | BH40: - | BI40: ='2-2 運転条件シート'!AA132 -> 0 | BJ40: =IFERROR(_xlfn.XLOOKUP($A$18&$A$19&$A$20,$D$2:$D$10&$E$2:$E$10&$G$2:$G$10,AH$2:AH$10),"") ->  | BO40: - | BP40: ='2-2 運転条件シート'!AA133 -> 0 | BQ40: =IFERROR(_xlfn.XLOOKUP($A$18&$A$19&$A$20,$D$2:$D$10&$E$2:$E$10&$G$2:$G$10,AH$2:AH$10),"") ->  | BV40: - | BW40: ='2-2 運転条件シート'!AA134 -> 0 | BX40: =IFERROR(_xlfn.XLOOKUP($A$18&$A$19&$A$20,$D$2:$D$10&$E$2:$E$10&$G$2:$G$10,AH$2:AH$10),"") ->  | CC40: - | CD40: ='2-2 運転条件シート'!AA135 -> 0 | CE40: =IFERROR(_xlfn.XLOOKUP($A$18&$A$19&$A$20,$D$2:$D$10&$E$2:$E$10&$G$2:$G$10,AH$2:AH$10),"") ->  | CJ40: -
D41: 18 | E41: ='2-2 運転条件シート'!AB124 -> 0 | F41: =IFERROR(_xlfn.XLOOKUP($A$18&$A$19&$A$20,$D$2:$D$10&$E$2:$E$10&$G$2:$G$10,AI$2:AI$10),"") ->  | K41: - | L41: ='2-2 運転条件シート'!AB125 -> 0 | M41: =IFERROR(_xlfn.XLOOKUP($A$18&$A$19&$A$20,$D$2:$D$10&$E$2:$E$10&$G$2:$G$10,AI$2:AI$10),"") ->  | R41: - | S41: ='2-2 運転条件シート'!AB126 -> 0 | T41: =IFERROR(_xlfn.XLOOKUP($A$18&$A$19&$A$20,$D$2:$D$10&$E$2:$E$10&$G$2:$G$10,AI$2:AI$10),"") ->  | Y41: - | Z41: ='2-2 運転条件シート'!AB127 -> 0 | AA41: =IFERROR(_xlfn.XLOOKUP($A$18&$A$19&$A$20,$D$2:$D$10&$E$2:$E$10&$G$2:$G$10,AI$2:AI$10),"") ->  | AF41: - | AG41: ='2-2 運転条件シート'!AB128 -> 0 | AH41: =IFERROR(_xlfn.XLOOKUP($A$18&$A$19&$A$20,$D$2:$D$10&$E$2:$E$10&$G$2:$G$10,AI$2:AI$10),"") ->  | AM41: - | AN41: ='2-2 運転条件シート'!AB129 -> 0 | AO41: =IFERROR(_xlfn.XLOOKUP($A$18&$A$19&$A$20,$D$2:$D$10&$E$2:$E$10&$G$2:$G$10,AI$2:AI$10),"") ->  | AT41: - | AU41: ='2-2 運転条件シート'!AB130 -> 0 | AV41: =IFERROR(_xlfn.XLOOKUP($A$18&$A$19&$A$20,$D$2:$D$10&$E$2:$E$10&$G$2:$G$10,AI$2:AI$10),"") ->  | BA41: - | BB41: ='2-2 運転条件シート'!AB131 -> 0 | BC41: =IFERROR(_xlfn.XLOOKUP($A$18&$A$19&$A$20,$D$2:$D$10&$E$2:$E$10&$G$2:$G$10,AI$2:AI$10),"") ->  | BH41: - | BI41: ='2-2 運転条件シート'!AB132 -> 0 | BJ41: =IFERROR(_xlfn.XLOOKUP($A$18&$A$19&$A$20,$D$2:$D$10&$E$2:$E$10&$G$2:$G$10,AI$2:AI$10),"") ->  | BO41: - | BP41: ='2-2 運転条件シート'!AB133 -> 0 | BQ41: =IFERROR(_xlfn.XLOOKUP($A$18&$A$19&$A$20,$D$2:$D$10&$E$2:$E$10&$G$2:$G$10,AI$2:AI$10),"") ->  | BV41: - | BW41: ='2-2 運転条件シート'!AB134 -> 0 | BX41: =IFERROR(_xlfn.XLOOKUP($A$18&$A$19&$A$20,$D$2:$D$10&$E$2:$E$10&$G$2:$G$10,AI$2:AI$10),"") ->  | CC41: - | CD41: ='2-2 運転条件シート'!AB135 -> 0 | CE41: =IFERROR(_xlfn.XLOOKUP($A$18&$A$19&$A$20,$D$2:$D$10&$E$2:$E$10&$G$2:$G$10,AI$2:AI$10),"") ->  | CJ41: -
D42: 19 | E42: ='2-2 運転条件シート'!AC124 -> 0 | F42: =IFERROR(_xlfn.XLOOKUP($A$18&$A$19&$A$20,$D$2:$D$10&$E$2:$E$10&$G$2:$G$10,AJ$2:AJ$10),"") ->  | K42: - | L42: ='2-2 運転条件シート'!AC125 -> 0 | M42: =IFERROR(_xlfn.XLOOKUP($A$18&$A$19&$A$20,$D$2:$D$10&$E$2:$E$10&$G$2:$G$10,AJ$2:AJ$10),"") ->  | R42: - | S42: ='2-2 運転条件シート'!AC126 -> 0 | T42: =IFERROR(_xlfn.XLOOKUP($A$18&$A$19&$A$20,$D$2:$D$10&$E$2:$E$10&$G$2:$G$10,AJ$2:AJ$10),"") ->  | Y42: - | Z42: ='2-2 運転条件シート'!AC127 -> 0 | AA42: =IFERROR(_xlfn.XLOOKUP($A$18&$A$19&$A$20,$D$2:$D$10&$E$2:$E$10&$G$2:$G$10,AJ$2:AJ$10),"") ->  | AF42: - | AG42: ='2-2 運転条件シート'!AC128 -> 0 | AH42: =IFERROR(_xlfn.XLOOKUP($A$18&$A$19&$A$20,$D$2:$D$10&$E$2:$E$10&$G$2:$G$10,AJ$2:AJ$10),"") ->  | AM42: - | AN42: ='2-2 運転条件シート'!AC129 -> 0 | AO42: =IFERROR(_xlfn.XLOOKUP($A$18&$A$19&$A$20,$D$2:$D$10&$E$2:$E$10&$G$2:$G$10,AJ$2:AJ$10),"") ->  | AT42: - | AU42: ='2-2 運転条件シート'!AC130 -> 0 | AV42: =IFERROR(_xlfn.XLOOKUP($A$18&$A$19&$A$20,$D$2:$D$10&$E$2:$E$10&$G$2:$G$10,AJ$2:AJ$10),"") ->  | BA42: - | BB42: ='2-2 運転条件シート'!AC131 -> 0 | BC42: =IFERROR(_xlfn.XLOOKUP($A$18&$A$19&$A$20,$D$2:$D$10&$E$2:$E$10&$G$2:$G$10,AJ$2:AJ$10),"") ->  | BH42: - | BI42: ='2-2 運転条件シート'!AC132 -> 0 | BJ42: =IFERROR(_xlfn.XLOOKUP($A$18&$A$19&$A$20,$D$2:$D$10&$E$2:$E$10&$G$2:$G$10,AJ$2:AJ$10),"") ->  | BO42: - | BP42: ='2-2 運転条件シート'!AC133 -> 0 | BQ42: =IFERROR(_xlfn.XLOOKUP($A$18&$A$19&$A$20,$D$2:$D$10&$E$2:$E$10&$G$2:$G$10,AJ$2:AJ$10),"") ->  | BV42: - | BW42: ='2-2 運転条件シート'!AC134 -> 0 | BX42: =IFERROR(_xlfn.XLOOKUP($A$18&$A$19&$A$20,$D$2:$D$10&$E$2:$E$10&$G$2:$G$10,AJ$2:AJ$10),"") ->  | CC42: - | CD42: ='2-2 運転条件シート'!AC135 -> 0 | CE42: =IFERROR(_xlfn.XLOOKUP($A$18&$A$19&$A$20,$D$2:$D$10&$E$2:$E$10&$G$2:$G$10,AJ$2:AJ$10),"") ->  | CJ42: -
D43: 20 | E43: ='2-2 運転条件シート'!AD124 -> 0 | F43: =IFERROR(_xlfn.XLOOKUP($A$18&$A$19&$A$20,$D$2:$D$10&$E$2:$E$10&$G$2:$G$10,AK$2:AK$10),"") ->  | K43: - | L43: ='2-2 運転条件シート'!AD125 -> 0 | M43: =IFERROR(_xlfn.XLOOKUP($A$18&$A$19&$A$20,$D$2:$D$10&$E$2:$E$10&$G$2:$G$10,AK$2:AK$10),"") ->  | R43: - | S43: ='2-2 運転条件シート'!AD126 -> 0 | T43: =IFERROR(_xlfn.XLOOKUP($A$18&$A$19&$A$20,$D$2:$D$10&$E$2:$E$10&$G$2:$G$10,AK$2:AK$10),"") ->  | Y43: - | Z43: ='2-2 運転条件シート'!AD127 -> 0 | AA43: =IFERROR(_xlfn.XLOOKUP($A$18&$A$19&$A$20,$D$2:$D$10&$E$2:$E$10&$G$2:$G$10,AK$2:AK$10),"") ->  | AF43: - | AG43: ='2-2 運転条件シート'!AD128 -> 0 | AH43: =IFERROR(_xlfn.XLOOKUP($A$18&$A$19&$A$20,$D$2:$D$10&$E$2:$E$10&$G$2:$G$10,AK$2:AK$10),"") ->  | AM43: - | AN43: ='2-2 運転条件シート'!AD129 -> 0 | AO43: =IFERROR(_xlfn.XLOOKUP($A$18&$A$19&$A$20,$D$2:$D$10&$E$2:$E$10&$G$2:$G$10,AK$2:AK$10),"") ->  | AT43: - | AU43: ='2-2 運転条件シート'!AD130 -> 0 | AV43: =IFERROR(_xlfn.XLOOKUP($A$18&$A$19&$A$20,$D$2:$D$10&$E$2:$E$10&$G$2:$G$10,AK$2:AK$10),"") ->  | BA43: - | BB43: ='2-2 運転条件シート'!AD131 -> 0 | BC43: =IFERROR(_xlfn.XLOOKUP($A$18&$A$19&$A$20,$D$2:$D$10&$E$2:$E$10&$G$2:$G$10,AK$2:AK$10),"") ->  | BH43: - | BI43: ='2-2 運転条件シート'!AD132 -> 0 | BJ43: =IFERROR(_xlfn.XLOOKUP($A$18&$A$19&$A$20,$D$2:$D$10&$E$2:$E$10&$G$2:$G$10,AK$2:AK$10),"") ->  | BO43: - | BP43: ='2-2 運転条件シート'!AD133 -> 0 | BQ43: =IFERROR(_xlfn.XLOOKUP($A$18&$A$19&$A$20,$D$2:$D$10&$E$2:$E$10&$G$2:$G$10,AK$2:AK$10),"") ->  | BV43: - | BW43: ='2-2 運転条件シート'!AD134 -> 0 | BX43: =IFERROR(_xlfn.XLOOKUP($A$18&$A$19&$A$20,$D$2:$D$10&$E$2:$E$10&$G$2:$G$10,AK$2:AK$10),"") ->  | CC43: - | CD43: ='2-2 運転条件シート'!AD135 -> 0 | CE43: =IFERROR(_xlfn.XLOOKUP($A$18&$A$19&$A$20,$D$2:$D$10&$E$2:$E$10&$G$2:$G$10,AK$2:AK$10),"") ->  | CJ43: -
D44: 21 | E44: ='2-2 運転条件シート'!AE124 -> 0 | F44: =IFERROR(_xlfn.XLOOKUP($A$18&$A$19&$A$20,$D$2:$D$10&$E$2:$E$10&$G$2:$G$10,AL$2:AL$10),"") ->  | K44: - | L44: ='2-2 運転条件シート'!AE125 -> 0 | M44: =IFERROR(_xlfn.XLOOKUP($A$18&$A$19&$A$20,$D$2:$D$10&$E$2:$E$10&$G$2:$G$10,AL$2:AL$10),"") ->  | R44: - | S44: ='2-2 運転条件シート'!AE126 -> 0 | T44: =IFERROR(_xlfn.XLOOKUP($A$18&$A$19&$A$20,$D$2:$D$10&$E$2:$E$10&$G$2:$G$10,AL$2:AL$10),"") ->  | Y44: - | Z44: ='2-2 運転条件シート'!AE127 -> 0 | AA44: =IFERROR(_xlfn.XLOOKUP($A$18&$A$19&$A$20,$D$2:$D$10&$E$2:$E$10&$G$2:$G$10,AL$2:AL$10),"") ->  | AF44: - | AG44: ='2-2 運転条件シート'!AE128 -> 0 | AH44: =IFERROR(_xlfn.XLOOKUP($A$18&$A$19&$A$20,$D$2:$D$10&$E$2:$E$10&$G$2:$G$10,AL$2:AL$10),"") ->  | AM44: - | AN44: ='2-2 運転条件シート'!AE129 -> 0 | AO44: =IFERROR(_xlfn.XLOOKUP($A$18&$A$19&$A$20,$D$2:$D$10&$E$2:$E$10&$G$2:$G$10,AL$2:AL$10),"") ->  | AT44: - | AU44: ='2-2 運転条件シート'!AE130 -> 0 | AV44: =IFERROR(_xlfn.XLOOKUP($A$18&$A$19&$A$20,$D$2:$D$10&$E$2:$E$10&$G$2:$G$10,AL$2:AL$10),"") ->  | BA44: - | BB44: ='2-2 運転条件シート'!AE131 -> 0 | BC44: =IFERROR(_xlfn.XLOOKUP($A$18&$A$19&$A$20,$D$2:$D$10&$E$2:$E$10&$G$2:$G$10,AL$2:AL$10),"") ->  | BH44: - | BI44: ='2-2 運転条件シート'!AE132 -> 0 | BJ44: =IFERROR(_xlfn.XLOOKUP($A$18&$A$19&$A$20,$D$2:$D$10&$E$2:$E$10&$G$2:$G$10,AL$2:AL$10),"") ->  | BO44: - | BP44: ='2-2 運転条件シート'!AE133 -> 0 | BQ44: =IFERROR(_xlfn.XLOOKUP($A$18&$A$19&$A$20,$D$2:$D$10&$E$2:$E$10&$G$2:$G$10,AL$2:AL$10),"") ->  | BV44: - | BW44: ='2-2 運転条件シート'!AE134 -> 0 | BX44: =IFERROR(_xlfn.XLOOKUP($A$18&$A$19&$A$20,$D$2:$D$10&$E$2:$E$10&$G$2:$G$10,AL$2:AL$10),"") ->  | CC44: - | CD44: ='2-2 運転条件シート'!AE135 -> 0 | CE44: =IFERROR(_xlfn.XLOOKUP($A$18&$A$19&$A$20,$D$2:$D$10&$E$2:$E$10&$G$2:$G$10,AL$2:AL$10),"") ->  | CJ44: -
D45: 22 | E45: ='2-2 運転条件シート'!AF124 -> 0 | F45: =IFERROR(_xlfn.XLOOKUP($A$18&$A$19&$A$20,$D$2:$D$10&$E$2:$E$10&$G$2:$G$10,AM$2:AM$10),"") ->  | K45: - | L45: ='2-2 運転条件シート'!AF125 -> 0 | M45: =IFERROR(_xlfn.XLOOKUP($A$18&$A$19&$A$20,$D$2:$D$10&$E$2:$E$10&$G$2:$G$10,AM$2:AM$10),"") ->  | R45: - | S45: ='2-2 運転条件シート'!AF126 -> 0 | T45: =IFERROR(_xlfn.XLOOKUP($A$18&$A$19&$A$20,$D$2:$D$10&$E$2:$E$10&$G$2:$G$10,AM$2:AM$10),"") ->  | Y45: - | Z45: ='2-2 運転条件シート'!AF127 -> 0 | AA45: =IFERROR(_xlfn.XLOOKUP($A$18&$A$19&$A$20,$D$2:$D$10&$E$2:$E$10&$G$2:$G$10,AM$2:AM$10),"") ->  | AF45: - | AG45: ='2-2 運転条件シート'!AF128 -> 0 | AH45: =IFERROR(_xlfn.XLOOKUP($A$18&$A$19&$A$20,$D$2:$D$10&$E$2:$E$10&$G$2:$G$10,AM$2:AM$10),"") ->  | AM45: - | AN45: ='2-2 運転条件シート'!AF129 -> 0 | AO45: =IFERROR(_xlfn.XLOOKUP($A$18&$A$19&$A$20,$D$2:$D$10&$E$2:$E$10&$G$2:$G$10,AM$2:AM$10),"") ->  | AT45: - | AU45: ='2-2 運転条件シート'!AF130 -> 0 | AV45: =IFERROR(_xlfn.XLOOKUP($A$18&$A$19&$A$20,$D$2:$D$10&$E$2:$E$10&$G$2:$G$10,AM$2:AM$10),"") ->  | BA45: - | BB45: ='2-2 運転条件シート'!AF131 -> 0 | BC45: =IFERROR(_xlfn.XLOOKUP($A$18&$A$19&$A$20,$D$2:$D$10&$E$2:$E$10&$G$2:$G$10,AM$2:AM$10),"") ->  | BH45: - | BI45: ='2-2 運転条件シート'!AF132 -> 0 | BJ45: =IFERROR(_xlfn.XLOOKUP($A$18&$A$19&$A$20,$D$2:$D$10&$E$2:$E$10&$G$2:$G$10,AM$2:AM$10),"") ->  | BO45: - | BP45: ='2-2 運転条件シート'!AF133 -> 0 | BQ45: =IFERROR(_xlfn.XLOOKUP($A$18&$A$19&$A$20,$D$2:$D$10&$E$2:$E$10&$G$2:$G$10,AM$2:AM$10),"") ->  | BV45: - | BW45: ='2-2 運転条件シート'!AF134 -> 0 | BX45: =IFERROR(_xlfn.XLOOKUP($A$18&$A$19&$A$20,$D$2:$D$10&$E$2:$E$10&$G$2:$G$10,AM$2:AM$10),"") ->  | CC45: - | CD45: ='2-2 運転条件シート'!AF135 -> 0 | CE45: =IFERROR(_xlfn.XLOOKUP($A$18&$A$19&$A$20,$D$2:$D$10&$E$2:$E$10&$G$2:$G$10,AM$2:AM$10),"") ->  | CJ45: -
D46: 23 | E46: ='2-2 運転条件シート'!AG124 -> 0 | F46: =IFERROR(_xlfn.XLOOKUP($A$18&$A$19&$A$20,$D$2:$D$10&$E$2:$E$10&$G$2:$G$10,AN$2:AN$10),"") ->  | K46: - | L46: ='2-2 運転条件シート'!AG125 -> 0 | M46: =IFERROR(_xlfn.XLOOKUP($A$18&$A$19&$A$20,$D$2:$D$10&$E$2:$E$10&$G$2:$G$10,AN$2:AN$10),"") ->  | R46: - | S46: ='2-2 運転条件シート'!AG126 -> 0 | T46: =IFERROR(_xlfn.XLOOKUP($A$18&$A$19&$A$20,$D$2:$D$10&$E$2:$E$10&$G$2:$G$10,AN$2:AN$10),"") ->  | Y46: - | Z46: ='2-2 運転条件シート'!AG127 -> 0 | AA46: =IFERROR(_xlfn.XLOOKUP($A$18&$A$19&$A$20,$D$2:$D$10&$E$2:$E$10&$G$2:$G$10,AN$2:AN$10),"") ->  | AF46: - | AG46: ='2-2 運転条件シート'!AG128 -> 0 | AH46: =IFERROR(_xlfn.XLOOKUP($A$18&$A$19&$A$20,$D$2:$D$10&$E$2:$E$10&$G$2:$G$10,AN$2:AN$10),"") ->  | AM46: - | AN46: ='2-2 運転条件シート'!AG129 -> 0 | AO46: =IFERROR(_xlfn.XLOOKUP($A$18&$A$19&$A$20,$D$2:$D$10&$E$2:$E$10&$G$2:$G$10,AN$2:AN$10),"") ->  | AT46: - | AU46: ='2-2 運転条件シート'!AG130 -> 0 | AV46: =IFERROR(_xlfn.XLOOKUP($A$18&$A$19&$A$20,$D$2:$D$10&$E$2:$E$10&$G$2:$G$10,AN$2:AN$10),"") ->  | BA46: - | BB46: ='2-2 運転条件シート'!AG131 -> 0 | BC46: =IFERROR(_xlfn.XLOOKUP($A$18&$A$19&$A$20,$D$2:$D$10&$E$2:$E$10&$G$2:$G$10,AN$2:AN$10),"") ->  | BH46: - | BI46: ='2-2 運転条件シート'!AG132 -> 0 | BJ46: =IFERROR(_xlfn.XLOOKUP($A$18&$A$19&$A$20,$D$2:$D$10&$E$2:$E$10&$G$2:$G$10,AN$2:AN$10),"") ->  | BO46: - | BP46: ='2-2 運転条件シート'!AG133 -> 0 | BQ46: =IFERROR(_xlfn.XLOOKUP($A$18&$A$19&$A$20,$D$2:$D$10&$E$2:$E$10&$G$2:$G$10,AN$2:AN$10),"") ->  | BV46: - | BW46: ='2-2 運転条件シート'!AG134 -> 0 | BX46: =IFERROR(_xlfn.XLOOKUP($A$18&$A$19&$A$20,$D$2:$D$10&$E$2:$E$10&$G$2:$G$10,AN$2:AN$10),"") ->  | CC46: - | CD46: ='2-2 運転条件シート'!AG135 -> 0 | CE46: =IFERROR(_xlfn.XLOOKUP($A$18&$A$19&$A$20,$D$2:$D$10&$E$2:$E$10&$G$2:$G$10,AN$2:AN$10),"") ->  | CJ46: -
D47: 24 | E47: ='2-2 運転条件シート'!AH124 -> 0 | F47: =IFERROR(_xlfn.XLOOKUP($A$18&$A$19&$A$20,$D$2:$D$10&$E$2:$E$10&$G$2:$G$10,AO$2:AO$10),"") ->  | K47: - | L47: ='2-2 運転条件シート'!AH125 -> 0 | M47: =IFERROR(_xlfn.XLOOKUP($A$18&$A$19&$A$20,$D$2:$D$10&$E$2:$E$10&$G$2:$G$10,AO$2:AO$10),"") ->  | R47: - | S47: ='2-2 運転条件シート'!AH126 -> 0 | T47: =IFERROR(_xlfn.XLOOKUP($A$18&$A$19&$A$20,$D$2:$D$10&$E$2:$E$10&$G$2:$G$10,AO$2:AO$10),"") ->  | Y47: - | Z47: ='2-2 運転条件シート'!AH127 -> 0 | AA47: =IFERROR(_xlfn.XLOOKUP($A$18&$A$19&$A$20,$D$2:$D$10&$E$2:$E$10&$G$2:$G$10,AO$2:AO$10),"") ->  | AF47: - | AG47: ='2-2 運転条件シート'!AH128 -> 0 | AH47: =IFERROR(_xlfn.XLOOKUP($A$18&$A$19&$A$20,$D$2:$D$10&$E$2:$E$10&$G$2:$G$10,AO$2:AO$10),"") ->  | AM47: - | AN47: ='2-2 運転条件シート'!AH129 -> 0 | AO47: =IFERROR(_xlfn.XLOOKUP($A$18&$A$19&$A$20,$D$2:$D$10&$E$2:$E$10&$G$2:$G$10,AO$2:AO$10),"") ->  | AT47: - | AU47: ='2-2 運転条件シート'!AH130 -> 0 | AV47: =IFERROR(_xlfn.XLOOKUP($A$18&$A$19&$A$20,$D$2:$D$10&$E$2:$E$10&$G$2:$G$10,AO$2:AO$10),"") ->  | BA47: - | BB47: ='2-2 運転条件シート'!AH131 -> 0 | BC47: =IFERROR(_xlfn.XLOOKUP($A$18&$A$19&$A$20,$D$2:$D$10&$E$2:$E$10&$G$2:$G$10,AO$2:AO$10),"") ->  | BH47: - | BI47: ='2-2 運転条件シート'!AH132 -> 0 | BJ47: =IFERROR(_xlfn.XLOOKUP($A$18&$A$19&$A$20,$D$2:$D$10&$E$2:$E$10&$G$2:$G$10,AO$2:AO$10),"") ->  | BO47: - | BP47: ='2-2 運転条件シート'!AH133 -> 0 | BQ47: =IFERROR(_xlfn.XLOOKUP($A$18&$A$19&$A$20,$D$2:$D$10&$E$2:$E$10&$G$2:$G$10,AO$2:AO$10),"") ->  | BV47: - | BW47: ='2-2 運転条件シート'!AH134 -> 0 | BX47: =IFERROR(_xlfn.XLOOKUP($A$18&$A$19&$A$20,$D$2:$D$10&$E$2:$E$10&$G$2:$G$10,AO$2:AO$10),"") ->  | CC47: - | CD47: ='2-2 運転条件シート'!AH135 -> 0 | CE47: =IFERROR(_xlfn.XLOOKUP($A$18&$A$19&$A$20,$D$2:$D$10&$E$2:$E$10&$G$2:$G$10,AO$2:AO$10),"") ->  | CJ47: -
D48: 25 | E48: ='2-2 運転条件シート'!AI124 -> 0 | F48: =IFERROR(_xlfn.XLOOKUP($A$18&$A$19&$A$20,$D$2:$D$10&$E$2:$E$10&$G$2:$G$10,AP$2:AP$10),"") ->  | K48: - | L48: ='2-2 運転条件シート'!AI125 -> 0 | M48: =IFERROR(_xlfn.XLOOKUP($A$18&$A$19&$A$20,$D$2:$D$10&$E$2:$E$10&$G$2:$G$10,AP$2:AP$10),"") ->  | R48: - | S48: ='2-2 運転条件シート'!AI126 -> 0 | T48: =IFERROR(_xlfn.XLOOKUP($A$18&$A$19&$A$20,$D$2:$D$10&$E$2:$E$10&$G$2:$G$10,AP$2:AP$10),"") ->  | Y48: - | Z48: ='2-2 運転条件シート'!AI127 -> 0 | AA48: =IFERROR(_xlfn.XLOOKUP($A$18&$A$19&$A$20,$D$2:$D$10&$E$2:$E$10&$G$2:$G$10,AP$2:AP$10),"") ->  | AF48: - | AG48: ='2-2 運転条件シート'!AI128 -> 0 | AH48: =IFERROR(_xlfn.XLOOKUP($A$18&$A$19&$A$20,$D$2:$D$10&$E$2:$E$10&$G$2:$G$10,AP$2:AP$10),"") ->  | AM48: - | AN48: ='2-2 運転条件シート'!AI129 -> 0 | AO48: =IFERROR(_xlfn.XLOOKUP($A$18&$A$19&$A$20,$D$2:$D$10&$E$2:$E$10&$G$2:$G$10,AP$2:AP$10),"") ->  | AT48: - | AU48: ='2-2 運転条件シート'!AI130 -> 0 | AV48: =IFERROR(_xlfn.XLOOKUP($A$18&$A$19&$A$20,$D$2:$D$10&$E$2:$E$10&$G$2:$G$10,AP$2:AP$10),"") ->  | BA48: - | BB48: ='2-2 運転条件シート'!AI131 -> 0 | BC48: =IFERROR(_xlfn.XLOOKUP($A$18&$A$19&$A$20,$D$2:$D$10&$E$2:$E$10&$G$2:$G$10,AP$2:AP$10),"") ->  | BH48: - | BI48: ='2-2 運転条件シート'!AI132 -> 0 | BJ48: =IFERROR(_xlfn.XLOOKUP($A$18&$A$19&$A$20,$D$2:$D$10&$E$2:$E$10&$G$2:$G$10,AP$2:AP$10),"") ->  | BO48: - | BP48: ='2-2 運転条件シート'!AI133 -> 0 | BQ48: =IFERROR(_xlfn.XLOOKUP($A$18&$A$19&$A$20,$D$2:$D$10&$E$2:$E$10&$G$2:$G$10,AP$2:AP$10),"") ->  | BV48: - | BW48: ='2-2 運転条件シート'!AI134 -> 0 | BX48: =IFERROR(_xlfn.XLOOKUP($A$18&$A$19&$A$20,$D$2:$D$10&$E$2:$E$10&$G$2:$G$10,AP$2:AP$10),"") ->  | CC48: - | CD48: ='2-2 運転条件シート'!AI135 -> 0 | CE48: =IFERROR(_xlfn.XLOOKUP($A$18&$A$19&$A$20,$D$2:$D$10&$E$2:$E$10&$G$2:$G$10,AP$2:AP$10),"") ->  | CJ48: -
D49: 26 | E49: ='2-2 運転条件シート'!AJ124 -> 0 | F49: =IFERROR(_xlfn.XLOOKUP($A$18&$A$19&$A$20,$D$2:$D$10&$E$2:$E$10&$G$2:$G$10,AQ$2:AQ$10),"") ->  | K49: - | L49: ='2-2 運転条件シート'!AJ125 -> 0 | M49: =IFERROR(_xlfn.XLOOKUP($A$18&$A$19&$A$20,$D$2:$D$10&$E$2:$E$10&$G$2:$G$10,AQ$2:AQ$10),"") ->  | R49: - | S49: ='2-2 運転条件シート'!AJ126 -> 0 | T49: =IFERROR(_xlfn.XLOOKUP($A$18&$A$19&$A$20,$D$2:$D$10&$E$2:$E$10&$G$2:$G$10,AQ$2:AQ$10),"") ->  | Y49: - | Z49: ='2-2 運転条件シート'!AJ127 -> 0 | AA49: =IFERROR(_xlfn.XLOOKUP($A$18&$A$19&$A$20,$D$2:$D$10&$E$2:$E$10&$G$2:$G$10,AQ$2:AQ$10),"") ->  | AF49: - | AG49: ='2-2 運転条件シート'!AJ128 -> 0 | AH49: =IFERROR(_xlfn.XLOOKUP($A$18&$A$19&$A$20,$D$2:$D$10&$E$2:$E$10&$G$2:$G$10,AQ$2:AQ$10),"") ->  | AM49: - | AN49: ='2-2 運転条件シート'!AJ129 -> 0 | AO49: =IFERROR(_xlfn.XLOOKUP($A$18&$A$19&$A$20,$D$2:$D$10&$E$2:$E$10&$G$2:$G$10,AQ$2:AQ$10),"") ->  | AT49: - | AU49: ='2-2 運転条件シート'!AJ130 -> 0 | AV49: =IFERROR(_xlfn.XLOOKUP($A$18&$A$19&$A$20,$D$2:$D$10&$E$2:$E$10&$G$2:$G$10,AQ$2:AQ$10),"") ->  | BA49: - | BB49: ='2-2 運転条件シート'!AJ131 -> 0 | BC49: =IFERROR(_xlfn.XLOOKUP($A$18&$A$19&$A$20,$D$2:$D$10&$E$2:$E$10&$G$2:$G$10,AQ$2:AQ$10),"") ->  | BH49: - | BI49: ='2-2 運転条件シート'!AJ132 -> 0 | BJ49: =IFERROR(_xlfn.XLOOKUP($A$18&$A$19&$A$20,$D$2:$D$10&$E$2:$E$10&$G$2:$G$10,AQ$2:AQ$10),"") ->  | BO49: - | BP49: ='2-2 運転条件シート'!AJ133 -> 0 | BQ49: =IFERROR(_xlfn.XLOOKUP($A$18&$A$19&$A$20,$D$2:$D$10&$E$2:$E$10&$G$2:$G$10,AQ$2:AQ$10),"") ->  | BV49: - | BW49: ='2-2 運転条件シート'!AJ134 -> 0 | BX49: =IFERROR(_xlfn.XLOOKUP($A$18&$A$19&$A$20,$D$2:$D$10&$E$2:$E$10&$G$2:$G$10,AQ$2:AQ$10),"") ->  | CC49: - | CD49: ='2-2 運転条件シート'!AJ135 -> 0 | CE49: =IFERROR(_xlfn.XLOOKUP($A$18&$A$19&$A$20,$D$2:$D$10&$E$2:$E$10&$G$2:$G$10,AQ$2:AQ$10),"") ->  | CJ49: -
D50: 27 | E50: ='2-2 運転条件シート'!AK124 -> 0 | F50: =IFERROR(_xlfn.XLOOKUP($A$18&$A$19&$A$20,$D$2:$D$10&$E$2:$E$10&$G$2:$G$10,AR$2:AR$10),"") ->  | K50: - | L50: ='2-2 運転条件シート'!AK125 -> 0 | M50: =IFERROR(_xlfn.XLOOKUP($A$18&$A$19&$A$20,$D$2:$D$10&$E$2:$E$10&$G$2:$G$10,AR$2:AR$10),"") ->  | R50: - | S50: ='2-2 運転条件シート'!AK126 -> 0 | T50: =IFERROR(_xlfn.XLOOKUP($A$18&$A$19&$A$20,$D$2:$D$10&$E$2:$E$10&$G$2:$G$10,AR$2:AR$10),"") ->  | Y50: - | Z50: ='2-2 運転条件シート'!AK127 -> 0 | AA50: =IFERROR(_xlfn.XLOOKUP($A$18&$A$19&$A$20,$D$2:$D$10&$E$2:$E$10&$G$2:$G$10,AR$2:AR$10),"") ->  | AF50: - | AG50: ='2-2 運転条件シート'!AK128 -> 0 | AH50: =IFERROR(_xlfn.XLOOKUP($A$18&$A$19&$A$20,$D$2:$D$10&$E$2:$E$10&$G$2:$G$10,AR$2:AR$10),"") ->  | AM50: - | AN50: ='2-2 運転条件シート'!AK129 -> 0 | AO50: =IFERROR(_xlfn.XLOOKUP($A$18&$A$19&$A$20,$D$2:$D$10&$E$2:$E$10&$G$2:$G$10,AR$2:AR$10),"") ->  | AT50: - | AU50: ='2-2 運転条件シート'!AK130 -> 0 | AV50: =IFERROR(_xlfn.XLOOKUP($A$18&$A$19&$A$20,$D$2:$D$10&$E$2:$E$10&$G$2:$G$10,AR$2:AR$10),"") ->  | BA50: - | BB50: ='2-2 運転条件シート'!AK131 -> 0 | BC50: =IFERROR(_xlfn.XLOOKUP($A$18&$A$19&$A$20,$D$2:$D$10&$E$2:$E$10&$G$2:$G$10,AR$2:AR$10),"") ->  | BH50: - | BI50: ='2-2 運転条件シート'!AK132 -> 0 | BJ50: =IFERROR(_xlfn.XLOOKUP($A$18&$A$19&$A$20,$D$2:$D$10&$E$2:$E$10&$G$2:$G$10,AR$2:AR$10),"") ->  | BO50: - | BP50: ='2-2 運転条件シート'!AK133 -> 0 | BQ50: =IFERROR(_xlfn.XLOOKUP($A$18&$A$19&$A$20,$D$2:$D$10&$E$2:$E$10&$G$2:$G$10,AR$2:AR$10),"") ->  | BV50: - | BW50: ='2-2 運転条件シート'!AK134 -> 0 | BX50: =IFERROR(_xlfn.XLOOKUP($A$18&$A$19&$A$20,$D$2:$D$10&$E$2:$E$10&$G$2:$G$10,AR$2:AR$10),"") ->  | CC50: - | CD50: ='2-2 運転条件シート'!AK135 -> 0 | CE50: =IFERROR(_xlfn.XLOOKUP($A$18&$A$19&$A$20,$D$2:$D$10&$E$2:$E$10&$G$2:$G$10,AR$2:AR$10),"") ->  | CJ50: -
D51: 28 | E51: ='2-2 運転条件シート'!AL124 -> 0 | F51: =IFERROR(_xlfn.XLOOKUP($A$18&$A$19&$A$20,$D$2:$D$10&$E$2:$E$10&$G$2:$G$10,AS$2:AS$10),"") ->  | K51: - | L51: ='2-2 運転条件シート'!AL125 -> 0 | M51: =IFERROR(_xlfn.XLOOKUP($A$18&$A$19&$A$20,$D$2:$D$10&$E$2:$E$10&$G$2:$G$10,AS$2:AS$10),"") ->  | R51: - | S51: ='2-2 運転条件シート'!AL126 -> 0 | T51: =IFERROR(_xlfn.XLOOKUP($A$18&$A$19&$A$20,$D$2:$D$10&$E$2:$E$10&$G$2:$G$10,AS$2:AS$10),"") ->  | Y51: - | Z51: ='2-2 運転条件シート'!AL127 -> 0 | AA51: =IFERROR(_xlfn.XLOOKUP($A$18&$A$19&$A$20,$D$2:$D$10&$E$2:$E$10&$G$2:$G$10,AS$2:AS$10),"") ->  | AF51: - | AG51: ='2-2 運転条件シート'!AL128 -> 0 | AH51: =IFERROR(_xlfn.XLOOKUP($A$18&$A$19&$A$20,$D$2:$D$10&$E$2:$E$10&$G$2:$G$10,AS$2:AS$10),"") ->  | AM51: - | AN51: ='2-2 運転条件シート'!AL129 -> 0 | AO51: =IFERROR(_xlfn.XLOOKUP($A$18&$A$19&$A$20,$D$2:$D$10&$E$2:$E$10&$G$2:$G$10,AS$2:AS$10),"") ->  | AT51: - | AU51: ='2-2 運転条件シート'!AL130 -> 0 | AV51: =IFERROR(_xlfn.XLOOKUP($A$18&$A$19&$A$20,$D$2:$D$10&$E$2:$E$10&$G$2:$G$10,AS$2:AS$10),"") ->  | BA51: - | BB51: ='2-2 運転条件シート'!AL131 -> 0 | BC51: =IFERROR(_xlfn.XLOOKUP($A$18&$A$19&$A$20,$D$2:$D$10&$E$2:$E$10&$G$2:$G$10,AS$2:AS$10),"") ->  | BH51: - | BI51: ='2-2 運転条件シート'!AL132 -> 0 | BJ51: =IFERROR(_xlfn.XLOOKUP($A$18&$A$19&$A$20,$D$2:$D$10&$E$2:$E$10&$G$2:$G$10,AS$2:AS$10),"") ->  | BO51: - | BP51: ='2-2 運転条件シート'!AL133 -> 0 | BQ51: =IFERROR(_xlfn.XLOOKUP($A$18&$A$19&$A$20,$D$2:$D$10&$E$2:$E$10&$G$2:$G$10,AS$2:AS$10),"") ->  | BV51: - | BW51: ='2-2 運転条件シート'!AL134 -> 0 | BX51: =IFERROR(_xlfn.XLOOKUP($A$18&$A$19&$A$20,$D$2:$D$10&$E$2:$E$10&$G$2:$G$10,AS$2:AS$10),"") ->  | CC51: - | CD51: ='2-2 運転条件シート'!AL135 -> 0 | CE51: =IFERROR(_xlfn.XLOOKUP($A$18&$A$19&$A$20,$D$2:$D$10&$E$2:$E$10&$G$2:$G$10,AS$2:AS$10),"") ->  | CJ51: -
D52: 29 | E52: ='2-2 運転条件シート'!AM124 -> 0 | F52: =IFERROR(_xlfn.XLOOKUP($A$18&$A$19&$A$20,$D$2:$D$10&$E$2:$E$10&$G$2:$G$10,AT$2:AT$10),"") ->  | K52: - | L52: ='2-2 運転条件シート'!AM125 -> 0 | M52: =IFERROR(_xlfn.XLOOKUP($A$18&$A$19&$A$20,$D$2:$D$10&$E$2:$E$10&$G$2:$G$10,AT$2:AT$10),"") ->  | R52: - | S52: ='2-2 運転条件シート'!AM126 -> 0 | T52: =IFERROR(_xlfn.XLOOKUP($A$18&$A$19&$A$20,$D$2:$D$10&$E$2:$E$10&$G$2:$G$10,AT$2:AT$10),"") ->  | Y52: - | Z52: ='2-2 運転条件シート'!AM127 -> 0 | AA52: =IFERROR(_xlfn.XLOOKUP($A$18&$A$19&$A$20,$D$2:$D$10&$E$2:$E$10&$G$2:$G$10,AT$2:AT$10),"") ->  | AD52: =IFERROR($AC$13/AC52,"") ->  | AF52: - | AG52: ='2-2 運転条件シート'!AM128 -> 0 | AH52: =IFERROR(_xlfn.XLOOKUP($A$18&$A$19&$A$20,$D$2:$D$10&$E$2:$E$10&$G$2:$G$10,AT$2:AT$10),"") ->  | AM52: - | AN52: ='2-2 運転条件シート'!AM129 -> 0 | AO52: =IFERROR(_xlfn.XLOOKUP($A$18&$A$19&$A$20,$D$2:$D$10&$E$2:$E$10&$G$2:$G$10,AT$2:AT$10),"") ->  | AT52: - | AU52: ='2-2 運転条件シート'!AM130 -> 0 | AV52: =IFERROR(_xlfn.XLOOKUP($A$18&$A$19&$A$20,$D$2:$D$10&$E$2:$E$10&$G$2:$G$10,AT$2:AT$10),"") ->  | BA52: - | BB52: ='2-2 運転条件シート'!AM131 -> 0 | BC52: =IFERROR(_xlfn.XLOOKUP($A$18&$A$19&$A$20,$D$2:$D$10&$E$2:$E$10&$G$2:$G$10,AT$2:AT$10),"") ->  | BH52: - | BI52: ='2-2 運転条件シート'!AM132 -> 0 | BJ52: =IFERROR(_xlfn.XLOOKUP($A$18&$A$19&$A$20,$D$2:$D$10&$E$2:$E$10&$G$2:$G$10,AT$2:AT$10),"") ->  | BO52: - | BP52: ='2-2 運転条件シート'!AM133 -> 0 | BQ52: =IFERROR(_xlfn.XLOOKUP($A$18&$A$19&$A$20,$D$2:$D$10&$E$2:$E$10&$G$2:$G$10,AT$2:AT$10),"") ->  | BV52: - | BW52: ='2-2 運転条件シート'!AM134 -> 0 | BX52: =IFERROR(_xlfn.XLOOKUP($A$18&$A$19&$A$20,$D$2:$D$10&$E$2:$E$10&$G$2:$G$10,AT$2:AT$10),"") ->  | CC52: - | CD52: ='2-2 運転条件シート'!AM135 -> 0 | CE52: =IFERROR(_xlfn.XLOOKUP($A$18&$A$19&$A$20,$D$2:$D$10&$E$2:$E$10&$G$2:$G$10,AT$2:AT$10),"") ->  | CJ52: -
D53: 30 | E53: ='2-2 運転条件シート'!AN124 -> 0 | F53: =IFERROR(_xlfn.XLOOKUP($A$18&$A$19&$A$20,$D$2:$D$10&$E$2:$E$10&$G$2:$G$10,AU$2:AU$10),"") ->  | K53: - | L53: ='2-2 運転条件シート'!AN125 -> 0 | M53: =IFERROR(_xlfn.XLOOKUP($A$18&$A$19&$A$20,$D$2:$D$10&$E$2:$E$10&$G$2:$G$10,AU$2:AU$10),"") ->  | R53: - | S53: ='2-2 運転条件シート'!AN126 -> 0 | T53: =IFERROR(_xlfn.XLOOKUP($A$18&$A$19&$A$20,$D$2:$D$10&$E$2:$E$10&$G$2:$G$10,AU$2:AU$10),"") ->  | Y53: - | Z53: ='2-2 運転条件シート'!AN127 -> 0 | AA53: =IFERROR(_xlfn.XLOOKUP($A$18&$A$19&$A$20,$D$2:$D$10&$E$2:$E$10&$G$2:$G$10,AU$2:AU$10),"") ->  | AF53: - | AG53: ='2-2 運転条件シート'!AN128 -> 0 | AH53: =IFERROR(_xlfn.XLOOKUP($A$18&$A$19&$A$20,$D$2:$D$10&$E$2:$E$10&$G$2:$G$10,AU$2:AU$10),"") ->  | AM53: - | AN53: ='2-2 運転条件シート'!AN129 -> 0 | AO53: =IFERROR(_xlfn.XLOOKUP($A$18&$A$19&$A$20,$D$2:$D$10&$E$2:$E$10&$G$2:$G$10,AU$2:AU$10),"") ->  | AT53: - | AU53: ='2-2 運転条件シート'!AN130 -> 0 | AV53: =IFERROR(_xlfn.XLOOKUP($A$18&$A$19&$A$20,$D$2:$D$10&$E$2:$E$10&$G$2:$G$10,AU$2:AU$10),"") ->  | BA53: - | BB53: ='2-2 運転条件シート'!AN131 -> 0 | BC53: =IFERROR(_xlfn.XLOOKUP($A$18&$A$19&$A$20,$D$2:$D$10&$E$2:$E$10&$G$2:$G$10,AU$2:AU$10),"") ->  | BH53: - | BI53: ='2-2 運転条件シート'!AN132 -> 0 | BJ53: =IFERROR(_xlfn.XLOOKUP($A$18&$A$19&$A$20,$D$2:$D$10&$E$2:$E$10&$G$2:$G$10,AU$2:AU$10),"") ->  | BO53: - | BP53: ='2-2 運転条件シート'!AN133 -> 0 | BQ53: =IFERROR(_xlfn.XLOOKUP($A$18&$A$19&$A$20,$D$2:$D$10&$E$2:$E$10&$G$2:$G$10,AU$2:AU$10),"") ->  | BV53: - | BW53: ='2-2 運転条件シート'!AN134 -> 0 | BX53: =IFERROR(_xlfn.XLOOKUP($A$18&$A$19&$A$20,$D$2:$D$10&$E$2:$E$10&$G$2:$G$10,AU$2:AU$10),"") ->  | CC53: - | CD53: ='2-2 運転条件シート'!AN135 -> 0 | CE53: =IFERROR(_xlfn.XLOOKUP($A$18&$A$19&$A$20,$D$2:$D$10&$E$2:$E$10&$G$2:$G$10,AU$2:AU$10),"") ->  | CJ53: -
D54: 31 | E54: ='2-2 運転条件シート'!AO124 -> 0 | F54: =IFERROR(_xlfn.XLOOKUP($A$18&$A$19&$A$20,$D$2:$D$10&$E$2:$E$10&$G$2:$G$10,AV$2:AV$10),"") ->  | K54: - | L54: ='2-2 運転条件シート'!AO125 -> 0 | M54: =IFERROR(_xlfn.XLOOKUP($A$18&$A$19&$A$20,$D$2:$D$10&$E$2:$E$10&$G$2:$G$10,AV$2:AV$10),"") ->  | R54: - | S54: ='2-2 運転条件シート'!AO126 -> 0 | T54: =IFERROR(_xlfn.XLOOKUP($A$18&$A$19&$A$20,$D$2:$D$10&$E$2:$E$10&$G$2:$G$10,AV$2:AV$10),"") ->  | Y54: - | Z54: ='2-2 運転条件シート'!AO127 -> 0 | AA54: =IFERROR(_xlfn.XLOOKUP($A$18&$A$19&$A$20,$D$2:$D$10&$E$2:$E$10&$G$2:$G$10,AV$2:AV$10),"") ->  | AF54: - | AG54: ='2-2 運転条件シート'!AO128 -> 0 | AH54: =IFERROR(_xlfn.XLOOKUP($A$18&$A$19&$A$20,$D$2:$D$10&$E$2:$E$10&$G$2:$G$10,AV$2:AV$10),"") ->  | AM54: - | AN54: ='2-2 運転条件シート'!AO129 -> 0 | AO54: =IFERROR(_xlfn.XLOOKUP($A$18&$A$19&$A$20,$D$2:$D$10&$E$2:$E$10&$G$2:$G$10,AV$2:AV$10),"") ->  | AT54: - | AU54: ='2-2 運転条件シート'!AO130 -> 0 | AV54: =IFERROR(_xlfn.XLOOKUP($A$18&$A$19&$A$20,$D$2:$D$10&$E$2:$E$10&$G$2:$G$10,AV$2:AV$10),"") ->  | BA54: - | BB54: ='2-2 運転条件シート'!AO131 -> 0 | BC54: =IFERROR(_xlfn.XLOOKUP($A$18&$A$19&$A$20,$D$2:$D$10&$E$2:$E$10&$G$2:$G$10,AV$2:AV$10),"") ->  | BH54: - | BI54: ='2-2 運転条件シート'!AO132 -> 0 | BJ54: =IFERROR(_xlfn.XLOOKUP($A$18&$A$19&$A$20,$D$2:$D$10&$E$2:$E$10&$G$2:$G$10,AV$2:AV$10),"") ->  | BO54: - | BP54: ='2-2 運転条件シート'!AO133 -> 0 | BQ54: =IFERROR(_xlfn.XLOOKUP($A$18&$A$19&$A$20,$D$2:$D$10&$E$2:$E$10&$G$2:$G$10,AV$2:AV$10),"") ->  | BV54: - | BW54: ='2-2 運転条件シート'!AO134 -> 0 | BX54: =IFERROR(_xlfn.XLOOKUP($A$18&$A$19&$A$20,$D$2:$D$10&$E$2:$E$10&$G$2:$G$10,AV$2:AV$10),"") ->  | CC54: - | CD54: ='2-2 運転条件シート'!AO135 -> 0 | CE54: =IFERROR(_xlfn.XLOOKUP($A$18&$A$19&$A$20,$D$2:$D$10&$E$2:$E$10&$G$2:$G$10,AV$2:AV$10),"") ->  | CJ54: -
D55: 32 | E55: ='2-2 運転条件シート'!AP124 -> 0 | F55: =IFERROR(_xlfn.XLOOKUP($A$18&$A$19&$A$20,$D$2:$D$10&$E$2:$E$10&$G$2:$G$10,AW$2:AW$10),"") ->  | K55: - | L55: ='2-2 運転条件シート'!AP125 -> 0 | M55: =IFERROR(_xlfn.XLOOKUP($A$18&$A$19&$A$20,$D$2:$D$10&$E$2:$E$10&$G$2:$G$10,AW$2:AW$10),"") ->  | R55: - | S55: ='2-2 運転条件シート'!AP126 -> 0 | T55: =IFERROR(_xlfn.XLOOKUP($A$18&$A$19&$A$20,$D$2:$D$10&$E$2:$E$10&$G$2:$G$10,AW$2:AW$10),"") ->  | Y55: - | Z55: ='2-2 運転条件シート'!AP127 -> 0 | AA55: =IFERROR(_xlfn.XLOOKUP($A$18&$A$19&$A$20,$D$2:$D$10&$E$2:$E$10&$G$2:$G$10,AW$2:AW$10),"") ->  | AF55: - | AG55: ='2-2 運転条件シート'!AP128 -> 0 | AH55: =IFERROR(_xlfn.XLOOKUP($A$18&$A$19&$A$20,$D$2:$D$10&$E$2:$E$10&$G$2:$G$10,AW$2:AW$10),"") ->  | AM55: - | AN55: ='2-2 運転条件シート'!AP129 -> 0 | AO55: =IFERROR(_xlfn.XLOOKUP($A$18&$A$19&$A$20,$D$2:$D$10&$E$2:$E$10&$G$2:$G$10,AW$2:AW$10),"") ->  | AT55: - | AU55: ='2-2 運転条件シート'!AP130 -> 0 | AV55: =IFERROR(_xlfn.XLOOKUP($A$18&$A$19&$A$20,$D$2:$D$10&$E$2:$E$10&$G$2:$G$10,AW$2:AW$10),"") ->  | BA55: - | BB55: ='2-2 運転条件シート'!AP131 -> 0 | BC55: =IFERROR(_xlfn.XLOOKUP($A$18&$A$19&$A$20,$D$2:$D$10&$E$2:$E$10&$G$2:$G$10,AW$2:AW$10),"") ->  | BH55: - | BI55: ='2-2 運転条件シート'!AP132 -> 0 | BJ55: =IFERROR(_xlfn.XLOOKUP($A$18&$A$19&$A$20,$D$2:$D$10&$E$2:$E$10&$G$2:$G$10,AW$2:AW$10),"") ->  | BO55: - | BP55: ='2-2 運転条件シート'!AP133 -> 0 | BQ55: =IFERROR(_xlfn.XLOOKUP($A$18&$A$19&$A$20,$D$2:$D$10&$E$2:$E$10&$G$2:$G$10,AW$2:AW$10),"") ->  | BV55: - | BW55: ='2-2 運転条件シート'!AP134 -> 0 | BX55: =IFERROR(_xlfn.XLOOKUP($A$18&$A$19&$A$20,$D$2:$D$10&$E$2:$E$10&$G$2:$G$10,AW$2:AW$10),"") ->  | CC55: - | CD55: ='2-2 運転条件シート'!AP135 -> 0 | CE55: =IFERROR(_xlfn.XLOOKUP($A$18&$A$19&$A$20,$D$2:$D$10&$E$2:$E$10&$G$2:$G$10,AW$2:AW$10),"") ->  | CJ55: -
D56: 33 | E56: ='2-2 運転条件シート'!AQ124 -> 0 | F56: =IFERROR(_xlfn.XLOOKUP($A$18&$A$19&$A$20,$D$2:$D$10&$E$2:$E$10&$G$2:$G$10,AX$2:AX$10),"") ->  | K56: - | L56: ='2-2 運転条件シート'!AQ125 -> 0 | M56: =IFERROR(_xlfn.XLOOKUP($A$18&$A$19&$A$20,$D$2:$D$10&$E$2:$E$10&$G$2:$G$10,AX$2:AX$10),"") ->  | R56: - | S56: ='2-2 運転条件シート'!AQ126 -> 0 | T56: =IFERROR(_xlfn.XLOOKUP($A$18&$A$19&$A$20,$D$2:$D$10&$E$2:$E$10&$G$2:$G$10,AX$2:AX$10),"") ->  | Y56: - | Z56: ='2-2 運転条件シート'!AQ127 -> 0 | AA56: =IFERROR(_xlfn.XLOOKUP($A$18&$A$19&$A$20,$D$2:$D$10&$E$2:$E$10&$G$2:$G$10,AX$2:AX$10),"") ->  | AF56: - | AG56: ='2-2 運転条件シート'!AQ128 -> 0 | AH56: =IFERROR(_xlfn.XLOOKUP($A$18&$A$19&$A$20,$D$2:$D$10&$E$2:$E$10&$G$2:$G$10,AX$2:AX$10),"") ->  | AM56: - | AN56: ='2-2 運転条件シート'!AQ129 -> 0 | AO56: =IFERROR(_xlfn.XLOOKUP($A$18&$A$19&$A$20,$D$2:$D$10&$E$2:$E$10&$G$2:$G$10,AX$2:AX$10),"") ->  | AT56: - | AU56: ='2-2 運転条件シート'!AQ130 -> 0 | AV56: =IFERROR(_xlfn.XLOOKUP($A$18&$A$19&$A$20,$D$2:$D$10&$E$2:$E$10&$G$2:$G$10,AX$2:AX$10),"") ->  | BA56: - | BB56: ='2-2 運転条件シート'!AQ131 -> 0 | BC56: =IFERROR(_xlfn.XLOOKUP($A$18&$A$19&$A$20,$D$2:$D$10&$E$2:$E$10&$G$2:$G$10,AX$2:AX$10),"") ->  | BH56: - | BI56: ='2-2 運転条件シート'!AQ132 -> 0 | BJ56: =IFERROR(_xlfn.XLOOKUP($A$18&$A$19&$A$20,$D$2:$D$10&$E$2:$E$10&$G$2:$G$10,AX$2:AX$10),"") ->  | BO56: - | BP56: ='2-2 運転条件シート'!AQ133 -> 0 | BQ56: =IFERROR(_xlfn.XLOOKUP($A$18&$A$19&$A$20,$D$2:$D$10&$E$2:$E$10&$G$2:$G$10,AX$2:AX$10),"") ->  | BV56: - | BW56: ='2-2 運転条件シート'!AQ134 -> 0 | BX56: =IFERROR(_xlfn.XLOOKUP($A$18&$A$19&$A$20,$D$2:$D$10&$E$2:$E$10&$G$2:$G$10,AX$2:AX$10),"") ->  | CC56: - | CD56: ='2-2 運転条件シート'!AQ135 -> 0 | CE56: =IFERROR(_xlfn.XLOOKUP($A$18&$A$19&$A$20,$D$2:$D$10&$E$2:$E$10&$G$2:$G$10,AX$2:AX$10),"") ->  | CJ56: -
D57: 34 | E57: ='2-2 運転条件シート'!AR124 -> 0 | F57: =IFERROR(_xlfn.XLOOKUP($A$18&$A$19&$A$20,$D$2:$D$10&$E$2:$E$10&$G$2:$G$10,AY$2:AY$10),"") ->  | K57: - | L57: ='2-2 運転条件シート'!AR125 -> 0 | M57: =IFERROR(_xlfn.XLOOKUP($A$18&$A$19&$A$20,$D$2:$D$10&$E$2:$E$10&$G$2:$G$10,AY$2:AY$10),"") ->  | R57: - | S57: ='2-2 運転条件シート'!AR126 -> 0 | T57: =IFERROR(_xlfn.XLOOKUP($A$18&$A$19&$A$20,$D$2:$D$10&$E$2:$E$10&$G$2:$G$10,AY$2:AY$10),"") ->  | Y57: - | Z57: ='2-2 運転条件シート'!AR127 -> 0 | AA57: =IFERROR(_xlfn.XLOOKUP($A$18&$A$19&$A$20,$D$2:$D$10&$E$2:$E$10&$G$2:$G$10,AY$2:AY$10),"") ->  | AF57: - | AG57: ='2-2 運転条件シート'!AR128 -> 0 | AH57: =IFERROR(_xlfn.XLOOKUP($A$18&$A$19&$A$20,$D$2:$D$10&$E$2:$E$10&$G$2:$G$10,AY$2:AY$10),"") ->  | AM57: - | AN57: ='2-2 運転条件シート'!AR129 -> 0 | AO57: =IFERROR(_xlfn.XLOOKUP($A$18&$A$19&$A$20,$D$2:$D$10&$E$2:$E$10&$G$2:$G$10,AY$2:AY$10),"") ->  | AT57: - | AU57: ='2-2 運転条件シート'!AR130 -> 0 | AV57: =IFERROR(_xlfn.XLOOKUP($A$18&$A$19&$A$20,$D$2:$D$10&$E$2:$E$10&$G$2:$G$10,AY$2:AY$10),"") ->  | BA57: - | BB57: ='2-2 運転条件シート'!AR131 -> 0 | BC57: =IFERROR(_xlfn.XLOOKUP($A$18&$A$19&$A$20,$D$2:$D$10&$E$2:$E$10&$G$2:$G$10,AY$2:AY$10),"") ->  | BH57: - | BI57: ='2-2 運転条件シート'!AR132 -> 0 | BJ57: =IFERROR(_xlfn.XLOOKUP($A$18&$A$19&$A$20,$D$2:$D$10&$E$2:$E$10&$G$2:$G$10,AY$2:AY$10),"") ->  | BO57: - | BP57: ='2-2 運転条件シート'!AR133 -> 0 | BQ57: =IFERROR(_xlfn.XLOOKUP($A$18&$A$19&$A$20,$D$2:$D$10&$E$2:$E$10&$G$2:$G$10,AY$2:AY$10),"") ->  | BV57: - | BW57: ='2-2 運転条件シート'!AR134 -> 0 | BX57: =IFERROR(_xlfn.XLOOKUP($A$18&$A$19&$A$20,$D$2:$D$10&$E$2:$E$10&$G$2:$G$10,AY$2:AY$10),"") ->  | CC57: - | CD57: ='2-2 運転条件シート'!AR135 -> 0 | CE57: =IFERROR(_xlfn.XLOOKUP($A$18&$A$19&$A$20,$D$2:$D$10&$E$2:$E$10&$G$2:$G$10,AY$2:AY$10),"") ->  | CJ57: -
D58: 35 | E58: ='2-2 運転条件シート'!AS124 -> 0 | F58: =IFERROR(_xlfn.XLOOKUP($A$18&$A$19&$A$20,$D$2:$D$10&$E$2:$E$10&$G$2:$G$10,AZ$2:AZ$10),"") ->  | I58: =IFERROR($G$13/H58,"") ->  | K58: - | L58: ='2-2 運転条件シート'!AS125 -> 0 | M58: =IFERROR(_xlfn.XLOOKUP($A$18&$A$19&$A$20,$D$2:$D$10&$E$2:$E$10&$G$2:$G$10,AZ$2:AZ$10),"") ->  | P58: =IFERROR($O$13/O58,"") ->  | R58: - | S58: ='2-2 運転条件シート'!AS126 -> 0 | T58: =IFERROR(_xlfn.XLOOKUP($A$18&$A$19&$A$20,$D$2:$D$10&$E$2:$E$10&$G$2:$G$10,AZ$2:AZ$10),"") ->  | W58: =IFERROR($V$13/V58,"") ->  | Y58: - | Z58: ='2-2 運転条件シート'!AS127 -> 0 | AA58: =IFERROR(_xlfn.XLOOKUP($A$18&$A$19&$A$20,$D$2:$D$10&$E$2:$E$10&$G$2:$G$10,AZ$2:AZ$10),"") ->  | AF58: - | AG58: ='2-2 運転条件シート'!AS128 -> 0 | AH58: =IFERROR(_xlfn.XLOOKUP($A$18&$A$19&$A$20,$D$2:$D$10&$E$2:$E$10&$G$2:$G$10,AZ$2:AZ$10),"") ->  | AM58: - | AN58: ='2-2 運転条件シート'!AS129 -> 0 | AO58: =IFERROR(_xlfn.XLOOKUP($A$18&$A$19&$A$20,$D$2:$D$10&$E$2:$E$10&$G$2:$G$10,AZ$2:AZ$10),"") ->  | AT58: - | AU58: ='2-2 運転条件シート'!AS130 -> 0 | AV58: =IFERROR(_xlfn.XLOOKUP($A$18&$A$19&$A$20,$D$2:$D$10&$E$2:$E$10&$G$2:$G$10,AZ$2:AZ$10),"") ->  | AY58: =IFERROR($AX$13/AX58,"") ->  | BA58: - | BB58: ='2-2 運転条件シート'!AS131 -> 0 | BC58: =IFERROR(_xlfn.XLOOKUP($A$18&$A$19&$A$20,$D$2:$D$10&$E$2:$E$10&$G$2:$G$10,AZ$2:AZ$10),"") ->  | BH58: - | BI58: ='2-2 運転条件シート'!AS132 -> 0 | BJ58: =IFERROR(_xlfn.XLOOKUP($A$18&$A$19&$A$20,$D$2:$D$10&$E$2:$E$10&$G$2:$G$10,AZ$2:AZ$10),"") ->  | BO58: - | BP58: ='2-2 運転条件シート'!AS133 -> 0 | BQ58: =IFERROR(_xlfn.XLOOKUP($A$18&$A$19&$A$20,$D$2:$D$10&$E$2:$E$10&$G$2:$G$10,AZ$2:AZ$10),"") ->  | BV58: - | BW58: ='2-2 運転条件シート'!AS134 -> 0 | BX58: =IFERROR(_xlfn.XLOOKUP($A$18&$A$19&$A$20,$D$2:$D$10&$E$2:$E$10&$G$2:$G$10,AZ$2:AZ$10),"") ->  | CA58: =IFERROR($BZ$13/BZ58,"") ->  | CC58: - | CD58: ='2-2 運転条件シート'!AS135 -> 0 | CE58: =IFERROR(_xlfn.XLOOKUP($A$18&$A$19&$A$20,$D$2:$D$10&$E$2:$E$10&$G$2:$G$10,AZ$2:AZ$10),"") ->  | CJ58: -
D59: Σt(h) | E59: =SUM(E17:E58) -> 0 | J59: 必要熱源容量qme(kw) ⇒ | K59: =IF($A$18="一過式",データ集!$O5,データ集!$P5) -> ★ | L59: =SUM(L17:L58) -> 0 | R59: =IF($A$18="一過式",データ集!$O6,データ集!$P6) -> ★ | S59: =SUM(S17:S58) -> 0 | Y59: =IF($A$18="一過式",データ集!$O7,データ集!$P7) -> ★ | Z59: =SUM(Z17:Z58) -> 0 | AF59: =IF($A$18="一過式",データ集!$O8,データ集!$P8) -> ★ | AG59: =SUM(AG17:AG58) -> 0 | AM59: =IF($A$18="一過式",データ集!$O9,データ集!$P9) -> ★ | AN59: =SUM(AN17:AN58) -> 0 | AT59: =IF($A$18="一過式",データ集!$O10,データ集!$P10) -> ★ | AU59: =SUM(AU17:AU58) -> 0 | BA59: =IF($A$18="一過式",データ集!$O11,データ集!$P11) -> ★ | BB59: =SUM(BB17:BB58) -> 0 | BH59: =IF($A$18="一過式",データ集!$O12,データ集!$P12) -> ★ | BI59: =SUM(BI17:BI58) -> 0 | BO59: =IF($A$18="一過式",データ集!$O13,データ集!$P13) -> ★ | BP59: =SUM(BP17:BP58) -> 0 | BV59: =IF($A$18="一過式",データ集!$O14,データ集!$P14) -> ★ | BW59: =SUM(BW17:BW58) -> 0 | CC59: =IF($A$18="一過式",データ集!$O15,データ集!$P15) -> ★ | CD59: =SUM(CD17:CD58) -> 0 | CJ59: =IF($A$18="一過式",データ集!$O16,データ集!$P16) -> ★
H60: ηm＝0.71のΦ4とQ4の値：⇒ | I60: =SUM(J17:J58) -> 0 | K60: =SUM(K17:K59) -> 0 | N60: 〃 | O60: ⇒ | P60: =SUM(Q17:Q58) -> 0 | R60: =SUM(R17:R58) -> 0 | U60: 〃 | V60: ⇒ | W60: =SUM(X17:X58) -> 0 | Y60: =SUM(Y17:Y58) -> 0 | AB60: 〃 | AC60: ⇒ | AD60: =SUM(AE17:AE58) -> 0 | AF60: =SUM(AF17:AF58) -> 0 | AI60: 〃 | AJ60: ⇒ | AK60: =SUM(AL17:AL58) -> 0 | AM60: =SUM(AM17:AM58) -> 0 | AP60: 〃 | AQ60: ⇒ | AR60: =SUM(AS17:AS58) -> 0 | AT60: =SUM(AT17:AT58) -> 0 | AW60: 〃 | AX60: ⇒ | AY60: =SUM(AZ17:AZ58) -> 0 | BA60: =SUM(BA17:BA58) -> 0 | BD60: 〃 | BE60: ⇒ | BF60: =SUM(BG17:BG58) -> 0 | BH60: =SUM(BH17:BH58) -> 0 | BK60: 〃 | BL60: ⇒ | BM60: =SUM(BN17:BN58) -> 0 | BO60: =SUM(BO17:BO58) -> 0 | BR60: 〃 | BS60: ⇒ | BT60: =SUM(BU17:BU58) -> 0 | BV60: =SUM(BV17:BV58) -> 0 | BY60: 〃 | BZ60: ⇒ | CA60: =SUM(CB17:CB58) -> 0 | CC60: =SUM(CC17:CC58) -> 0 | CF60: 〃 | CG60: ⇒ | CH60: =SUM(CI17:CI58) -> 0 | CJ60: =SUM(CJ17:CJ58) -> 0
H61: ηm＝1.00のΦ4とQ4の値：⇒ | I61: η4＝１ | J61: =ROUND(+I$60/F$13,0) ->  | K61: =ROUND(+K$60/F$13,0) ->  | N61: η5＝１ | O61: ⇒ | Q61: =ROUND(+P$60/N$13,0) ->  | R61: =ROUND(+R$60/N$13,0) ->  | U61: η6＝１ | V61: ⇒ | X61: =ROUND(+W$60/U$13,0) ->  | Y61: =ROUND(+Y$60/U$13,0) ->  | AB61: η7＝１ | AC61: ⇒ | AE61: =ROUND(+AD$60/AB$13,0) ->  | AF61: =ROUND(+AF$60/AB$13,0) ->  | AI61: η8＝１ | AJ61: ⇒ | AL61: =ROUND(+AK$60/AI$13,0) ->  | AM61: =ROUND(+AM$60/AI$13,0) ->  | AP61: η9＝１ | AQ61: ⇒ | AS61: =ROUND(+AR$60/AP$13,0) ->  | AT61: =ROUND(+AT$60/AP$13,0) ->  | AW61: η10＝１ | AX61: ⇒ | AZ61: =ROUND(+AY$60/AW$13,0) ->  | BA61: =ROUND(+BA$60/AW$13,0) ->  | BD61: η11＝１ | BE61: ⇒ | BG61: =ROUND(+BF$60/BD$13,0) ->  | BH61: =ROUND(+BH$60/BD$13,0) ->  | BK61: η12＝１ | BL61: ⇒ | BN61: =ROUND(+BM$60/BK$13,0) ->  | BO61: =ROUND(+BO$60/BK$13,0) ->  | BR61: η1＝１ | BS61: ⇒ | BU61: =ROUND(+BT$60/BR$13,0) ->  | BV61: =ROUND(+BV$60/BR$13,0) ->  | BY61: η2＝１ | BZ61: ⇒ | CB61: =ROUND(+CA$60/BY$13,0) ->  | CC61: =ROUND(+CC$60/BY$13,0) ->  | CF61: η3＝１ | CG61: ⇒ | CI61: =ROUND(+CH$60/CF$13,0) ->  | CJ61: =ROUND(+CJ$60/CF$13,0) -> 
A63: ケース１ | B63: 給湯加熱能力固定（最小月の最大値） ⇒ | G63: 給湯能力固定 ⇒ | J63: =+J61*K63/K61 ->  | K63: =+$BG$83 ->  | N63: 給湯能力固定 ⇒ | Q63: =+Q61*R63/R61 ->  | R63: =+$BG$83 ->  | U63: 給湯能力固定 ⇒ | X63: =+X61*Y63/Y61 ->  | Y63: =+$BG$83 ->  | AB63: 給湯能力固定 ⇒ | AE63: =+AE61*AF63/AF61 ->  | AF63: =+$BG$83 ->  | AI63: 給湯能力固定 ⇒ | AL63: =+AL61*AM63/AM61 ->  | AM63: =+$BG$83 ->  | AP63: 給湯能力固定 ⇒ | AS63: =+AS61*AT63/AT61 ->  | AT63: =+$BG$83 ->  | AW63: 給湯能力固定 ⇒ | AZ63: =+AZ61*BA63/BA61 ->  | BA63: =+$BG$83 ->  | BD63: 給湯能力固定 ⇒ | BG63: =+BG61*BH63/BH61 ->  | BH63: =+$BG$83 ->  | BK63: 給湯能力固定 ⇒ | BN63: =+BN61*BO63/BO61 ->  | BO63: =+$BG$83 ->  | BR63: 給湯能力固定 ⇒ | BU63: =+BU61*BV63/BV61 ->  | BV63: =+$BG$83 ->  | BY63: 給湯能力固定 ⇒ | CB63: =+CB61*CC63/CC61 ->  | CC63: =+$BG$83 ->  | CF63: 給湯能力固定 ⇒ | CI63: =+CI61*CJ63/CJ61 ->  | CJ63: =+$BG$83 -> 
A65: ケース２ | B65: 工場で必要な給湯加熱能力 ⇒ | J65: Q4ｅ×1台＝ | K65: =$BJ$85/$BN$84 ->  | N65: ⇒ | Q65: Q5ｅ×1台＝ | R65: =$BJ$85/$BN$84 ->  | U65: ⇒ | X65: Q6ｅ×1台＝ | Y65: =$BJ$85/$BN$84 ->  | AB65: ⇒ | AE65: Q7ｅ×1台＝ | AF65: =$BJ$85/$BN$84 ->  | AI65: ⇒ | AL65: Q8ｅ×1台＝ | AM65: =$BJ$85/$BN$84 ->  | AP65: ⇒ | AS65: Q9ｅ×1台＝ | AT65: =$BJ$85/$BN$84 ->  | AW65: ⇒ | AZ65: Q10ｅ×1台＝ | BA65: =$BJ$85/$BN$84 ->  | BD65: ⇒ | BG65: Q11ｅ×1台＝ | BH65: =$BJ$85/$BN$84 ->  | BK65: ⇒ | BN65: Q12ｅ×1台＝ | BO65: =$BJ$85/$BN$84 ->  | BR65: ⇒ | BU65: Q1ｅ×1台＝ | BV65: =$BJ$85/$BN$84 ->  | BY65: ⇒ | CB65: Q2ｅ×1台＝ | CC65: =$BJ$85/$BN$84 ->  | CF65: ⇒ | CI65: Q3ｅ×1台＝ | CJ65: =$BJ$85/$BN$84 -> 
C66: 項目の説明 | J66: Φ4e | K66: Ｑ4e | O66: 項目 | Q66: Φ5e | R66: Ｑ5e | V66: 項目 | X66: Φ6e | Y66: Ｑ6e | AC66: 項目 | AE66: Φ7e | AF66: Ｑ7e | AJ66: 項目 | AL66: Φ8e | AM66: Ｑ8e | AQ66: 項目 | AS66: Φ9e | AT66: Ｑ9e | AX66: 項目 | AZ66: Φ10e | BA66: Ｑ10e | BE66: 項目 | BG66: Φ11e | BH66: Ｑ11e | BL66: 項目 | BN66: Φ12e | BO66: Ｑ12e | BS66: 項目 | BU66: Φ1e | BV66: Ｑ1e | BZ66: 項目 | CB66: Φ2e | CC66: Ｑ2e | CG66: 項目 | CI66: Φ3e | CJ66: Ｑ3e
C67: ・時間毎に測定した給湯流量と温度差から算出した加熱能力Qｍe＝Σｑ×ηｍe×tm：⇒測定値を手入力 ［kWh］ ・消費電力Φme＝Σｐ×ηme×tm：⇒自動 ［kWh］ | I67: 4月 | J67: =+J61*J68 ->  | K67: =MIN(K61,K65) ->  | N67: 〃 ［kWh] | P67: 5月 | Q67: =+Q61*Q68 ->  | R67: =MIN(R61,R65) ->  | U67: 〃 ［kWh] | W67: 6月 | X67: =+X61*X68 ->  | Y67: =MIN(Y61,Y65) ->  | AB67: 〃 ［kWh] | AD67: 7月 | AE67: =+AE61*AE68 ->  | AF67: =MIN(AF61,AF65) ->  | AI67: 〃 ［kWh] | AK67: 8月 | AL67: =+AL61*AL68 ->  | AM67: =MIN(AM61,AM65) ->  | AP67: 〃 ［kWh] | AR67: 9月 | AS67: =+AS61*AS68 ->  | AT67: =MIN(AT61,AT65) ->  | AW67: 〃 ［kWh] | AY67: 10月 | AZ67: =+AZ61*AZ68 ->  | BA67: =MIN(BA61,BA65) ->  | BD67: 〃 ［kWh] | BF67: 11月 | BG67: =+BG61*BG68 ->  | BH67: =MIN(BH61,BH65) ->  | BK67: 〃 ［kWh] | BM67: 12月 | BN67: =+BN61*BN68 ->  | BO67: =MIN(BO61,BO65) ->  | BR67: 〃 ［kWh] | BT67: 1月 | BU67: =+BU61*BU68 ->  | BV67: =MIN(BV61,BV65) ->  | BY67: 〃 ［kWh] | CA67: 2月 | CB67: =+CB61*CB68 ->  | CC67: =MIN(CC61,CC65) ->  | CF67: 〃 ［kWh] | CH67: 3月 | CI67: =+CI61*CI68 ->  | CJ67: =MIN(CJ61,CJ65) -> 
C68: ・月毎の測定負荷率ηme：⇒ 自動（1.0以下)［－］ | I68: η4e | J68: =ROUND(+K67/K61,3) ->  | N68: 〃 ［－] | P68: η5e | Q68: =ROUND(+R67/R61,3) ->  | U68: 〃 ［－] | W68: η6e | X68: =ROUND(+Y67/Y61,3) ->  | AB68: 〃 ［－] | AD68: η7e | AE68: =ROUND(+AF67/AF61,3) ->  | AI68: 〃 ［－] | AK68: η8e | AL68: =ROUND(+AM67/AM61,3) ->  | AP68: 〃 ［－] | AR68: η9e | AS68: =ROUND(+AT67/AT61,3) ->  | AW68: 〃 ［－] | AY68: η10e | AZ68: =ROUND(+BA67/BA61,3) ->  | BD68: 〃 ［－] | BF68: η11e | BG68: =ROUND(+BH67/BH61,3) ->  | BK68: 〃 ［－] | BM68: η12e | BN68: =ROUND(+BO67/BO61,3) ->  | BR68: 〃 ［－] | BT68: η1e | BU68: =ROUND(+BV67/BV61,3) ->  | BY68: 〃 ［－] | CA68: η2e | CB68: =ROUND(+CC67/CC61,3) ->  | CF68: 〃 ［－] | CH68: η3e | CI68: =ROUND(+CJ67/CJ61,3) -> 
C69: 注）ηmeは測定した加熱能力Qmeを入力すると自動で計算される。ただしηｍ＜1.0 | N69: 注）： 〃 | U69: 注）： 〃 | AB69: 注）： 〃 | AI69: 注）： 〃 | AP69: 注）： 〃 | AW69: 注）： 〃 | BD69: 注）： 〃 | BK69: 注）： 〃 | BR69: 注）： 〃 | BY69: 注）： 〃 | CF69: 注）： 〃
C70: ηm>1.0の場合は給湯EHPの台数を増やすか上位能力のものを選定する。
C71: 注２）N：計算ツールで入力した台数
A73: ケース３ | B73: 工程で必要な加熱能力 ⇒ Q4ｅ（1台） | I73: 計算枠⇒ | J73: =J61*J76 ->  | K73: =E59*K59 ->  | P73: 計算枠⇒ | Q73: =Q61*Q76 ->  | R73: =L59*R59 ->  | W73: 計算枠⇒ | X73: =X61*X76 ->  | Y73: =S59*Y59 ->  | AD73: 計算枠⇒ | AE73: =AE61*AE76 ->  | AF73: =Z59*AF59 ->  | AK73: 計算枠⇒ | AL73: =AL61*AL76 ->  | AM73: =AG59*AM59 ->  | AR73: 計算枠⇒ | AS73: =AS61*AS76 ->  | AT73: =AN59*AT59 ->  | AY73: 計算枠⇒ | AZ73: =AZ61*AZ76 ->  | BA73: =AU59*BA59 ->  | BF73: 計算枠⇒ | BG73: =BG61*BG76 ->  | BH73: =BB59*BH59 ->  | BM73: 計算枠⇒ | BN73: =BN61*BN76 ->  | BO73: =BI59*BO59 ->  | BT73: 計算枠⇒ | BU73: =BU61*BU76 ->  | BV73: =BP59*BV59 ->  | CA73: 計算枠⇒ | CB73: =CB61*CB76 ->  | CC73: =BW59*CC59 ->  | CH73: 計算枠⇒ | CI73: =CI61*CI76 ->  | CJ73: =CD59*CJ59 -> 
C74: 項目の説明 | J74: Φ4e | K74: Ｑ4e | N74: 項目 | Q74: Φ5e | R74: Ｑ5e | U74: 項目 | X74: Φ6e | Y74: Ｑ6e | AB74: 項目 | AE74: Φ7e | AF74: Ｑ7e | AI74: 項目 | AL74: Φ8e | AM74: Ｑ8e | AP74: 項目 | AS74: Φ9e | AT74: Ｑ9e | AW74: 項目 | AZ74: Φ10e | BA74: Ｑ10e | BD74: 項目 | BG74: Φ11e | BH74: Ｑ11e | BK74: 項目 | BN74: Φ12e | BO74: Ｑ12e | BR74: 項目 | BU74: Φ1e | BV74: Ｑ1e | BY74: 項目 | CB74: Φ2e | CC74: Ｑ2e | CF74: 項目 | CI74: Φ3e | CJ74: Ｑ3e
C75: ・必要な給湯量（ケース3説明参照）と上表の温度差から加熱能力を算出しP値と比較する q [kW］＞ｑme [kW］ならOK。Qme＝qme×Σｔ［kWh］ ・消費電力 φme＝Σｐ×ηme×tm［kWh］ | I75: =I67 -> 4月 | J75: =IF(J76>1,J61,J73) ->  | K75: =IF(J76>1,K61,K73) ->  | N75: 〃 ［kWh] | P75: 5月 | Q75: =IF(Q76>1,Q61,Q73) ->  | R75: =IF(Q76>1,R61,R73) ->  | U75: 〃 ［kWh] | W75: 6月 | X75: =IF(X76>1,X61,X73) ->  | Y75: =IF(X76>1,Y61,Y73) ->  | AB75: 〃 ［kWh] | AD75: 7月 | AE75: =IF(AE76>1,AE61,AE73) ->  | AF75: =IF(AE76>1,AF61,AF73) ->  | AI75: 〃 ［kWh] | AK75: 8月 | AL75: =IF(AL76>1,AL61,AL73) ->  | AM75: =IF(AL76>1,AM61,AM73) ->  | AP75: 〃 ［kWh] | AR75: 9月 | AS75: =IF(AS76>1,AS61,AS73) ->  | AT75: =IF(AS76>1,AT61,AT73) ->  | AW75: 〃 ［kWh] | AY75: 10月 | AZ75: =IF(AZ76>1,AZ61,AZ73) ->  | BA75: =IF(AZ76>1,BA61,BA73) ->  | BD75: 〃 ［kWh] | BF75: 11月 | BG75: =IF(BG76>1,BG61,BG73) ->  | BH75: =IF(BG76>1,BH61,BH73) ->  | BK75: 〃 ［kWh] | BM75: 12月 | BN75: =IF(BN76>1,BN61,BN73) ->  | BO75: =IF(BN76>1,BO61,BO73) ->  | BR75: 〃 ［kWh] | BT75: 1月 | BU75: =IF(BU76>1,BU61,BU73) ->  | BV75: =IF(BU76>1,BV61,BV73) ->  | BY75: 〃 ［kWh] | CA75: 2月 | CB75: =IF(CB76>1,CB61,CB73) ->  | CC75: =IF(CB76>1,CC61,CC73) ->  | CF75: 〃 ［kWh] | CH75: 3月 | CI75: =IF(CI76>1,CI61,CI73) ->  | CJ75: =IF(CI76>1,CJ61,CJ73) -> 
C76: ・月毎の測定負荷率ηme：⇒ 自動（1.0以下)［－］ | I76: =I68 -> η4e | J76: =ROUND(+K73/K61,2) ->  | N76: 〃 ［－] | P76: η5e | Q76: =ROUND(+R73/R61,2) ->  | U76: 〃 ［－] | W76: η6e | X76: =ROUND(+Y73/Y61,2) ->  | AB76: 〃 ［－] | AD76: η7e | AE76: =ROUND(+AF73/AF61,2) ->  | AI76: 〃 ［－] | AK76: η8e | AL76: =ROUND(+AM73/AM61,2) ->  | AP76: 〃 ［－] | AR76: η9e | AS76: =ROUND(+AT73/AT61,2) ->  | AW76: 〃 ［－] | AY76: η10e | AZ76: =ROUND(+BA73/BA61,2) ->  | BD76: 〃 ［－] | BF76: η11e | BG76: =ROUND(+BH73/BH61,2) ->  | BK76: 〃 ［－] | BM76: η12e | BN76: =ROUND(+BO73/BO61,2) ->  | BR76: 〃 ［－] | BT76: η1e | BU76: =ROUND(+BV73/BV61,2) ->  | BY76: 〃 ［－] | CA76: η2e | CB76: =ROUND(+CC73/CC61,2) ->  | CF76: 〃 ［－] | CH76: η3e | CI76: =ROUND(+CJ73/CJ61,2) -> 
C77: 注1）ηmeは測定した加熱能力Qmeを入力すると | I77: ηe>１の場合、ηと入れ替え | N77: 注）： 〃 | P77: ηe>１の場合、ηと入れ替え | U77: 注）： 〃 | W77: ηe>１の場合、ηと入れ替え | AB77: 注）： 〃 | AD77: ηe>１の場合、ηと入れ替え | AI77: 注）： 〃 | AK77: ηe>１の場合、ηと入れ替え | AP77: 注）： 〃 | AR77: ηe>１の場合、ηと入れ替え | AW77: 注）： 〃 | AY77: ηe>１の場合、ηと入れ替え | BD77: 注）： 〃 | BF77: ηe>１の場合、ηと入れ替え | BK77: 注）： 〃 | BM77: ηe>１の場合、ηと入れ替え | BR77: 注）： 〃 | BT77: ηe>１の場合、ηと入れ替え | BY77: 注）： 〃 | CA77: ηe>１の場合、ηと入れ替え | CF77: 注）： 〃 | CH77: ηe>１の場合、ηと入れ替え
C78: 自動で計算される。ただしηｍ＜1.0、ηm>1.0の場合の消費電力と能力はηm=1.0の値を使用する。
C79: 注2）N：計算ツールで入力した台数
W80: 日給湯量の算出方法例 | BD80: 給湯EHPの最大値でかつ最小能力月の値 | BM80: ケース1 最小給湯能力で年間稼働する場合 | BU80: ケース2 必要給湯量を設定した時の計算結果 | CC80: 用途別の計算結果
W81: ・給湯熱量は「給湯ヒートポンプツールが計算する冬季の月給湯能力［kWh］」から月給湯量［L/月］を算出。(一部給湯ボイラーが残存する場合、全体の燃料使用量から給湯ヒートポンプ能力を差引いて算出した給湯量［L/月」を合算) | BD81: 項目 | BF81: 該当月 | BG81: [kWh/台] | BH81: [kWh/月] | BJ81: 工程の必要給湯量[ℓ/日] | BM81: 合計消費電力ΣΦn | BO81: =+J63+Q63+X63+AE63+AL63+AS63+AZ63+BG63+BN63+BU63+CB63+CI63 ->  | BR81: ［kWh/年・台］ | BU81: 合計消費電力ΣΦn | BW81: =+J67+Q67+X67+AE67+AL67+AS67+AZ67+BG67+BN67+BU67+CB67+CI67 ->  | BZ81: ［kWh/年・台］ | CC81: 合計消費電力ΣΦ | CE81: =I60+P60+W60+AD60+AK60+AR60+AY60+BF60+BM60+BT60+CA60+CH60 -> 0 | CH81: ［kWh/年・台］
W82: ■用途別自動計算 | BM82: 台数 | BN82: =+AA89 -> 0 | BO82: =+BO81*BN82 ->  | BU82: 台数 | BV82: =AA89 -> 0 | BW82: =+BW81*BV82 ->  | CC82: 台数 | CD82: =AA83 -> 0 | CE82: =CE81*CD82 -> 0
X83: 給湯ヒートポンプ | AA83: ='2-2 運転条件シート'!AF27 -> 0 | AB83: 台の | AD83: 給湯 熱量 | AE83: =BV60*3.6*AA83 -> 0 | AG83: MJ/1月 | AI83: 給湯量 | AJ83: 焚上 (℃) | AK83: =A19 -> 0 | AM83: =+AE83*1000/(4.2*(A19-A23)) ->  | AO83: ℓ/1月 | BD83: 給湯能力最小 | BF83: =データ集!L17 ->  | BG83: =データ集!J17 ->  | BH83: =BG83*BV82 ->  | BM83: 合計給湯能力ΣQn | BO83: =+BG83*12 ->  | BR83: ［kWh/年・台］ | BU83: 合計給湯能力ΣQn | BW83: =+K67+R67+Y67+AF67+AM67+AT67+BA67+BH67+BO67+BV67+CC67+CJ67 ->  | BZ83: ［kWh/年・台］ | CC83: 合計給湯能力ΣQ | CE83: =K60+R60+Y60+AF60+AM60+AT60+BA60+BH60+BO60+BV60+CC60+CJ60 -> 0 | CH83: ［kWh/年・台］
BI84: ⇒ | BM84: 台数 | BN84: =+AA89 -> 0 | BO84: =+BO83*BN84 ->  | BU84: 台数 | BV84: =AA89 -> 0 | BW84: =+BW83*BV84 ->  | CC84: 台数 | CD84: =AA83 -> 0 | CE84: =CE83*CD84 -> 0
U85: ケース１ | W85: ■給湯加熱能力固定（最小月の機器能力最大値）計算 | BD85: 給湯能力最大 | BF85: =データ集!L18 ->  | BG85: =データ集!J18 ->  | BH85: =BG85*BV84 ->  | BJ85: ='2-2 運転条件シート'!AI31 -> 0
X86: 給湯ヒートポンプ | AA86: =+AA83 -> 0 | AB86: 台の | AD86: 給湯 熱量 | AE86: =+BG83*3.6*AA86 ->  | AG86: MJ/2月 | AI86: 給湯量 | AJ86: 焚上 (℃) | AK86: =+A19 -> 0 | AM86: =+AE86*1000/(4.2*($A$19-$A$23)) ->  | AO86: ℓ/2月 | AQ86: =BF83 -> 
U87: ケース２ | W87: ■測定した熱量が分かっている計算 | BJ87: ※工程の給湯使用量から推定した必要能力を入力
W88: ・給湯熱量は「給湯ヒートポンプツールが計算する冬季（１月または２月）で測定した給湯能力［kWh］」から月給湯量［L/月］を算出。(一部給湯ボイラーが残存する場合、全体の燃料使用量から給湯ヒートポンプ能力を差引いて算出した給湯量［L/月」を合算)
X89: 給湯ヒートポンプ | AA89: =+AA83 -> 0 | AB89: 台の | AD89: 給湯 熱量 | AE89: =+BV67*3.6*AA89 ->  | AG89: MJ/1月 | AI89: 給湯量 | AJ89: 焚上 (℃) | AK89: =+A19 -> 0 | AM89: =+AE89*1000/(4.2*($A$19-$A$23)) ->  | AO89: ℓ/１月
W90: ・用途別の繁忙度から最大日給湯量を算定。繁忙度は該当月の在室人員、病床使用数、宿泊者数、入場者数などから算定。 | BM90: ケース３ 測定した給湯量が分かっている時の消費電力と給湯能力計算結果
W91: ・給湯全負荷相当時間の算出には「給湯ヒートポンプ年間活動量算定ツール」の該当月の日稼働時間［h/日］を使用。 | BM91: 合計消費電力ΣΦn | BO91: =J73+Q73+X73+AE73+AL73+AS73+AZ73+BG73+BN73+BU73+CB73+CI73 -> 
U92: 計算ツールの稼働時間 | Z92: 病院(老健) | AA92: 14 | AB92: h/日 | BM92: 台数 | BN92: =AA104 -> 0 | BO92: =BO91*BN92 -> 
W93: シティーホテル/温泉旅館 | AA93: 24 | AB93: h/日 | BM93: 合計給湯能力ΣQn | BO93: =K73+R73+Y73+AF73+AM73+AT73+BA73+BH73+BO73+BV73+CC73+CJ73 -> 
W94: オフィスビル | AA94: 10 | AB94: h/日 | BM94: 台数 | BN94: =AA104 -> 0 | BO94: =BO93*BN94 -> 
W95: 飲食・店舗 | AA95: 12 | AB95: h/日
U97: ケース3 | W97: ■測定した給湯量が分かっているときの給湯能力と消費電力の計算
W98: ・毎日決まった時間帯に給湯を使用する工程。平日のみ稼働する作業で繁忙度による時間給湯量の相違は生じないが、稼働する月と時間帯で外気温度、入水温度が異なるため毎月の給湯処理能力と消費電力が変わるため年間の推計が必要となる。
W99: 工程で必要な給湯量は： | AA99: ='2-2 運転条件シート'!AI31 -> 0 | AD99: ℓ/日
W100: 稼動時間帯は： | Z100: ='2-2 運転条件シート'!AB64 -> 0 | AA100: h/日 | AB100: =AA99/Z100 ->  | AD100: ℓ/h | AE100: ⇒ | AF100: 一過式
W102: *稼動時間帯は上表の赤字部分
W103: ・給湯能力の最大値［kWh］は「給湯ヒートポンプツールが計算する冬季（１月または２月）で決まる。(一部給湯ボイラーが残存する場合、全体の燃料使用量から給湯ヒートポンプ能力を差引いて算出した給湯量［L/月」を合算)
X104: 給湯ヒートポンプ | AA104: =+AA83 -> 0 | AB104: 台の | AD104: 給湯 熱量 | AE104: =データ集!M18*3.6*計算シート!AA104 ->  | AG104: MJ/1月 | AI104: 給湯量 | AJ104: 焚上 (℃) | AK104: =A19 -> 0 | AM104: =AE104*1000/(4.2*(A19-A23)) ->  | AO104: ℓ/１月
W105: ・用途別の繁忙度から最大日給湯量を算定。繁忙度は該当月の在室人員、病床使用数、宿泊者数、入場者数などから算定。
W106: ・給湯全負荷相当時間の算出には「給湯ヒートポンプ年間活動量算定ツール」の該当月の日稼働時間［h/日］を使用。
W109: ■一過式で使用する給湯量[ℓ/h]を循環式で「給湯EHP」を循環する水量へ換算する係数βと一日の運転時間。
X110: Κ | Y110: ｔ(h/日） | AB110: =IFERROR((AA99/Y111*X111),"★") -> ★ | AD110: ℓ/ｈ | AE110: ⇒ | AF110: 循環式
X111: =IFERROR((A19-A23)/(A19-A14),"★") -> ★ | Y111: ='2-2 運転条件シート'!AB64 -> 0

Sheet データ集 (hidden)
I1: 貯湯量計算で使用
A2: 都道府県 | B2: 県庁所在地 | G2: =MAX(H5:H16) -> 0 | I2: =VLOOKUP(G2,H5:I16,2,FALSE) ->  | J2: ケース1 | M2: ケース3 | O2: 必要熱源容量 | Q2: 月毎の測定負荷率ηme：(自動1.0以下) | T2: 貯湯量確認シートへ | AD2: 貯湯量確認シートへ自動入力 | AG2: h/日
A3: 北海道 | B3: 札幌市 | D3: ='2-2 運転条件シート'!E36 -> 0 | F3: 負荷率 | H3: 給湯負荷 | I3: 入水温度θ | J3: n=1 | M3: Qe | O3: qme(kw) | T3: 施設 | W3: 土・日 | Y3: 祝祭日 | AA3: 日数 | AB3: 繁忙度 | AD3: 病院(老健) | AF3: ='2-2 運転条件シート'!$AB$64 -> 0 | AG3: =IF(D3=AD3,AF3,"-") -> -
A4: 青森県 | B4: 青森市 | O4: 一過式 | P4: 循環式 | T4: 病院(老健) | W4: 土・日 | Y4: 土・日 | AA4: ='2-2 運転条件シート'!AF30 -> 0 | AB4: ='2-2 運転条件シート'!AD30 -> 0 | AD4: シティーホテル | AF4: ='2-2 運転条件シート'!$AB$64 -> 0 | AG4: =IF(D3=AD4,AF4,"-") -> -
A5: 岩手県 | B5: 盛岡市 | F5: 4月 | G5: =VLOOKUP('2-2 運転条件シート'!$E$36,データ集!$D$23:$P$27,2,FALSE) ->  | H5: =計算シート!K60 -> 0 | I5: =計算シート!E13 ->  | J5: =計算シート!K61 ->  | L5: 4月 | M5: =計算シート!K73 ->  | N5: 4月 | O5: =計算シート!$AB$100*(計算シート!$A$19-計算シート!E$13)*4.2/3600 ->  | P5: =IFERROR((計算シート!$AB$110*(計算シート!$A$19-計算シート!E$13)*4.2/3600),"★") -> ★ | Q5: =計算シート!J76 ->  | T5: 病院(老健) | W5: 祝祭日 | Y5: 祝祭日 | AA5: ='2-2 運転条件シート'!AF31 -> 0 | AB5: ='2-2 運転条件シート'!AD31 -> 0 | AD5: 温泉旅館 | AF5: ='2-2 運転条件シート'!$AB$64 -> 0 | AG5: =IF(D3=AD5,AF5,"-") -> -
A6: 宮城県 | B6: 仙台市 | F6: 5月 | G6: =VLOOKUP('2-2 運転条件シート'!$E$36,データ集!$D$23:$P$27,3,FALSE) ->  | H6: =計算シート!R60 -> 0 | I6: =計算シート!M13 ->  | J6: =計算シート!R61 ->  | L6: 5月 | M6: =計算シート!R73 ->  | N6: 5月 | O6: =計算シート!$AB$100*(計算シート!$A$19-計算シート!M$13)*4.2/3600 ->  | P6: =IFERROR((計算シート!$AB$110*(計算シート!$A$19-計算シート!M$13)*4.2/3600),"★") -> ★ | Q6: =計算シート!Q76 ->  | T6: シティーホテル | W6: 土・日 | Y6: 土・日 | AA6: ='2-2 運転条件シート'!AF30 -> 0 | AB6: ='2-2 運転条件シート'!AD30 -> 0 | AD6: オフィスビル | AF6: ='2-2 運転条件シート'!$AB$64 -> 0 | AG6: =IF(D3=AD6,AF6,"-") -> -
A7: 秋田県 | B7: 秋田市 | F7: 6月 | G7: =VLOOKUP('2-2 運転条件シート'!$E$36,データ集!$D$23:$P$27,4,FALSE) ->  | H7: =計算シート!Y60 -> 0 | I7: =計算シート!T13 ->  | J7: =計算シート!Y61 ->  | L7: 6月 | M7: =計算シート!Y73 ->  | N7: 6月 | O7: =計算シート!$AB$100*(計算シート!$A$19-計算シート!T$13)*4.2/3600 ->  | P7: =IFERROR((計算シート!$AB$110*(計算シート!$A$19-計算シート!T$13)*4.2/3600),"★") -> ★ | Q7: =計算シート!X76 ->  | T7: シティーホテル | W7: 祝祭日 | Y7: 祝祭日 | AA7: ='2-2 運転条件シート'!AF31 -> 0 | AB7: ='2-2 運転条件シート'!AD31 -> 0 | AD7: 飲食・店舗 | AF7: ='2-2 運転条件シート'!$AB$64 -> 0 | AG7: =IF(D3=AD7,AF7,"-") -> -
A8: 山形県 | B8: 山形市 | F8: 7月 | G8: =VLOOKUP('2-2 運転条件シート'!$E$36,データ集!$D$23:$P$27,5,FALSE) ->  | H8: =計算シート!AF60 -> 0 | I8: =計算シート!AA13 ->  | J8: =計算シート!AF61 ->  | L8: 7月 | M8: =計算シート!AF73 ->  | N8: 7月 | O8: =計算シート!$AB$100*(計算シート!$A$19-計算シート!AA$13)*4.2/3600 ->  | P8: =IFERROR((計算シート!$AB$110*(計算シート!$A$19-計算シート!AA$13)*4.2/3600),"★") -> ★ | Q8: =計算シート!AE76 ->  | T8: 温泉旅館 | W8: 土・日 | Y8: 土・日 | AA8: ='2-2 運転条件シート'!AF30 -> 0 | AB8: ='2-2 運転条件シート'!AD30 -> 0
A9: 福島県 | B9: 福島市 | F9: 8月 | G9: =VLOOKUP('2-2 運転条件シート'!$E$36,データ集!$D$23:$P$27,6,FALSE) ->  | H9: =計算シート!AM60 -> 0 | I9: =計算シート!AH13 ->  | J9: =計算シート!AM61 ->  | L9: 8月 | M9: =計算シート!AM73 ->  | N9: 8月 | O9: =計算シート!$AB$100*(計算シート!$A$19-計算シート!AH$13)*4.2/3600 ->  | P9: =IFERROR((計算シート!$AB$110*(計算シート!$A$19-計算シート!AH$13)*4.2/3600),"★") -> ★ | Q9: =計算シート!AL76 ->  | T9: 温泉旅館 | W9: 祝祭日 | Y9: 祝祭日 | AA9: ='2-2 運転条件シート'!AF31 -> 0 | AB9: ='2-2 運転条件シート'!AD31 -> 0
A10: 茨城県 | B10: 水戸市 | F10: 9月 | G10: =VLOOKUP('2-2 運転条件シート'!$E$36,データ集!$D$23:$P$27,7,FALSE) ->  | H10: =計算シート!AT60 -> 0 | I10: =計算シート!AO13 ->  | J10: =計算シート!AT61 ->  | L10: 9月 | M10: =計算シート!AT73 ->  | N10: 9月 | O10: =計算シート!$AB$100*(計算シート!$A$19-計算シート!AO$13)*4.2/3600 ->  | P10: =IFERROR((計算シート!$AB$110*(計算シート!$A$19-計算シート!AO$13)*4.2/3600),"★") -> ★ | Q10: =計算シート!AS76 ->  | T10: オフィスビル | W10: 土・日 | Y10: 土・日 | AA10: ='2-2 運転条件シート'!AF30 -> 0 | AB10: ='2-2 運転条件シート'!AD30 -> 0
A11: 栃木県 | B11: 宇都宮市 | F11: 10月 | G11: =VLOOKUP('2-2 運転条件シート'!$E$36,データ集!$D$23:$P$27,8,FALSE) ->  | H11: =計算シート!BA60 -> 0 | I11: =計算シート!AV13 ->  | J11: =計算シート!BA61 ->  | L11: 10月 | M11: =計算シート!BA73 ->  | N11: 10月 | O11: =計算シート!$AB$100*(計算シート!$A$19-計算シート!AV$13)*4.2/3600 ->  | P11: =IFERROR((計算シート!$AB$110*(計算シート!$A$19-計算シート!AV$13)*4.2/3600),"★") -> ★ | Q11: =計算シート!AZ76 ->  | T11: オフィスビル | W11: 祝祭日 | Y11: 祝祭日 | AA11: ='2-2 運転条件シート'!AF31 -> 0 | AB11: ='2-2 運転条件シート'!AD31 -> 0
A12: 群馬県 | B12: 前橋市 | F12: 11月 | G12: =VLOOKUP('2-2 運転条件シート'!$E$36,データ集!$D$23:$P$27,9,FALSE) ->  | H12: =計算シート!BH60 -> 0 | I12: =計算シート!BC13 ->  | J12: =計算シート!BH61 ->  | L12: 11月 | M12: =計算シート!BH73 ->  | N12: 11月 | O12: =計算シート!$AB$100*(計算シート!$A$19-計算シート!BC$13)*4.2/3600 ->  | P12: =IFERROR((計算シート!$AB$110*(計算シート!$A$19-計算シート!BC$13)*4.2/3600),"★") -> ★ | Q12: =計算シート!BG76 ->  | T12: 飲食・店舗 | W12: 土・日 | Y12: 土・日 | AA12: ='2-2 運転条件シート'!AF30 -> 0 | AB12: ='2-2 運転条件シート'!AD30 -> 0
A13: 埼玉県 | B13: さいたま市 | F13: 12月 | G13: =VLOOKUP('2-2 運転条件シート'!$E$36,データ集!$D$23:$P$27,10,FALSE) ->  | H13: =計算シート!BO60 -> 0 | I13: =計算シート!BJ13 ->  | J13: =計算シート!BO61 ->  | L13: 12月 | M13: =計算シート!BO73 ->  | N13: 12月 | O13: =計算シート!$AB$100*(計算シート!$A$19-計算シート!BJ$13)*4.2/3600 ->  | P13: =IFERROR((計算シート!$AB$110*(計算シート!$A$19-計算シート!BJ$13)*4.2/3600),"★") -> ★ | Q13: =計算シート!BN76 ->  | T13: 飲食・店舗 | W13: 祝祭日 | Y13: 祝祭日 | AA13: ='2-2 運転条件シート'!AF31 -> 0 | AB13: ='2-2 運転条件シート'!AD31 -> 0
A14: 千葉県 | B14: 千葉市 | F14: 1月 | G14: =VLOOKUP('2-2 運転条件シート'!$E$36,データ集!$D$23:$P$27,11,FALSE) ->  | H14: =計算シート!BV60 -> 0 | I14: =計算シート!BQ13 ->  | J14: =計算シート!BV61 ->  | L14: 1月 | M14: =計算シート!BV73 ->  | N14: 1月 | O14: =計算シート!$AB$100*(計算シート!$A$19-計算シート!BQ$13)*4.2/3600 ->  | P14: =IFERROR((計算シート!$AB$110*(計算シート!$A$19-計算シート!BQ$13)*4.2/3600),"★") -> ★ | Q14: =計算シート!BU76 -> 
A15: 東京都 | B15: 東京 | F15: 2月 | G15: =VLOOKUP('2-2 運転条件シート'!$E$36,データ集!$D$23:$P$27,12,FALSE) ->  | H15: =計算シート!CC60 -> 0 | I15: =計算シート!BX13 ->  | J15: =計算シート!CC61 ->  | L15: 2月 | M15: =計算シート!CC73 ->  | N15: 2月 | O15: =計算シート!$AB$100*(計算シート!$A$19-計算シート!BX$13)*4.2/3600 ->  | P15: =IFERROR((計算シート!$AB$110*(計算シート!$A$19-計算シート!BX$13)*4.2/3600),"★") -> ★ | Q15: =計算シート!CB76 -> 
A16: 神奈川県 | B16: 横浜市 | F16: 3月 | G16: =VLOOKUP('2-2 運転条件シート'!$E$36,データ集!$D$23:$P$27,13,FALSE) ->  | H16: =計算シート!CJ60 -> 0 | I16: =計算シート!CE13 ->  | J16: =計算シート!CJ61 ->  | L16: 3月 | M16: =計算シート!CJ73 ->  | N16: 3月 | O16: =計算シート!$AB$100*(計算シート!$A$19-計算シート!CE$13)*4.2/3600 ->  | P16: =IFERROR((計算シート!$AB$110*(計算シート!$A$19-計算シート!CE$13)*4.2/3600),"★") -> ★ | Q16: =計算シート!CI76 -> 
A17: 新潟県 | B17: 新潟市 | I17: 最小 | J17: =MIN(J5:K16) ->  | L17: =VLOOKUP(J17,J5:L16,3,FALSE) ->  | Q17: =COUNTIF(Q5:R16,">1.0") -> 0 | S17: ⇒1.0以上の月が2つ以上あった場合、「工程の必要給湯量」の入力が多すぎるため、運転条件シートで警告を出す。
A18: 富山県 | B18: 富山市 | I18: 最大 | J18: =MAX(J5:K16) ->  | L18: =VLOOKUP(J18,J5:L16,3,FALSE) ->  | M18: =MAX(M5:N16) ->  | N18: =VLOOKUP(M18,M5:N16,2,FALSE) ->  | S18: 現在選定の機器の容量を超える貯湯量が入力されています。再入力してください。
A19: 石川県 | B19: 金沢市
A20: 福井県 | B20: 福井市
A21: 山梨県 | B21: 甲府市 | D21: 建物用途別給湯負荷と月平均負荷率（％）
A22: 長野県 | B22: 長野市 | D22: kWh/(㎡・年） | E22: 4月 | F22: 5月 | G22: 6月 | H22: 7月 | I22: 8月 | J22: 9月 | K22: 10月 | L22: 11月 | M22: 12月 | N22: 1月 | O22: 2月 | P22: 3月
A23: 岐阜県 | B23: 岐阜市 | D23: 病院(老健) | E23: 0.79 | F23: 0.77 | G23: 0.79 | H23: 0.82 | I23: 0.82 | J23: 0.78 | K23: 0.8 | L23: 0.83 | M23: 0.83 | N23: 0.74 | O23: 0.77 | P23: 0.8
A24: 静岡県 | B24: 静岡市 | D24: シティーホテル | E24: 0.74 | F24: 0.68 | G24: 0.72 | H24: 0.65 | I24: 0.62 | J24: 0.61 | K24: 0.7 | L24: 0.72 | M24: 0.72 | N24: 0.74 | O24: 0.81 | P24: 0.7
A25: 愛知県 | B25: 名古屋市 | D25: 温泉旅館 | E25: 0.705 | F25: 0.66 | G25: 0.675 | H25: 0.68 | I25: 0.66 | J25: 0.66 | K25: 0.675 | L25: 0.685 | M25: 0.69 | N25: 0.75 | O25: 0.79 | P25: 0.705 | R25: 0.74 | S25: 0.68 | T25: 0.72 | U25: 0.65 | V25: 0.62 | W25: 0.61 | X25: 0.7 | Y25: 0.72 | Z25: 0.72 | AA25: 0.74 | AB25: 0.81 | AC25: 0.7 | AD25: ⇐20250221に左記から変更
A26: 三重県 | B26: 津市 | D26: オフィスビル | E26: 0.16 | F26: 0.16 | G26: 0.16 | H26: 0.15 | I26: 0.17 | J26: 0.15 | K26: 0.16 | L26: 0.17 | M26: 0.18 | N26: 0.19 | O26: 0.21 | P26: 0.2
A27: 滋賀県 | B27: 大津市 | D27: 飲食・店舗 | E27: 0.42 | F27: 0.43 | G27: 0.42 | H27: 0.41 | I27: 0.39 | J27: 0.4 | K27: 0.4 | L27: 0.43 | M27: 0.39 | N27: 0.4 | O27: 0.42 | P27: 0.43
A28: 京都府 | B28: 京都市
A29: 大阪府 | B29: 大阪市 | D29: ピーク開始時の貯湯温度 | I29: 60 | J29: 40 | K29: ピーク終了時の貯湯温度
A30: 兵庫県 | B30: 神戸市 | I30: 65 | J30: 45
A31: 奈良県 | B31: 奈良市 | I31: 90 | J31: 65
A32: 和歌山県 | B32: 和歌山市 | U32: a | X32: h | Y32: a/h* | AA32: 3.5 | AB32: = | AC32: c
A33: 鳥取県 | B33: 鳥取市 | D33: 用途 | E33: ピーク継続時間 | I33: ピーク時給湯量 | N33: 日平均給湯量 | S33: 最大繁忙期日給湯量算定 | X33: h | Y33: ピーク時の給湯量
A34: 島根県 | B34: 松江市 | D34: 病院(老健) | E34: 1 | I34: =IF(L42="-",L43,L42) -> - | N34: =IF(Q42="-",Q43,Q42) -> - | S34: ='2-3 貯湯量確認シート'!H32 ->  | X34: ='2-3 貯湯量確認シート'!H28 -> - | Z34: a | AA34: =VLOOKUP('2-2 運転条件シート'!V28,データ集!D34:X38,16,FALSE) -> 
A35: 岡山県 | B35: 岡山市 | D35: シティーホテル | E35: 2 | I35: =L44 -> - | N35: =Q44 -> - | S35: ='2-3 貯湯量確認シート'!Q32 ->  | X35: ='2-3 貯湯量確認シート'!Q28 -> - | Z35: h | AA35: =VLOOKUP('2-2 運転条件シート'!V28,データ集!D34:X38,21,FALSE) -> 
A36: 広島県 | B36: 広島市 | D36: 温泉旅館 | E36: 2 | I36: =L45 -> - | N36: =Q45 -> - | S36: ='2-3 貯湯量確認シート'!H37 ->  | X36: ='2-3 貯湯量確認シート'!H35 -> - | Z36: c | AA36: =AA34/AA35*AA32 ->  | AC36: → | AD36: 2-3 貯湯量確認シートにリンク
A37: 山口県 | B37: 山口市 | D37: オフィスビル | E37: 2 | I37: =L46 -> - | N37: =Q46 -> - | S37: ='2-3 貯湯量確認シート'!Q39 ->  | X37: ='2-3 貯湯量確認シート'!Q35 -> -
A38: 徳島県 | B38: 徳島市 | D38: 飲食・店舗 | E38: 2 | I38: =IF(L47="-",L48,L47) -> - | N38: =IF(Q47="-",Q48,Q47) -> - | S38: ='2-3 貯湯量確認シート'!H45 ->  | X38: ='2-3 貯湯量確認シート'!H42 -> -
A39: 香川県 | B39: 高松市 | M39: ↑ | Q39: ↑
A40: 愛媛県 | B40: 松山市 | D40: 用途 | E40: 基準値 | I40: ピーク時給湯量 | N40: 日平均給湯量 | X40: 14
A41: 高知県 | B41: 高知市 | I41: 原単位 | J41: (L/h) | N41: 原単位 | O41: (L/日) | X41: 24
A42: 福岡県 | B42: 福岡市 | D42: 病院(老健) | E42: 入院患者数 | G42: ='2-2 運転条件シート'!AF28 -> 0 | I42: 37.7 | J42: =G42*I42 -> 0 | L42: =IF(J42=0,"-",J42) -> - | N42: 160 | O42: =N42*G42 -> 0 | Q42: =IF(O42=0,"-",O42) -> - | X42: 24
A43: 佐賀県 | B43: 佐賀市 | E43: 延床面積 | G43: ='2-2 運転条件シート'!AF29 -> 0 | I43: 0.9 | J43: 0 | L43: - | N43: 4 | O43: =N43*G43 -> 0 | Q43: - | X43: 10
A44: 長崎県 | B44: 長崎市 | D44: シティーホテル | E44: 宿泊者数 | G44: ='2-2 運転条件シート'!AF28 -> 0 | I44: 26.2 | J44: 0 | L44: - | N44: 180 | O44: 0 | Q44: - | X44: 12
A45: 熊本県 | B45: 熊本市 | D45: 温泉旅館 | E45: 宿泊者数 | G45: ='2-2 運転条件シート'!AF28 -> 0 | I45: 39.2 | J45: 0 | L45: - | N45: 222 | O45: 0 | Q45: -
A46: 大分県 | B46: 大分市 | D46: オフィスビル | E46: 在室人数 | G46: ='2-2 運転条件シート'!AF28 -> 0 | I46: 2.5 | J46: 0 | L46: - | N46: 10 | O46: 0 | Q46: -
A47: 宮崎県 | B47: 宮崎市 | D47: 飲食・店舗 | E47: 来客者数 | G47: ='2-2 運転条件シート'!AF28 -> 0 | I47: 20 | J47: 0 | L47: - | N47: 80 | O47: 0 | Q47: -
A48: 鹿児島県 | B48: 鹿児島市 | E48: 延床面積 | G48: ='2-2 運転条件シート'!AF29 -> 0 | I48: 30 | J48: 0 | L48: - | N48: 120 | O48: 0 | Q48: -
A49: 沖縄県 | B49: 那覇市
D50: 用途 | E50: ※②運転日数・水温計算シートにリンク
D51: 病院(老健) | E51: 入院患者数(床)もしくは延床面積のどちらかを入力。(延床面積以外はピーク時の数字を入力) | U51: 床 | V51: ㎡ | W51: 延床面積
D52: シティーホテル | E52: 宿泊者数を入力(ピーク時) | U52: 人 | V52: ="" ->  | W52: ="" -> 
D53: 温泉旅館 | E53: 宿泊者数を入力(ピーク時) | U53: 人 | V53: ="" ->  | W53: ="" -> 
D54: オフィスビル | E54: 在室者数を入力(ピーク時) | U54: 人 | V54: ="" ->  | W54: ="" -> 
D55: 飲食・店舗 | E55: 来客者数もしくは延床面積のどちらかを入力。(延床面積以外はピーク時の数字を入力) | U55: 人 | V55: ㎡ | W55: 延床面積
C57: 季節（JRAIA） | D57: 外気温度 [℃］ | G57: 入水温度 [℃］ | I57: 修正係数の選定
D58: T1d | F58: T1w | G58: T3 | I58: （外気T1dによる）
B59: RGB/250,120,20 | C59: 夏期 | D59: 25 | F59: 21 | G59: 24 | I59: 21℃＜T1d
B60: 左から6，上から2 | C60: 中間期 | D60: 16 | F60: 12 | G60: 17 | I60: 11℃＜T1d≦21℃
B61: RGB/255,255,0 | C61: 冬季標準 | D61: 7 | F61: 6 | G61: 9 | I61: 6℃＜T1d≦11℃
B62: RGB/0,177,240 | C62: 着霜期 | D62: 2 | F62: 1 | G62: 5 | I62: 0℃＜T1d≦6℃
B63: 右から2,下から2 | C63: 厳冬期 | D63: -7 | F63: -8 | G63: 5 | I63: T1d≦0℃

Sheet データ集② (hidden)
B2: 外気条件と運転時間
B3: 算定条件設定 | D3: 気象庁気象データ等から、都道府県、県庁所在地の月平均気温（℃）および月平均水温を自動入力。施設の稼働対象時間を自動入力。
B4: =IF('2-1 設備条件シート'!L8=0,"",'2-1 設備条件シート'!L8) ->  | D4: 4月 | E4: 5月 | F4: 6月 | G4: 7月 | H4: 8月 | I4: 9月 | J4: 10月 | K4: 11月 | L4: 12月 | M4: 1月 | N4: 2月 | O4: 3月
B5: ='2-1 設備条件シート'!L10 ->  | C5: （日数/月） | D5: 30 | E5: 31 | F5: 30 | G5: 31 | H5: 31 | I5: 30 | J5: 31 | K5: 30 | L5: 31 | M5: 31 | N5: 28 | O5: 31 | P5: PAC計算シート自動
B6: 日平均温度（℃） | D6: =IFERROR(VLOOKUP($B$5,入水温度回帰式データ!$F$5:$R$51,2,FALSE),"") ->  | E6: =IFERROR(VLOOKUP($B$5,入水温度回帰式データ!$F$5:$R$51,3,FALSE),"") ->  | F6: =IFERROR(VLOOKUP($B$5,入水温度回帰式データ!$F$5:$R$51,4,FALSE),"") ->  | G6: =IFERROR(VLOOKUP($B$5,入水温度回帰式データ!$F$5:$R$51,5,FALSE),"") ->  | H6: =IFERROR(VLOOKUP($B$5,入水温度回帰式データ!$F$5:$R$51,6,FALSE),"") ->  | I6: =IFERROR(VLOOKUP($B$5,入水温度回帰式データ!$F$5:$R$51,7,FALSE),"") ->  | J6: =IFERROR(VLOOKUP($B$5,入水温度回帰式データ!$F$5:$R$51,8,FALSE),"") ->  | K6: =IFERROR(VLOOKUP($B$5,入水温度回帰式データ!$F$5:$R$51,9,FALSE),"") ->  | L6: =IFERROR(VLOOKUP($B$5,入水温度回帰式データ!$F$5:$R$51,10,FALSE),"") ->  | M6: =IFERROR(VLOOKUP($B$5,入水温度回帰式データ!$F$5:$R$51,11,FALSE),"") ->  | N6: =IFERROR(VLOOKUP($B$5,入水温度回帰式データ!$F$5:$R$51,12,FALSE),"") ->  | O6: =IFERROR(VLOOKUP($B$5,入水温度回帰式データ!$F$5:$R$51,13,FALSE),"") ->  | P6: 各月の選定された稼働時間の平均値を自動計算
B8: θ (入水温度回帰式参照） | D8: =IFERROR(VLOOKUP($B$5,入水温度回帰式データ!$T$5:$AF$51,2,FALSE),"") ->  | E8: =IFERROR(VLOOKUP($B$5,入水温度回帰式データ!$T$5:$AF$51,3,FALSE),"") ->  | F8: =IFERROR(VLOOKUP($B$5,入水温度回帰式データ!$T$5:$AF$51,4,FALSE),"") ->  | G8: =IFERROR(VLOOKUP($B$5,入水温度回帰式データ!$T$5:$AF$51,5,FALSE),"") ->  | H8: =IFERROR(VLOOKUP($B$5,入水温度回帰式データ!$T$5:$AF$51,6,FALSE),"") ->  | I8: =IFERROR(VLOOKUP($B$5,入水温度回帰式データ!$T$5:$AF$51,7,FALSE),"") ->  | J8: =IFERROR(VLOOKUP($B$5,入水温度回帰式データ!$T$5:$AF$51,8,FALSE),"") ->  | K8: =IFERROR(VLOOKUP($B$5,入水温度回帰式データ!$T$5:$AF$51,9,FALSE),"") ->  | L8: =IFERROR(VLOOKUP($B$5,入水温度回帰式データ!$T$5:$AF$51,10,FALSE),"") ->  | M8: =IFERROR(VLOOKUP($B$5,入水温度回帰式データ!$T$5:$AF$51,11,FALSE),"") ->  | N8: =IFERROR(VLOOKUP($B$5,入水温度回帰式データ!$T$5:$AF$51,12,FALSE),"") ->  | O8: =IFERROR(VLOOKUP($B$5,入水温度回帰式データ!$T$5:$AF$51,13,FALSE),"") ->  | P8: 既定値自動計算
B9: 稼動対象時間（ｈ） | D9: =IF($B$4="","",D$5*24) ->  | E9: =IF($B$4="","",E$5*24) ->  | N9: =IF($B$4="","",N$5*24) ->  | P9: ×
B10: 宮城教育大学教育学部理科教育講座「広瀬川中流域における水温の日周・季節変動」（平成18年宮城教育大学紀要 第14巻2006）
B11: 仙台市の浄水場の水源は七北田川系、広瀬川系、名取川系に分かれるが広瀬川系の水温調査データ＋1℃とした。
B14: 月別給湯ヒートポンプ1台当たりの消費電力
B15: ='2-1 設備条件シート'!L10 ->  | D15: ='2-1 設備条件シート'!L12 -> 0 | E15: 4月 | F15: 5月 | G15: 6月 | H15: 7月 | I15: 8月 | J15: 9月 | K15: 10月 | L15: 11月 | M15: 12月 | N15: 1月 | O15: 2月 | P15: 3月 | Q15: 合計
B16: 給湯ヒートポンプ 月別消費電力(1台) | D16: ［kWｈ］ | E16: =計算シート!I60 -> 0 | F16: =計算シート!P60 -> 0 | G16: =計算シート!W60 -> 0 | H16: =計算シート!AD60 -> 0 | I16: =計算シート!AK60 -> 0 | J16: =計算シート!AR60 -> 0 | K16: =計算シート!AY60 -> 0 | L16: =計算シート!BF60 -> 0 | M16: =計算シート!BM60 -> 0 | N16: =計算シート!BT60 -> 0 | O16: =計算シート!CA60 -> 0 | P16: =計算シート!CH60 -> 0 | Q16: =SUM(E16:P16) -> 0
B17: 給湯能力Q／効率COPe×表-4稼動対象時間×表-5給湯使用時間×表-6負荷率
B19: ='2-1 設備条件シート'!L10 ->  | D19: ='2-1 設備条件シート'!L12 -> 0 | E19: 4月 | F19: 5月 | G19: 6月 | H19: 7月 | I19: 8月 | J19: 9月 | K19: 10月 | L19: 11月 | M19: 12月 | N19: 1月 | O19: 2月 | P19: 3月 | Q19: 合計
B20: 給湯ヒートポンプ 月別消費電力(合計) | D20: ［kWｈ］ | E20: =+E$16*$E$22 -> 0 | F20: =+F16*$E$22 -> 0 | G20: 0 | H20: 0 | I20: 0 | J20: 0 | K20: 0 | L20: 0 | M20: 0 | N20: 0 | O20: 0 | P20: 0 | Q20: =SUM(E20:P20) -> 0
C22: ヒートポンプ台数 | E22: ='2-2 運転条件シート'!AF27 -> 0 | F22: 台

Sheet 入水温度回帰式データ (hidden)
B1: 回帰式の各地域の係数
B2: 都市 | C2: 推定式係数 | AY2: 紫は水道局HP以外
C3: ａ | D3: ｂ | F3: 各都道府県別 月平均気温 | T3: 各都道府県別 月平均水温（θ）
B4: 青森 | C4: 0.661 | D4: 3.235 | G4: 4月 | H4: 5月 | I4: 6月 | J4: 7月 | K4: 8月 | L4: 9月 | M4: 10月 | N4: 11月 | O4: 12月 | P4: 1月 | Q4: 2月 | R4: 3月 | U4: 4月 | V4: 5月 | W4: 6月 | X4: 7月 | Y4: 8月 | Z4: 9月 | AA4: 10月 | AB4: 11月 | AC4: 12月 | AD4: 1月 | AE4: 2月 | AF4: 3月
B5: 仙台 | C5: 0.816 | D5: 2.016 | F5: 札幌 | G5: 9.2 | H5: 13.8 | I5: 19.3 | J5: 23.8 | K5: 26.7 | L5: 21.5 | M5: 13.3 | N5: 6.7 | O5: -0.7 | P5: -4.4 | Q5: -2.7 | R5: 4.9 | T5: 札幌 | U5: 6 | V5: 8.1 | W5: 11.9 | X5: 15 | Y5: 18.8 | Z5: 17.8 | AA5: 11.7 | AB5: 7.5 | AC5: 4.4 | AD5: 2.7 | AE5: 2 | AF5: 3
B6: 秋田 | C6: 0.825 | D6: 3.055 | F6: 青森 | G6: 10.7 | H6: 14.8 | I6: 19.9 | J6: 24.7 | K6: 28 | L6: 23.1 | M6: 14.5 | N6: 8.5 | O6: 1.9 | P6: -1.1 | Q6: 0 | R6: 5.9 | T6: 青森 | U6: 10.3077 | V6: 13.0178 | W6: 16.3889 | X6: 19.5617 | Y6: 21.743 | Z6: 18.5041 | AA6: 12.8195 | AB6: 8.8535 | AC6: 4.4909 | AD6: 2.5079 | AE6: 3.235 | AF6: 7.1349
B7: 山形 | C7: 0.826 | D7: 2.9 | F7: 盛岡 | G7: 10.9 | H7: 15 | I7: 20.5 | J7: 25 | K7: 27.9 | L7: 22.8 | M7: 13.4 | N7: 8 | O7: 1.9 | P7: -1.4 | Q7: -0.6 | R7: 6.9 | T7: 盛岡 | U7: 13 | V7: 15 | W7: 19.1 | X7: 22.5 | Y7: 26.5 | Z7: 26.2 | AA7: 18.5 | AB7: 12.8 | AC7: 9.2 | AD7: 3.6 | AE7: 3 | AF7: 7
B8: 福島 | C8: 0.154 | D8: 5.563 | F8: 仙台 | G8: 13.3 | H8: 16.6 | I8: 21.6 | J8: 26.6 | K8: 28.6 | L8: 25.1 | M8: 16.7 | N8: 11.4 | O8: 5.7 | P8: 2.1 | Q8: 3 | R8: 9.3 | T8: 仙台 | U8: 12.8688 | V8: 15.5616 | W8: 19.6416 | X8: 23.7216 | Y8: 25.3536 | Z8: 22.4976 | AA8: 15.6432 | AB8: 11.3184 | AC8: 6.6672 | AD8: 3.7296 | AE8: 4.464 | AF8: 9.6048
B9: 水戸 | C9: 0.747 | D9: 7.469 | F9: 秋田 | G9: 11.2 | H9: 15.4 | I9: 21.2 | J9: 24.9 | K9: 30 | L9: 24.2 | M9: 15.2 | N9: 10.1 | O9: 3.3 | P9: 0.7 | Q9: 0.9 | R9: 7.5 | T9: 秋田 | U9: 12.295 | V9: 15.76 | W9: 20.545 | X9: 23.5975 | Y9: 27.805 | Z9: 23.02 | AA9: 15.595 | AB9: 11.3875 | AC9: 5.7775 | AD9: 3.6325 | AE9: 3.7975 | AF9: 9.2425
B10: 宇都宮 | C10: 0.505 | D10: 6.082 | F10: 山形 | G10: 12.1 | H10: 16.4 | I10: 21.6 | J10: 26 | K10: 28.7 | L10: 24.4 | M10: 14.7 | N10: 9.2 | O10: 3.7 | P10: 0 | Q10: 0.7 | R10: 7.4 | T10: 山形 | U10: 13.0375 | V10: 16.585 | W10: 20.875 | X10: 24.505 | Y10: 26.7325 | Z10: 23.185 | AA10: 15.1825 | AB10: 10.645 | AC10: 6.1075 | AD10: 3.055 | AE10: 3.6325 | AF10: 9.16
B11: 前橋 | C11: 0.2 | D11: 13.068 | F11: 福島 | G11: 14 | H11: 17.6 | I11: 22.3 | J11: 27.6 | K11: 29 | L11: 25.1 | M11: 16 | N11: 10.6 | O11: 5.4 | P11: 1.9 | Q11: 2.8 | R11: 9.5 | T11: 福島 | U11: 7.719 | V11: 8.2734 | W11: 8.9972 | X11: 9.8134 | Y11: 10.029 | Z11: 9.4284 | AA11: 8.027 | AB11: 7.1954 | AC11: 6.3946 | AD11: 5.8556 | AE11: 5.9942 | AF11: 7.026
B12: さいたま | C12: 0.812 | D12: 4.282 | F12: 水戸 | G12: 14.5 | H12: 17.8 | I12: 22.2 | J12: 27.3 | K12: 28.5 | L12: 25.9 | M12: 17 | N12: 12.3 | O12: 7.1 | P12: 3.8 | Q12: 5.4 | R12: 11.2 | T12: 水戸 | U12: 18.3005 | V12: 20.7656 | W12: 24.0524 | X12: 27.8621 | Y12: 28.7585 | Z12: 26.8163 | AA12: 20.168 | AB12: 16.6571 | AC12: 12.7727 | AD12: 10.3076 | AE12: 11.5028 | AF12: 15.8354
B13: 千葉 | C13: 0.797 | D13: 4.366 | F13: 宇都宮 | G13: 14.6 | H13: 18.1 | I13: 22.4 | J13: 27.5 | K13: 28.5 | L13: 25.7 | M13: 17 | N13: 11.8 | O13: 6.6 | P13: 3.1 | Q13: 5 | R13: 11.3 | T13: 宇都宮 | U13: 13.455 | V13: 15.2225 | W13: 17.394 | X13: 19.9695 | Y13: 20.4745 | Z13: 19.0605 | AA13: 14.667 | AB13: 12.041 | AC13: 9.415 | AD13: 7.6475 | AE13: 8.607 | AF13: 11.7885
B14: 横浜 | C14: 0.717 | D14: 4.911 | F14: 前橋 | G14: 15.2 | H14: 19.1 | I14: 23.3 | J14: 28.7 | K14: 29.4 | L14: 26.6 | M14: 17.7 | N14: 12.5 | O14: 7.8 | P14: 4.3 | Q14: 5.7 | R14: 12.2 | T14: 前橋 | U14: 16.108 | V14: 16.888 | W14: 17.728 | X14: 18.808 | Y14: 18.948 | Z14: 18.388 | AA14: 16.608 | AB14: 15.568 | AC14: 14.628 | AD14: 13.928 | AE14: 14.208 | AF14: 15.508
B15: 新潟 | C15: 0.822 | D15: 3.396 | F15: さいたま | G15: 15.8 | H15: 19 | I15: 23.3 | J15: 29 | K15: 29.5 | L15: 26.8 | M15: 18 | N15: 13 | O15: 7.7 | P15: 4.4 | Q15: 6.2 | R15: 12.3 | T15: さいたま | U15: 17.1116 | V15: 19.71 | W15: 23.2016 | X15: 27.83 | Y15: 28.236 | Z15: 26.0436 | AA15: 18.898 | AB15: 14.838 | AC15: 10.5344 | AD15: 7.8548 | AE15: 9.3164 | AF15: 14.2696
B16: 富山 | C16: 0.571 | D16: 2.481 | F16: 千葉 | G16: 16.7 | H16: 19.3 | I16: 23.5 | J16: 28.3 | K16: 29.4 | L16: 27.1 | M16: 19.7 | N16: 15.5 | O16: 10.2 | P16: 6.3 | Q16: 7.8 | R16: 13.2 | T16: 千葉 | U16: 17.6759 | V16: 19.7481 | W16: 23.0955 | X16: 26.9211 | Y16: 27.7978 | Z16: 25.9647 | AA16: 20.0669 | AB16: 16.7195 | AC16: 12.4954 | AD16: 9.3871 | AE16: 10.5826 | AF16: 14.8864
B17: 金沢 | C17: 0.782 | D17: 0.821 | F17: 東京 | G17: 16.3 | H17: 19 | I17: 23.2 | J17: 28.7 | K17: 29.2 | L17: 26.7 | M17: 18.9 | N17: 14.4 | O17: 9.4 | P17: 5.7 | Q17: 7.3 | R17: 12.9 | T17: 東京 | U17: 16.6 | V17: 19.09 | W17: 22 | X17: 27.59354839 | Y17: 29.28064516 | Z17: 27.72 | AA17: 21.42903226 | AB17: 16.74333333 | AC17: 11.66451613 | AD17: 8.2 | AE17: 8.5 | AF17: 13
B18: 福井 | C18: 0.725 | D18: 5.505 | F18: 横浜 | G18: 16.6 | H18: 19 | I18: 23.2 | J18: 28.2 | K18: 29.1 | L18: 26.9 | M18: 19.5 | N18: 15.2 | O18: 10.2 | P18: 6.4 | Q18: 7.9 | R18: 13.2 | T18: 横浜 | U18: 16.8132 | V18: 18.534 | W18: 21.5454 | X18: 25.1304 | Y18: 25.7757 | Z18: 24.1983 | AA18: 18.8925 | AB18: 15.8094 | AC18: 12.2244 | AD18: 9.4998 | AE18: 10.5753 | AF18: 14.3754
B19: 長野 | C19: 0.457 | D19: 8.763 | F19: 新潟 | G19: 12.7 | H19: 16.9 | I19: 22.1 | J19: 26.5 | K19: 30.6 | L19: 25.8 | M19: 16.7 | N19: 12.1 | O19: 6 | P19: 2.9 | Q19: 3.5 | R19: 9.2 | T19: 新潟 | U19: 13.8354 | V19: 17.2878 | W19: 21.5622 | X19: 25.179 | Y19: 28.5492 | Z19: 24.6036 | AA19: 17.1234 | AB19: 13.3422 | AC19: 8.328 | AD19: 5.7798 | AE19: 6.273 | AF19: 10.9584
B20: 岐阜 | C20: 0.657 | D20: 5.414 | F20: 富山 | G20: 13.8 | H20: 18 | I20: 22.7 | J20: 27.7 | K20: 30.6 | L20: 26 | M20: 16.9 | N20: 12.4 | O20: 6.9 | P20: 3.7 | Q20: 4.2 | R20: 10.3 | T20: 富山 | U20: 10.3608 | V20: 12.759 | W20: 15.4427 | X20: 18.2977 | Y20: 19.9536 | Z20: 17.327 | AA20: 12.1309 | AB20: 9.5614 | AC20: 6.4209 | AD20: 4.5937 | AE20: 4.8792 | AF20: 8.3623
B21: 静岡 | C21: 0.218 | D21: 11.857 | F21: 金沢 | G21: 13.9 | H21: 18.4 | I21: 22.9 | J21: 28 | K21: 30.5 | L21: 26.6 | M21: 17.8 | N21: 13.2 | O21: 7.7 | P21: 4.3 | Q21: 4.9 | R21: 10.5 | T21: 金沢 | U21: 11.6908 | V21: 15.2098 | W21: 18.7288 | X21: 22.717 | Y21: 24.672 | Z21: 21.6222 | AA21: 14.7406 | AB21: 11.1434 | AC21: 6.8424 | AD21: 4.1836 | AE21: 4.6528 | AF21: 9.032
B22: 名古屋 | C22: 0.731 | D22: 1.749 | F22: 福井 | G22: 14.1 | H22: 18.7 | I22: 22.7 | J22: 27.9 | K22: 30.4 | L22: 26.2 | M22: 16.7 | N22: 12.8 | O22: 6.7 | P22: 3.7 | Q22: 3.9 | R22: 10.7 | T22: 福井 | U22: 15.7275 | V22: 19.0625 | W22: 21.9625 | X22: 25.7325 | Y22: 27.545 | Z22: 24.5 | AA22: 17.6125 | AB22: 14.785 | AC22: 10.3625 | AD22: 8.1875 | AE22: 8.3325 | AF22: 13.2625
B23: 京都 | C23: 0.822 | D23: 5.418 | F23: 甲府 | G23: 15.6 | H23: 18.9 | I23: 22.8 | J23: 27.8 | K23: 28.2 | L23: 26.7 | M23: 17.2 | N23: 12 | O23: 6.3 | P23: 3.3 | Q23: 5.7 | R23: 11.9 | T23: 甲府 | U23: 16 | V23: 19 | W23: 21 | X23: 24 | Y23: 26 | Z23: 25 | AA23: 23 | AB23: 20 | AC23: 18 | AD23: 16 | AE23: 15 | AF23: 15
B24: 大阪 | C24: 0.849 | D24: 3.519 | F24: 長野 | G24: 12 | H24: 16.3 | I24: 21 | J24: 25.9 | K24: 28.2 | L24: 24.5 | M24: 14.1 | N24: 8.8 | O24: 3.6 | P24: -0.1 | Q24: 1 | R24: 8.3 | T24: 長野 | U24: 14.247 | V24: 16.2121 | W24: 18.36 | X24: 20.5993 | Y24: 21.6504 | Z24: 19.9595 | AA24: 15.2067 | AB24: 12.7846 | AC24: 10.4082 | AD24: 8.7173 | AE24: 9.22 | AF24: 12.5561
B25: 神戸 | C25: 0.91 | D25: 0.95 | F25: 岐阜 | G25: 15.7 | H25: 20.1 | I25: 23.8 | J25: 28.8 | K25: 29.6 | L25: 27.3 | M25: 18.2 | N25: 13.4 | O25: 8.1 | P25: 5 | Q25: 6.4 | R25: 12.5 | T25: 岐阜 | U25: 15.7289 | V25: 18.6197 | W25: 21.0506 | X25: 24.3356 | Y25: 24.8612 | Z25: 23.3501 | AA25: 17.3714 | AB25: 14.2178 | AC25: 10.7357 | AD25: 8.699 | AE25: 9.6188 | AF25: 13.6265
B26: 和歌山 | C26: 0.852 | D26: 3.063 | F26: 静岡 | G26: 16.6 | H26: 19.5 | I26: 23.3 | J26: 28 | K26: 28.8 | L26: 27.2 | M26: 19.5 | N26: 15.5 | O26: 10.3 | P26: 7.2 | Q26: 9.2 | R26: 13.8 | T26: 静岡 | U26: 15.4758 | V26: 16.108 | W26: 16.9364 | X26: 17.961 | Y26: 18.1354 | Z26: 17.7866 | AA26: 16.108 | AB26: 15.236 | AC26: 14.1024 | AD26: 13.4266 | AE26: 13.8626 | AF26: 14.8654
B27: 鳥取 | C27: 0.598 | D27: 6.934 | F27: 名古屋 | G27: 15.9 | H27: 20.2 | I27: 23.8 | J27: 28.9 | K27: 29.4 | L27: 27.3 | M27: 18.3 | N27: 13.6 | O27: 8.4 | P27: 5.2 | Q27: 6.5 | R27: 12.7 | T27: 名古屋 | U27: 13.3719 | V27: 16.5152 | W27: 19.1468 | X27: 22.8749 | Y27: 23.2404 | Z27: 21.7053 | AA27: 15.1263 | AB27: 11.6906 | AC27: 7.8894 | AD27: 5.5502 | AE27: 6.5005 | AF27: 11.0327
B28: 松江 | C28: 0.909 | D28: 1.426 | F28: 津 | G28: 15.3 | H28: 19.7 | I28: 23.4 | J28: 28.7 | K28: 29.1 | L28: 27 | M28: 18.5 | N28: 13.9 | O28: 9.1 | P28: 6 | Q28: 6.7 | R28: 11.9 | T28: 津 | U28: 14.9 | V28: 18.1 | W28: 22.1 | X28: 25.7 | Y28: 27.5 | Z28: 25.7 | AA28: 22.2 | AB28: 19.1 | AC28: 15.9 | AD28: 13.9 | AE28: 13.4 | AF28: 13.6
B29: 岡山 | C29: 0.793 | D29: 3.294 | F29: 大津 | G29: 14.3 | H29: 18.8 | I29: 22.7 | J29: 28.1 | K29: 29 | L29: 26.5 | M29: 17.2 | N29: 12.4 | O29: 7.4 | P29: 4.3 | Q29: 5 | R29: 10.7 | T29: 大津 | U29: 17 | V29: 19 | W29: 22 | X29: 25 | Y29: 27 | Z29: 26 | AA29: 23 | AB29: 20 | AC29: 18 | AD29: 16 | AE29: 15 | AF29: 16
B30: 広島 | C30: 0.95 | D30: 0.95 | F30: 京都 | G30: 15.4 | H30: 19.7 | I30: 23.6 | J30: 29.1 | K30: 30.3 | L30: 27.7 | M30: 18.2 | N30: 13.3 | O30: 8.2 | P30: 5.1 | Q30: 6 | R30: 12.3 | T30: 京都 | U30: 18.0768 | V30: 21.6114 | W30: 24.8172 | X30: 29.3382 | Y30: 30.3246 | Z30: 28.1874 | AA30: 20.3784 | AB30: 16.3506 | AC30: 12.1584 | AD30: 9.6102 | AE30: 10.35 | AF30: 15.5286
B31: 山口 | C31: 0.784 | D31: 5.855 | F31: 大阪 | G31: 15.9 | H31: 20 | I31: 23.8 | J31: 28.9 | K31: 29.9 | L31: 27.9 | M31: 19.3 | N31: 14.4 | O31: 9.3 | P31: 5.9 | Q31: 6 | R31: 13 | T31: 大阪 | U31: 17.0181 | V31: 20.499 | W31: 23.7252 | X31: 28.0551 | Y31: 28.9041 | Z31: 27.2061 | AA31: 19.9047 | AB31: 15.7446 | AC31: 11.4147 | AD31: 9.0375 | AE31: 9.462 | AF31: 14.556
B32: 高松 | C32: 0.875 | D32: 3.125 | F32: 神戸 | G32: 15.9 | H32: 19.8 | I32: 23.4 | J32: 28 | K32: 29.7 | L32: 27.9 | M32: 19.6 | N32: 14.7 | O32: 9.7 | P32: 5.9 | Q32: 6 | R32: 13 | T32: 神戸 | U32: 15.26 | V32: 18.77 | W32: 22.01 | X32: 26.15 | Y32: 27.68 | Z32: 26.06 | AA32: 18.59 | AB32: 14.18 | AC32: 9.68 | AD32: 6.89 | AE32: 7.43 | AF32: 12.65
B33: 松山 | C33: 0.736 | D33: 2.561 | F33: 奈良 | G33: 14.9 | H33: 19 | I33: 22.9 | J33: 28.2 | K33: 28.9 | L33: 26.4 | M33: 17.3 | N33: 12.6 | O33: 7.7 | P33: 4.7 | Q33: 5.4 | R33: 11.6 | T33: 奈良 | U33: 13 | V33: 18.5 | W33: 22.8 | X33: 25.8 | Y33: 26.8 | Z33: 23.2 | AA33: 21.3 | AB33: 15.8 | AC33: 10.3 | AD33: 5.5 | AE33: 5.8 | AF33: 7
B34: 佐賀 | C34: 0.693 | D34: 5.151 | F34: 和歌山 | G34: 16.1 | H34: 19.7 | I34: 23.3 | J34: 28.3 | K34: 29.1 | L34: 27.2 | M34: 19.2 | N34: 14.2 | O34: 9.4 | P34: 6.7 | Q34: 7.3 | R34: 12.7 | T34: 和歌山 | U34: 16.7802 | V34: 19.8474 | W34: 22.9146 | X34: 27.1746 | Y34: 27.8562 | Z34: 26.2374 | AA34: 19.4214 | AB34: 15.1614 | AC34: 11.0718 | AD34: 8.7714 | AE34: 9.2826 | AF34: 13.8834
B35: 長崎 | C35: 0.64 | D35: 6.504 | F35: 鳥取 | G35: 14.3 | H35: 18.6 | I35: 22.9 | J35: 28.1 | K35: 30 | L35: 25.6 | M35: 17.4 | N35: 13.2 | O35: 8 | P35: 4.7 | Q35: 5.7 | R35: 11.1 | T35: 鳥取 | U35: 15.4854 | V35: 18.0568 | W35: 20.6282 | X35: 23.7378 | Y35: 24.874 | Z35: 22.2428 | AA35: 17.3392 | AB35: 14.8276 | AC35: 11.718 | AD35: 9.7446 | AE35: 10.3426 | AF35: 13.5718
B36: 熊本 | C36: 0.193 | D36: 16.352 | F36: 松江 | G36: 14.3 | H36: 18.4 | I36: 22.7 | J36: 27.5 | K36: 29.4 | L36: 25.2 | M36: 17.8 | N36: 13 | O36: 7.7 | P36: 5 | Q36: 5.7 | R36: 10.9 | T36: 松江 | U36: 14.4247 | V36: 18.1516 | W36: 22.0603 | X36: 26.4235 | Y36: 28.1506 | Z36: 24.3328 | AA36: 17.6062 | AB36: 13.243 | AC36: 8.4253 | AD36: 5.971 | AE36: 6.6073 | AF36: 11.3341
